Workbook

Sheet Navigation Guide
A1: Workbook Overview
A3: Introduction:
A4: This Vapor Intrusion Screening Level (VISL) Calculator is a technical resource, developed by the U.S. Environmental Protection Agency (EPA) that: (1) identifies chemicals considered to be typically vapor-forming under environmental conditions and known to pose a potential cancer risk or noncancer hazard through the inhalation pathway; (2) provides generally recommended screening-level concentrations for groundwater, near-source soil gas (exterior to buildings), sub-slab soil gas, and indoor air; and (3) facilitates calculation of site-specific screening levels and/or candidate risk-based cleanup levels based on user-defined target risk levels, exposure scenarios, and semi-site-specific or site-specific attenuation factors.
A5: EPA developed vapor intrusion screening levels (VISLs) for human health protection that are generally recommended, medium-specific, risk-based screening-level concentrations intended for use in identifying areas or buildings that may warrant further investigation of the vapor intrusion pathway. These VISLs are based on: current toxicity values selected considering OSWER’s hierarchy of sources for toxicity values (EPA 2003); physical-chemical parameters for vapor-forming chemicals (available on the 'Chem Props' tab); and EPA-recommended approaches for human health risk assessment (e.g., EPA 2009, 2014).
A6: The list of vapor-forming substances warranting consideration for potential vapor intrusion and the VISL values may be modified in the future. For example, new inhalation toxicity values may become available in the future.
A7: Please refer to OSWER Publication 9200.2-154 (OSWER Technical Guide for Assessing and Mitigating the Vapor Intrusion Pathway From Subsurface Vapor Sources to Indoor Air) (EPA 2015) for additional information on vapor intrusion and EPA’s recommendations for assessing the vapor intrusion pathway pursuant to the Comprehensive Environmental Response, Compensation, and Liability Act (CERCLA) and the Resource Conservation and Recovery Act.
A8: For questions, please contact: | C8: Rich Kapuscinski
C9: Office of Superfund Remediation & Technology Innovation
C10: 703-305-7411
C11: Email: Kapuscinski.Rich@epa.gov
A12: Worksheet Summary:
A13: Worksheet Name | B13: Acronym definition | C13: Description
A14: VISL | B14: VISL = Vapor intrusion screening level | C14: Main worksheet where the user can enter the scenario, risk information, and select chemicals to calculate the target values for groundwater, soil gas (sub-slab and exterior), and indoor air. The tool calculates target values for cancer risk (including mutagenic-mode-of-action) and noncancer hazard. It is designed to correctly handle chemicals such as trichloroethylene (which has cancer risk from both the standard and mutagenic modes of action), and vinyl chloride (which uses a special cancer risk equation). Note that all chemicals from the RSLs are included on this worksheet, but screening levels are only calculated for chemicals that are both volatile and have inhalation toxicity data. For convenience, the cells are filtered to display only the chemicals with screening levels, but users can change this setting.
A15: SG_IA_calc | B15: SG_IA_calc = Soil gas to indoor air calculator | C15: Forward risk calculator where the user can enter the scenario, risk information, soil gas concentrations, and select chemicals to calculate indoor air concentration and indoor air risk. Only includes volatile chemicals with inhalation toxicity data.
A16: GW_IA_calc | B16: GW_IA_calc = Groundwater to indoor air calculator | C16: Forward risk calculator where the user can enter the scenario, risk information, groundwater concentrations, and select chemicals to calculate indoor air concentration and indoor air risk. Only includes volatile chemicals with inhalation toxicity data.
A17: IA_risk_calc | B17: IA_risk_calc = Indoor air to risk calculator | C17: Forward risk calculator where the user can enter the scenario, risk information, indoor air concentrations, and select chemicals to calculate indoor air risk. Only includes volatile chemicals with inhalation toxicity data.
A18: ChemProps | B18: N/A | C18: Supporting worksheet that contains a compilation of physical and chemical properties of each chemical, which are used in the calculations for the VISL worksheet. Not all parameters in the ChemProps table are used in the VISL.
A19: Tox Summary | B19: Tox = Toxicity | C19: Supporting worksheet that is a duplicate of the "Summary" table from the latest update (Nov. 2014) of the EPA RSL table.
A20: Parameters Summary | B20: N/A | C20: Supporting worksheet that is a duplicate of the "Parameters" table from the latest update (Nov. 2014) of the EPA RSL table.
A21: Version Notes | B21: N/A | C21: Lists changes made to each version of the VISL calculator workbook.
A22: Note that the Tox Summary and Parameters Summary worksheets are downloaded from EPA's RSL website at http://www.epa.gov/reg3hwmd/risk/human/rb-concentration_table/index.htm.
A24: Worksheet Use:
A25: Be sure to enable macros to use full functionality of the calculator.
A26: Note that changes to supporting data may affect the results of the calculator. As such, some cells have been locked to protect the integrity of the tool.
A27: If modifications are made to values or scenarios, it is suggested the user save each file in order to capture those changes for future reproducibility.
A28: The worksheets are protected using the password "visl"; advanced users may wish to unlock the worksheets for alternate exposure scenarios or use of pivot tables, etc.
A30: VISL Worksheet
A32: The user can enter the following information into the VISL worksheet to calculate target values for groundwater, soil gas (sub-slab and exterior), and indoor air:
A33: Selected Parameters | B33: Value/Instructions | F33: Variable Name
A34: Exposure scenario | B34: Select either "residential" or "commercial" | F34: Scenario
A35: Target risk for carcinogens | B35: Enter a numerical value | F35: TCR
A36: Target hazard quotient for non-carcinogens | B36: Enter a numerical value | F36: THQ
A37: Average groundwater temperature | B37: Enter a numerical value (in Celsius). This temperature should reflect actual site conditions if possible (for example, stabilized temperature measured during well purging prior to groundwater sampling). | F37: Tgw
A39: The VISL worksheet is ordered by chemical name. The user can select "view checked chemicals" or "view all chemicals." To view a select, site-specific set of chemicals, enter "x" in column A adjacent to chemicals of interest.
A40: In order to use this functionality, macros must be enabled for Excel.
A42: The table below describes the types of data provided in the VISL sheet.
A43: Column | B43: Heading | C43: Units | D43: Symbol | E43: Data type | F43: Options | G43: Description
A44: A | E44: variable | F44: x or blank | G44: The user can enter an "x" into Column A to indicate which rows will be displayed. To show only the chemicals with an "x" in Column A, use the "View Checked Chemicals" button, or use the autofilter arrow in cell A12 to uncheck the box for "(Blanks)". The "View All Chemicals" button or the autofilter can be used to show all chemicals.
A45: B | B45: CAS | E45: fixed | F45: numerical value | G45: The Chemical Abstracts Service (CAS) Number associated with a chemical.
A46: C | B46: Chemical Name | E46: fixed | F46: text | G46: The chemical name.
A47: D | B47: Does the chemical meet the definition for volatility? | E47: calculated | F47: Yes, No, Unknown | G47: This column indicates if a chemical meets the criteria for volatility, either a Vapor Pressure > 1, or a Henry's Law Constant > 10E-5. If those values are not available, then it is listed as unknown.
A48: E | B48: Does chemical have inhalation toxicity data? | E48: calculated | F48: Yes, No | G48: Indicates if a chemical has an RfC or an IUR.
A49: F | B49: Is Chemical Sufficiently Volatile and Toxic to Pose Inhalation Risk Via Vapor Intrusion from Soil Source? | D49: Cvp>Cia,target | E49: calculated | F49: No, Yes, No VP, or No MW | G49: Yes/no question with several other options: Yes and no are self-explanatory, and are derived from logical inspection of the target sub-slab and exterior soil gas concentration. Note that the soil gas attenuation factor is not used in this assessment. The other possible answers are: No VP, which means there was no vapor pressure for the chemical. No MW, which means there was no molecular weight for the chemical. Cvp is calculated in column K, which is hidden.
A50: G | B50: Is Chemical Sufficiently Volatile and Toxic to Pose Inhalation Risk Via Vapor Intrusion from Groundwater Source? | D50: Chc>Cia,target | E50: calculated | F50: No, Yes, No VP, or No MW | G50: Yes/no question with a several other options: Yes and no are self-explanatory, and are derived from logical inspection of the target groundwater concentration. Note that the groundwater attenuation factor is not used in this assessment. The other possible answers are: No VP, which means there was no vapor pressure for the chemical. No MW, which means there was no molecular weight for the chemical. Chc is calculated in column L, which is hidden.
A51: H | B51: Target Indoor Air Conc. @ TCR=VALUE or THQ=VALUE | C51: ug/m3 | D51: Cia,target | E51: calculated | F51: NVT, No VP, No MW, or numerical value | G51: The target indoor air concentration (Cia,target) will be one of the following depending on whether the chemical has an IUR, a RfC, or both: IUR only: Target indoor air concentration = Target indoor air concentration for carcinogens (Cia,c) RfC only: Target indoor air concentration = Target indoor air concentration for non-carcinogens (Cia,nc) IUR and RfC: Target indoor air concentration = Minimum of target indoor air concentrations for carcinogens (Cia,c) and non-carcinogens (Cia,nc). If the calculated target indoor air concentration is higher than the pure phase vapor concentration at 25 C, then "NVT" (for not sufficiently volatile and/or toxic to pose inhalation risk in selected exposure scenario for the indicated medium) is entered instead of a concentration value. The other possible answers are: No VP, which means there was no vapor pressure for the chemical. No MW, which means there was no molecular weight for the chemical.
A52: I | B52: Toxicity Basis | E52: calculated | F52: C or NC | G52: The toxicity basis for the target indoor air concentration, either carcinogenic (C) or non-carcinogenic (NC).
A53: J | B53: Target Sub-Slab and Exterior Soil Gas Conc. @ TCR=VALUE or THQ=VALUE | C53: ug/m3 | D53: Csg | E53: calculated | F53: NVT, No VP, No MW, or numerical value | G53: The target sub-slab and exterior soil gas concentration (Csg) is the target indoor air concentration divided by the generic attenuation factor for soil gas (default value = 0.03). Cia,target Csg = -------------------------- AFss If the calculated target soil gas concentration is higher than the pure phase vapor concentration at 25 C, then "NVT" (for not sufficiently volatile and/or toxic to pose inhalation risk in selected exposure scenario for the indicated medium) is entered instead of a concentration value. The other possible answers are: No VP, which means there was no vapor pressure for the chemical. No MW, which means there was no molecular weight for the chemical.
A54: Column | B54: Heading | C54: Units | D54: Symbol | E54: Data type | F54: Options | G54: Description
A55: K | B55: Target Ground Water Conc. @ TCR=VALUE or THQ=VALUE | C55: ug/L | D55: Cgw | E55: calculated | F55: NVT, No VP, No MW, No S, No HLC, or numerical value | G55: The equation for the target groundwater concentration (Cgw) is: Cia,target Cgw = ------------------------------------------ AFgw x (1000 L/m3) x HLC where Cia is the target indoor air concentration, AFgw is the generic attenuation factor for groundwater (default value = 0.001) and HLC is Henry's Law Constant. If the calculated target groundwater concentration is higher than the pure component water solubility, then "NVT" (for not sufficiently volatile and/or toxic to pose inhalation risk in selected exposure scenario for the indicated medium) is entered instead of a concentration value. The other possible answers are: No VP, which means there was no vapor pressure for the chemical. No MW, which means there was no molecular weight for the chemical. No S, which means there was no water solubility for the chemical. No HLC, which means that there was no Henry's Law Constant for the chemical.
A56: L | B56: Is Target Ground Water Conc. < MCL? | C56: MCL = ug/L | D56: Cgw<MCL | E56: calculated | F56: Yes, No, -- | G56: If the chemical has an MCL, "Yes" or "No" shown to indicate whether Cgw exceeds the MCL. Either way, the MCL is listed in parentheses after the "Yes" or "No". If no MCL is available, "--" is listed.
A57: M (this column is hidden) | B57: Pure Phase Vapor Conc. @ 25oC | C57: ug/m3 | D57: Cvp | E57: linked to data table | F57: numerical value, No VP, or No MW | G57: The pure phase vapor concentration at 25 degrees C. The equation is as follows: MW x VP x (1E+06 ug/g) x (1E+03 L/m3) Cvp = ----------------------------------------------------------- R x T x (760 mmHg/atm) where MW is the molecular weight in g/mol, VP is the vapor pressure in millimeters of mercury, R is the universal gas constant (0.082057 L-atm/mol-K) and T is the temperature (298.15 K or 25 C). The other possible answers are: No VP, which means there was no vapor pressure for the chemical. No MW, which means there was no molecular weight for the chemical.
A58: N (this column is hidden) | B58: Groundwater Vapor Conc. | C58: ug/m3 | D58: Chc | E58: calculated | F58: numerical value, No HLC, or No S | G58: The vapor concentration above groundwater from the Henry's Law Constant and the pure component water solubility. The other possible answers are: No HLC, which means there was no Henry's Law Constant for the chemical. No S, which means there was no pure component water solubility for the chemical.
A59: O | B59: Temperature for Groundwater Vapor Conc. | C59: ⁰C | D59: Tgw or 25 | E59: calculated | F59: Tgw or 25 | G59: The column shows whether the groundwater vapor concentration was calculated using a Henry's Law Constant at the groundwater temperature (Tgw) or at 25 ⁰C.
A60: P | B60: Lower Explosive Limit | C60: % by volume | D60: LEL | E60: fixed | F60: numerical value or blank | G60: The lower explosive limit for the chemical (LEL), which is the minimum concentration of the stated compound in air (% by volume) that is needed for the gas to ignite and explode.
A61: Q | B61: LEL Source | E61: fixed | F61: letter for reference | G61: The source of the LEL value (see notes E, N, M).
A62: R | B62: blank | D62: blank | E62: blank | F62: blank | G62: blank, used to improve readability of table
A63: S | B63: Inhalation Unit Risk | C63: (ug/m3)-1 | D63: IUR | E63: linked to data table | F63: numerical value or blank | G63: The inhalation unit risk factor for the chemical (IUR), from the EPA RSL worksheet. This is the potential carcinogenic risk per unit concentration exposure associated with inhalation of the chemical.
A64: T | B64: IUR Source | E64: linked to data table | F64: letter for reference | G64: The original source of the inhalation unit risk factor in the EPA RSL worksheet.
A65: U | B65: Reference Concentration | C65: mg/m3 | D65: RfC | E65: linked to data table | F65: numerical value or blank | G65: The reference concentration for the chemical (RfC), from the EPA RSL worksheet. This is the potential noncancer hazard per unit concentration exposure associated with inhalation of the chemical.
A66: V | B66: RFC Source | E66: linked to data table | F66: letter for reference | G66: The original source of the reference concentration in the EPA RSL worksheet.
A67: U | B67: Mutagenic Indicator | D67: i | E67: fixed or linked to data table | F67: Mut, TCE, or VC | G67: This indicator is used to trigger special case calculations for mutagenic mode of action (Mut), as well as chemical-specific equations or toxicity values for trichloroethylene (TCE) and vinyl chloride (VC).
A68: V | B68: Target Indoor Air Conc. for Carcinogens | C68: ug/m3 | D68: Cia,c | E68: calculated | F68: numerical value or blank | G68: The indoor air concentration for carcinogenic chemicals (Cia,c) that results in a target risk for carcinogens equal to TCR. The concentration is calculated using the inhalation unit risk and several exposure parameters for residential or commercial exposure to the chemical in air. See table below for the inhalation pathway exposure parameters used. The equation is as follows: TCR x ATc x 365 (days/year) x 24 (hours/day) Cia,c = ---------------------------------------------------------------------- EF x ED x ET x IUR where TCR is the target risk for carcinogens, IUR is the inhalation unit risk, and ATc, EF, ED, and ET are the default exposure parameters for residential or commercial exposure as appropriate.
G69: For mutagens, the same equation is used, except that an adjusted exposure duration is used in place of the standard exposure duration: TCR x ATc x 365 (days/year) x 24 (hours/day) Cia,c = ---------------------------------------------------------------------- EF x EDMMOA x ET x IUR EDMMOA is calculated using the equation: EDMMOA = (ED0-2 x AF0-2) + (ED2-6 x AF2-6) + (ED6-16 x AF6-16) + (ED16-26 x AF16-26) where EDx-y is the exposure duration for the age cohort, and AFx-y is 10 for ages 0 to 2, 3 for ages 2 to 6 and 6 to 16, and 1 for ages 16 to 26 (EPA 2014).
G70: For trichloroethylene, two Cia,c values are calculated using the mutagenic and non-mutagenic components of the IUR, and the reciprocal of the sum of the reciprocals of those Cia,c values is used to calculate the Cia,c value, in accordance with the RSL guidance (EPA 2014).
G71: For vinyl chloride, the equation is: TCR Cia,c = -------------------------------------------------------------------------------------- (IUR x EF x ED x ET x (1 day / 24 hours ) IUR + --------------------------------------------------------------- (ATc x 365 (days/year)
A72: W | B72: Target Indoor Air Conc. for Non-Carcinogens | C72: ug/m3 | D72: Cia,nc | E72: calculated | F72: numerical value or blank | G72: The indoor air concentration for non-carcinogenic chemicals (Cia,nc) that results in a target hazard quotient for non-carcinogens equal to THQ. The concentration is calculated using the reference concentration and several exposure parameters for residential or commercial exposure to the chemical in air. See table below for the inhalation pathway exposure parameters used. The equation is as follows: THQ x RfC x ATnc x 365 (days/year) x 24 (hours/day) x 1,000 (ug/mg) Cia,nc = --------------------------------------------------------------------------------------------- EF x ED x ET where THQ is the target hazard for non-carcinogens, RfC is the reference concentration, and ATnc, EF, ED, and ET are the default exposure parameters for residential or commercial exposure as appropriate.
A74: The table below summarizes the reasonable maximum exposure parameters used to calculate VISLs (EPA 2009).
B75: Inhalation Pathway Exposure Parameters (RME): | C75: Units | D75: Symbol | E75: Value | F75: Symbol | G75: Value
B76: Exposure Scenario | D76: Residential | F76: Commercial
B77: Averaging time for carcinogens | C77: yrs | D77: ATc_R | E77: 70 | F77: ATc_C | G77: 70
B78: Averaging time for non-carcinogens | C78: yrs | D78: ATnc_R | E78: 26 | F78: ATnc_C | G78: 25
B79: Exposure duration | C79: yrs | D79: ED_R | E79: 26 | F79: ED_C | G79: 25
B80: Exposure duration for mutagenic-mode-of-action | C80: yrs | D80: EDM_R | E80: 76
B81: Exposure frequency | C81: days/yr | D81: EF_R | E81: 350 | F81: EF_C | G81: 250
B82: Exposure time | C82: hr/day | D82: ET_R | E82: 24 | F82: ET_C | G82: 8
A84: The table below summarizes the generic attenuation factors used to calculate VISLs (EPA 2002).
B85: Generic Attenuation Factors: | C85: Units | D85: Symbol | E85: Value | F85: Symbol | G85: Value
B86: Source Medium of Vapors
B87: Groundwater | C87: (-) | D87: AFgw_R | E87: 0.001 | F87: AFgw_C | G87: 0.001
B88: Sub-Slab and Exterior Soil Gas | C88: (-) | D88: AFss_R | E88: 0.03 | F88: AFss_C | G88: 0.03
A90: SG_IA_calc Worksheet
A92: The user can enter the following information into the SG_IA_calc worksheet to calculate risks and hazards from soil gas concentrations.
A93: Selected Parameters | B93: Value/Instructions | F93: Variable Name
A94: Exposure scenario | B94: Select either "residential" or "commercial" | F94: Scenario
A95: Target risk for carcinogens | B95: Enter target risk for carcinogens | F95: TCR
A96: Target hazard quotient for non-carcinogens | B96: Enter target hazard quotient for non-carcinogens | F96: THQ
A97: Site Sub-slab or Exterior Soil Gas Concentration | B97: Enter a numerical value (in ug/m3) for the site sub-slab or exterior soil gas concentration for each chemical in column D of the main table (see description for column D below). | F97: Csg
A99: The table below describes the types of data provided in the SG_IA_calc sheet.
A100: Column | B100: Heading | C100: Units | D100: Symbol | E100: Data type | F100: Options | G100: Description
A101: A | E101: variable | F101: x or blank | G101: The user can enter an "x" into Column A of the VISL worksheet to indicate which rows will be displayed. The values shown on the SG_IA_calc worksheet are carried over from the VISL worksheet. To show only the chemicals with an "x" in Column A, use the autofilter arrow in cell A12 to uncheck the box for "(Blanks)". The autofilter can also be used to show all chemicals.
A102: B | B102: CAS | E102: fixed | F102: numerical value | G102: The Chemical Abstracts Service (CAS) Number associated with a chemical.
A103: C | B103: Chemical Name | E103: fixed | F103: text | G103: The chemical name.
A104: D | B104: Site Sub-slab or Exterior Soil Gas Concentration | C104: ug/m3 | D104: Csg | E104: concentration entered by user or leave blank | F104: numerical value, "No VP,", "No MW," or blank | G104: The site sub-slab or exterior soil gas concentration, as entered by the user.
A105: E | B105: Calculated Indoor Air Concentration | C105: ug/m3 | D105: Cia | E105: calculated | F105: numerical value, "No VP," or blank | G105: The indoor air concentration is calculated from the site sub-slab or exterior soil gas concentration, using the generic attenuation factor for indoor air from sub-slab and exterior soil gas.
A106: F | B106: VI Carcinogenic Risk | D106: CR | E106: calculated | F106: numerical value, blank, or "No IUR" | G106: The carcinogenic risk from the vapor intrusion pathway for the chemical, calculated using the equation: Cia x EF x ED x ET x IUR CR = ------------------------------------------------------------------ ATc x 365 (days/year) x 24 (hours/day) where Cia is the indoor air concentration, IUR is the inhalation unit risk, and ATc, EF, ED, and ET are the default exposure parameters for residential or commercial exposure as appropriate. Special cases are used for mutagenic chemicals, vinyl chloride, and trichloroethylene. For the equations used for these cases, refer to the VISL section of this Navigation Guide or the EPA RSL User's Guide (EPA 2014).
A107: G | B107: VI Hazard | D107: HQ | E107: calculated | F107: numerical value, blank, or "No RfC" | G107: The noncancer hazard from the vapor intrusion pathway for the chemical, calculated using the equation: Cia x EF x ED x ET HQ = -------------------------------------------------------------------------------------------- RfC x ATnc x 365 (days/year) x 24 (hours/day) x 1,000 (ug/mg) where Cia is the indoor air concentration, RfC is the reference concentration, and ATnc, EF, ED, and ET are the default exposure parameters for residential or commercial exposure as appropriate.
A108: H | B108: blank | D108: blank | E108: blank | F108: blank | G108: blank, used to improve readability of table
A109: I | B109: Inhalation Unit Risk | C109: (ug/m3)-1 | D109: IUR | E109: linked to data table | F109: numerical value or blank | G109: The inhalation unit risk factor for the chemical (IUR), from the EPA RSL worksheet. This is the potential carcinogenic risk per unit concentration exposure associated with inhalation of the chemical.
A110: J | B110: IUR Source | E110: linked to data table | F110: letter for reference | G110: The original source of the inhalation unit risk factor in the EPA RSL worksheet.
A111: K | B111: Reference Concentration | C111: mg/m3 | D111: RfC | E111: linked to data table | F111: numerical value or blank | G111: The reference concentration for the chemical (RfC), from the EPA RSL worksheet. This is the potential noncancer hazard per unit concentration exposure associated with inhalation of the chemical.
A112: L | B112: RFC Source | E112: linked to data table | F112: letter for reference | G112: The original source of the reference concentration in the EPA RSL worksheet.
A113: M | B113: Mutagenic Indicator | D113: i | E113: linked to data table | F113: Mut, TCE, or VC | G113: This indicator is used to trigger special case calculations for mutagenic mode of action (Mut), as well as chemical-specific equations or toxicity values for trichloroethylene (TCE) and vinyl chloride (VC).
A115: GW_IA_calc Worksheet
A117: The user can enter the following information into the GW_IA_calc worksheet to calculate risks and hazards from groundwater concentrations.
A118: Selected Parameters | B118: Value/Instructions | F118: Variable Name
A119: Exposure scenario | B119: Select either "residential" or "commercial" | F119: Scenario
A120: Target risk for carcinogens | B120: Enter target risk for carcinogens | F120: TCR
A121: Target hazard quotient for non-carcinogens | B121: Enter target hazard quotient for non-carcinogens | F121: THQ
A122: Average groundwater temperature | B122: Enter average of the stabilized groundwater temperature to correct Henry's Law Constant for groundwater target concentrations. This temperature should reflect actual site conditions if possible (for example, stabilized temperature measured during well purging prior to groundwater sampling). | F122: Tgw
A123: Groundwater concentration | B123: Enter a numerical value (in ug/L) for the site groundwater concentration for each chemical in column D of the main table (see description for column D below). | F123: Cgw
A125: The table below describes the types of data provided in the GW_IA_calc sheet.
A126: Column | B126: Heading | C126: Units | D126: Symbol | E126: Data type | F126: Options | G126: Description
A127: A | E127: variable | F127: x or blank | G127: The user can enter an "x" into Column A of the VISL worksheet to indicate which rows will be displayed. The values shown on the GW_IA_calc worksheet are carried over from the VISL worksheet. To show only the chemicals with an "x" in Column A, use the autofilter arrow in cell A12 to uncheck the box for "(Blanks)". The autofilter can also be used to show all chemicals.
A128: B | B128: CAS | E128: fixed | F128: numerical value | G128: The Chemical Abstracts Service (CAS) Number associated with a chemical.
A129: C | B129: Chemical Name | E129: fixed | F129: text | G129: The chemical name.
A130: D | B130: Site Groundwater Concentration | C130: ug/L | D130: Cgw | E130: concentration entered by user or leave blank | F130: numerical value or blank | G130: The site groundwater concentration, as entered by the user.
A131: E | B131: Calculated Indoor Air Concentration | C131: ug/m3 | D131: Cia | E131: calculated | F131: numerical value, "No HLC," or blank | G131: The indoor air concentration is calculated from the site groundwater concentration, using the generic attenuation factor for indoor air from groundwater. No HLC means that there was no Henry's Law Constant for the chemical.
A132: F | B132: VI Carcinogenic Risk | D132: CR | E132: calculated | F132: numerical value, "No HLC," "No IUR," or blank | G132: The carcinogenic risk from the vapor intrusion pathway for the chemical, calculated using the equation: Cia x EF x ED x ET x IUR CR = ------------------------------------------------------------------ ATc x 365 (days/year) x 24 (hours/day) where Cia is the indoor air concentration, IUR is the inhalation unit risk, and ATc, EF, ED, and ET are the default exposure parameters for residential or commercial exposure as appropriate. Special cases are used for mutagenic chemicals, vinyl chloride, and trichloroethylene. For the equations used for these cases, refer to the VISL section of this Navigation Guide or the EPA RSL User's Guide (EPA 2014).
A133: G | B133: VI Hazard | D133: HQ | E133: calculated | F133: numerical value, "No HLC," "No RfC," or blank | G133: The noncancer hazard from the vapor intrusion pathway for the chemical, calculated using the equation: Cia x EF x ED x ET HQ = -------------------------------------------------------------------------------------------- RfC x ATnc x 365 (days/year) x 24 (hours/day) x 1,000 (ug/mg) where Cia is the indoor air concentration, RfC is the reference concentration, and ATnc, EF, ED, and ET are the default exposure parameters for residential or commercial exposure as appropriate.
A134: H | B134: blank | D134: blank | E134: blank | F134: blank | G134: blank, used to improve readability of table
A135: I | B135: Inhalation Unit Risk | C135: (ug/m3)-1 | D135: IUR | E135: linked to data table | F135: numerical value or blank | G135: The inhalation unit risk factor for the chemical (IUR), from the EPA RSL worksheet. This is the potential carcinogenic risk per unit concentration exposure associated with inhalation of the chemical.
A136: J | B136: IUR Source | E136: linked to data table | F136: letter for reference | G136: The original source of the inhalation unit risk factor in the EPA RSL worksheet.
A137: K | B137: Reference Concentration | C137: mg/m3 | D137: RfC | E137: linked to data table | F137: numerical value or blank | G137: The reference concentration for the chemical (RfC), from the EPA RSL worksheet. This is the potential noncancer hazard per unit concentration exposure associated with inhalation of the chemical.
A138: L | B138: RFC Source | E138: linked to data table | F138: letter for reference | G138: The original source of the reference concentration in the EPA RSL worksheet.
A139: M | B139: Mutagenic Indicator | D139: i | E139: linked to data table | F139: Mut, TCE, or VC | G139: This indicator is used to trigger special case calculations for mutagenic mode of action (Mut), as well as chemical-specific equations or toxicity values for trichloroethylene (TCE) and vinyl chloride (VC).
A141: IA_risk_calc Worksheet
A143: The user can enter the following information into the IA_risk_calc worksheet to calculate risks and hazards from soil gas concentrations.
A144: Selected Parameters | B144: Value/Instructions | F144: Variable Name
A145: Exposure scenario | B145: Select either "residential" or "commercial" | F145: Scenario
A146: Target risk for carcinogens | B146: Enter target risk for carcinogens | F146: TCR
A147: Target hazard quotient for non-carcinogens | B147: Enter target hazard quotient for non-carcinogens | F147: THQ
A148: Indoor air concentration | B148: Enter a numerical value (in ug/m3) for the site indoor air concentration for each chemical in column D of the main table (see description for column D below). | F148: Cia
A150: The table below describes the types of data provided in the IA_risk_calc sheet.
A151: Column | B151: Heading | C151: Units | D151: Symbol | E151: Data type | F151: Options | G151: Description
A152: A | E152: variable | F152: x or blank | G152: The user can enter an "x" into Column A of the VISL worksheet to indicate which rows will be displayed. The values shown on the IA_risk_calc worksheet are carried over from the VISL worksheet. To show only the chemicals with an "x" in Column A, use the autofilter arrow in cell A12 to uncheck the box for "(Blanks)". The autofilter can also be used to show all chemicals.
A153: B | B153: CAS | E153: fixed | F153: numerical value | G153: The Chemical Abstracts Service (CAS) Number associated with a chemical.
A154: C | B154: Chemical Name | E154: fixed | F154: text | G154: The chemical name.
A155: D | B155: Site Indoor Air Concentration | C155: ug/m3 | D155: Cia | E155: concentration entered by user or leave blank | F155: numerical value, "No VP," "No MW," or blank | G155: The indoor air concentration, as entered by the user.
A156: E | B156: VI Carcinogenic Risk | D156: CR | E156: calculated | F156: numerical value, "No VP," "No IUR," or blank | G156: The carcinogenic risk from the vapor intrusion pathway for the chemical, calculated using the equation: Cia x EF x ED x ET x IUR CR = ------------------------------------------------------------------ ATc x 365 (days/year) x 24 (hours/day) where Cia is the indoor air concentration, IUR is the inhalation unit risk, and ATc, EF, ED, and ET are the default exposure parameters for residential or commercial exposure as appropriate. Special cases are used for mutagenic chemicals, vinyl chloride, and trichloroethylene. For the equations used for these cases, refer to the VISL section of this Navigation Guide or the EPA RSL User's Guide (EPA 2014).
A157: F | B157: VI Hazard | D157: HQ | E157: calculated | F157: numerical value, blank, or "No RfC" | G157: The noncancer hazard from the vapor intrusion pathway for the chemical, calculated using the equation: Cia x EF x ED x ET HQ = -------------------------------------------------------------------------------------------- RfC x ATnc x 365 (days/year) x 24 (hours/day) x 1,000 (ug/mg) where Cia is the indoor air concentration, RfC is the reference concentration, and ATnc, EF, ED, and ET are the default exposure parameters for residential or commercial exposure as appropriate.
A158: G | B158: blank | D158: blank | E158: blank | F158: blank | G158: blank, used to improve readability of table
A159: H | B159: Inhalation Unit Risk | C159: (ug/m3)-1 | D159: IUR | E159: linked to data table | F159: numerical value or blank | G159: The inhalation unit risk factor for the chemical (IUR), from the EPA RSL worksheet. This is the potential carcinogenic risk per unit concentration exposure associated with inhalation of the chemical.
A160: I | B160: IUR Source | E160: linked to data table | F160: letter for reference | G160: The original source of the inhalation unit risk factor in the EPA RSL worksheet.
A161: J | B161: Reference Concentration | C161: mg/m3 | D161: RfC | E161: linked to data table | F161: numerical value or blank | G161: The reference concentration for the chemical (RfC), from the EPA RSL worksheet. This is the potential noncancer hazard per unit concentration exposure associated with inhalation of the chemical.
A162: K | B162: RFC Source | E162: linked to data table | F162: letter for reference | G162: The original source of the reference concentration in the EPA RSL worksheet.
A163: L | B163: Mutagenic Indicator | D163: i | E163: linked to data table | F163: Mut, TCE, or VC | G163: This indicator is used to trigger special case calculations for mutagenic mode of action (Mut), as well as chemical-specific equations or toxicity values for trichloroethylene (TCE) and vinyl chloride (VC).
A165: Chem Props Worksheet
A167: The table below describes the types of data provided in the Chem Props sheet.
A168: Column | B168: Heading | C168: Units | D168: Symbol | E168: Data type | F168: Options | G168: Description
A169: A | B169: CAS | E169: fixed | F169: numerical value | G169: The Chemical Abstracts Service (CAS) Number associated with a chemical.
A170: B | B170: Alphabetized List of Compounds | E170: fixed | F170: alphanumeric value | G170: The name of the chemical.
A171: C | B171: Is Volatile? VP>1 or HLC>10E-5 | E171: calculated | F171: yes/no/unknown | G171: Does the chemical meet the criteria for volatility (HLC > 10E-5 and/or VP > 1)
A172: D | B172: Molecular weight | C172: g/mole | D172: Mw | E172: fixed or linked to data table | F172: numerical value or No MW | G172: The molecular weight of the chemical in grams per mole. If "No MW" is listed, no molecular weight was available for the chemical.
A173: E | B173: Molecular weight source | E173: fixed | F173: letter for reference | G173: The source of the molecular weight of the chemical.
A174: F | B174: Vapor Pressure | C174: mm Hg | D174: VP | E174: fixed | F174: numerical value or No VP | G174: The vapor pressure of the chemical in millimeters of mercury. If "No VP" is listed, no vapor pressure was available for the chemical.
A175: G | B175: Vapor Pressure | E175: fixed | F175: letter for reference | G175: The source of the vapor pressure of the chemical.
A176: H | B176: Pure Component Water Solubility | C176: mg/L | D176: S | E176: fixed or linked to data table | F176: numerical value or No S | G176: The solubility of the chemical as a pure component in water. If "No S" is listed, no pure component water solubility was available for the chemical.
A177: I | B177: Pure Component Water Solubility source | E177: fixed | F177: letter for reference | G177: The source of the water solubility of the chemical.
A178: J | B178: MCL | C178: ug/L | D178: MCL | E178: fixed | F178: numerical value or blank | G178: The Maximum Contaminant Level for the chemical, if applicable, in micrograms per liter.
A179: K | B179: Henry's Law Constant @ 25⁰C | C179: atm-m3/mol | D179: Hc25 | E179: fixed or linked to data table | F179: numerical value or No Hc25 | G179: The Henry's Law Constant for the chemical at 25 degrees Celsius. If "No Hc25" is listed, no Henry's Law Constant for the chemical at 25 degrees Celsius was available.
A180: L | B180: Henry's Law Constant @ 25⁰C source | E180: fixed | F180: letter for reference | G180: The source of the Henry's Law Constant for the chemical.
A181: M | B181: Henry's Law Constant @ 25⁰C | C181: unitless | D181: H'25 | E181: calculated | F181: numerical value or blank | G181: The unitless Henry's Law Constant for the chemical at 25 degrees Celsius. This is the ratio of the concentration of the chemical in the aqueous phase to the concentration of the chemical in the gas phase at 25 degrees Celsius. Hc25 x (1000 L/m3) H'25 = --------------------------------- R x (298.15 K) where R is the universal gas constant (0.082057 L-atm/mol-K). If the cell is blank, no value for Hc25 was available.
A182: N | B182: Henry's Law Constant @ Tgw | C182: unitless | D182: H'Tgw | E182: calculated | F182: numerical value or blank | G182: The unitless Henry's Law Constant for the chemical at the groundwater temperature. This is the ratio of the concentration of the chemical in the aqueous phase to the concentration of the chemical in the gas phase at the groundwater temperature. H'Tgw = Hc25 x exp{ ( DHv,b/RC) x [ (1-Tgw/Tcrit) / (1-Tboil/Tcrit) ] }n x [(1/Tgw)-(1/298.15 K)] where DHv,b is the enthalpy of vaporization at the normal boiling point in cal/mol, RC is the universal gas constant (1.9872 cal/mol-K), Tgw is the groundwater temperature in K, Tcrit is the critical temperature in K, Tboil is the normal boiling point in K, and n = 0.3 if Tboil/Tcrit < 0.57, n = 0.41 if Tboil/Tcrit > 0.71, and n = (0.74 x Tboil/Tcrit - 0.116) if 0.57 ≤ Tboil/Tcrit ≤ 0.71. If the cell is blank, then a value for Hc25, Tcrit, or DHv,b was not available.
A183: O | B183: Henry's Law Constant Used in Calculator | C183: unitless | D183: HLC | E183: calculated | F183: numerical value or blank | G183: The unitless Henry's Law Constant used in the calculator. If H'Tgw can be calculated, this value is used; otherwise H'25 is used. If the cell is blank, then a value for Hc25 was not available.
A184: P | B184: Vapor Pressure @ Tgw | C184: ug/m3 | D184: VPTgw | E184: calculated | F184: numerical value or blank | G184: The vapor pressure of the chemical in millimeters of mercury. VP x MW x (1E+06 ug/g) x (1E+03 L/m3) x H'Tgw VPTgw = --------------------------------------------------------------------- Hc25 x R x T x (760 mmHg/atm) where R is the universal gas constant (0.082057 L-atm/mol-K) and T is the temperature (298.15 K or 25 C). If the cell is blank, then a value for VP was not available.
A185: Q | B185: Diffusivity in air | C185: cm2/s | D185: Da | E185: fixed or linked to data table | F185: numerical value or No Da | G185: The diffusivity of the chemical in air. If no diffusivity in air was available, "No Da" is listed.
A186: R | B186: Diffusivity in air source | E186: fixed | F186: letter for reference | G186: The source of the diffusivity of the chemical in air.
A187: S | B187: Diffusivity in water | C187: cm2/s | D187: Dw | E187: fixed or linked to data table | F187: numerical value or No Dw | G187: The diffusivity of the chemical in water. If no diffusivity in water was available, "No Dw" is listed.
A188: T | B188: Diffusivity in water source | E188: fixed | F188: letter for reference | G188: The source of the diffusivity of the chemical in water.
A189: U | B189: Normal Boiling Point | C189: K | D189: Tboil | E189: fixed | F189: numerical value or No Tboil | G189: The normal boiling point of the chemical (the boiling point at 1 atmosphere pressure). If no boiling point was available, "No Tboil" is listed.
A190: V | B190: Normal Boiling Point source | E190: fixed | F190: letter for reference | G190: The source of the normal boiling point of the chemical.
A191: W | B191: Critical Temp. | C191: K | D191: Tcrit | E191: fixed or linked to data table | F191: numerical value or No Tcrit | G191: The critical temperature of the chemical (the temperature at which solid, liquid, and gas can all coexist). If no critical temperature was available, "No Tcrit" is listed.
A192: X | B192: Critical Temp. source | E192: fixed | F192: letter for reference | G192: The source of the critical temperature of the chemical.
A193: Y | B193: Enthalpy of vaporization at the normal boiling point | C193: cal/mol | D193: DHv,b | E193: fixed or linked to data table | F193: numerical value or No DHv,b | G193: The enthalpy of vaporization of the chemical at the normal boiling point. If no enthalpy of vaporization was available, "No DHv,b" is listed.
A194: Z | B194: Enthalpy of vaporization at the normal boiling point source | E194: fixed | F194: letter for reference | G194: The source of the enthalpy of vaporization of the chemical.
A195: AA | B195: Organic Carbon Partition Coefficient | C195: cm3/g | D195: Koc | E195: fixed or linked to data table | F195: numerical value or No Koc | G195: The partition coefficient of the chemical between organic carbon and water. If no partition coefficient between organic carbon and water was available, "No Koc" is listed.
A196: AB | B196: Organic Carbon Partition Coefficient source | E196: fixed | F196: letter for reference | G196: The source of the organic carbon partition coefficient.
A197: AC | B197: blank
A198: AC | B198: Alternative Chemical Name | E198: fixed | F198: alphanumeric value | G198: An alternative name of the chemical if there is one, or if not, the name of the chemical is repeated.
A200: Version Notes Worksheet
A202: The table below describes the types of data provided in the Version Notes sheet.
A203: Column | B203: Heading | C203: Units | D203: Symbol | E203: Data type | F203: Options | G203: Description
A204: A | B204: Version | E204: fixed | F204: numerical value | G204: The version number.
A205: B | B205: Date | E205: fixed | F205: date | G205: The date of the version.
A206: C | B206: Changes | E206: fixed | F206: text | G206: A description of the changes made for the version.
A208: Citations:
A209: EPA. (2002). OSWER Draft Guidance for Evaluating the Vapor Intrusion to Indoor Air Pathway from Groundwater and Soils (Subsurface Vapor Intrusion Guidance). November. EPA 530-D-02-004.
A210: www.epa.gov/osw/hazard/correctiveaction/eis/vapor/complete.pdf
A211: EPA. (2009). Risk Assessment Guidance for Superfund. Volume I: Human Health Evaluation Manual (Part F, Supplemental Guidance for Inhalation Risk Assessment). January. EPA 540-R-070-002.
A212: http://www.epa.gov/oswer/riskassessment/ragsf/index.htm
A213: EPA. (2010). Review of the Draft 2002 Subsurface Vapor Intrusion Guidance. Office of Solid Waste and Emergency Response.
A214: www.epa.gov/oswer/vaporintrusion/documents/review_of_2002_draft_vi_guidance_final.pdf
A215: EPA. (2015). Regional Screening Levels for Chemical Contaminants at Superfund Sites. June.
A216: www.epa.gov/reg3hwmd/risk/human/rb-concentration_table/index.htm
A217: EPA. (2014). Human Health Evaluation Manual, Supplemental Guidance: Update of Standard Default Exposure Factors. Memorandum from Dana Stalcup. Office of Superfund Remediation and Technology Innovation, Washington, D.C. February 6.
A218: http://www.epa.gov/oswer/riskassessment/pdf/superfund-hh-exposure/OSWER-Directive-9200-1-120-ExposureFactors.pdf
A219: EPA (2015). OSWER Technical Guide for Assessing and Mitigating the Vapor Intrusion Pathway from Subsurface Vapor Sources to Indoor Air. Office of Solid Waste and Emergency Response, Washington, DC. OSWER Publication 9200.2-154. June.
A220: http://www.epa.gov/oswer/vaporintrusion/

Sheet VISL
A1: visl | B1: OSWER VAPOR INTRUSION ASSESSMENT
A2: x | B2: Vapor Intrusion Screening Level (VISL) Calculator Version 3.5, June 2017 RSLs
A3: x | C3: The primary objective of risk-based screening is to identify sites or buildings unlikely to pose a health concern through the vapor intrusion pathway. Generally, at properties where subsurface concentrations of vapor-forming chemicals (e.g., groundwater or “near source” soil gas concentrations) fall below screening levels (i.e., VISLs), no further action or study is warranted, so long as the exposure assumptions match those taken into account by the calculations and the site fulfills the conditions and assumptions of the generic conceptual model underlying the screening levels. In a similar fashion, the results of risk-based screening can help the data review team identify areas, buildings, and/or chemicals that can be eliminated from further assessment. The generic conceptual model underlying these screening levels is described in OSWER Publication 9200.2-154 (OSWER Technical Guide for Assessing and Mitigating the Vapor Intrusion Pathway From Subsurface Vapor Sources to Indoor Air) (EPA 2015; Section 6.5)
A9: x | B9: Parameter | F9: Symbol | G9: Value | H9: Instructions
A10: x | B10: Exposure Scenario | F10: Scenario | G10: Residential | H10: Select residential or commercial scenario from pull down list
A11: x | B11: Target Risk for Carcinogens | F11: TCR | G11: 1e-06 | H11: Enter target risk for carcinogens
A12: x | B12: Target Hazard Quotient for Non-Carcinogens | F12: THQ | G12: 1 | H12: Enter target hazard quotient for non-carcinogens
A13: x | B13: Average Groundwater Temperature (oC) | F13: Tgw | G13: 25 | H13: Enter average of the stabilized groundwater temperature to correct Henry's Law Constant for groundwater target concentrations
A14: x
A15: x | D15: Does the chemical meet the definition for volatility? | E15: Does chemical have inhalation toxicity data? | F15: Is Chemical Sufficiently Volatile and Toxic to Pose Inhalation Risk Via Vapor Intrusion from Soil Source? | G15: Is Chemical Sufficiently Volatile and Toxic to Pose Inhalation Risk Via Vapor Intrusion from Groundwater Source? | H15: =("Target Indoor Air Conc. @ TCR = "&TEXT(TCR,"#0E+00")&" or THQ = "&THQ) -> Target Indoor Air Conc. @ TCR = 1E-06 or THQ = 1 | I15: Toxicity Basis | J15: =("Target Sub-Slab and Exterior Soil Gas Conc. @ TCR = "&TEXT(TCR,"#0E+00")&" or THQ = "&THQ) -> Target Sub-Slab and Exterior Soil Gas Conc. @ TCR = 1E-06 or THQ = 1 | K15: =("Target Ground Water Conc. @ TCR = "&TEXT(TCR,"#0E+00")&" or THQ = "&THQ) -> Target Ground Water Conc. @ TCR = 1E-06 or THQ = 1 | L15: Is Target Ground Water Conc. < MCL? | M15: Pure Phase Vapor Conc. @ 25oC | N15: Maximum Groundwater Vapor Conc. | O15: Temperature for Max. Groundwater Vapor Conc. | P15: Lower Explosive Limit** | Q15: LEL Source | S15: Inhalation Unit Risk | T15: IUR Source* | U15: Reference Concentration | V15: RFC Source* | W15: Mutagenic Indicator | X15: ="Target Indoor Air Conc. for Carcinogens @ TCR = "&TEXT(TCR,"#0E+00") -> Target Indoor Air Conc. for Carcinogens @ TCR = 1E-06 | Y15: ="Target Indoor Air Conc. for Non-Carcinogens @ THQ = "&THQ -> Target Indoor Air Conc. for Non-Carcinogens @ THQ = 1
A16: x | D16: (HLC>1E-5 or VP>1) | E16: (IUR and/or RfC) | F16: Cvp > Cia,target? | G16: Chc > Cia,target? | H16: MIN(Cia,c;Cia,nc) | J16: Csg | K16: Cgw | L16: Cgw<MCL? | M16: Cvp | N16: Chc | O16: Tgw or 25 | P16: LEL | S16: IUR | U16: RfC | W16: i | X16: Cia,c | Y16: Cia,nc
A17: x | B17: CAS | C17: Chemical Name | D17: Yes/No | E17: Yes/No | F17: Yes/No | G17: Yes/No | H17: (ug/m3) | I17: C/NC | J17: (ug/m3) | K17: (ug/L) | L17: Yes/No (MCL ug/L) | M17: (ug/m3) | N17: (ug/m3) | O17: C | P17: (% by vol) | S17: (ug/m3)-1 | U17: (mg/m3) | X17: (ug/m3) | Y17: (ug/m3)
B18: 83-32-9 | C18: Acenaphthene | D18: =VLOOKUP(B18, 'Chem Props'!$1:$1048576,3,FALSE) -> Yes | E18: =IF(OR(ISNUMBER(S18),ISNUMBER(U18)),"Yes","No") -> No | F18: =IF(LEFT(D18,2)="No","No (not volatile)",IF(D18="unknown","unknown",IF(H18="NVT","No",IF(AND(X18="",Y18=""),"No Inhal. Tox. Info",IF(MIN(X18:Y18)>=M18,"No",IF(M18>H18,"Yes","No")))))) -> No Inhal. Tox. Info | G18: =IF(LEFT(D18,2)="No","No (not volatile)",IF(D18="unknown","unknown",IF(H18="NVT","No",IF(AND(X18="",Y18=""),"No Inhal. Tox. Info",IF(MIN(X18:Y18)>=N18,"No",IF(N18>H18,"Yes","No")))))) -> No Inhal. Tox. Info | H18: =IF(ISNUMBER(M18),IF(AND(X18="",Y18=""),"--",IF(MIN(X18:Y18)>=M18,"NVT",MIN(X18:Y18))),M18) -> -- | I18: =IF(AND(S18="",U18=""),"--",IF(MIN(X18,Y18)=X18,"C","NC")) -> -- | J18: =IF(ISNUMBER(H18),IF(OR(H18="--",H18="NVT"),H18,IF(H18/Afss>=M18,"NVT",H18/Afss)),H18) -> -- | K18: =IF(ISNUMBER(H18),IF(H18="--","--", IF(LEFT(N18,2)="No",N18,IF(H18*0.001/(INDEX(HLC,MATCH(C18,ChemNameChem,0))*AFgw)>=1000*INDEX(PWCS,MATCH(C18,ChemNameChem,0)), "NVT", H18*0.001/(INDEX(HLC,MATCH(C18,ChemNameChem,0))*AFgw)))),H18) -> -- | L18: =IF(INDEX(MCL,MATCH(C18,ChemNameChem,0))="","--",IF(K18<INDEX(MCL,MATCH(C18,ChemNameChem,0)),"Yes ("&(INDEX(MCL,MATCH(C18,ChemNameChem,0)))&")","No ("&(INDEX(MCL,MATCH(C18,ChemNameChem,0)))&")")) -> -- | M18: =IF(INDEX(_VP25,MATCH(B18,CASNoChem,0))="No VP","No VP",IF(INDEX(MW,MATCH(B18,CASNoChem,0))="No MW","No MW",INDEX(MW,MATCH(B18,CASNoChem,0))*INDEX(_VP25,MATCH(B18,CASNoChem,0))*53808.7856452378)) -> 17840.38359 | N18: =IF(INDEX(HLC,MATCH(C18,ChemNameChem,0))="","No HLC",IF(INDEX(Sol,MATCH(C18,ChemNameChem,0))="No S","No S",INDEX(HLC,MATCH(C18,ChemNameChem,0))*INDEX(Sol,MATCH(C18,ChemNameChem,0))*1000000)) -> 29337.75 | O18: =IF(INDEX(HTgw,MATCH(B18,CASNoChem,0),1)="",25,Tgw) -> 25 | P18: =IF(VLOOKUP(B18,AllChemProps,32,FALSE)>0,VLOOKUP(B18,AllChemProps,32,FALSE),"") -> 0.6 | Q18: =IF(INDEX(LELsource,MATCH(B18,CASNoChem,0),1)="","",INDEX(LELsource,MATCH(B18,CASNoChem,0),1)) -> M | S18: =IF(INDEX(IUR,MATCH(B18,CASNoTox,0))=" ","",IF(W18="TCE","see note",INDEX(IUR,MATCH(B18,CASNoTox,0)))) ->  | T18: =IF(INDEX(IURSource,MATCH(B18,CASNoTox,0))="","",SUBSTITUTE(INDEX(IURSource,MATCH(B18,CASNoTox,0)),"C","CA")) ->  | U18: =IF(INDEX(RFC,MATCH(B18,CASNoTox,0))=" ","",INDEX(RFC,MATCH(B18,CASNoTox,0))) ->  | V18: =IF(INDEX(RFCSource,MATCH(B18,CASNoTox,0))="","",SUBSTITUTE(INDEX(RFCSource,MATCH(B18,CASNoTox,0)),"C","CA")) ->  | W18: =VLOOKUP(C18,'Tox Summary'!$N$3:$S$1048576,6,FALSE) ->  | X18: =IF(S18="","",IF(W18<>"TCE",TCR/(IF(AND(W18="VC",Scenario="Residential"),S18,0)+(EF*IF(W18="Mut",MMOAAF,ED)*ET*S18/(Atc*365*24))), 1/((EF*MMOAAF*ET*mIURTCE/(TCR*Atc*365*24))+EF*ED*ET*IURTCE/(TCR*Atc*365*24)))) ->  | Y18: =IF(U18="","",THQ*Atnc*365*24*U18*1000/(EF*ED*ET)) -> 
A19: x | B19: 30560-19-1 | C19: Acephate | D19: =VLOOKUP(B19, 'Chem Props'!$1:$1048576,3,FALSE) -> No | E19: =IF(OR(ISNUMBER(S19),ISNUMBER(U19)),"Yes","No") -> No | F19: No (not volatile) | G19: No (not volatile) | H19: -- | I19: -- | J19: -- | K19: -- | L19: -- | M19: 16.75546395 | N19: 16.75264 | O19: 25 | W19: =VLOOKUP(C19,'Tox Summary'!$N$3:$S$1048576,6,FALSE) -> 
B20: 75-07-0 | C20: Acetaldehyde | D20: =VLOOKUP(B20, 'Chem Props'!$1:$1048576,3,FALSE) -> Yes | E20: Yes | F20: Yes | G20: Yes | H20: 1.276223776 | I20: C | J20: 42.54079254 | K20: 468.0126797 | L20: -- | M20: 2138184003 | N20: 2726900000 | O20: 25 | P20: 4 | Q20: E | S20: 2.2e-06 | T20: I | U20: 0.009 | V20: I | W20: =VLOOKUP(C20,'Tox Summary'!$N$3:$S$1048576,6,FALSE) ->  | X20: 1.276223776 | Y20: 9.385714286
B21: 34256-82-1 | C21: Acetochlor | D21: =VLOOKUP(B21, 'Chem Props'!$1:$1048576,3,FALSE) -> No | E21: No | F21: No (not volatile) | G21: No (not volatile) | H21: -- | I21: -- | J21: -- | K21: -- | L21: -- | M21: 406.4478909 | N21: 203.30687 | O21: 25 | W21: =VLOOKUP(C21,'Tox Summary'!$N$3:$S$1048576,6,FALSE) -> 
B22: 67-64-1 | C22: Acetone | D22: =VLOOKUP(B22, 'Chem Props'!$1:$1048576,3,FALSE) -> Yes | E22: Yes | F22: Yes | G22: Yes | H22: 32328.57143 | I22: NC | J22: 1077619.048 | K22: 22593173.13 | L22: -- | M22: 723499560.3 | N22: 1430900000 | O22: 25 | P22: 2.6 | Q22: E | U22: 31 | V22: A | W22: =VLOOKUP(C22,'Tox Summary'!$N$3:$S$1048576,6,FALSE) ->  | Y22: 32328.57143
B23: 75-86-5 | C23: Acetone Cyanohydrin | D23: =VLOOKUP(B23, 'Chem Props'!$1:$1048576,3,FALSE) -> No | E23: Yes | F23: No (not volatile) | G23: No (not volatile) | H23: 2.085714286 | I23: NC | J23: 69.52380952 | K23: 25896626.34 | L23: -- | M23: 1561592.624 | N23: 80540 | O23: 25 | U23: 0.002 | V23: X | W23: =VLOOKUP(C23,'Tox Summary'!$N$3:$S$1048576,6,FALSE) ->  | Y23: 2.085714286
B24: 75-05-8 | C24: Acetonitrile | D24: =VLOOKUP(B24, 'Chem Props'!$1:$1048576,3,FALSE) -> Yes | E24: Yes | F24: Yes | G24: Yes | H24: 62.57142857 | I24: NC | J24: 2085.714286 | K24: 44361.16879 | L24: -- | M24: 196160272.4 | N24: 1410500000 | O24: 25 | P24: 3 | Q24: N | U24: 0.06 | V24: I | W24: =VLOOKUP(C24,'Tox Summary'!$N$3:$S$1048576,6,FALSE) ->  | Y24: 62.57142857
B25: 98-86-2 | C25: Acetophenone | D25: =VLOOKUP(B25, 'Chem Props'!$1:$1048576,3,FALSE) -> Yes | E25: No | F25: No Inhal. Tox. Info | G25: No Inhal. Tox. Info | H25: -- | I25: -- | J25: -- | K25: -- | L25: -- | M25: 2566654.861 | N25: 2606476 | O25: 25 | P25: 1.1 | Q25: M | W25: =VLOOKUP(C25,'Tox Summary'!$N$3:$S$1048576,6,FALSE) -> 
B26: 53-96-3 | C26: Acetylaminofluorene, 2- | D26: =VLOOKUP(B26, 'Chem Props'!$1:$1048576,3,FALSE) -> No | E26: Yes | F26: No (not volatile) | G26: No (not volatile) | H26: 0.002159763314 | I26: C | J26: 0.07199211045 | K26: NVT | L26: -- | M26: 1.134161782 | N26: 0.0434396864 | O26: 25 | S26: 0.0013 | T26: CA | W26: =VLOOKUP(C26,'Tox Summary'!$N$3:$S$1048576,6,FALSE) ->  | X26: 0.002159763314
B27: 107-02-8 | C27: Acrolein | D27: =VLOOKUP(B27, 'Chem Props'!$1:$1048576,3,FALSE) -> Yes | E27: Yes | F27: Yes | G27: Yes | H27: 0.02085714286 | I27: NC | J27: 0.6952380952 | K27: 4.181715592 | L27: -- | M27: 826902020.4 | N27: 1057392400 | O27: 25 | P27: 2.8 | Q27: N | U27: 2e-05 | V27: I | W27: =VLOOKUP(C27,'Tox Summary'!$N$3:$S$1048576,6,FALSE) ->  | Y27: 0.02085714286
B28: 79-06-1 | C28: Acrylamide | D28: =VLOOKUP(B28, 'Chem Props'!$1:$1048576,3,FALSE) -> No | E28: Yes | F28: No (not volatile) | G28: No (not volatile) | H28: 0.01013888889 | I28: C | J28: 0.337962963 | K28: 145881.1944 | L28: -- | M28: 26772.72272 | N28: 27105.39 | O28: 25 | S28: 0.0001 | T28: I | U28: 0.006 | V28: I | W28: =VLOOKUP(C28,'Tox Summary'!$N$3:$S$1048576,6,FALSE) -> Mut | X28: 0.01013888889 | Y28: 6.257142857
B29: 79-10-7 | C29: Acrylic Acid | D29: =VLOOKUP(B29, 'Chem Props'!$1:$1048576,3,FALSE) -> Yes | E29: Yes | F29: Yes | G29: Yes | H29: 1.042857143 | I29: NC | J29: 34.76190476 | K29: 69063.38694 | L29: -- | M29: 15394375.03 | N29: 15100000 | O29: 25 | P29: 2.4 | Q29: N | U29: 0.001 | V29: I | W29: =VLOOKUP(C29,'Tox Summary'!$N$3:$S$1048576,6,FALSE) ->  | Y29: 1.042857143
B30: 107-13-1 | C30: Acrylonitrile | D30: =VLOOKUP(B30, 'Chem Props'!$1:$1048576,3,FALSE) -> Yes | E30: Yes | F30: Yes | G30: Yes | H30: 0.04128959276 | I30: C | J30: 1.376319759 | K30: 7.318384367 | L30: -- | M30: 309801070.1 | N30: 420321550 | O30: 25 | P30: 3 | Q30: N | S30: 6.8e-05 | T30: I | U30: 0.002 | V30: I | W30: =VLOOKUP(C30,'Tox Summary'!$N$3:$S$1048576,6,FALSE) ->  | X30: 0.04128959276 | Y30: 2.085714286
B31: 111-69-3 | C31: Adiponitrile | D31: =VLOOKUP(B31, 'Chem Props'!$1:$1048576,3,FALSE) -> No | E31: Yes | F31: No (not volatile) | G31: No (not volatile) | H31: 6.257142857 | I31: NC | J31: 208.5714286 | K31: NVT | L31: -- | M31: 3951.020932 | N31: 3957.52 | O31: 25 | U31: 0.006 | V31: P | W31: =VLOOKUP(C31,'Tox Summary'!$N$3:$S$1048576,6,FALSE) ->  | Y31: 6.257142857
B32: 15972-60-8 | C32: Alachlor | D32: =VLOOKUP(B32, 'Chem Props'!$1:$1048576,3,FALSE) -> No | E32: No | F32: No (not volatile) | G32: No (not volatile) | H32: -- | I32: -- | J32: -- | K32: -- | L32: No (2) | M32: 319.3519143 | N32: 81.636 | O32: 25 | W32: =VLOOKUP(C32,'Tox Summary'!$N$3:$S$1048576,6,FALSE) -> 
B33: 116-06-3 | C33: Aldicarb | D33: =VLOOKUP(B33, 'Chem Props'!$1:$1048576,3,FALSE) -> No | E33: No | F33: No (not volatile) | G33: No (not volatile) | H33: -- | I33: -- | J33: -- | K33: -- | L33: No (3) | M33: 355.2654583 | N33: 354.99816 | O33: 25 | W33: =VLOOKUP(C33,'Tox Summary'!$N$3:$S$1048576,6,FALSE) -> 
B34: 1646-88-4 | C34: Aldicarb Sulfone | D34: =VLOOKUP(B34, 'Chem Props'!$1:$1048576,3,FALSE) -> No | E34: No | F34: No (not volatile) | G34: No (not volatile) | H34: -- | I34: -- | J34: -- | K34: -- | L34: No (2) | M34: 1076.358663 | N34: 1377.8 | O34: 25 | W34: =VLOOKUP(C34,'Tox Summary'!$N$3:$S$1048576,6,FALSE) -> 
B35: 1646-87-3 | C35: Aldicarb sulfoxide | D35: =VLOOKUP(B35, 'Chem Props'!$1:$1048576,3,FALSE) -> No | E35: No | F35: No (not volatile) | G35: No (not volatile) | H35: -- | I35: -- | J35: -- | K35: -- | L35: No (4) | M35: 1109.913822 | N35: 1109.248 | O35: 25 | W35: =VLOOKUP(C35,'Tox Summary'!$N$3:$S$1048576,6,FALSE) -> 
B36: 309-00-2 | C36: Aldrin | D36: =VLOOKUP(B36, 'Chem Props'!$1:$1048576,3,FALSE) -> Yes | E36: Yes | F36: Yes | G36: Yes | H36: 0.0005729984301 | I36: C | J36: 0.01909994767 | K36: 0.3185271166 | L36: -- | M36: 2356.308247 | N36: 30.5813 | O36: 25 | S36: 0.0049 | T36: I | W36: =VLOOKUP(C36,'Tox Summary'!$N$3:$S$1048576,6,FALSE) ->  | X36: 0.0005729984301
B37: 107-18-6 | C37: Allyl Alcohol | D37: =VLOOKUP(B37, 'Chem Props'!$1:$1048576,3,FALSE) -> Yes | E37: Yes | F37: Yes | G37: Yes | H37: 0.1042857143 | I37: NC | J37: 3.476190476 | K37: 511.2044818 | L37: -- | M37: 81569496.86 | N37: 204000000 | O37: 25 | P37: 2.5 | Q37: N | U37: 0.0001 | V37: X | W37: =VLOOKUP(C37,'Tox Summary'!$N$3:$S$1048576,6,FALSE) ->  | Y37: 0.1042857143
B38: 107-05-1 | C38: Allyl Chloride | D38: =VLOOKUP(B38, 'Chem Props'!$1:$1048576,3,FALSE) -> Yes | E38: Yes | F38: Yes | G38: Yes | H38: 0.4679487179 | I38: C | J38: 15.5982906 | K38: 1.040547828 | L38: -- | M38: 1514927999 | N38: 1515535506 | O38: 25 | S38: 6e-06 | T38: CA | U38: 0.001 | V38: I | W38: =VLOOKUP(C38,'Tox Summary'!$N$3:$S$1048576,6,FALSE) ->  | X38: 0.4679487179 | Y38: 1.042857143
B39: 7429-90-5 | C39: Aluminum | D39: =VLOOKUP(B39, 'Chem Props'!$1:$1048576,3,FALSE) -> No | E39: Yes | F39: No (not volatile) | G39: No (not volatile) | H39: NVT | I39: NC | J39: NVT | K39: NVT | L39: -- | M39: 0 | N39: No S | O39: 25 | U39: 0.005 | V39: P | W39: =VLOOKUP(C39,'Tox Summary'!$N$3:$S$1048576,6,FALSE) ->  | Y39: 5.214285714
B40: 13776-88-0 | C40: Aluminum metaphosphate | D40: =VLOOKUP(B40, 'Chem Props'!$1:$1048576,3,FALSE) -> No | E40: No | F40: No (not volatile) | G40: No (not volatile) | H40: No VP | I40: -- | J40: No VP | K40: No VP | L40: -- | M40: No VP | N40: No S | O40: 25 | W40: =VLOOKUP(C40,'Tox Summary'!$N$3:$S$1048576,6,FALSE) -> 
B41: 20859-73-8 | C41: Aluminum Phosphide | D41: =VLOOKUP(B41, 'Chem Props'!$1:$1048576,3,FALSE) -> No | E41: No | F41: No (not volatile) | G41: No (not volatile) | H41: No VP | I41: -- | J41: No VP | K41: No VP | L41: -- | M41: No VP | N41: No S | O41: 25 | W41: =VLOOKUP(C41,'Tox Summary'!$N$3:$S$1048576,6,FALSE) -> 
B42: 834-12-8 | C42: Ametryn | D42: =VLOOKUP(B42, 'Chem Props'!$1:$1048576,3,FALSE) -> No | E42: No | F42: No (not volatile) | G42: No (not volatile) | H42: -- | I42: -- | J42: -- | K42: -- | L42: -- | M42: 33.5166424 | N42: 20.763314 | O42: 25 | W42: =VLOOKUP(C42,'Tox Summary'!$N$3:$S$1048576,6,FALSE) -> 
B43: 92-67-1 | C43: Aminobiphenyl, 4- | D43: =VLOOKUP(B43, 'Chem Props'!$1:$1048576,3,FALSE) -> No | E43: Yes | F43: No (not volatile) | G43: No (not volatile) | H43: 0.0004679487179 | I43: C | J43: 0.0155982906 | K43: 78.397815 | L43: -- | M43: 1065.409113 | N43: 1336.43671 | O43: 25 | S43: 0.006 | T43: CA | W43: =VLOOKUP(C43,'Tox Summary'!$N$3:$S$1048576,6,FALSE) ->  | X43: 0.0004679487179
B44: 591-27-5 | C44: Aminophenol, m- | D44: =VLOOKUP(B44, 'Chem Props'!$1:$1048576,3,FALSE) -> No | E44: No | F44: No (not volatile) | G44: No (not volatile) | H44: -- | I44: -- | J44: -- | K44: -- | L44: -- | M44: 56079.05902 | N44: 218.5596 | O44: 25 | W44: =VLOOKUP(C44,'Tox Summary'!$N$3:$S$1048576,6,FALSE) -> 
B45: 95-55-6 | C45: Aminophenol, o- | D45: =VLOOKUP(B45, 'Chem Props'!$1:$1048576,3,FALSE) -> No | E45: No | F45: No (not volatile) | G45: No (not volatile) | H45: -- | I45: -- | J45: -- | K45: -- | L45: -- | M45: 56079.05902 | N45: 161.896 | O45: 25 | W45: =VLOOKUP(C45,'Tox Summary'!$N$3:$S$1048576,6,FALSE) -> 
B46: 123-30-8 | C46: Aminophenol, p- | D46: =VLOOKUP(B46, 'Chem Props'!$1:$1048576,3,FALSE) -> No | E46: No | F46: No (not volatile) | G46: No (not volatile) | H46: -- | I46: -- | J46: -- | K46: -- | L46: -- | M46: 234.8861111 | N46: 234.832 | O46: 25 | P46: =IF(VLOOKUP(B46,AllChemProps,32,FALSE)>0,VLOOKUP(B46,AllChemProps,32,FALSE),"") ->  | W46: =VLOOKUP(C46,'Tox Summary'!$N$3:$S$1048576,6,FALSE) -> 
B47: 33089-61-1 | C47: Amitraz | D47: =VLOOKUP(B47, 'Chem Props'!$1:$1048576,3,FALSE) -> No | E47: No | F47: No (not volatile) | G47: No (not volatile) | H47: -- | I47: -- | J47: -- | K47: -- | L47: -- | M47: 31.57714777 | N47: 403.5 | O47: 25 | W47: =VLOOKUP(C47,'Tox Summary'!$N$3:$S$1048576,6,FALSE) -> 
B48: 7664-41-7 | C48: Ammonia | D48: =VLOOKUP(B48, 'Chem Props'!$1:$1048576,3,FALSE) -> Yes | E48: Yes | F48: Yes | G48: Yes | H48: 521.4285714 | I48: NC | J48: 17380.95238 | K48: 792203.846 | L48: -- | M48: 6880462052 | N48: 317252400 | O48: 25 | P48: 15 | Q48: N | U48: 0.5 | V48: I | W48: =VLOOKUP(C48,'Tox Summary'!$N$3:$S$1048576,6,FALSE) ->  | Y48: 521.4285714
B49: 7790-98-9 | C49: Ammonium Perchlorate | D49: =VLOOKUP(B49, 'Chem Props'!$1:$1048576,3,FALSE) -> No | E49: No | F49: No (not volatile) | G49: No (not volatile) | H49: No VP | I49: -- | J49: No VP | K49: No VP | L49: -- | M49: No VP | O49: 25 | W49: =VLOOKUP(C49,'Tox Summary'!$N$3:$S$1048576,6,FALSE) -> 
B50: 68333-79-9 | C50: Ammonium polyphosphate | D50: =VLOOKUP(B50, 'Chem Props'!$1:$1048576,3,FALSE) -> No | E50: No | F50: No (not volatile) | G50: =IF(LEFT(D50,2)="No","No (not volatile)",IF(D50="unknown","unknown",IF(H50="NVT","No",IF(AND(X50="",Y50=""),"No Inhal. Tox. Info",IF(MIN(X50:Y50)>=N50,"No",IF(N50>H50,"Yes","No")))))) -> No (not volatile) | H50: No VP | I50: -- | J50: No VP | K50: No VP | L50: -- | M50: No VP | O50: 25 | W50: =VLOOKUP(C50,'Tox Summary'!$N$3:$S$1048576,6,FALSE) -> 
B51: 7773-06-0 | C51: Ammonium Sulfamate | D51: =VLOOKUP(B51, 'Chem Props'!$1:$1048576,3,FALSE) -> No | E51: No | F51: No (not volatile) | G51: No (not volatile) | H51: -- | I51: -- | J51: -- | K51: -- | L51: -- | M51: 0 | O51: 25 | W51: =VLOOKUP(C51,'Tox Summary'!$N$3:$S$1048576,6,FALSE) -> 
B52: 75-85-4 | C52: Amyl Alcohol, tert- | D52: =VLOOKUP(B52, 'Chem Props'!$1:$1048576,3,FALSE) -> Yes | E52: Yes | F52: Yes | G52: Yes | H52: 3.128571429 | I52: NC | J52: 104.2857143 | K52: 5545.146098 | L52: -- | M52: 79213081 | N52: =IF(INDEX(HLC,MATCH(C52,ChemNameChem,0))="","No HLC",IF(INDEX(Sol,MATCH(C52,ChemNameChem,0))="No S","No S",INDEX(HLC,MATCH(C52,ChemNameChem,0))*INDEX(Sol,MATCH(C52,ChemNameChem,0))*1000000)) -> 62062000 | O52: 25 | P52: 1.3 | Q52: M | U52: 0.003 | V52: X | W52: =VLOOKUP(C52,'Tox Summary'!$N$3:$S$1048576,6,FALSE) ->  | Y52: 3.128571429
B53: 62-53-3 | C53: Aniline | D53: =VLOOKUP(B53, 'Chem Props'!$1:$1048576,3,FALSE) -> No | E53: Yes | F53: No (not volatile) | G53: No (not volatile) | H53: 1.042857143 | I53: NC | J53: 34.76190476 | K53: 12625.38914 | L53: -- | M53: 3342442.652 | N53: =IF(INDEX(HLC,MATCH(C53,ChemNameChem,0))="","No HLC",IF(INDEX(Sol,MATCH(C53,ChemNameChem,0))="No S","No S",INDEX(HLC,MATCH(C53,ChemNameChem,0))*INDEX(Sol,MATCH(C53,ChemNameChem,0))*1000000)) -> 2973600 | O53: 25 | S53: 1.6e-06 | T53: CA | U53: 0.001 | V53: I | W53: =VLOOKUP(C53,'Tox Summary'!$N$3:$S$1048576,6,FALSE) ->  | X53: 1.754807692 | Y53: 1.042857143
B54: 120-12-7 | C54: Anthracene | D54: =VLOOKUP(B54, 'Chem Props'!$1:$1048576,3,FALSE) -> Yes | E54: No | F54: No Inhal. Tox. Info | G54: No Inhal. Tox. Info | H54: -- | I54: -- | J54: -- | K54: -- | L54: -- | M54: 62.62843304 | N54: =IF(INDEX(HLC,MATCH(C54,ChemNameChem,0))="","No HLC",IF(INDEX(Sol,MATCH(C54,ChemNameChem,0))="No S","No S",INDEX(HLC,MATCH(C54,ChemNameChem,0))*INDEX(Sol,MATCH(C54,ChemNameChem,0))*1000000)) -> 98.65254 | O54: 25 | P54: 0.6 | Q54: M | W54: =VLOOKUP(C54,'Tox Summary'!$N$3:$S$1048576,6,FALSE) -> 
B55: 84-65-1 | C55: Anthraquinone, 9,10- | D55: =VLOOKUP(B55, 'Chem Props'!$1:$1048576,3,FALSE) -> No | E55: No | F55: No (not volatile) | G55: No (not volatile) | H55: -- | I55: -- | J55: -- | K55: -- | L55: -- | M55: 1.29967158 | N55: =IF(INDEX(HLC,MATCH(C55,ChemNameChem,0))="","No HLC",IF(INDEX(Sol,MATCH(C55,ChemNameChem,0))="No S","No S",INDEX(HLC,MATCH(C55,ChemNameChem,0))*INDEX(Sol,MATCH(C55,ChemNameChem,0))*1000000)) -> 1.29735 | O55: 25 | S55: =IF(INDEX(IUR,MATCH(B55,CASNoTox,0))=" ","",IF(W55="TCE","see note",INDEX(IUR,MATCH(B55,CASNoTox,0)))) ->  | W55: =VLOOKUP(C55,'Tox Summary'!$N$3:$S$1048576,6,FALSE) -> 
B56: 7440-36-0 | C56: Antimony (metallic) | D56: =VLOOKUP(B56, 'Chem Props'!$1:$1048576,3,FALSE) -> No | E56: No | F56: No (not volatile) | G56: No (not volatile) | H56: -- | I56: -- | J56: -- | K56: -- | L56: No (6) | M56: 0 | O56: 25 | W56: =VLOOKUP(C56,'Tox Summary'!$N$3:$S$1048576,6,FALSE) -> 
B57: 1314-60-9 | C57: Antimony Pentoxide | D57: =VLOOKUP(B57, 'Chem Props'!$1:$1048576,3,FALSE) -> No | E57: No | F57: No (not volatile) | G57: No (not volatile) | H57: No VP | I57: -- | J57: No VP | K57: No VP | L57: -- | M57: No VP | O57: 25 | W57: =VLOOKUP(C57,'Tox Summary'!$N$3:$S$1048576,6,FALSE) -> 
B58: 1332-81-6 | C58: Antimony Tetroxide | D58: =VLOOKUP(B58, 'Chem Props'!$1:$1048576,3,FALSE) -> No | E58: No | F58: No (not volatile) | G58: No (not volatile) | H58: No VP | I58: -- | J58: No VP | K58: No VP | L58: -- | M58: No VP | O58: 25 | W58: =VLOOKUP(C58,'Tox Summary'!$N$3:$S$1048576,6,FALSE) -> 
B59: 1309-64-4 | C59: Antimony Trioxide | D59: =VLOOKUP(B59, 'Chem Props'!$1:$1048576,3,FALSE) -> No | E59: Yes | F59: No (not volatile) | G59: No (not volatile) | H59: No VP | I59: NC | J59: No VP | K59: No VP | L59: -- | M59: No VP | O59: 25 | U59: 0.0002 | V59: I | W59: =VLOOKUP(C59,'Tox Summary'!$N$3:$S$1048576,6,FALSE) ->  | Y59: 0.2085714286
B60: 12674-11-2 | C60: Aroclor 1016 | D60: =VLOOKUP(B60, 'Chem Props'!$1:$1048576,3,FALSE) -> Yes | E60: Yes | F60: Yes | G60: Yes | H60: 0.1403846154 | I60: C | J60: 4.679487179 | K60: 17.16906971 | L60: -- | M60: 11828.03203 | N60: =IF(INDEX(HLC,MATCH(C60,ChemNameChem,0))="","No HLC",IF(INDEX(Sol,MATCH(C60,ChemNameChem,0))="No S","No S",INDEX(HLC,MATCH(C60,ChemNameChem,0))*INDEX(Sol,MATCH(C60,ChemNameChem,0))*1000000)) -> 3434.172 | O60: 25 | S60: 2e-05 | T60: S | W60: =VLOOKUP(C60,'Tox Summary'!$N$3:$S$1048576,6,FALSE) ->  | X60: 0.1403846154
B61: 11104-28-2 | C61: Aroclor 1221 | D61: =VLOOKUP(B61, 'Chem Props'!$1:$1048576,3,FALSE) -> Yes | E61: Yes | F61: Yes | G61: Yes | H61: 0.004925775978 | I61: C | J61: 0.1641925326 | K61: 0.528443026 | L61: -- | M61: 68015.48885 | N61: 139819.5 | O61: 25 | S61: 0.00057 | T61: S | W61: =VLOOKUP(C61,'Tox Summary'!$N$3:$S$1048576,6,FALSE) ->  | X61: 0.004925775978
B62: 11141-16-5 | C62: Aroclor 1232 | D62: =VLOOKUP(B62, 'Chem Props'!$1:$1048576,3,FALSE) -> Yes | E62: Yes | F62: Yes | G62: Yes | H62: 0.004925775978 | I62: C | J62: 0.1641925326 | K62: 0.1637019724 | L62: -- | M62: 41215.35593 | N62: 43630.355 | O62: 25 | S62: 0.00057 | T62: S | W62: =VLOOKUP(C62,'Tox Summary'!$N$3:$S$1048576,6,FALSE) ->  | X62: 0.004925775978
B63: 53469-21-9 | C63: Aroclor 1242 | D63: =VLOOKUP(B63, 'Chem Props'!$1:$1048576,3,FALSE) -> Yes | E63: Yes | F63: Yes | G63: Yes | H63: 0.004925775978 | I63: C | J63: 0.1641925326 | K63: 0.3512665696 | L63: -- | M63: 1355.913438 | N63: 3884.3433 | O63: 25 | S63: 0.00057 | T63: S | W63: =VLOOKUP(C63,'Tox Summary'!$N$3:$S$1048576,6,FALSE) ->  | X63: 0.004925775978
B64: 12672-29-6 | C64: Aroclor 1248 | D64: =VLOOKUP(B64, 'Chem Props'!$1:$1048576,3,FALSE) -> Yes | E64: Yes | F64: Yes | G64: Yes | H64: 0.004925775978 | I64: C | J64: 0.1641925326 | K64: 0.2738276452 | L64: -- | M64: 16438.82185 | N64: 1798.86 | O64: 25 | S64: 0.00057 | T64: S | W64: =VLOOKUP(C64,'Tox Summary'!$N$3:$S$1048576,6,FALSE) ->  | X64: 0.004925775978
B65: 11097-69-1 | C65: Aroclor 1254 | D65: =VLOOKUP(B65, 'Chem Props'!$1:$1048576,3,FALSE) -> Yes | E65: Yes | F65: Yes | G65: Yes | H65: 0.004925775978 | I65: C | J65: 0.1641925326 | K65: 0.4257405836 | L65: -- | M65: 1354.287713 | N65: 497.5057 | O65: 25 | S65: 0.00057 | T65: S | W65: =VLOOKUP(C65,'Tox Summary'!$N$3:$S$1048576,6,FALSE) ->  | X65: 0.004925775978
B66: 11096-82-5 | C66: Aroclor 1260 | D66: =VLOOKUP(B66, 'Chem Props'!$1:$1048576,3,FALSE) -> Yes | E66: Yes | F66: Yes | G66: Yes | H66: 0.004925775978 | I66: C | J66: 0.1641925326 | K66: 0.3585851026 | L66: -- | M66: 861.5252028 | N66: 197.80848 | O66: 25 | S66: 0.00057 | T66: S | W66: =VLOOKUP(C66,'Tox Summary'!$N$3:$S$1048576,6,FALSE) ->  | X66: 0.004925775978
B67: 11126-42-4 | C67: Aroclor 5460 | D67: =VLOOKUP(B67, 'Chem Props'!$1:$1048576,3,FALSE) -> Yes | E67: No | F67: No Inhal. Tox. Info | G67: No Inhal. Tox. Info | H67: -- | I67: -- | J67: -- | K67: -- | L67: -- | M67: 132.7632509 | N67: 271.87328 | O67: 25 | W67: =VLOOKUP(C67,'Tox Summary'!$N$3:$S$1048576,6,FALSE) -> 
B68: 7440-38-2 | C68: Arsenic, Inorganic | D68: =VLOOKUP(B68, 'Chem Props'!$1:$1048576,3,FALSE) -> No | E68: Yes | F68: No (not volatile) | G68: No Inhal. Tox. Info | H68: No VP | I68: C | J68: No VP | K68: No VP | L68: No (10) | M68: No VP | N68: No S | O68: 25 | S68: 0.0043 | T68: I | U68: 1.5e-05 | V68: CA | W68: =VLOOKUP(C68,'Tox Summary'!$N$3:$S$1048576,6,FALSE) ->  | X68: 0.0006529516995 | Y68: 0.01564285714
B69: 7784-42-1 | C69: Arsine | D69: =VLOOKUP(B69, 'Chem Props'!$1:$1048576,3,FALSE) -> No | E69: Yes | F69: No (not volatile) | G69: =IF(LEFT(D69,2)="No","No (not volatile)",IF(D69="unknown","unknown",IF(H69="NVT","No",IF(AND(X69="",Y69=""),"No Inhal. Tox. Info",IF(MIN(X69:Y69)>=N69,"No",IF(N69>H69,"Yes","No")))))) -> No (not volatile) | H69: No VP | I69: NC | J69: No VP | K69: No VP | L69: -- | M69: No VP | N69: No HLC | O69: 25 | U69: 5e-05 | V69: I | W69: =VLOOKUP(C69,'Tox Summary'!$N$3:$S$1048576,6,FALSE) ->  | Y69: 0.05214285714
B70: 3337-71-1 | C70: Asulam | D70: =VLOOKUP(B70, 'Chem Props'!$1:$1048576,3,FALSE) -> No | E70: No | F70: No (not volatile) | G70: No (not volatile) | H70: -- | I70: -- | J70: -- | K70: -- | L70: -- | M70: 17.84006612 | N70: 0.34955 | O70: 25 | W70: =VLOOKUP(C70,'Tox Summary'!$N$3:$S$1048576,6,FALSE) -> 
B71: 1912-24-9 | C71: Atrazine | D71: =VLOOKUP(B71, 'Chem Props'!$1:$1048576,3,FALSE) -> No | E71: No | F71: No (not volatile) | G71: No (not volatile) | H71: -- | I71: -- | J71: -- | K71: -- | L71: No (3) | M71: 3.354138906 | N71: 3.3479948 | O71: 25 | W71: =VLOOKUP(C71,'Tox Summary'!$N$3:$S$1048576,6,FALSE) -> 
B72: 492-80-8 | C72: Auramine | D72: =VLOOKUP(B72, 'Chem Props'!$1:$1048576,3,FALSE) -> No | E72: Yes | F72: No (not volatile) | G72: No (not volatile) | H72: 0.01123076923 | I72: C | J72: 0.3743589744 | K72: NVT | L72: -- | M72: 18.55973711 | N72: 7.9672874 | O72: 25 | S72: 0.00025 | T72: CA | W72: =VLOOKUP(C72,'Tox Summary'!$N$3:$S$1048576,6,FALSE) ->  | X72: 0.01123076923
B73: 65195-55-3 | C73: Avermectin B1 | D73: =VLOOKUP(B73, 'Chem Props'!$1:$1048576,3,FALSE) -> No | E73: No | F73: No (not volatile) | G73: No (not volatile) | H73: -- | I73: -- | J73: -- | K73: -- | L73: -- | M73: 6.875015096e-23 | N73: 1.88895e-23 | O73: 25 | W73: =VLOOKUP(C73,'Tox Summary'!$N$3:$S$1048576,6,FALSE) -> 
B74: 86-50-0 | C74: Azinphos-methyl | D74: =VLOOKUP(B74, 'Chem Props'!$1:$1048576,3,FALSE) -> No | E74: Yes | F74: No (not volatile) | G74: No (not volatile) | H74: 10.42857143 | I74: NC | J74: NVT | K74: NVT | L74: -- | M74: 27.32022712 | N74: 20.421599 | O74: 25 | U74: 0.01 | V74: A | W74: =VLOOKUP(C74,'Tox Summary'!$N$3:$S$1048576,6,FALSE) ->  | Y74: 10.42857143
B75: 103-33-3 | C75: Azobenzene | D75: =VLOOKUP(B75, 'Chem Props'!$1:$1048576,3,FALSE) -> Yes | E75: Yes | F75: Yes | G75: Yes | H75: 0.0905707196 | I75: C | J75: 3.019023987 | K75: 164.1071201 | L75: -- | M75: 3539.812578 | N75: 3532.16 | O75: 25 | S75: 3.1e-05 | T75: I | W75: =VLOOKUP(C75,'Tox Summary'!$N$3:$S$1048576,6,FALSE) ->  | X75: 0.0905707196
B76: 123-77-3 | C76: Azodicarbonamide | D76: =VLOOKUP(B76, 'Chem Props'!$1:$1048576,3,FALSE) -> No | E76: Yes | F76: No (not volatile) | G76: No (not volatile) | H76: NVT | I76: NC | J76: NVT | K76: NVT | L76: -- | M76: 0.001174271281 | N76: 0.0011732 | O76: 25 | U76: 7e-06 | V76: P | W76: =VLOOKUP(C76,'Tox Summary'!$N$3:$S$1048576,6,FALSE) ->  | Y76: 0.0073
B77: 7440-39-3 | C77: Barium | D77: =VLOOKUP(B77, 'Chem Props'!$1:$1048576,3,FALSE) -> No | E77: Yes | F77: No (not volatile) | G77: No Inhal. Tox. Info | H77: No VP | I77: NC | J77: No VP | K77: No VP | L77: No (2000) | M77: No VP | N77: No S | O77: 25 | U77: 0.0005 | V77: H | W77: =VLOOKUP(C77,'Tox Summary'!$N$3:$S$1048576,6,FALSE) ->  | Y77: 0.5214285714
B78: 1861-40-1 | C78: Benfluralin | D78: =VLOOKUP(B78, 'Chem Props'!$1:$1048576,3,FALSE) -> Yes | E78: No | F78: No Inhal. Tox. Info | G78: =IF(LEFT(D78,2)="No","No (not volatile)",IF(D78="unknown","unknown",IF(H78="NVT","No",IF(AND(X78="",Y78=""),"No Inhal. Tox. Info",IF(MIN(X78:Y78)>=N78,"No",IF(N78>H78,"Yes","No")))))) -> No Inhal. Tox. Info | H78: -- | I78: -- | J78: -- | K78: -- | L78: -- | M78: 1178.113067 | N78: 1189.7 | O78: 25 | P78: =IF(VLOOKUP(B78,AllChemProps,32,FALSE)>0,VLOOKUP(B78,AllChemProps,32,FALSE),"") ->  | W78: =VLOOKUP(C78,'Tox Summary'!$N$3:$S$1048576,6,FALSE) -> 
B79: 17804-35-2 | C79: Benomyl | D79: =VLOOKUP(B79, 'Chem Props'!$1:$1048576,3,FALSE) -> No | E79: No | F79: No (not volatile) | G79: No (not volatile) | H79: -- | I79: -- | J79: -- | K79: -- | L79: -- | M79: 0.0578005366 | N79: 0.00076608 | O79: 25 | W79: =VLOOKUP(C79,'Tox Summary'!$N$3:$S$1048576,6,FALSE) -> 
B80: 83055-99-6 | C80: Bensulfuron-methyl | D80: =VLOOKUP(B80, 'Chem Props'!$1:$1048576,3,FALSE) -> No | E80: No | F80: No (not volatile) | G80: No (not volatile) | H80: -- | I80: -- | J80: -- | K80: -- | L80: -- | M80: 4.63756938e-07 | N80: 1.854e-05 | O80: 25 | W80: =VLOOKUP(C80,'Tox Summary'!$N$3:$S$1048576,6,FALSE) -> 
B81: 25057-89-0 | C81: Bentazon | D81: =VLOOKUP(B81, 'Chem Props'!$1:$1048576,3,FALSE) -> No | E81: No | F81: No (not volatile) | G81: No (not volatile) | H81: -- | I81: -- | J81: -- | K81: -- | L81: -- | M81: 44.6056538 | N81: 44.5625 | O81: 25 | W81: =VLOOKUP(C81,'Tox Summary'!$N$3:$S$1048576,6,FALSE) -> 
B82: 56-55-3 | C82: Benz[a]anthracene | D82: =VLOOKUP(B82, 'Chem Props'!$1:$1048576,3,FALSE) -> Yes | E82: Yes | F82: =IF(LEFT(D82,2)="No","No (not volatile)",IF(D82="unknown","unknown",IF(H82="NVT","No",IF(AND(X82="",Y82=""),"No Inhal. Tox. Info",IF(MIN(X82:Y82)>=M82,"No",IF(M82>H82,"Yes","No")))))) -> Yes | G82: Yes | H82: =IF(ISNUMBER(M82),IF(AND(X82="",Y82=""),"--",IF(MIN(X82:Y82)>=M82,"NVT",MIN(X82:Y82))),M82) -> 0.01689814815 | I82: =IF(AND(S82="",U82=""),"--",IF(MIN(X82,Y82)=X82,"C","NC")) -> C | J82: =IF(ISNUMBER(H82),IF(OR(H82="--",H82="NVT"),H82,IF(H82/Afss>=M82,"NVT",H82/Afss)),H82) -> 0.5632716049 | K82: =IF(ISNUMBER(H82),IF(H82="--","--", IF(LEFT(N82,2)="No",N82,IF(H82*0.001/(INDEX(HLC,MATCH(C82,ChemNameChem,0))*AFgw)>=1000*INDEX(PWCS,MATCH(C82,ChemNameChem,0)), "NVT", H82*0.001/(INDEX(HLC,MATCH(C82,ChemNameChem,0))*AFgw)))),H82) -> NVT | L82: =IF(INDEX(MCL,MATCH(C82,ChemNameChem,0))="","--",IF(K82<INDEX(MCL,MATCH(C82,ChemNameChem,0)),"Yes ("&(INDEX(MCL,MATCH(C82,ChemNameChem,0)))&")","No ("&(INDEX(MCL,MATCH(C82,ChemNameChem,0)))&")")) -> -- | M82: =IF(INDEX(_VP25,MATCH(B82,CASNoChem,0))="No VP","No VP",IF(INDEX(MW,MATCH(B82,CASNoChem,0))="No MW","No MW",INDEX(MW,MATCH(B82,CASNoChem,0))*INDEX(_VP25,MATCH(B82,CASNoChem,0))*53808.7856452378)) -> 2.57975461 | N82: 4.61164 | O82: =IF(INDEX(HTgw,MATCH(B82,CASNoChem,0),1)="",25,Tgw) -> 25 | Q82: =IF(INDEX(LELsource,MATCH(B82,CASNoChem,0),1)="","",INDEX(LELsource,MATCH(B82,CASNoChem,0),1)) ->  | S82: 6e-05 | T82: =IF(INDEX(IURSource,MATCH(B82,CASNoTox,0))="","",SUBSTITUTE(INDEX(IURSource,MATCH(B82,CASNoTox,0)),"C","CA")) -> E | U82: =IF(INDEX(RFC,MATCH(B82,CASNoTox,0))=" ","",INDEX(RFC,MATCH(B82,CASNoTox,0))) ->  | V82: =IF(INDEX(RFCSource,MATCH(B82,CASNoTox,0))="","",SUBSTITUTE(INDEX(RFCSource,MATCH(B82,CASNoTox,0)),"C","CA")) ->  | W82: =VLOOKUP(C82,'Tox Summary'!$N$3:$S$1048576,6,FALSE) -> Mut | X82: =IF(S82="","",IF(W82<>"TCE",TCR/(IF(AND(W82="VC",Scenario="Residential"),S82,0)+(EF*IF(W82="Mut",MMOAAF,ED)*ET*S82/(Atc*365*24))), 1/((EF*MMOAAF*ET*mIURTCE/(TCR*Atc*365*24))+EF*ED*ET*IURTCE/(TCR*Atc*365*24)))) -> 0.01689814815 | Y82: =IF(U82="","",THQ*Atnc*365*24*U82*1000/(EF*ED*ET)) -> 
B83: 100-52-7 | C83: Benzaldehyde | D83: =VLOOKUP(B83, 'Chem Props'!$1:$1048576,3,FALSE) -> Yes | E83: =IF(OR(ISNUMBER(S83),ISNUMBER(U83)),"Yes","No") -> No | F83: No Inhal. Tox. Info | G83: No Inhal. Tox. Info | H83: -- | I83: -- | J83: -- | K83: -- | L83: -- | M83: 7252622.554 | N83: 7586620 | O83: 25 | P83: 1.4 | Q83: M | W83: =VLOOKUP(C83,'Tox Summary'!$N$3:$S$1048576,6,FALSE) -> 
B84: 71-43-2 | C84: Benzene | D84: =VLOOKUP(B84, 'Chem Props'!$1:$1048576,3,FALSE) -> Yes | E84: Yes | F84: Yes | G84: Yes | H84: 0.3599605523 | I84: C | J84: 11.99868508 | K84: 1.586420481 | L84: Yes (5) | M84: 398470308 | N84: 406152969 | O84: 25 | P84: 1.2 | Q84: N | S84: 7.8e-06 | T84: I | U84: 0.03 | V84: I | W84: =VLOOKUP(C84,'Tox Summary'!$N$3:$S$1048576,6,FALSE) ->  | X84: 0.3599605523 | Y84: 31.28571429
B85: 6369-59-1 | C85: Benzenediamine-2-methyl sulfate, 1,4- | D85: =VLOOKUP(B85, 'Chem Props'!$1:$1048576,3,FALSE) -> No | E85: No | F85: No (not volatile) | G85: No (not volatile) | H85: -- | I85: -- | J85: -- | K85: -- | L85: -- | M85: 3.436745616e-07 | N85: 8.86e-10 | O85: 25 | W85: =VLOOKUP(C85,'Tox Summary'!$N$3:$S$1048576,6,FALSE) -> 
B86: 108-98-5 | C86: Benzenethiol | D86: =VLOOKUP(B86, 'Chem Props'!$1:$1048576,3,FALSE) -> Yes | E86: No | F86: No Inhal. Tox. Info | G86: No Inhal. Tox. Info | H86: -- | I86: -- | J86: -- | K86: -- | L86: -- | M86: 11442298.36 | N86: 11435993 | O86: 25 | W86: =VLOOKUP(C86,'Tox Summary'!$N$3:$S$1048576,6,FALSE) -> 
B87: 92-87-5 | C87: Benzidine | D87: =VLOOKUP(B87, 'Chem Props'!$1:$1048576,3,FALSE) -> No | E87: Yes | F87: No (not volatile) | G87: No (not volatile) | H87: 1.513266998e-05 | I87: C | J87: 0.0005044223328 | K87: 7159.327238 | L87: -- | M87: 8.902530139 | N87: 0.6806114 | O87: 25 | S87: =IF(INDEX(IUR,MATCH(B87,CASNoTox,0))=" ","",IF(W87="TCE","see note",INDEX(IUR,MATCH(B87,CASNoTox,0)))) -> 0.067 | T87: I | W87: =VLOOKUP(C87,'Tox Summary'!$N$3:$S$1048576,6,FALSE) -> Mut | X87: 1.513266998e-05
B88: 205-82-3 | C88: Benzo(j)fluoranthene | D88: =VLOOKUP(B88, 'Chem Props'!$1:$1048576,3,FALSE) -> No | E88: Yes | F88: No (not volatile) | G88: No (not volatile) | H88: 0.02552447552 | I88: C | J88: NVT | K88: NVT | L88: -- | M88: 0.3557182592 | N88: 0.02074825 | O88: 25 | S88: 0.00011 | T88: CA | W88: =VLOOKUP(C88,'Tox Summary'!$N$3:$S$1048576,6,FALSE) ->  | X88: 0.02552447552
B89: 50-32-8 | C89: Benzo[a]pyrene | D89: =VLOOKUP(B89, 'Chem Props'!$1:$1048576,3,FALSE) -> No | E89: Yes | F89: No (not volatile) | G89: No (not volatile) | H89: 0.001689814815 | I89: C | J89: 0.05632716049 | K89: NVT | L89: No (0.2) | M89: 0.07453791004 | N89: 0.030294 | O89: 25 | S89: 0.0006 | T89: I | U89: 2e-06 | V89: I | W89: =VLOOKUP(C89,'Tox Summary'!$N$3:$S$1048576,6,FALSE) -> Mut | X89: 0.001689814815 | Y89: 0.002085714286
B90: 205-99-2 | C90: Benzo[b]fluoranthene | D90: =VLOOKUP(B90, 'Chem Props'!$1:$1048576,3,FALSE) -> No | E90: Yes | F90: No (not volatile) | G90: No (not volatile) | H90: 0.01689814815 | I90: C | J90: 0.5632716049 | K90: NVT | L90: -- | M90: 6.788516397 | N90: 0.04035 | O90: 25 | S90: 6e-05 | T90: E | W90: =VLOOKUP(C90,'Tox Summary'!$N$3:$S$1048576,6,FALSE) -> Mut | X90: 0.01689814815
B91: 207-08-9 | C91: Benzo[k]fluoranthene | D91: =VLOOKUP(B91, 'Chem Props'!$1:$1048576,3,FALSE) -> No | E91: Yes | F91: No (not volatile) | G91: No (not volatile) | H91: NVT | I91: C | J91: NVT | K91: NVT | L91: -- | M91: 0.01310183665 | N91: 0.01912 | O91: 25 | S91: 6e-06 | T91: E | W91: =VLOOKUP(C91,'Tox Summary'!$N$3:$S$1048576,6,FALSE) -> Mut | X91: 0.1689814815
B92: 65-85-0 | C92: Benzoic Acid | D92: =VLOOKUP(B92, 'Chem Props'!$1:$1048576,3,FALSE) -> No | E92: No | F92: No (not volatile) | G92: No (not volatile) | H92: -- | I92: -- | J92: -- | K92: -- | L92: -- | M92: 4599.790232 | N92: 5295.84 | O92: 25 | W92: =VLOOKUP(C92,'Tox Summary'!$N$3:$S$1048576,6,FALSE) -> 
B93: 98-07-7 | C93: Benzotrichloride | D93: =VLOOKUP(B93, 'Chem Props'!$1:$1048576,3,FALSE) -> Yes | E93: No | F93: No Inhal. Tox. Info | G93: No Inhal. Tox. Info | H93: -- | I93: -- | J93: -- | K93: -- | L93: -- | M93: 4354676.147 | N93: 563368.8 | O93: 25 | W93: =VLOOKUP(C93,'Tox Summary'!$N$3:$S$1048576,6,FALSE) -> 
B94: 100-51-6 | C94: Benzyl Alcohol | D94: =VLOOKUP(B94, 'Chem Props'!$1:$1048576,3,FALSE) -> No | E94: No | F94: No (not volatile) | G94: No (not volatile) | H94: -- | I94: -- | J94: -- | K94: -- | L94: -- | M94: 546974.9155 | N94: 592020 | O94: 25 | W94: =VLOOKUP(C94,'Tox Summary'!$N$3:$S$1048576,6,FALSE) -> 
B95: 100-44-7 | C95: Benzyl Chloride | D95: =VLOOKUP(B95, 'Chem Props'!$1:$1048576,3,FALSE) -> Yes | E95: Yes | F95: Yes | G95: Yes | H95: 0.05729984301 | I95: C | J95: 1.909994767 | K95: 3.401835869 | L95: -- | M95: 8378334.635 | N95: 8842995 | O95: 25 | P95: 1.1 | Q95: N | S95: 4.9e-05 | T95: CA | U95: 0.001 | V95: P | W95: =VLOOKUP(C95,'Tox Summary'!$N$3:$S$1048576,6,FALSE) ->  | X95: 0.05729984301 | Y95: 1.042857143
B96: 7440-41-7 | C96: Beryllium and compounds | D96: =VLOOKUP(B96, 'Chem Props'!$1:$1048576,3,FALSE) -> No | E96: Yes | F96: No (not volatile) | G96: No (not volatile) | H96: NVT | I96: C | J96: NVT | K96: NVT | L96: No (4) | M96: 0 | O96: 25 | S96: 0.0024 | T96: I | U96: 2e-05 | V96: I | W96: =VLOOKUP(C96,'Tox Summary'!$N$3:$S$1048576,6,FALSE) ->  | X96: 0.001169871795 | Y96: 0.02085714286
B97: 42576-02-3 | C97: Bifenox | D97: =VLOOKUP(B97, 'Chem Props'!$1:$1048576,3,FALSE) -> No | E97: No | F97: No (not volatile) | G97: No (not volatile) | H97: -- | I97: -- | J97: -- | K97: -- | L97: -- | M97: 1.841013792 | N97: =IF(INDEX(HLC,MATCH(C97,ChemNameChem,0))="","No HLC",IF(INDEX(Sol,MATCH(C97,ChemNameChem,0))="No S","No S",INDEX(HLC,MATCH(C97,ChemNameChem,0))*INDEX(Sol,MATCH(C97,ChemNameChem,0))*1000000)) -> 1.7573292 | O97: 25 | W97: =VLOOKUP(C97,'Tox Summary'!$N$3:$S$1048576,6,FALSE) -> 
B98: 82657-04-3 | C98: Biphenthrin | D98: =VLOOKUP(B98, 'Chem Props'!$1:$1048576,3,FALSE) -> No | E98: No | F98: No (not volatile) | G98: No (not volatile) | H98: -- | I98: -- | J98: -- | K98: -- | L98: -- | M98: 4.095838669 | N98: 0.0409 | O98: 25 | W98: =VLOOKUP(C98,'Tox Summary'!$N$3:$S$1048576,6,FALSE) -> 
B99: 92-52-4 | C99: Biphenyl, 1,1'- | D99: =VLOOKUP(B99, 'Chem Props'!$1:$1048576,3,FALSE) -> Yes | E99: Yes | F99: Yes | G99: Yes | H99: 0.4171428571 | I99: NC | J99: 13.9047619 | K99: 33.12760937 | L99: -- | M99: 74099.82581 | N99: 94188.16 | O99: 25 | P99: 0.6 | Q99: N | U99: 0.0004 | V99: X | W99: =VLOOKUP(C99,'Tox Summary'!$N$3:$S$1048576,6,FALSE) ->  | Y99: 0.4171428571
B100: 108-60-1 | C100: Bis(2-chloro-1-methylethyl) ether | D100: =VLOOKUP(B100, 'Chem Props'!$1:$1048576,3,FALSE) -> Yes | E100: No | F100: No Inhal. Tox. Info | G100: No Inhal. Tox. Info | H100: -- | I100: -- | J100: -- | K100: -- | L100: -- | M100: 5154838.618 | N100: 5156950 | O100: 25 | W100: =VLOOKUP(C100,'Tox Summary'!$N$3:$S$1048576,6,FALSE) -> 
B101: 111-91-1 | C101: Bis(2-chloroethoxy)methane | D101: =VLOOKUP(B101, 'Chem Props'!$1:$1048576,3,FALSE) -> No | E101: No | F101: No (not volatile) | G101: No (not volatile) | H101: -- | I101: -- | J101: -- | K101: -- | L101: -- | M101: 1229061.539 | N101: 1227720 | O101: 25 | W101: =VLOOKUP(C101,'Tox Summary'!$N$3:$S$1048576,6,FALSE) -> 
B102: 111-44-4 | C102: Bis(2-chloroethyl)ether | D102: =VLOOKUP(B102, 'Chem Props'!$1:$1048576,3,FALSE) -> Yes | E102: Yes | F102: Yes | G102: Yes | H102: 0.008508158508 | I102: C | J102: 0.2836052836 | K102: 12.24195469 | L102: -- | M102: 11927551.37 | N102: 11954000 | O102: 25 | P102: 2.7 | Q102: N | S102: 0.00033 | T102: I | W102: =VLOOKUP(C102,'Tox Summary'!$N$3:$S$1048576,6,FALSE) ->  | X102: 0.008508158508
B103: 117-81-7 | C103: Bis(2-ethylhexyl)phthalate | D103: =VLOOKUP(B103, 'Chem Props'!$1:$1048576,3,FALSE) -> No | E103: Yes | F103: No (not volatile) | G103: No (not volatile) | H103: 1.169871795 | I103: C | J103: NVT | K103: NVT | L103: No (6) | M103: 2.984285832 | N103: 2.97 | O103: 25 | S103: 2.4e-06 | T103: CA | W103: =VLOOKUP(C103,'Tox Summary'!$N$3:$S$1048576,6,FALSE) ->  | X103: 1.169871795
B104: 542-88-1 | C104: Bis(chloromethyl)ether | D104: =VLOOKUP(B104, 'Chem Props'!$1:$1048576,3,FALSE) -> Yes | E104: Yes | F104: Yes | G104: Yes | H104: 4.52853598e-05 | I104: C | J104: 0.001509511993 | K104: 0.0002540550294 | L104: -- | M104: 181864225.1 | N104: 3921504400 | O104: 25 | S104: 0.062 | T104: I | W104: =VLOOKUP(C104,'Tox Summary'!$N$3:$S$1048576,6,FALSE) ->  | X104: 4.52853598e-05
B105: 80-05-7 | C105: Bisphenol A | D105: =VLOOKUP(B105, 'Chem Props'!$1:$1048576,3,FALSE) -> No | E105: No | F105: No (not volatile) | G105: No (not volatile) | H105: -- | I105: -- | J105: -- | K105: -- | L105: -- | M105: 4.803047001 | N105: 0.049056 | O105: 25 | W105: =VLOOKUP(C105,'Tox Summary'!$N$3:$S$1048576,6,FALSE) -> 
B106: 7440-42-8 | C106: Boron And Borates Only | D106: =VLOOKUP(B106, 'Chem Props'!$1:$1048576,3,FALSE) -> No | E106: Yes | F106: No (not volatile) | H106: No VP | I106: NC | J106: No VP | K106: No VP | L106: -- | M106: No VP | N106: No S | O106: 25 | U106: 0.02 | V106: H | W106: =VLOOKUP(C106,'Tox Summary'!$N$3:$S$1048576,6,FALSE) ->  | Y106: 20.85714286
B107: 10294-34-5 | C107: Boron Trichloride | D107: =VLOOKUP(B107, 'Chem Props'!$1:$1048576,3,FALSE) -> Yes | E107: Yes | F107: Yes | G107: =IF(LEFT(D107,2)="No","No (not volatile)",IF(D107="unknown","unknown",IF(H107="NVT","No",IF(AND(X107="",Y107=""),"No Inhal. Tox. Info",IF(MIN(X107:Y107)>=N107,"No",IF(N107>H107,"Yes","No")))))) -> Yes | H107: 20.85714286 | I107: NC | J107: 695.2380952 | K107: No S | L107: -- | M107: 6304775.414 | N107: No S | O107: 25 | U107: 0.02 | V107: P | W107: =VLOOKUP(C107,'Tox Summary'!$N$3:$S$1048576,6,FALSE) ->  | Y107: 20.85714286
B108: 7637-07-2 | C108: Boron Trifluoride | D108: =VLOOKUP(B108, 'Chem Props'!$1:$1048576,3,FALSE) -> Yes | E108: Yes | F108: Yes | G108: Yes | H108: 13.55714286 | I108: NC | J108: 451.9047619 | K108: No HLC | L108: -- | M108: 1.333730567e+11 | N108: No HLC | O108: 25 | U108: 0.013 | V108: CA | W108: =VLOOKUP(C108,'Tox Summary'!$N$3:$S$1048576,6,FALSE) ->  | Y108: 13.55714286
B109: 15541-45-4 | C109: Bromate | D109: =VLOOKUP(B109, 'Chem Props'!$1:$1048576,3,FALSE) -> No | E109: No | F109: No (not volatile) | G109: No (not volatile) | H109: No VP | I109: -- | J109: No VP | K109: No VP | L109: No (10) | M109: No VP | N109: =IF(INDEX(HLC,MATCH(C109,ChemNameChem,0))="","No HLC",IF(INDEX(Sol,MATCH(C109,ChemNameChem,0))="No S","No S",INDEX(HLC,MATCH(C109,ChemNameChem,0))*INDEX(Sol,MATCH(C109,ChemNameChem,0))*1000000)) -> No S | O109: 25 | W109: =VLOOKUP(C109,'Tox Summary'!$N$3:$S$1048576,6,FALSE) -> 
B110: 107-04-0 | C110: Bromo-2-chloroethane, 1- | D110: =VLOOKUP(B110, 'Chem Props'!$1:$1048576,3,FALSE) -> Yes | E110: Yes | F110: Yes | G110: Yes | H110: 0.004679487179 | I110: C | J110: 0.155982906 | K110: 0.1259189235 | L110: -- | M110: 255423364.1 | N110: 256422630 | O110: 25 | P110: =IF(VLOOKUP(B110,AllChemProps,32,FALSE)>0,VLOOKUP(B110,AllChemProps,32,FALSE),"") ->  | S110: 0.0006 | T110: X | W110: =VLOOKUP(C110,'Tox Summary'!$N$3:$S$1048576,6,FALSE) ->  | X110: 0.004679487179
B111: 1073-06-9 | C111: Bromo-3-fluorobenzene, 1- | D111: =VLOOKUP(B111, 'Chem Props'!$1:$1048576,3,FALSE) -> Yes | E111: No | F111: No Inhal. Tox. Info | G111: No Inhal. Tox. Info | H111: -- | I111: -- | J111: -- | K111: -- | L111: -- | M111: 26742966.47 | N111: 38634510.6 | O111: 25 | W111: =VLOOKUP(C111,'Tox Summary'!$N$3:$S$1048576,6,FALSE) -> 
B112: 460-00-4 | C112: Bromo-4-fluorobenzene, 1- | D112: =VLOOKUP(B112, 'Chem Props'!$1:$1048576,3,FALSE) -> Yes | E112: No | F112: No Inhal. Tox. Info | G112: No Inhal. Tox. Info | H112: -- | I112: -- | J112: -- | K112: -- | L112: -- | M112: 26742966.47 | N112: 13941130.28 | O112: 25 | W112: =VLOOKUP(C112,'Tox Summary'!$N$3:$S$1048576,6,FALSE) -> 
B113: 108-86-1 | C113: Bromobenzene | D113: =VLOOKUP(B113, 'Chem Props'!$1:$1048576,3,FALSE) -> Yes | E113: Yes | F113: Yes | G113: Yes | H113: 62.57142857 | I113: NC | J113: 2085.714286 | K113: 619.6344327 | L113: -- | M113: 35331699.91 | N113: 45037615.2 | O113: 25 | U113: 0.06 | V113: I | W113: =VLOOKUP(C113,'Tox Summary'!$N$3:$S$1048576,6,FALSE) ->  | Y113: 62.57142857
B114: 74-97-5 | C114: Bromochloromethane | D114: =VLOOKUP(B114, 'Chem Props'!$1:$1048576,3,FALSE) -> Yes | E114: Yes | F114: Yes | G114: Yes | H114: 41.71428571 | I114: NC | J114: 1390.47619 | K114: 698.8570098 | L114: -- | M114: 992053747.9 | N114: 996811310 | O114: 25 | U114: 0.04 | V114: X | W114: =VLOOKUP(C114,'Tox Summary'!$N$3:$S$1048576,6,FALSE) ->  | Y114: 41.71428571
B115: 75-27-4 | C115: Bromodichloromethane | D115: =VLOOKUP(B115, 'Chem Props'!$1:$1048576,3,FALSE) -> Yes | E115: Yes | F115: Yes | G115: Yes | H115: 0.07588357588 | I115: C | J115: 2.529452529 | K115: 0.8755248331 | L115: Yes (8.0E+01(F)) | M115: 440774667.6 | N115: 262789807.2 | O115: 25 | S115: 3.7e-05 | T115: CA | W115: =VLOOKUP(C115,'Tox Summary'!$N$3:$S$1048576,6,FALSE) ->  | X115: 0.07588357588
B116: 75-25-2 | C116: Bromoform | D116: =VLOOKUP(B116, 'Chem Props'!$1:$1048576,3,FALSE) -> Yes | E116: Yes | F116: Yes | G116: Yes | H116: 2.552447552 | I116: C | J116: 85.08158508 | K116: 116.697187 | L116: Yes (8.0E+01(F)) | M116: 73435109.74 | N116: 67804440 | O116: 25 | S116: 1.1e-06 | T116: I | W116: =VLOOKUP(C116,'Tox Summary'!$N$3:$S$1048576,6,FALSE) ->  | X116: 2.552447552
B117: 74-83-9 | C117: Bromomethane | D117: =VLOOKUP(B117, 'Chem Props'!$1:$1048576,3,FALSE) -> Yes | E117: Yes | F117: Yes | G117: Yes | H117: 5.214285714 | I117: NC | J117: 173.8095238 | K117: 17.37621447 | L117: -- | M117: 8255420517 | N117: 4561243360 | O117: 25 | P117: 10 | Q117: N | U117: 0.005 | V117: I | W117: =VLOOKUP(C117,'Tox Summary'!$N$3:$S$1048576,6,FALSE) ->  | Y117: 5.214285714
B118: 2104-96-3 | C118: Bromophos | D118: =VLOOKUP(B118, 'Chem Props'!$1:$1048576,3,FALSE) -> Yes | E118: No | F118: No Inhal. Tox. Info | G118: No Inhal. Tox. Info | H118: -- | I118: -- | J118: -- | K118: -- | L118: -- | M118: 2510.986982 | N118: 2514.3 | O118: 25 | W118: =VLOOKUP(C118,'Tox Summary'!$N$3:$S$1048576,6,FALSE) -> 
B119: 106-94-5 | C119: Bromopropane, 1- | D119: =VLOOKUP(B119, 'Chem Props'!$1:$1048576,3,FALSE) -> Yes | E119: Yes | F119: Yes | G119: Yes | H119: 104.2857143 | I119: NC | J119: 3476.190476 | K119: 348.4786282 | L119: -- | M119: 733268034.2 | N119: 733187000 | O119: 25 | S119: =IF(INDEX(IUR,MATCH(B119,CASNoTox,0))=" ","",IF(W119="TCE","see note",INDEX(IUR,MATCH(B119,CASNoTox,0)))) ->  | U119: 0.1 | V119: A | W119: =VLOOKUP(C119,'Tox Summary'!$N$3:$S$1048576,6,FALSE) ->  | Y119: 104.2857143
B120: 1689-84-5 | C120: Bromoxynil | D120: =VLOOKUP(B120, 'Chem Props'!$1:$1048576,3,FALSE) -> No | E120: No | F120: No (not volatile) | G120: No (not volatile) | H120: -- | I120: -- | J120: -- | K120: -- | L120: -- | M120: 0.7033144051 | N120: 0.701558 | O120: 25 | W120: =VLOOKUP(C120,'Tox Summary'!$N$3:$S$1048576,6,FALSE) -> 
B121: 1689-99-2 | C121: Bromoxynil Octanoate | D121: =VLOOKUP(B121, 'Chem Props'!$1:$1048576,3,FALSE) -> Yes | E121: No | F121: No Inhal. Tox. Info | G121: No Inhal. Tox. Info | H121: -- | I121: -- | J121: -- | K121: -- | L121: -- | M121: 104.1187088 | N121: 104.336 | O121: 25 | W121: =VLOOKUP(C121,'Tox Summary'!$N$3:$S$1048576,6,FALSE) -> 
B122: 106-99-0 | C122: Butadiene, 1,3- | D122: =VLOOKUP(B122, 'Chem Props'!$1:$1048576,3,FALSE) -> Yes | E122: Yes | F122: Yes | G122: Yes | H122: 0.09358974359 | I122: C | J122: 3.11965812 | K122: 0.0311033303 | L122: -- | M122: 6132686523 | N122: 2211610810 | O122: 25 | P122: 2 | Q122: N | S122: 3e-05 | T122: I | U122: 0.002 | V122: I | W122: =VLOOKUP(C122,'Tox Summary'!$N$3:$S$1048576,6,FALSE) ->  | X122: 0.09358974359 | Y122: 2.085714286
B123: 94-82-6 | C123: Butanoic acid, 4-(2,4-dichlorophenoxy)- | D123: =VLOOKUP(B123, 'Chem Props'!$1:$1048576,3,FALSE) -> No | E123: No | F123: No (not volatile) | G123: No (not volatile) | H123: -- | I123: -- | J123: -- | K123: -- | L123: -- | M123: 148.7818304 | N123: 4.306612 | O123: 25 | W123: =VLOOKUP(C123,'Tox Summary'!$N$3:$S$1048576,6,FALSE) -> 
B124: 71-36-3 | C124: Butanol, N- | D124: =VLOOKUP(B124, 'Chem Props'!$1:$1048576,3,FALSE) -> Yes | E124: No | F124: No Inhal. Tox. Info | G124: No Inhal. Tox. Info | H124: -- | I124: -- | J124: -- | K124: -- | L124: -- | M124: 26723100.26 | N124: 22764640 | O124: 25 | W124: =VLOOKUP(C124,'Tox Summary'!$N$3:$S$1048576,6,FALSE) -> 
B125: 78-92-2 | C125: Butyl alcohol, sec- | D125: =VLOOKUP(B125, 'Chem Props'!$1:$1048576,3,FALSE) -> Yes | E125: Yes | F125: Yes | G125: Yes | H125: 31285.71429 | I125: NC | J125: 1042857.143 | K125: 84464671.4 | L125: -- | M125: 73109616.09 | N125: 67042400 | O125: 25 | P125: 1.7 | Q125: N | U125: 30 | V125: P | W125: =VLOOKUP(C125,'Tox Summary'!$N$3:$S$1048576,6,FALSE) ->  | Y125: 31285.71429
B126: 85-68-7 | C126: Butyl Benzyl Phthalate | D126: =VLOOKUP(B126, 'Chem Props'!$1:$1048576,3,FALSE) -> No | E126: No | F126: No (not volatile) | G126: No (not volatile) | H126: -- | I126: -- | J126: -- | K126: -- | L126: -- | M126: 138.6680656 | N126: 138.535 | O126: 25 | W126: =VLOOKUP(C126,'Tox Summary'!$N$3:$S$1048576,6,FALSE) -> 
B127: 2008-41-5 | C127: Butylate | D127: =VLOOKUP(B127, 'Chem Props'!$1:$1048576,3,FALSE) -> Yes | E127: No | F127: No Inhal. Tox. Info | G127: No Inhal. Tox. Info | H127: -- | I127: -- | J127: -- | K127: -- | L127: -- | M127: 152060.3997 | N127: 155457 | O127: 25 | W127: =VLOOKUP(C127,'Tox Summary'!$N$3:$S$1048576,6,FALSE) -> 
B128: 25013-16-5 | C128: Butylated hydroxyanisole | D128: =VLOOKUP(B128, 'Chem Props'!$1:$1048576,3,FALSE) -> No | E128: Yes | F128: No (not volatile) | G128: No (not volatile) | H128: 49.25775978 | I128: C | J128: 1641.925326 | K128: NVT | L128: -- | M128: 48107.20672 | N128: 10171.84 | O128: 25 | S128: 5.7e-08 | T128: CA | W128: =VLOOKUP(C128,'Tox Summary'!$N$3:$S$1048576,6,FALSE) ->  | X128: 49.25775978
B129: 128-37-0 | C129: Butylated hydroxytoluene | D129: =VLOOKUP(B129, 'Chem Props'!$1:$1048576,3,FALSE) -> No | E129: No | F129: No (not volatile) | G129: No (not volatile) | H129: -- | I129: -- | J129: -- | K129: -- | L129: -- | M129: 61183.68866 | N129: 101.04 | O129: 25 | W129: =VLOOKUP(C129,'Tox Summary'!$N$3:$S$1048576,6,FALSE) -> 
B130: 104-51-8 | C130: Butylbenzene, n- | D130: =VLOOKUP(B130, 'Chem Props'!$1:$1048576,3,FALSE) -> Yes | E130: No | F130: No Inhal. Tox. Info | G130: No Inhal. Tox. Info | H130: -- | I130: -- | J130: -- | K130: -- | L130: -- | M130: 7685159.204 | N130: 7670482.62 | O130: 25 | W130: =VLOOKUP(C130,'Tox Summary'!$N$3:$S$1048576,6,FALSE) -> 
B131: 135-98-8 | C131: Butylbenzene, sec- | D131: =VLOOKUP(B131, 'Chem Props'!$1:$1048576,3,FALSE) -> Yes | E131: No | F131: No Inhal. Tox. Info | G131: No Inhal. Tox. Info | H131: -- | I131: -- | J131: -- | K131: -- | L131: -- | M131: 12653321.05 | N131: 12663940.96 | O131: 25 | W131: =VLOOKUP(C131,'Tox Summary'!$N$3:$S$1048576,6,FALSE) -> 
B132: 98-06-6 | C132: Butylbenzene, tert- | D132: =VLOOKUP(B132, 'Chem Props'!$1:$1048576,3,FALSE) -> Yes | E132: No | F132: No Inhal. Tox. Info | G132: No Inhal. Tox. Info | H132: -- | I132: -- | J132: -- | K132: -- | L132: -- | M132: 15920651.21 | N132: 15919869.7 | O132: 25 | W132: =VLOOKUP(C132,'Tox Summary'!$N$3:$S$1048576,6,FALSE) -> 
B133: 85-70-1 | C133: Butylphthalyl Butylglycolate | D133: =VLOOKUP(B133, 'Chem Props'!$1:$1048576,3,FALSE) -> No | E133: No | F133: No (not volatile) | G133: No (not volatile) | H133: -- | I133: -- | J133: -- | K133: -- | L133: -- | M133: 127.9722134 | N133: 7.411272 | O133: 25 | W133: =VLOOKUP(C133,'Tox Summary'!$N$3:$S$1048576,6,FALSE) -> 
B134: 75-60-5 | C134: Cacodylic Acid | D134: =VLOOKUP(B134, 'Chem Props'!$1:$1048576,3,FALSE) -> No | E134: No | F134: No (not volatile) | G134: No (not volatile) | H134: -- | I134: -- | J134: -- | K134: -- | L134: -- | M134: 0.7425612419 | N134: 1.4718 | O134: 25 | W134: =VLOOKUP(C134,'Tox Summary'!$N$3:$S$1048576,6,FALSE) -> 
B135: 7440-43-9 | C135: Cadmium (Diet) | D135: =VLOOKUP(B135, 'Chem Props'!$1:$1048576,3,FALSE) -> No | E135: Yes | F135: No (not volatile) | G135: No (not volatile) | H135: NVT | I135: C | J135: NVT | K135: NVT | L135: -- | M135: 0 | N135: No S | O135: 25 | S135: 0.0018 | T135: I | U135: 1e-05 | V135: A | W135: =VLOOKUP(C135,'Tox Summary'!$N$3:$S$1048576,6,FALSE) ->  | X135: 0.00155982906 | Y135: 0.01042857143
B136: 7440-43-9 | C136: Cadmium (Diet) | D136: =VLOOKUP(B136, 'Chem Props'!$1:$1048576,3,FALSE) -> No | E136: Yes | F136: No (not volatile) | G136: No (not volatile) | H136: NVT | I136: C | J136: NVT | K136: NVT | L136: -- | M136: 0 | N136: No S | O136: 25 | S136: 0.0018 | T136: I | U136: 1e-05 | V136: A | W136: =VLOOKUP(C136,'Tox Summary'!$N$3:$S$1048576,6,FALSE) ->  | X136: 0.00155982906 | Y136: 0.01042857143
B137: 7440-43-9 | C137: Cadmium (Water) | D137: =VLOOKUP(B137, 'Chem Props'!$1:$1048576,3,FALSE) -> No | E137: Yes | F137: No (not volatile) | G137: No (not volatile) | H137: NVT | I137: C | J137: NVT | K137: NVT | L137: -- | M137: 0 | N137: No S | O137: 25 | S137: 0.0018 | T137: I | U137: 1e-05 | V137: A | W137: =VLOOKUP(C137,'Tox Summary'!$N$3:$S$1048576,6,FALSE) ->  | X137: 0.00155982906 | Y137: 0.01042857143
B138: 592-01-8 | C138: Calcium Cyanide | D138: =VLOOKUP(B138, 'Chem Props'!$1:$1048576,3,FALSE) -> No | E138: No | F138: No (not volatile) | G138: No (not volatile) | H138: No VP | I138: -- | J138: No VP | K138: No VP | L138: -- | M138: No VP | N138: No S | O138: 25 | W138: =VLOOKUP(C138,'Tox Summary'!$N$3:$S$1048576,6,FALSE) -> 
B139: 7790-76-3 | C139: Calcium pyrophosphate | D139: =VLOOKUP(B139, 'Chem Props'!$1:$1048576,3,FALSE) -> No | E139: No | F139: No (not volatile) | G139: No (not volatile) | H139: No VP | I139: -- | J139: No VP | K139: No VP | L139: -- | M139: No VP | N139: No S | O139: 25 | W139: =VLOOKUP(C139,'Tox Summary'!$N$3:$S$1048576,6,FALSE) -> 
B140: 105-60-2 | C140: Caprolactam | D140: =VLOOKUP(B140, 'Chem Props'!$1:$1048576,3,FALSE) -> No | E140: Yes | F140: No (not volatile) | G140: No (not volatile) | H140: 2.294285714 | I140: NC | J140: 76.47619048 | K140: 2218201.406 | L140: -- | M140: 9742.403494 | N140: 798479.6 | O140: 25 | U140: 0.0022 | V140: CA | W140: =VLOOKUP(C140,'Tox Summary'!$N$3:$S$1048576,6,FALSE) ->  | Y140: 2.294285714
B141: 2425-06-1 | C141: Captafol | D141: =VLOOKUP(B141, 'Chem Props'!$1:$1048576,3,FALSE) -> No | E141: Yes | F141: No (not volatile) | G141: No (not volatile) | H141: 0.06529516995 | I141: C | J141: NVT | K141: NVT | L141: -- | M141: 0.2817374208 | N141: =IF(INDEX(HLC,MATCH(C141,ChemNameChem,0))="","No HLC",IF(INDEX(Sol,MATCH(C141,ChemNameChem,0))="No S","No S",INDEX(HLC,MATCH(C141,ChemNameChem,0))*INDEX(Sol,MATCH(C141,ChemNameChem,0))*1000000)) -> 0.281596 | O141: 25 | S141: 4.3e-05 | T141: CA | W141: =VLOOKUP(C141,'Tox Summary'!$N$3:$S$1048576,6,FALSE) ->  | X141: 0.06529516995
B142: 133-06-2 | C142: Captan | D142: =VLOOKUP(B142, 'Chem Props'!$1:$1048576,3,FALSE) -> No | E142: Yes | F142: No (not volatile) | G142: No (not volatile) | H142: NVT | I142: C | J142: NVT | K142: NVT | L142: -- | M142: 1.455694459 | N142: 1.459518 | O142: 25 | P142: =IF(VLOOKUP(B142,AllChemProps,32,FALSE)>0,VLOOKUP(B142,AllChemProps,32,FALSE),"") ->  | S142: 6.6e-07 | T142: CA | W142: =VLOOKUP(C142,'Tox Summary'!$N$3:$S$1048576,6,FALSE) ->  | X142: 4.254079254
B143: 63-25-2 | C143: Carbaryl | D143: =VLOOKUP(B143, 'Chem Props'!$1:$1048576,3,FALSE) -> No | E143: No | F143: No (not volatile) | G143: No (not volatile) | H143: -- | I143: -- | J143: -- | K143: -- | L143: -- | M143: 14.72600103 | N143: 14.7059 | O143: 25 | W143: =VLOOKUP(C143,'Tox Summary'!$N$3:$S$1048576,6,FALSE) -> 
B144: 1563-66-2 | C144: Carbofuran | D144: =VLOOKUP(B144, 'Chem Props'!$1:$1048576,3,FALSE) -> No | E144: No | F144: No (not volatile) | G144: No (not volatile) | H144: -- | I144: -- | J144: -- | K144: -- | L144: No (40) | M144: 57.74279977 | N144: 40.4256 | O144: 25 | W144: =VLOOKUP(C144,'Tox Summary'!$N$3:$S$1048576,6,FALSE) -> 
B145: 75-15-0 | C145: Carbon Disulfide | D145: =VLOOKUP(B145, 'Chem Props'!$1:$1048576,3,FALSE) -> Yes | E145: Yes | F145: Yes | G145: Yes | H145: 730 | I145: NC | J145: 24333.33333 | K145: 1239.986051 | L145: -- | M145: 1470804020 | N145: 1271627208 | O145: 25 | P145: 1.3 | Q145: N | U145: 0.7 | V145: I | W145: =VLOOKUP(C145,'Tox Summary'!$N$3:$S$1048576,6,FALSE) ->  | Y145: 730
B146: 56-23-5 | C146: Carbon Tetrachloride | D146: =VLOOKUP(B146, 'Chem Props'!$1:$1048576,3,FALSE) -> Yes | E146: Yes | F146: =IF(LEFT(D146,2)="No","No (not volatile)",IF(D146="unknown","unknown",IF(H146="NVT","No",IF(AND(X146="",Y146=""),"No Inhal. Tox. Info",IF(MIN(X146:Y146)>=M146,"No",IF(M146>H146,"Yes","No")))))) -> Yes | G146: Yes | H146: =IF(ISNUMBER(M146),IF(AND(X146="",Y146=""),"--",IF(MIN(X146:Y146)>=M146,"NVT",MIN(X146:Y146))),M146) -> 0.4679487179 | I146: =IF(AND(S146="",U146=""),"--",IF(MIN(X146,Y146)=X146,"C","NC")) -> C | J146: =IF(ISNUMBER(H146),IF(OR(H146="--",H146="NVT"),H146,IF(H146/Afss>=M146,"NVT",H146/Afss)),H146) -> 15.5982906 | K146: =IF(ISNUMBER(H146),IF(H146="--","--", IF(LEFT(N146,2)="No",N146,IF(H146*0.001/(INDEX(HLC,MATCH(C146,ChemNameChem,0))*AFgw)>=1000*INDEX(PWCS,MATCH(C146,ChemNameChem,0)), "NVT", H146*0.001/(INDEX(HLC,MATCH(C146,ChemNameChem,0))*AFgw)))),H146) -> 0.4147110569 | L146: =IF(INDEX(MCL,MATCH(C146,ChemNameChem,0))="","--",IF(K146<INDEX(MCL,MATCH(C146,ChemNameChem,0)),"Yes ("&(INDEX(MCL,MATCH(C146,ChemNameChem,0)))&")","No ("&(INDEX(MCL,MATCH(C146,ChemNameChem,0)))&")")) -> Yes (5) | M146: =IF(INDEX(_VP25,MATCH(B146,CASNoChem,0))="No VP","No VP",IF(INDEX(MW,MATCH(B146,CASNoChem,0))="No MW","No MW",INDEX(MW,MATCH(B146,CASNoChem,0))*INDEX(_VP25,MATCH(B146,CASNoChem,0))*53808.7856452378)) -> 951839751.9 | N146: 894799709.7 | O146: =IF(INDEX(HTgw,MATCH(B146,CASNoChem,0),1)="",25,Tgw) -> 25 | Q146: =IF(INDEX(LELsource,MATCH(B146,CASNoChem,0),1)="","",INDEX(LELsource,MATCH(B146,CASNoChem,0),1)) ->  | S146: 6e-06 | T146: =IF(INDEX(IURSource,MATCH(B146,CASNoTox,0))="","",SUBSTITUTE(INDEX(IURSource,MATCH(B146,CASNoTox,0)),"C","CA")) -> I | U146: =IF(INDEX(RFC,MATCH(B146,CASNoTox,0))=" ","",INDEX(RFC,MATCH(B146,CASNoTox,0))) -> 0.1 | V146: =IF(INDEX(RFCSource,MATCH(B146,CASNoTox,0))="","",SUBSTITUTE(INDEX(RFCSource,MATCH(B146,CASNoTox,0)),"C","CA")) -> I | W146: =VLOOKUP(C146,'Tox Summary'!$N$3:$S$1048576,6,FALSE) ->  | X146: =IF(S146="","",IF(W146<>"TCE",TCR/(IF(AND(W146="VC",Scenario="Residential"),S146,0)+(EF*IF(W146="Mut",MMOAAF,ED)*ET*S146/(Atc*365*24))), 1/((EF*MMOAAF*ET*mIURTCE/(TCR*Atc*365*24))+EF*ED*ET*IURTCE/(TCR*Atc*365*24)))) -> 0.4679487179 | Y146: =IF(U146="","",THQ*Atnc*365*24*U146*1000/(EF*ED*ET)) -> 104.2857143
B147: 463-58-1 | C147: Carbonyl Sulfide | D147: =VLOOKUP(B147, 'Chem Props'!$1:$1048576,3,FALSE) -> Yes | E147: =IF(OR(ISNUMBER(S147),ISNUMBER(U147)),"Yes","No") -> Yes | F147: Yes | G147: Yes | H147: 104.2857143 | I147: NC | J147: 3476.190476 | K147: 4.181464085 | L147: -- | M147: 3.042488105e+10 | N147: 3.04268e+10 | O147: 25 | U147: 0.1 | V147: P | W147: =VLOOKUP(C147,'Tox Summary'!$N$3:$S$1048576,6,FALSE) ->  | Y147: 104.2857143
B148: 55285-14-8 | C148: Carbosulfan | D148: =VLOOKUP(B148, 'Chem Props'!$1:$1048576,3,FALSE) -> No | E148: No | F148: No (not volatile) | G148: No (not volatile) | H148: -- | I148: -- | J148: -- | K148: -- | L148: -- | M148: 6.286418547 | N148: 6.27 | O148: 25 | W148: =VLOOKUP(C148,'Tox Summary'!$N$3:$S$1048576,6,FALSE) -> 
B149: 5234-68-4 | C149: Carboxin | D149: =VLOOKUP(B149, 'Chem Props'!$1:$1048576,3,FALSE) -> No | E149: No | F149: No (not volatile) | G149: No (not volatile) | H149: -- | I149: -- | J149: -- | K149: -- | L149: -- | M149: 1.899261803 | N149: 1.923201 | O149: 25 | W149: =VLOOKUP(C149,'Tox Summary'!$N$3:$S$1048576,6,FALSE) -> 
B150: 1306-38-3 | C150: Ceric oxide | D150: =VLOOKUP(B150, 'Chem Props'!$1:$1048576,3,FALSE) -> No | E150: Yes | F150: No (not volatile) | G150: No (not volatile) | H150: No VP | I150: NC | J150: No VP | K150: No VP | L150: -- | M150: No VP | N150: No S | O150: 25 | U150: 0.0009 | V150: I | W150: =VLOOKUP(C150,'Tox Summary'!$N$3:$S$1048576,6,FALSE) ->  | Y150: 0.9385714286
B151: 302-17-0 | C151: Chloral Hydrate | D151: =VLOOKUP(B151, 'Chem Props'!$1:$1048576,3,FALSE) -> Yes | E151: No | F151: No Inhal. Tox. Info | G151: No Inhal. Tox. Info | H151: -- | I151: -- | J151: -- | K151: -- | L151: -- | M151: 133490697.2 | N151: 185117.92 | O151: 25 | S151: =IF(INDEX(IUR,MATCH(B151,CASNoTox,0))=" ","",IF(W151="TCE","see note",INDEX(IUR,MATCH(B151,CASNoTox,0)))) ->  | W151: =VLOOKUP(C151,'Tox Summary'!$N$3:$S$1048576,6,FALSE) -> 
B152: 133-90-4 | C152: Chloramben | D152: =VLOOKUP(B152, 'Chem Props'!$1:$1048576,3,FALSE) -> No | E152: No | F152: No (not volatile) | G152: No (not volatile) | H152: -- | I152: -- | J152: -- | K152: -- | L152: -- | M152: 1.108622411 | N152: 1.10754 | O152: 25 | W152: =VLOOKUP(C152,'Tox Summary'!$N$3:$S$1048576,6,FALSE) -> 
B153: 118-75-2 | C153: Chloranil | D153: =VLOOKUP(B153, 'Chem Props'!$1:$1048576,3,FALSE) -> No | E153: No | F153: No (not volatile) | G153: No (not volatile) | H153: -- | I153: -- | J153: -- | K153: -- | L153: -- | M153: 30.16554961 | N153: 3.34225 | O153: 25 | W153: =VLOOKUP(C153,'Tox Summary'!$N$3:$S$1048576,6,FALSE) -> 
B154: 12789-03-6 | C154: Chlordane | D154: =VLOOKUP(B154, 'Chem Props'!$1:$1048576,3,FALSE) -> Yes | E154: Yes | F154: Yes | G154: Yes | H154: 0.02807692308 | I154: C | J154: 0.9358974359 | K154: 14.13101972 | L154: No (2) | M154: 220.0566465 | N154: 111.2664 | O154: 25 | S154: 0.0001 | T154: I | U154: 0.0007 | V154: I | W154: =VLOOKUP(C154,'Tox Summary'!$N$3:$S$1048576,6,FALSE) ->  | X154: 0.02807692308 | Y154: 0.73
B155: 143-50-0 | C155: Chlordecone (Kepone) | D155: =VLOOKUP(B155, 'Chem Props'!$1:$1048576,3,FALSE) -> No | E155: Yes | F155: No (not volatile) | G155: No (not volatile) | H155: 0.000610367893 | I155: C | J155: 0.02034559643 | K155: 277.5030202 | L155: -- | M155: 5.940167083 | N155: 5.93865 | O155: 25 | S155: 0.0046 | T155: CA | W155: =VLOOKUP(C155,'Tox Summary'!$N$3:$S$1048576,6,FALSE) ->  | X155: 0.000610367893
B156: 470-90-6 | C156: Chlorfenvinphos | D156: =VLOOKUP(B156, 'Chem Props'!$1:$1048576,3,FALSE) -> No | E156: No | F156: No (not volatile) | G156: No (not volatile) | H156: -- | I156: -- | J156: -- | K156: -- | L156: -- | M156: 145.1142236 | N156: 146.506 | O156: 25 | W156: =VLOOKUP(C156,'Tox Summary'!$N$3:$S$1048576,6,FALSE) -> 
B157: 90982-32-4 | C157: Chlorimuron, Ethyl- | D157: =VLOOKUP(B157, 'Chem Props'!$1:$1048576,3,FALSE) -> No | E157: No | F157: No (not volatile) | G157: No (not volatile) | H157: -- | I157: -- | J157: -- | K157: -- | L157: -- | M157: 8.92859942e-05 | N157: 8.9292e-05 | O157: 25 | W157: =VLOOKUP(C157,'Tox Summary'!$N$3:$S$1048576,6,FALSE) -> 
B158: 7782-50-5 | C158: Chlorine | D158: =VLOOKUP(B158, 'Chem Props'!$1:$1048576,3,FALSE) -> Yes | E158: Yes | F158: Yes | G158: Yes | H158: 0.1564285714 | I158: NC | J158: 5.214285714 | K158: 0.3270511633 | L158: -- | M158: 2.233515113e+10 | N158: 3013290000 | O158: 25 | U158: 0.00015 | V158: A | W158: =VLOOKUP(C158,'Tox Summary'!$N$3:$S$1048576,6,FALSE) ->  | Y158: 0.1564285714
B159: 10049-04-4 | C159: Chlorine Dioxide | D159: =VLOOKUP(B159, 'Chem Props'!$1:$1048576,3,FALSE) -> Yes | E159: Yes | F159: Yes | G159: Yes | H159: 0.2085714286 | I159: NC | J159: 6.952380952 | K159: No S | L159: -- | M159: 2751087165 | N159: No S | O159: 25 | U159: 0.0002 | V159: I | W159: =VLOOKUP(C159,'Tox Summary'!$N$3:$S$1048576,6,FALSE) ->  | Y159: 0.2085714286
B160: 7758-19-2 | C160: Chlorite (Sodium Salt) | D160: =VLOOKUP(B160, 'Chem Props'!$1:$1048576,3,FALSE) -> No | E160: No | F160: No (not volatile) | G160: No (not volatile) | H160: No VP | I160: -- | J160: No VP | K160: No VP | L160: No (1000) | M160: No VP | O160: 25 | W160: =VLOOKUP(C160,'Tox Summary'!$N$3:$S$1048576,6,FALSE) -> 
B161: 75-68-3 | C161: Chloro-1,1-difluoroethane, 1- | D161: =VLOOKUP(B161, 'Chem Props'!$1:$1048576,3,FALSE) -> Yes | E161: Yes | F161: Yes | G161: Yes | H161: 52142.85714 | I161: NC | J161: 1738095.238 | K161: 21690.71892 | L161: -- | M161: 1.375739984e+10 | N161: =IF(INDEX(HLC,MATCH(C161,ChemNameChem,0))="","No HLC",IF(INDEX(Sol,MATCH(C161,ChemNameChem,0))="No S","No S",INDEX(HLC,MATCH(C161,ChemNameChem,0))*INDEX(Sol,MATCH(C161,ChemNameChem,0))*1000000)) -> 3365494720 | O161: 25 | U161: 50 | V161: I | W161: =VLOOKUP(C161,'Tox Summary'!$N$3:$S$1048576,6,FALSE) ->  | Y161: 52142.85714
B162: 126-99-8 | C162: Chloro-1,3-butadiene, 2- | D162: =VLOOKUP(B162, 'Chem Props'!$1:$1048576,3,FALSE) -> Yes | E162: Yes | F162: Yes | G162: Yes | H162: 0.009358974359 | I162: C | J162: 0.311965812 | K162: 0.004080579505 | L162: -- | M162: 1026656752 | N162: 2006618583 | O162: 25 | P162: 1.9 | Q162: N | S162: 0.0003 | T162: I | U162: 0.02 | V162: I | W162: =VLOOKUP(C162,'Tox Summary'!$N$3:$S$1048576,6,FALSE) ->  | X162: 0.009358974359 | Y162: 20.85714286
B163: 3165-93-3 | C163: Chloro-2-methylaniline HCl, 4- | D163: =VLOOKUP(B163, 'Chem Props'!$1:$1048576,3,FALSE) -> No | E163: No | F163: No (not volatile) | G163: No (not volatile) | H163: -- | I163: -- | J163: -- | K163: -- | L163: -- | M163: 390912.6488 | N163: 60858.82 | O163: 25 | W163: =VLOOKUP(C163,'Tox Summary'!$N$3:$S$1048576,6,FALSE) -> 
B164: 95-69-2 | C164: Chloro-2-methylaniline, 4- | D164: =VLOOKUP(B164, 'Chem Props'!$1:$1048576,3,FALSE) -> No | E164: Yes | F164: No (not volatile) | G164: No (not volatile) | H164: 0.03646353646 | I164: C | J164: 1.215451215 | K164: 447.9549934 | L164: -- | M164: 310868.4211 | N164: 77647.46 | O164: 25 | S164: 7.7e-05 | T164: CA | W164: =VLOOKUP(C164,'Tox Summary'!$N$3:$S$1048576,6,FALSE) ->  | X164: 0.03646353646
B165: 107-20-0 | C165: Chloroacetaldehyde, 2- | D165: =VLOOKUP(B165, 'Chem Props'!$1:$1048576,3,FALSE) -> Yes | E165: No | F165: No Inhal. Tox. Info | G165: No Inhal. Tox. Info | H165: -- | I165: -- | J165: -- | K165: -- | L165: -- | M165: 271455462.3 | N165: 108164970 | O165: 25 | W165: =VLOOKUP(C165,'Tox Summary'!$N$3:$S$1048576,6,FALSE) -> 
B166: 79-11-8 | C166: Chloroacetic Acid | D166: =VLOOKUP(B166, 'Chem Props'!$1:$1048576,3,FALSE) -> No | E166: No | F166: No (not volatile) | G166: No (not volatile) | H166: -- | I166: -- | J166: -- | K166: -- | L166: No (60) | M166: 330513.4707 | N166: 324821.64 | O166: 25 | W166: =VLOOKUP(C166,'Tox Summary'!$N$3:$S$1048576,6,FALSE) -> 
B167: 532-27-4 | C167: Chloroacetophenone, 2- | D167: =VLOOKUP(B167, 'Chem Props'!$1:$1048576,3,FALSE) -> No | E167: Yes | F167: No (not volatile) | G167: No (not volatile) | H167: 0.03128571429 | I167: NC | J167: 1.042857143 | K167: 221.1004543 | L167: -- | M167: 44921.72661 | N167: 155650 | O167: 25 | U167: 3e-05 | V167: I | W167: =VLOOKUP(C167,'Tox Summary'!$N$3:$S$1048576,6,FALSE) ->  | Y167: 0.03128571429
B168: 106-47-8 | C168: Chloroaniline, p- | D168: =VLOOKUP(B168, 'Chem Props'!$1:$1048576,3,FALSE) -> No | E168: No | F168: No (not volatile) | G168: No (not volatile) | H168: -- | I168: -- | J168: -- | K168: -- | L168: -- | M168: 185338.4432 | N168: 184860 | O168: 25 | W168: =VLOOKUP(C168,'Tox Summary'!$N$3:$S$1048576,6,FALSE) -> 
B169: 108-90-7 | C169: Chlorobenzene | D169: =VLOOKUP(B169, 'Chem Props'!$1:$1048576,3,FALSE) -> Yes | E169: Yes | F169: Yes | G169: Yes | H169: 52.14285714 | I169: NC | J169: 1738.095238 | K169: 410.100932 | L169: No (100) | M169: 72498901.44 | N169: 63318907.2 | O169: 25 | P169: 1.3 | Q169: N | U169: 0.05 | V169: P | W169: =VLOOKUP(C169,'Tox Summary'!$N$3:$S$1048576,6,FALSE) ->  | Y169: 52.14285714
B170: 98-66-8 | C170: Chlorobenzene sulfonic acid, p- | D170: =VLOOKUP(B170, 'Chem Props'!$1:$1048576,3,FALSE) -> No | E170: No | F170: No (not volatile) | G170: No (not volatile) | H170: -- | I170: -- | J170: -- | K170: -- | L170: -- | M170: 44.36069469 | N170: 23291.9709 | O170: 25 | W170: =VLOOKUP(C170,'Tox Summary'!$N$3:$S$1048576,6,FALSE) -> 
B171: 510-15-6 | C171: Chlorobenzilate | D171: =VLOOKUP(B171, 'Chem Props'!$1:$1048576,3,FALSE) -> No | E171: Yes | F171: No (not volatile) | G171: =IF(LEFT(D171,2)="No","No (not volatile)",IF(D171="unknown","unknown",IF(H171="NVT","No",IF(AND(X171="",Y171=""),"No Inhal. Tox. Info",IF(MIN(X171:Y171)>=N171,"No",IF(N171>H171,"Yes","No")))))) -> No (not volatile) | H171: 0.0905707196 | I171: C | J171: 3.019023987 | K171: NVT | L171: -- | M171: 38.49577381 | N171: 38.4787 | O171: 25 | P171: =IF(VLOOKUP(B171,AllChemProps,32,FALSE)>0,VLOOKUP(B171,AllChemProps,32,FALSE),"") ->  | S171: 3.1e-05 | T171: CA | W171: =VLOOKUP(C171,'Tox Summary'!$N$3:$S$1048576,6,FALSE) ->  | X171: 0.0905707196
B172: 74-11-3 | C172: Chlorobenzoic Acid, p- | D172: =VLOOKUP(B172, 'Chem Props'!$1:$1048576,3,FALSE) -> No | E172: No | F172: No (not volatile) | G172: No (not volatile) | H172: -- | I172: -- | J172: -- | K172: -- | L172: -- | M172: 19629.88085 | N172: 236.3688 | O172: 25 | W172: =VLOOKUP(C172,'Tox Summary'!$N$3:$S$1048576,6,FALSE) -> 
B173: 98-56-6 | C173: Chlorobenzotrifluoride, 4- | D173: =VLOOKUP(B173, 'Chem Props'!$1:$1048576,3,FALSE) -> Yes | E173: Yes | F173: Yes | G173: Yes | H173: 312.8571429 | I173: NC | J173: 10428.57143 | K173: 220.5327267 | L173: -- | M173: 74130900.38 | N173: 41140638.3 | O173: 25 | U173: 0.3 | V173: P | W173: =VLOOKUP(C173,'Tox Summary'!$N$3:$S$1048576,6,FALSE) ->  | Y173: 312.8571429
B174: 109-69-3 | C174: Chlorobutane, 1- | D174: =VLOOKUP(B174, 'Chem Props'!$1:$1048576,3,FALSE) -> Yes | E174: No | F174: No Inhal. Tox. Info | G174: No Inhal. Tox. Info | H174: -- | I174: -- | J174: -- | K174: -- | L174: -- | M174: 504577881 | N174: 751022030 | O174: 25 | P174: 1.8 | Q174: M | W174: =VLOOKUP(C174,'Tox Summary'!$N$3:$S$1048576,6,FALSE) -> 
B175: 75-45-6 | C175: Chlorodifluoromethane | D175: =VLOOKUP(B175, 'Chem Props'!$1:$1048576,3,FALSE) -> Yes | E175: Yes | F175: Yes | G175: Yes | H175: 52142.85714 | I175: NC | J175: 1738095.238 | K175: 31414.14536 | L175: -- | M175: 3.374204676e+10 | N175: 4597792256 | O175: 25 | U175: 50 | V175: I | W175: =VLOOKUP(C175,'Tox Summary'!$N$3:$S$1048576,6,FALSE) ->  | Y175: 52142.85714
B176: 107-07-3 | C176: Chloroethanol, 2- | D176: =VLOOKUP(B176, 'Chem Props'!$1:$1048576,3,FALSE) -> Yes | E176: No | F176: No Inhal. Tox. Info | G176: No Inhal. Tox. Info | H176: -- | I176: -- | J176: -- | K176: -- | L176: -- | M176: 31106735.22 | N176: 31100000 | O176: 25 | W176: =VLOOKUP(C176,'Tox Summary'!$N$3:$S$1048576,6,FALSE) -> 
B177: 67-66-3 | C177: Chloroform | D177: =VLOOKUP(B177, 'Chem Props'!$1:$1048576,3,FALSE) -> Yes | E177: Yes | F177: Yes | G177: Yes | H177: 0.1220735786 | I177: C | J177: 4.069119287 | K177: 0.8136020152 | L177: Yes (8.0E+01(F)) | M177: 1265467488 | N177: 1192825155 | O177: 25 | S177: 2.3e-05 | T177: I | U177: 0.098 | V177: A | W177: =VLOOKUP(C177,'Tox Summary'!$N$3:$S$1048576,6,FALSE) ->  | X177: 0.1220735786 | Y177: 102.2
B178: 74-87-3 | C178: Chloromethane | D178: =VLOOKUP(B178, 'Chem Props'!$1:$1048576,3,FALSE) -> Yes | E178: Yes | F178: Yes | G178: Yes | H178: 93.85714286 | I178: NC | J178: 3128.571429 | K178: 260.2886415 | L178: -- | M178: 1.168180127e+10 | N178: 1918331884 | O178: 25 | P178: 8.1 | Q178: N | U178: 0.09 | V178: I | W178: =VLOOKUP(C178,'Tox Summary'!$N$3:$S$1048576,6,FALSE) ->  | Y178: 93.85714286
B179: 107-30-2 | C179: Chloromethyl Methyl Ether | D179: =VLOOKUP(B179, 'Chem Props'!$1:$1048576,3,FALSE) -> Yes | E179: Yes | F179: Yes | G179: Yes | H179: 0.004069119287 | I179: C | J179: 0.1356373096 | K179: 0.327402284 | L179: -- | M179: 129972431.3 | N179: 863035040 | O179: 25 | S179: 0.00069 | T179: CA | W179: =VLOOKUP(C179,'Tox Summary'!$N$3:$S$1048576,6,FALSE) ->  | X179: 0.004069119287
B180: 91-58-7 | C180: Chloronaphthalene, Beta- | D180: =VLOOKUP(B180, 'Chem Props'!$1:$1048576,3,FALSE) -> Yes | E180: No | F180: No Inhal. Tox. Info | G180: No Inhal. Tox. Info | H180: -- | I180: -- | J180: -- | K180: -- | L180: -- | M180: 106754.6936 | N180: 153066.42 | O180: 25 | W180: =VLOOKUP(C180,'Tox Summary'!$N$3:$S$1048576,6,FALSE) -> 
B181: 88-73-3 | C181: Chloronitrobenzene, o- | D181: =VLOOKUP(B181, 'Chem Props'!$1:$1048576,3,FALSE) -> No | E181: Yes | F181: No (not volatile) | G181: No (not volatile) | H181: 0.01042857143 | I181: NC | J181: 0.3476190476 | K181: 27.42917262 | L181: -- | M181: 154301.6432 | N181: 167668.2 | O181: 25 | U181: 1e-05 | V181: X | W181: =VLOOKUP(C181,'Tox Summary'!$N$3:$S$1048576,6,FALSE) ->  | Y181: 0.01042857143
B182: 100-00-5 | C182: Chloronitrobenzene, p- | D182: =VLOOKUP(B182, 'Chem Props'!$1:$1048576,3,FALSE) -> No | E182: Yes | F182: No (not volatile) | G182: No (not volatile) | H182: 2.085714286 | I182: NC | J182: 69.52380952 | K182: 10433.78832 | L182: -- | M182: 185670.6586 | N182: 44977.5 | O182: 25 | U182: 0.002 | V182: P | W182: =VLOOKUP(C182,'Tox Summary'!$N$3:$S$1048576,6,FALSE) ->  | Y182: 2.085714286
B183: 95-57-8 | C183: Chlorophenol, 2- | D183: =VLOOKUP(B183, 'Chem Props'!$1:$1048576,3,FALSE) -> Yes | E183: No | F183: No Inhal. Tox. Info | G183: No Inhal. Tox. Info | H183: -- | I183: -- | J183: -- | K183: -- | L183: -- | M183: 17501673.43 | N183: 5174270 | O183: 25 | S183: =IF(INDEX(IUR,MATCH(B183,CASNoTox,0))=" ","",IF(W183="TCE","see note",INDEX(IUR,MATCH(B183,CASNoTox,0)))) ->  | W183: =VLOOKUP(C183,'Tox Summary'!$N$3:$S$1048576,6,FALSE) -> 
B184: 76-06-2 | C184: Chloropicrin | D184: =VLOOKUP(B184, 'Chem Props'!$1:$1048576,3,FALSE) -> Yes | E184: Yes | F184: Yes | G184: Yes | H184: 0.4171428571 | I184: NC | J184: 13.9047619 | K184: 4.977226631 | L184: -- | M184: 212282116.4 | N184: 135772686 | O184: 25 | U184: 0.0004 | V184: CA | W184: =VLOOKUP(C184,'Tox Summary'!$N$3:$S$1048576,6,FALSE) ->  | Y184: 0.4171428571
B185: 1897-45-6 | C185: Chlorothalonil | D185: =VLOOKUP(B185, 'Chem Props'!$1:$1048576,3,FALSE) -> No | E185: Yes | F185: No (not volatile) | G185: No (not volatile) | H185: 3.154710458 | I185: C | J185: NVT | K185: NVT | L185: -- | M185: 8.155727689 | N185: 66.258 | O185: 25 | S185: 8.9e-07 | T185: CA | W185: =VLOOKUP(C185,'Tox Summary'!$N$3:$S$1048576,6,FALSE) ->  | X185: 3.154710458
B186: 95-49-8 | C186: Chlorotoluene, o- | D186: =VLOOKUP(B186, 'Chem Props'!$1:$1048576,3,FALSE) -> Yes | E186: No | F186: No Inhal. Tox. Info | G186: No Inhal. Tox. Info | H186: -- | I186: -- | J186: -- | K186: -- | L186: -- | M186: 23363973.82 | N186: 54586272.4 | O186: 25 | W186: =VLOOKUP(C186,'Tox Summary'!$N$3:$S$1048576,6,FALSE) -> 
B187: 106-43-4 | C187: Chlorotoluene, p- | D187: =VLOOKUP(B187, 'Chem Props'!$1:$1048576,3,FALSE) -> Yes | E187: No | F187: No Inhal. Tox. Info | G187: No Inhal. Tox. Info | H187: -- | I187: -- | J187: -- | K187: -- | L187: -- | M187: 18323349.73 | N187: 18981197.4 | O187: 25 | W187: =VLOOKUP(C187,'Tox Summary'!$N$3:$S$1048576,6,FALSE) -> 
B188: 54749-90-5 | C188: Chlorozotocin | D188: =VLOOKUP(B188, 'Chem Props'!$1:$1048576,3,FALSE) -> No | E188: Yes | F188: No (not volatile) | G188: No (not volatile) | H188: NVT | I188: C | J188: NVT | K188: NVT | L188: -- | M188: 5.69020375e-07 | N188: 2.745e-11 | O188: 25 | S188: 0.069 | T188: CA | W188: =VLOOKUP(C188,'Tox Summary'!$N$3:$S$1048576,6,FALSE) ->  | X188: 4.069119287e-05
B189: 101-21-3 | C189: Chlorpropham | D189: =VLOOKUP(B189, 'Chem Props'!$1:$1048576,3,FALSE) -> No | E189: No | F189: No (not volatile) | G189: No (not volatile) | H189: -- | I189: -- | J189: -- | K189: -- | L189: -- | M189: 2069.518181 | N189: 2073.7 | O189: 25 | W189: =VLOOKUP(C189,'Tox Summary'!$N$3:$S$1048576,6,FALSE) -> 
B190: 2921-88-2 | C190: Chlorpyrifos | D190: =VLOOKUP(B190, 'Chem Props'!$1:$1048576,3,FALSE) -> No | E190: No | F190: No (not volatile) | G190: No (not volatile) | H190: -- | I190: -- | J190: -- | K190: -- | L190: -- | M190: 382.9558898 | N190: 134.176 | O190: 25 | W190: =VLOOKUP(C190,'Tox Summary'!$N$3:$S$1048576,6,FALSE) -> 
B191: 5598-13-0 | C191: Chlorpyrifos Methyl | D191: =VLOOKUP(B191, 'Chem Props'!$1:$1048576,3,FALSE) -> No | E191: No | F191: No (not volatile) | G191: No (not volatile) | H191: -- | I191: -- | J191: -- | K191: -- | L191: -- | M191: 728.9304003 | N191: 729.708 | O191: 25 | W191: =VLOOKUP(C191,'Tox Summary'!$N$3:$S$1048576,6,FALSE) -> 
B192: 64902-72-3 | C192: Chlorsulfuron | D192: =VLOOKUP(B192, 'Chem Props'!$1:$1048576,3,FALSE) -> No | E192: No | F192: No (not volatile) | G192: No (not volatile) | H192: -- | I192: -- | J192: -- | K192: -- | L192: -- | M192: 0.0004331634149 | N192: 0.00043338 | O192: 25 | W192: =VLOOKUP(C192,'Tox Summary'!$N$3:$S$1048576,6,FALSE) -> 
B193: 1861-32-1 | C193: Chlorthal-dimethyl | D193: =VLOOKUP(B193, 'Chem Props'!$1:$1048576,3,FALSE) -> No | E193: No | F193: No (not volatile) | G193: No (not volatile) | H193: -- | I193: -- | J193: -- | K193: -- | L193: -- | M193: 44.65725643 | N193: 44.55 | O193: 25 | W193: =VLOOKUP(C193,'Tox Summary'!$N$3:$S$1048576,6,FALSE) -> 
B194: 60238-56-4 | C194: Chlorthiophos | D194: =VLOOKUP(B194, 'Chem Props'!$1:$1048576,3,FALSE) -> No | E194: No | F194: No (not volatile) | G194: No (not volatile) | H194: -- | I194: -- | J194: -- | K194: -- | L194: -- | M194: 7717054.254 | N194: 14.73 | O194: 25 | W194: =VLOOKUP(C194,'Tox Summary'!$N$3:$S$1048576,6,FALSE) -> 
B195: 16065-83-1 | C195: Chromium(III), Insoluble Salts | D195: =VLOOKUP(B195, 'Chem Props'!$1:$1048576,3,FALSE) -> No | E195: No | F195: No (not volatile) | G195: No (not volatile) | H195: No VP | I195: -- | J195: No VP | K195: No VP | L195: -- | M195: No VP | N195: No S | O195: 25 | W195: =VLOOKUP(C195,'Tox Summary'!$N$3:$S$1048576,6,FALSE) -> 
B196: 18540-29-9 | C196: Chromium(VI) | D196: =VLOOKUP(B196, 'Chem Props'!$1:$1048576,3,FALSE) -> No | E196: Yes | F196: No (not volatile) | G196: No (not volatile) | H196: No VP | I196: C | J196: No VP | K196: No VP | L196: -- | M196: No VP | O196: 25 | S196: 0.084 | T196: S | U196: 0.0001 | V196: I | W196: =VLOOKUP(C196,'Tox Summary'!$N$3:$S$1048576,6,FALSE) -> Mut | X196: 1.207010582e-05 | Y196: 0.1042857143
B197: 7440-47-3 | C197: Chromium, Total | D197: =VLOOKUP(B197, 'Chem Props'!$1:$1048576,3,FALSE) -> No | E197: No | F197: No (not volatile) | G197: No (not volatile) | H197: No VP | I197: -- | J197: No VP | K197: No VP | L197: No (100) | M197: No VP | N197: =IF(INDEX(HLC,MATCH(C197,ChemNameChem,0))="","No HLC",IF(INDEX(Sol,MATCH(C197,ChemNameChem,0))="No S","No S",INDEX(HLC,MATCH(C197,ChemNameChem,0))*INDEX(Sol,MATCH(C197,ChemNameChem,0))*1000000)) -> No S | O197: 25 | W197: =VLOOKUP(C197,'Tox Summary'!$N$3:$S$1048576,6,FALSE) -> 
B198: 218-01-9 | C198: Chrysene | D198: =VLOOKUP(B198, 'Chem Props'!$1:$1048576,3,FALSE) -> No | E198: Yes | F198: No (not volatile) | G198: No (not volatile) | H198: NVT | I198: C | J198: NVT | K198: NVT | L198: -- | M198: 0.0765327201 | N198: 0.4276 | O198: 25 | S198: 6e-07 | T198: E | W198: =VLOOKUP(C198,'Tox Summary'!$N$3:$S$1048576,6,FALSE) -> Mut | X198: 1.689814815
B199: 74115-24-5 | C199: Clofentezine | D199: =VLOOKUP(B199, 'Chem Props'!$1:$1048576,3,FALSE) -> No | E199: No | F199: No (not volatile) | G199: No (not volatile) | H199: -- | I199: -- | J199: -- | K199: -- | L199: -- | M199: 0.01590433003 | N199: 0.015944 | O199: 25 | W199: =VLOOKUP(C199,'Tox Summary'!$N$3:$S$1048576,6,FALSE) -> 
B200: 7440-48-4 | C200: Cobalt | D200: =VLOOKUP(B200, 'Chem Props'!$1:$1048576,3,FALSE) -> No | E200: Yes | F200: No (not volatile) | G200: No (not volatile) | H200: NVT | I200: C | J200: NVT | K200: NVT | L200: -- | M200: 0 | N200: No HLC | O200: 25 | S200: 0.009 | T200: P | U200: 6e-06 | V200: P | W200: =VLOOKUP(C200,'Tox Summary'!$N$3:$S$1048576,6,FALSE) ->  | X200: 0.000311965812 | Y200: 0.006257142857
B201: 8007-45-2 | C201: Coke Oven Emissions | D201: Yes | E201: Yes | F201: No | G201: Yes | H201: No MW | I201: C | J201: No MW | K201: No MW | L201: -- | M201: No MW | N201: No S | O201: 25 | S201: 0.00062 | T201: I | W201: =VLOOKUP(C201,'Tox Summary'!$N$3:$S$1048576,6,FALSE) -> Mut | X201: 0.001635304659
A202: x | B202: 7440-50-8 | C202: Copper | D202: =VLOOKUP(B202, 'Chem Props'!$1:$1048576,3,FALSE) -> No | E202: No | F202: No (not volatile) | G202: No (not volatile) | H202: -- | I202: -- | J202: -- | K202: -- | L202: No (1300) | M202: 0 | N202: No S | O202: 25 | W202: =VLOOKUP(C202,'Tox Summary'!$N$3:$S$1048576,6,FALSE) -> 
B203: 544-92-3 | C203: Copper Cyanide | D203: =VLOOKUP(B203, 'Chem Props'!$1:$1048576,3,FALSE) -> No | E203: No | F203: No (not volatile) | G203: No (not volatile) | H203: No VP | I203: -- | J203: No VP | K203: No VP | L203: -- | M203: No VP | N203: No S | O203: 25 | W203: =VLOOKUP(C203,'Tox Summary'!$N$3:$S$1048576,6,FALSE) -> 
B204: 108-39-4 | C204: Cresol, m- | D204: =VLOOKUP(B204, 'Chem Props'!$1:$1048576,3,FALSE) -> No | E204: Yes | F204: No (not volatile) | G204: No (not volatile) | H204: 625.7142857 | I204: NC | J204: 20857.14286 | K204: 17877551.02 | L204: -- | M204: 640077.0288 | N204: 794500 | O204: 25 | U204: 0.6 | V204: CA | W204: =VLOOKUP(C204,'Tox Summary'!$N$3:$S$1048576,6,FALSE) ->  | Y204: 625.7142857
B205: 95-48-7 | C205: Cresol, o- | D205: =VLOOKUP(B205, 'Chem Props'!$1:$1048576,3,FALSE) -> No | E205: Yes | F205: No (not volatile) | G205: No (not volatile) | H205: 625.7142857 | I205: NC | J205: 20857.14286 | K205: 12743671.81 | L205: -- | M205: 1739845.742 | N205: 1271690 | O205: 25 | U205: 0.6 | V205: CA | W205: =VLOOKUP(C205,'Tox Summary'!$N$3:$S$1048576,6,FALSE) ->  | Y205: 625.7142857
... 661 more rows

Sheet SG_IA_calc
A1: x | B1: OSWER VAPOR INTRUSION ASSESSMENT
A2: x | B2: Sub-slab or Exterior Soil Gas Concentration to Indoor Air Concentration (SGC-IAC) Calculator Version 3.5 June 2017 RSLs
A3: x
A4: x | B4: Parameter | D4: Symbol | E4: Value | F4: Instructions
A5: x | B5: Exposure Scenario | D5: Scenario | E5: Residential | F5: Select residential or commercial scenario from pull down list
A6: x | B6: Target Risk for Carcinogens | D6: TCR_SG | E6: 1e-06 | F6: Enter target risk for carcinogens (for comparison to the calculated VI carcinogenic risk in column F)
A7: x | B7: Target Hazard Quotient for Non-Carcinogens | D7: THQ_SG | E7: 1 | F7: Enter target hazard quotient for non-carcinogens (for comparison to the calculated VI hazard in column G)
A9: x
A10: x | D10: Site Sub-slab or Exterior Soil Gas Concentration | E10: Calculated Indoor Air Concentration | F10: VI Carcinogenic Risk | G10: VI Hazard | I10: Inhalation Unit Risk | J10: IUR Source* | K10: Reference Concentration | L10: RFC Source* | M10: Mutagenic Indicator
A11: x | D11: Csg | E11: Cia | F11: CR | G11: HQ | I11: IUR | K11: RfC
A12: x | B12: CAS | C12: Chemical Name | D12: (ug/m3) | E12: (ug/m3) | I12: (ug/m3)-1 | K12: (mg/m3) | M12: i
A13: =IF(INDEX(VISL!A:A,MATCH(B13,VISL!B:B,0))="x","x","") ->  | B13: 75-07-0 | C13: Acetaldehyde | E13: =IF(OR(D13="",ISTEXT(D13)),"--",D13*AFss_SG) -> -- | F13: =IF(ISTEXT(E13),"--",IF(I13="","No IUR",IF(M13<>"TCE",E13*(IF(AND(M13="VC",Scenario_SG="Residential"),I13,0)+I13*IF(M13="Mut",MMOAAF_SG,ED_SG)*EF_SG*ET_SG/(ATc_SG*365*24)),E13*mIURTCE_SG*MMOAAF_SG*EF_SG*ET_SG/(ATc_SG*365*24)+E13*IURTCE_SG*ED_SG*EF_SG*ET_SG/(ATc_SG*365*24)))) -> -- | G13: =IF(ISTEXT(E13),"--",IF(K13="","No RfC",E13*EF_SG*ED_SG*ET_SG/(K13*ATnc_SG*365*24*1000))) -> -- | I13: =IF(INDEX(IUR,MATCH(B13,CASNoTox,0))=" ","",IF(M13="TCE","see note",INDEX(IUR,MATCH(B13,CASNoTox,0)))) -> 2.2e-06 | J13: =IF(INDEX(IURSource,MATCH(B13,CASNoTox,0))="","",SUBSTITUTE(INDEX(IURSource,MATCH(B13,CASNoTox,0)),"C","CA")) -> I | K13: =IF(INDEX(RFC,MATCH(B13,CASNoTox,0))=" ","",INDEX(RFC,MATCH(B13,CASNoTox,0))) -> 0.009 | L13: =IF(INDEX(RFCSource,MATCH(B13,CASNoTox,0))="","",SUBSTITUTE(INDEX(RFCSource,MATCH(B13,CASNoTox,0)),"C","CA")) -> I | M13: =VLOOKUP(B13,VISL!$B:$W,22,FALSE) ->  | O13: =IF(AND(I13="",K13=""),"X","") -> 
A14: =IF(INDEX(VISL!A:A,MATCH(B14,VISL!B:B,0))="x","x","") ->  | B14: 67-64-1 | C14: Acetone | E14: -- | F14: -- | G14: -- | I14: =IF(INDEX(IUR,MATCH(B14,CASNoTox,0))=" ","",IF(M14="TCE","see note",INDEX(IUR,MATCH(B14,CASNoTox,0)))) ->  | J14: =IF(INDEX(IURSource,MATCH(B14,CASNoTox,0))="","",SUBSTITUTE(INDEX(IURSource,MATCH(B14,CASNoTox,0)),"C","CA")) ->  | K14: =IF(INDEX(RFC,MATCH(B14,CASNoTox,0))=" ","",INDEX(RFC,MATCH(B14,CASNoTox,0))) -> 31 | L14: =IF(INDEX(RFCSource,MATCH(B14,CASNoTox,0))="","",SUBSTITUTE(INDEX(RFCSource,MATCH(B14,CASNoTox,0)),"C","CA")) -> A | M14: =VLOOKUP(B14,VISL!$B:$W,22,FALSE) ->  | O14: =IF(AND(I14="",K14=""),"X","") -> 
B15: 75-05-8 | C15: Acetonitrile
B16: 107-02-8 | C16: Acrolein
B17: 79-10-7 | C17: Acrylic Acid
B18: 107-13-1 | C18: Acrylonitrile
B19: 309-00-2 | C19: Aldrin
B20: 107-18-6 | C20: Allyl Alcohol
B21: 107-05-1 | C21: Allyl Chloride
B22: 7664-41-7 | C22: Ammonia
B23: 75-85-4 | C23: Amyl Alcohol, tert-
B24: 12674-11-2 | C24: Aroclor 1016
A25: =IF(INDEX(VISL!A:A,MATCH(B25,VISL!B:B,0))="x","x","") ->  | B25: 11104-28-2 | C25: Aroclor 1221 | E25: -- | F25: -- | G25: -- | I25: =IF(INDEX(IUR,MATCH(B25,CASNoTox,0))=" ","",IF(M25="TCE","see note",INDEX(IUR,MATCH(B25,CASNoTox,0)))) -> 0.00057 | J25: =IF(INDEX(IURSource,MATCH(B25,CASNoTox,0))="","",SUBSTITUTE(INDEX(IURSource,MATCH(B25,CASNoTox,0)),"C","CA")) -> S | K25: =IF(INDEX(RFC,MATCH(B25,CASNoTox,0))=" ","",INDEX(RFC,MATCH(B25,CASNoTox,0))) ->  | L25: =IF(INDEX(RFCSource,MATCH(B25,CASNoTox,0))="","",SUBSTITUTE(INDEX(RFCSource,MATCH(B25,CASNoTox,0)),"C","CA")) ->  | M25: =VLOOKUP(B25,VISL!$B:$W,22,FALSE) ->  | O25: =IF(AND(I25="",K25=""),"X","") -> 
A26: =IF(INDEX(VISL!A:A,MATCH(B26,VISL!B:B,0))="x","x","") ->  | B26: 11141-16-5 | C26: Aroclor 1232 | E26: -- | F26: -- | G26: -- | I26: =IF(INDEX(IUR,MATCH(B26,CASNoTox,0))=" ","",IF(M26="TCE","see note",INDEX(IUR,MATCH(B26,CASNoTox,0)))) -> 0.00057 | J26: =IF(INDEX(IURSource,MATCH(B26,CASNoTox,0))="","",SUBSTITUTE(INDEX(IURSource,MATCH(B26,CASNoTox,0)),"C","CA")) -> S | K26: =IF(INDEX(RFC,MATCH(B26,CASNoTox,0))=" ","",INDEX(RFC,MATCH(B26,CASNoTox,0))) ->  | L26: =IF(INDEX(RFCSource,MATCH(B26,CASNoTox,0))="","",SUBSTITUTE(INDEX(RFCSource,MATCH(B26,CASNoTox,0)),"C","CA")) ->  | M26: =VLOOKUP(B26,VISL!$B:$W,22,FALSE) ->  | O26: =IF(AND(I26="",K26=""),"X","") -> 
A27: =IF(INDEX(VISL!A:A,MATCH(B27,VISL!B:B,0))="x","x","") ->  | B27: 53469-21-9 | C27: Aroclor 1242 | E27: -- | F27: -- | G27: -- | I27: =IF(INDEX(IUR,MATCH(B27,CASNoTox,0))=" ","",IF(M27="TCE","see note",INDEX(IUR,MATCH(B27,CASNoTox,0)))) -> 0.00057 | J27: =IF(INDEX(IURSource,MATCH(B27,CASNoTox,0))="","",SUBSTITUTE(INDEX(IURSource,MATCH(B27,CASNoTox,0)),"C","CA")) -> S | K27: =IF(INDEX(RFC,MATCH(B27,CASNoTox,0))=" ","",INDEX(RFC,MATCH(B27,CASNoTox,0))) ->  | L27: =IF(INDEX(RFCSource,MATCH(B27,CASNoTox,0))="","",SUBSTITUTE(INDEX(RFCSource,MATCH(B27,CASNoTox,0)),"C","CA")) ->  | M27: =VLOOKUP(B27,VISL!$B:$W,22,FALSE) ->  | O27: =IF(AND(I27="",K27=""),"X","") -> 
A28: =IF(INDEX(VISL!A:A,MATCH(B28,VISL!B:B,0))="x","x","") ->  | B28: 12672-29-6 | C28: Aroclor 1248 | E28: -- | F28: -- | G28: -- | I28: =IF(INDEX(IUR,MATCH(B28,CASNoTox,0))=" ","",IF(M28="TCE","see note",INDEX(IUR,MATCH(B28,CASNoTox,0)))) -> 0.00057 | J28: =IF(INDEX(IURSource,MATCH(B28,CASNoTox,0))="","",SUBSTITUTE(INDEX(IURSource,MATCH(B28,CASNoTox,0)),"C","CA")) -> S | K28: =IF(INDEX(RFC,MATCH(B28,CASNoTox,0))=" ","",INDEX(RFC,MATCH(B28,CASNoTox,0))) ->  | L28: =IF(INDEX(RFCSource,MATCH(B28,CASNoTox,0))="","",SUBSTITUTE(INDEX(RFCSource,MATCH(B28,CASNoTox,0)),"C","CA")) ->  | M28: =VLOOKUP(B28,VISL!$B:$W,22,FALSE) ->  | O28: =IF(AND(I28="",K28=""),"X","") -> 
A29: =IF(INDEX(VISL!A:A,MATCH(B29,VISL!B:B,0))="x","x","") ->  | B29: 11097-69-1 | C29: Aroclor 1254 | E29: -- | F29: -- | G29: -- | I29: =IF(INDEX(IUR,MATCH(B29,CASNoTox,0))=" ","",IF(M29="TCE","see note",INDEX(IUR,MATCH(B29,CASNoTox,0)))) -> 0.00057 | J29: =IF(INDEX(IURSource,MATCH(B29,CASNoTox,0))="","",SUBSTITUTE(INDEX(IURSource,MATCH(B29,CASNoTox,0)),"C","CA")) -> S | K29: =IF(INDEX(RFC,MATCH(B29,CASNoTox,0))=" ","",INDEX(RFC,MATCH(B29,CASNoTox,0))) ->  | L29: =IF(INDEX(RFCSource,MATCH(B29,CASNoTox,0))="","",SUBSTITUTE(INDEX(RFCSource,MATCH(B29,CASNoTox,0)),"C","CA")) ->  | M29: =VLOOKUP(B29,VISL!$B:$W,22,FALSE) ->  | O29: =IF(AND(I29="",K29=""),"X","") -> 
A30: =IF(INDEX(VISL!A:A,MATCH(B30,VISL!B:B,0))="x","x","") ->  | B30: 11096-82-5 | C30: Aroclor 1260 | E30: -- | F30: -- | G30: -- | I30: 0.00057 | J30: S | M30: =VLOOKUP(B30,VISL!$B:$W,22,FALSE) -> 
A31: =IF(INDEX(VISL!A:A,MATCH(B31,VISL!B:B,0))="x","x","") ->  | B31: 103-33-3 | C31: Azobenzene | E31: -- | F31: -- | G31: -- | I31: 3.1e-05 | J31: I | M31: =VLOOKUP(B31,VISL!$B:$W,22,FALSE) -> 
A32: =IF(INDEX(VISL!A:A,MATCH(B32,VISL!B:B,0))="x","x","") ->  | B32: 56-55-3 | C32: Benz[a]anthracene | E32: -- | F32: -- | G32: -- | I32: 6e-05 | J32: E | M32: =VLOOKUP(B32,VISL!$B:$W,22,FALSE) -> Mut
A33: =IF(INDEX(VISL!A:A,MATCH(B33,VISL!B:B,0))="x","x","") ->  | B33: 71-43-2 | C33: Benzene | E33: -- | F33: -- | G33: -- | I33: 7.8e-06 | J33: I | K33: 0.03 | L33: I | M33: =VLOOKUP(B33,VISL!$B:$W,22,FALSE) -> 
A34: =IF(INDEX(VISL!A:A,MATCH(B34,VISL!B:B,0))="x","x","") ->  | B34: 100-44-7 | C34: Benzyl Chloride | E34: -- | F34: -- | G34: -- | I34: 4.9e-05 | J34: CA | K34: 0.001 | L34: P | M34: =VLOOKUP(B34,VISL!$B:$W,22,FALSE) -> 
A35: =IF(INDEX(VISL!A:A,MATCH(B35,VISL!B:B,0))="x","x","") ->  | B35: 92-52-4 | C35: Biphenyl, 1,1'- | E35: -- | F35: -- | G35: -- | K35: 0.0004 | L35: X | M35: =VLOOKUP(B35,VISL!$B:$W,22,FALSE) -> 
A36: =IF(INDEX(VISL!A:A,MATCH(B36,VISL!B:B,0))="x","x","") ->  | B36: 111-44-4 | C36: Bis(2-chloroethyl)ether | E36: -- | F36: -- | G36: -- | I36: =IF(INDEX(IUR,MATCH(B36,CASNoTox,0))=" ","",IF(M36="TCE","see note",INDEX(IUR,MATCH(B36,CASNoTox,0)))) -> 0.00033 | J36: =IF(INDEX(IURSource,MATCH(B36,CASNoTox,0))="","",SUBSTITUTE(INDEX(IURSource,MATCH(B36,CASNoTox,0)),"C","CA")) -> I | K36: =IF(INDEX(RFC,MATCH(B36,CASNoTox,0))=" ","",INDEX(RFC,MATCH(B36,CASNoTox,0))) ->  | L36: =IF(INDEX(RFCSource,MATCH(B36,CASNoTox,0))="","",SUBSTITUTE(INDEX(RFCSource,MATCH(B36,CASNoTox,0)),"C","CA")) ->  | M36: =VLOOKUP(B36,VISL!$B:$W,22,FALSE) -> 
A37: =IF(INDEX(VISL!A:A,MATCH(B37,VISL!B:B,0))="x","x","") ->  | B37: 542-88-1 | C37: Bis(chloromethyl)ether | E37: -- | F37: -- | G37: -- | I37: 0.062 | J37: I | M37: =VLOOKUP(B37,VISL!$B:$W,22,FALSE) -> 
A38: =IF(INDEX(VISL!A:A,MATCH(B38,VISL!B:B,0))="x","x","") ->  | B38: 10294-34-5 | C38: Boron Trichloride | E38: -- | F38: -- | G38: -- | K38: 0.02 | L38: P | M38: =VLOOKUP(B38,VISL!$B:$W,22,FALSE) -> 
A39: =IF(INDEX(VISL!A:A,MATCH(B39,VISL!B:B,0))="x","x","") ->  | B39: 7637-07-2 | C39: Boron Trifluoride | E39: -- | F39: -- | G39: -- | K39: 0.013 | L39: CA | M39: =VLOOKUP(B39,VISL!$B:$W,22,FALSE) -> 
A40: =IF(INDEX(VISL!A:A,MATCH(B40,VISL!B:B,0))="x","x","") ->  | B40: 107-04-0 | C40: Bromo-2-chloroethane, 1- | E40: -- | F40: -- | G40: -- | I40: 0.0006 | J40: X | M40: =VLOOKUP(B40,VISL!$B:$W,22,FALSE) -> 
A41: =IF(INDEX(VISL!A:A,MATCH(B41,VISL!B:B,0))="x","x","") ->  | B41: 108-86-1 | C41: Bromobenzene | E41: -- | F41: -- | G41: -- | K41: 0.06 | L41: I | M41: =VLOOKUP(B41,VISL!$B:$W,22,FALSE) -> 
A42: =IF(INDEX(VISL!A:A,MATCH(B42,VISL!B:B,0))="x","x","") ->  | B42: 74-97-5 | C42: Bromochloromethane | E42: -- | F42: -- | G42: -- | K42: 0.04 | L42: X | M42: =VLOOKUP(B42,VISL!$B:$W,22,FALSE) -> 
A43: =IF(INDEX(VISL!A:A,MATCH(B43,VISL!B:B,0))="x","x","") ->  | B43: 75-27-4 | C43: Bromodichloromethane | E43: -- | F43: -- | G43: -- | I43: 3.7e-05 | J43: CA | M43: =VLOOKUP(B43,VISL!$B:$W,22,FALSE) -> 
A44: =IF(INDEX(VISL!A:A,MATCH(B44,VISL!B:B,0))="x","x","") ->  | B44: 75-25-2 | C44: Bromoform | E44: -- | F44: -- | G44: -- | I44: 1.1e-06 | J44: I | M44: =VLOOKUP(B44,VISL!$B:$W,22,FALSE) -> 
A45: =IF(INDEX(VISL!A:A,MATCH(B45,VISL!B:B,0))="x","x","") ->  | B45: 74-83-9 | C45: Bromomethane | E45: -- | F45: -- | G45: -- | K45: 0.005 | L45: I | M45: =VLOOKUP(B45,VISL!$B:$W,22,FALSE) -> 
A46: =IF(INDEX(VISL!A:A,MATCH(B46,VISL!B:B,0))="x","x","") ->  | B46: 106-99-0 | C46: Butadiene, 1,3- | E46: -- | F46: -- | G46: -- | I46: 3e-05 | J46: I | K46: 0.002 | L46: I | M46: =VLOOKUP(B46,VISL!$B:$W,22,FALSE) -> 
A47: =IF(INDEX(VISL!A:A,MATCH(B47,VISL!B:B,0))="x","x","") ->  | B47: 78-92-2 | C47: Butyl alcohol, sec- | E47: -- | F47: -- | G47: -- | K47: 30 | L47: P | M47: =VLOOKUP(B47,VISL!$B:$W,22,FALSE) -> 
A48: =IF(INDEX(VISL!A:A,MATCH(B48,VISL!B:B,0))="x","x","") ->  | B48: 75-15-0 | C48: Carbon Disulfide | E48: -- | F48: -- | G48: -- | K48: 0.7 | L48: I | M48: =VLOOKUP(B48,VISL!$B:$W,22,FALSE) -> 
A49: =IF(INDEX(VISL!A:A,MATCH(B49,VISL!B:B,0))="x","x","") ->  | B49: 56-23-5 | C49: Carbon Tetrachloride | E49: -- | F49: -- | G49: -- | I49: 6e-06 | J49: I | K49: 0.1 | L49: I | M49: =VLOOKUP(B49,VISL!$B:$W,22,FALSE) -> 
A50: =IF(INDEX(VISL!A:A,MATCH(B50,VISL!B:B,0))="x","x","") ->  | B50: 463-58-1 | C50: Carbonyl Sulfide | E50: -- | F50: -- | G50: -- | K50: 0.1 | L50: P | M50: =VLOOKUP(B50,VISL!$B:$W,22,FALSE) -> 
A51: =IF(INDEX(VISL!A:A,MATCH(B51,VISL!B:B,0))="x","x","") ->  | B51: 12789-03-6 | C51: Chlordane | E51: -- | F51: -- | G51: -- | I51: 0.0001 | J51: I | K51: 0.0007 | L51: I | M51: =VLOOKUP(B51,VISL!$B:$W,22,FALSE) -> 
A52: =IF(INDEX(VISL!A:A,MATCH(B52,VISL!B:B,0))="x","x","") ->  | B52: 7782-50-5 | C52: Chlorine | E52: -- | F52: -- | G52: -- | K52: 0.00015 | L52: A | M52: =VLOOKUP(B52,VISL!$B:$W,22,FALSE) -> 
A53: =IF(INDEX(VISL!A:A,MATCH(B53,VISL!B:B,0))="x","x","") ->  | B53: 10049-04-4 | C53: Chlorine Dioxide | E53: -- | F53: -- | G53: -- | K53: 0.0002 | L53: I | M53: =VLOOKUP(B53,VISL!$B:$W,22,FALSE) -> 
A54: =IF(INDEX(VISL!A:A,MATCH(B54,VISL!B:B,0))="x","x","") ->  | B54: 75-68-3 | C54: Chloro-1,1-difluoroethane, 1- | E54: -- | F54: -- | G54: -- | K54: 50 | L54: I | M54: =VLOOKUP(B54,VISL!$B:$W,22,FALSE) -> 
A55: =IF(INDEX(VISL!A:A,MATCH(B55,VISL!B:B,0))="x","x","") ->  | B55: 126-99-8 | C55: Chloro-1,3-butadiene, 2- | E55: -- | F55: -- | G55: -- | I55: 0.0003 | J55: I | K55: 0.02 | L55: I | M55: =VLOOKUP(B55,VISL!$B:$W,22,FALSE) -> 
A56: =IF(INDEX(VISL!A:A,MATCH(B56,VISL!B:B,0))="x","x","") ->  | B56: 108-90-7 | C56: Chlorobenzene | E56: -- | F56: -- | G56: -- | I56: =IF(INDEX(IUR,MATCH(B56,CASNoTox,0))=" ","",IF(M56="TCE","see note",INDEX(IUR,MATCH(B56,CASNoTox,0)))) ->  | J56: =IF(INDEX(IURSource,MATCH(B56,CASNoTox,0))="","",SUBSTITUTE(INDEX(IURSource,MATCH(B56,CASNoTox,0)),"C","CA")) ->  | K56: =IF(INDEX(RFC,MATCH(B56,CASNoTox,0))=" ","",INDEX(RFC,MATCH(B56,CASNoTox,0))) -> 0.05 | L56: =IF(INDEX(RFCSource,MATCH(B56,CASNoTox,0))="","",SUBSTITUTE(INDEX(RFCSource,MATCH(B56,CASNoTox,0)),"C","CA")) -> P | M56: =VLOOKUP(B56,VISL!$B:$W,22,FALSE) -> 
A57: =IF(INDEX(VISL!A:A,MATCH(B57,VISL!B:B,0))="x","x","") ->  | B57: 98-56-6 | C57: Chlorobenzotrifluoride, 4- | E57: -- | F57: -- | G57: -- | K57: 0.3 | L57: P | M57: =VLOOKUP(B57,VISL!$B:$W,22,FALSE) -> 
A58: =IF(INDEX(VISL!A:A,MATCH(B58,VISL!B:B,0))="x","x","") ->  | B58: 75-45-6 | C58: Chlorodifluoromethane | E58: -- | F58: -- | G58: -- | K58: 50 | L58: I | M58: =VLOOKUP(B58,VISL!$B:$W,22,FALSE) -> 
A59: =IF(INDEX(VISL!A:A,MATCH(B59,VISL!B:B,0))="x","x","") ->  | B59: 67-66-3 | C59: Chloroform | E59: -- | F59: -- | G59: -- | I59: 2.3e-05 | J59: I | K59: 0.098 | L59: A | M59: =VLOOKUP(B59,VISL!$B:$W,22,FALSE) -> 
A60: =IF(INDEX(VISL!A:A,MATCH(B60,VISL!B:B,0))="x","x","") ->  | B60: 74-87-3 | C60: Chloromethane | E60: -- | F60: -- | G60: -- | K60: 0.09 | L60: I | M60: =VLOOKUP(B60,VISL!$B:$W,22,FALSE) -> 
A61: =IF(INDEX(VISL!A:A,MATCH(B61,VISL!B:B,0))="x","x","") ->  | B61: 107-30-2 | C61: Chloromethyl Methyl Ether | E61: -- | F61: -- | G61: -- | I61: 0.00069 | J61: CA | M61: =VLOOKUP(B61,VISL!$B:$W,22,FALSE) -> 
A62: =IF(INDEX(VISL!A:A,MATCH(B62,VISL!B:B,0))="x","x","") ->  | B62: 76-06-2 | C62: Chloropicrin | E62: -- | F62: -- | G62: -- | K62: 0.0004 | L62: CA | M62: =VLOOKUP(B62,VISL!$B:$W,22,FALSE) -> 
A63: =IF(INDEX(VISL!A:A,MATCH(B63,VISL!B:B,0))="x","x","") ->  | B63: 8007-45-2 | C63: Coke Oven Emissions | E63: -- | F63: -- | G63: -- | I63: 0.00062 | J63: I | M63: =VLOOKUP(B63,VISL!$B:$W,22,FALSE) -> Mut
A64: =IF(INDEX(VISL!A:A,MATCH(B64,VISL!B:B,0))="x","x","") ->  | B64: 98-82-8 | C64: Cumene | E64: -- | F64: -- | G64: -- | K64: 0.4 | L64: I | M64: =VLOOKUP(B64,VISL!$B:$W,22,FALSE) -> 
A65: =IF(INDEX(VISL!A:A,MATCH(B65,VISL!B:B,0))="x","x","") ->  | B65: 57-12-5 | C65: Cyanide (CN-) | E65: -- | F65: -- | G65: -- | K65: 0.0008 | L65: S | M65: =VLOOKUP(B65,VISL!$B:$W,22,FALSE) -> 
A66: =IF(INDEX(VISL!A:A,MATCH(B66,VISL!B:B,0))="x","x","") ->  | B66: 110-82-7 | C66: Cyclohexane | E66: -- | F66: -- | G66: -- | I66: =IF(INDEX(IUR,MATCH(B66,CASNoTox,0))=" ","",IF(M66="TCE","see note",INDEX(IUR,MATCH(B66,CASNoTox,0)))) ->  | J66: =IF(INDEX(IURSource,MATCH(B66,CASNoTox,0))="","",SUBSTITUTE(INDEX(IURSource,MATCH(B66,CASNoTox,0)),"C","CA")) ->  | K66: =IF(INDEX(RFC,MATCH(B66,CASNoTox,0))=" ","",INDEX(RFC,MATCH(B66,CASNoTox,0))) -> 6 | L66: =IF(INDEX(RFCSource,MATCH(B66,CASNoTox,0))="","",SUBSTITUTE(INDEX(RFCSource,MATCH(B66,CASNoTox,0)),"C","CA")) -> I | M66: =VLOOKUP(B66,VISL!$B:$W,22,FALSE) -> 
A67: =IF(INDEX(VISL!A:A,MATCH(B67,VISL!B:B,0))="x","x","") ->  | B67: 108-94-1 | C67: Cyclohexanone | E67: -- | F67: -- | G67: -- | K67: 0.7 | L67: P | M67: =VLOOKUP(B67,VISL!$B:$W,22,FALSE) -> 
A68: =IF(INDEX(VISL!A:A,MATCH(B68,VISL!B:B,0))="x","x","") ->  | B68: 110-83-8 | C68: Cyclohexene | E68: -- | F68: -- | G68: -- | K68: 1 | L68: X | M68: =VLOOKUP(B68,VISL!$B:$W,22,FALSE) -> 
A69: =IF(INDEX(VISL!A:A,MATCH(B69,VISL!B:B,0))="x","x","") ->  | B69: 72-55-9 | C69: DDE, p,p'- | E69: -- | F69: -- | G69: -- | I69: 9.7e-05 | J69: CA | M69: =VLOOKUP(B69,VISL!$B:$W,22,FALSE) -> 
A70: =IF(INDEX(VISL!A:A,MATCH(B70,VISL!B:B,0))="x","x","") ->  | B70: 96-12-8 | C70: Dibromo-3-chloropropane, 1,2- | E70: -- | F70: -- | G70: -- | I70: 0.006 | J70: P | K70: 0.0002 | L70: I | M70: =VLOOKUP(B70,VISL!$B:$W,22,FALSE) -> Mut
A71: =IF(INDEX(VISL!A:A,MATCH(B71,VISL!B:B,0))="x","x","") ->  | B71: 106-93-4 | C71: Dibromoethane, 1,2- | E71: -- | F71: -- | G71: -- | I71: 0.0006 | J71: I | K71: 0.009 | L71: I | M71: =VLOOKUP(B71,VISL!$B:$W,22,FALSE) -> 
A72: =IF(INDEX(VISL!A:A,MATCH(B72,VISL!B:B,0))="x","x","") ->  | B72: 74-95-3 | C72: Dibromomethane (Methylene Bromide) | E72: -- | F72: -- | G72: -- | I72: =IF(INDEX(IUR,MATCH(B72,CASNoTox,0))=" ","",IF(M72="TCE","see note",INDEX(IUR,MATCH(B72,CASNoTox,0)))) ->  | J72: =IF(INDEX(IURSource,MATCH(B72,CASNoTox,0))="","",SUBSTITUTE(INDEX(IURSource,MATCH(B72,CASNoTox,0)),"C","CA")) ->  | K72: =IF(INDEX(RFC,MATCH(B72,CASNoTox,0))=" ","",INDEX(RFC,MATCH(B72,CASNoTox,0))) -> 0.004 | L72: =IF(INDEX(RFCSource,MATCH(B72,CASNoTox,0))="","",SUBSTITUTE(INDEX(RFCSource,MATCH(B72,CASNoTox,0)),"C","CA")) -> X | M72: =VLOOKUP(B72,VISL!$B:$W,22,FALSE) ->  | O72: =IF(AND(I72="",K72=""),"X","") -> 
A73: =IF(INDEX(VISL!A:A,MATCH(B73,VISL!B:B,0))="x","x","") ->  | B73: 764-41-0 | C73: Dichloro-2-butene, 1,4- | E73: -- | F73: -- | G73: -- | I73: 0.0042 | J73: P | M73: =VLOOKUP(B73,VISL!$B:$W,22,FALSE) -> 
A74: =IF(INDEX(VISL!A:A,MATCH(B74,VISL!B:B,0))="x","x","") ->  | B74: 1476-11-5 | C74: Dichloro-2-butene, cis-1,4- | E74: -- | F74: -- | G74: -- | I74: 0.0042 | J74: P | M74: =VLOOKUP(B74,VISL!$B:$W,22,FALSE) ->  | O74: =IF(AND(I74="",K74=""),"X","") -> 
A75: =IF(INDEX(VISL!A:A,MATCH(B75,VISL!B:B,0))="x","x","") ->  | B75: 110-57-6 | C75: Dichloro-2-butene, trans-1,4- | E75: -- | F75: -- | G75: -- | I75: 0.0042 | J75: P | M75: =VLOOKUP(B75,VISL!$B:$W,22,FALSE) -> 
A76: =IF(INDEX(VISL!A:A,MATCH(B76,VISL!B:B,0))="x","x","") ->  | B76: 95-50-1 | C76: Dichlorobenzene, 1,2- | E76: -- | F76: -- | G76: -- | K76: 0.2 | L76: H | M76: =VLOOKUP(B76,VISL!$B:$W,22,FALSE) -> 
A77: =IF(INDEX(VISL!A:A,MATCH(B77,VISL!B:B,0))="x","x","") ->  | B77: 106-46-7 | C77: Dichlorobenzene, 1,4- | E77: -- | F77: -- | G77: -- | I77: 1.1e-05 | J77: CA | K77: 0.8 | L77: I | M77: =VLOOKUP(B77,VISL!$B:$W,22,FALSE) -> 
A78: =IF(INDEX(VISL!A:A,MATCH(B78,VISL!B:B,0))="x","x","") ->  | B78: 75-71-8 | C78: Dichlorodifluoromethane | E78: -- | F78: -- | G78: -- | K78: 0.1 | L78: X | M78: =VLOOKUP(B78,VISL!$B:$W,22,FALSE) -> 
A79: =IF(INDEX(VISL!A:A,MATCH(B79,VISL!B:B,0))="x","x","") ->  | B79: 75-34-3 | C79: Dichloroethane, 1,1- | E79: -- | F79: -- | G79: -- | I79: 1.6e-06 | J79: CA | M79: =VLOOKUP(B79,VISL!$B:$W,22,FALSE) -> 
A80: =IF(INDEX(VISL!A:A,MATCH(B80,VISL!B:B,0))="x","x","") ->  | B80: 107-06-2 | C80: Dichloroethane, 1,2- | E80: -- | F80: -- | G80: -- | I80: 2.6e-05 | J80: I | K80: 0.007 | L80: P | M80: =VLOOKUP(B80,VISL!$B:$W,22,FALSE) -> 
A81: =IF(INDEX(VISL!A:A,MATCH(B81,VISL!B:B,0))="x","x","") ->  | B81: 75-35-4 | C81: Dichloroethylene, 1,1- | E81: -- | F81: -- | G81: -- | K81: 0.2 | L81: I | M81: =VLOOKUP(B81,VISL!$B:$W,22,FALSE) -> 
A82: =IF(INDEX(VISL!A:A,MATCH(B82,VISL!B:B,0))="x","x","") ->  | B82: 78-87-5 | C82: Dichloropropane, 1,2- | E82: -- | F82: -- | G82: -- | I82: 3.7e-06 | J82: P | K82: 0.004 | L82: I | M82: =VLOOKUP(B82,VISL!$B:$W,22,FALSE) -> 
A83: =IF(INDEX(VISL!A:A,MATCH(B83,VISL!B:B,0))="x","x","") ->  | B83: 542-75-6 | C83: Dichloropropene, 1,3- | E83: -- | F83: -- | G83: -- | I83: 4e-06 | J83: I | K83: 0.02 | L83: I | M83: =VLOOKUP(B83,VISL!$B:$W,22,FALSE) -> 
A84: =IF(INDEX(VISL!A:A,MATCH(B84,VISL!B:B,0))="x","x","") ->  | B84: 77-73-6 | C84: Dicyclopentadiene | E84: -- | F84: -- | G84: -- | K84: 0.0003 | L84: X | M84: =VLOOKUP(B84,VISL!$B:$W,22,FALSE) -> 
A85: =IF(INDEX(VISL!A:A,MATCH(B85,VISL!B:B,0))="x","x","") ->  | B85: 75-37-6 | C85: Difluoroethane, 1,1- | E85: -- | F85: -- | G85: -- | I85: =IF(INDEX(IUR,MATCH(B85,CASNoTox,0))=" ","",IF(M85="TCE","see note",INDEX(IUR,MATCH(B85,CASNoTox,0)))) ->  | J85: =IF(INDEX(IURSource,MATCH(B85,CASNoTox,0))="","",SUBSTITUTE(INDEX(IURSource,MATCH(B85,CASNoTox,0)),"C","CA")) ->  | K85: =IF(INDEX(RFC,MATCH(B85,CASNoTox,0))=" ","",INDEX(RFC,MATCH(B85,CASNoTox,0))) -> 40 | L85: =IF(INDEX(RFCSource,MATCH(B85,CASNoTox,0))="","",SUBSTITUTE(INDEX(RFCSource,MATCH(B85,CASNoTox,0)),"C","CA")) -> I | M85: =VLOOKUP(B85,VISL!$B:$W,22,FALSE) -> 
A86: =IF(INDEX(VISL!A:A,MATCH(B86,VISL!B:B,0))="x","x","") ->  | B86: 94-58-6 | C86: Dihydrosafrole | E86: -- | F86: -- | G86: -- | I86: =IF(INDEX(IUR,MATCH(B86,CASNoTox,0))=" ","",IF(M86="TCE","see note",INDEX(IUR,MATCH(B86,CASNoTox,0)))) -> 1.3e-05 | J86: =IF(INDEX(IURSource,MATCH(B86,CASNoTox,0))="","",SUBSTITUTE(INDEX(IURSource,MATCH(B86,CASNoTox,0)),"C","CA")) -> CA | K86: =IF(INDEX(RFC,MATCH(B86,CASNoTox,0))=" ","",INDEX(RFC,MATCH(B86,CASNoTox,0))) ->  | L86: =IF(INDEX(RFCSource,MATCH(B86,CASNoTox,0))="","",SUBSTITUTE(INDEX(RFCSource,MATCH(B86,CASNoTox,0)),"C","CA")) ->  | M86: =VLOOKUP(B86,VISL!$B:$W,22,FALSE) -> 
A87: =IF(INDEX(VISL!A:A,MATCH(B87,VISL!B:B,0))="x","x","") ->  | B87: 108-20-3 | C87: Diisopropyl Ether | E87: =IF(OR(D87="",ISTEXT(D87)),"--",D87*AFss_SG) -> -- | F87: =IF(ISTEXT(E87),"--",IF(I87="","No IUR",IF(M87<>"TCE",E87*(IF(AND(M87="VC",Scenario_SG="Residential"),I87,0)+I87*IF(M87="Mut",MMOAAF_SG,ED_SG)*EF_SG*ET_SG/(ATc_SG*365*24)),E87*mIURTCE_SG*MMOAAF_SG*EF_SG*ET_SG/(ATc_SG*365*24)+E87*IURTCE_SG*ED_SG*EF_SG*ET_SG/(ATc_SG*365*24)))) -> -- | G87: =IF(ISTEXT(E87),"--",IF(K87="","No RfC",E87*EF_SG*ED_SG*ET_SG/(K87*ATnc_SG*365*24*1000))) -> -- | K87: 0.7 | L87: P | M87: =VLOOKUP(B87,VISL!$B:$W,22,FALSE) -> 
A88: =IF(INDEX(VISL!A:A,MATCH(B88,VISL!B:B,0))="x","x","") ->  | B88: 68-12-2 | C88: Dimethylformamide | E88: -- | F88: -- | G88: -- | K88: 0.03 | L88: I | M88: =VLOOKUP(B88,VISL!$B:$W,22,FALSE) -> 
A89: =IF(INDEX(VISL!A:A,MATCH(B89,VISL!B:B,0))="x","x","") ->  | B89: 57-14-7 | C89: Dimethylhydrazine, 1,1- | E89: -- | F89: -- | G89: -- | K89: 2e-06 | L89: X | M89: =VLOOKUP(B89,VISL!$B:$W,22,FALSE) -> 
A90: =IF(INDEX(VISL!A:A,MATCH(B90,VISL!B:B,0))="x","x","") ->  | B90: 540-73-8 | C90: Dimethylhydrazine, 1,2- | E90: -- | F90: -- | G90: -- | I90: 0.16 | J90: CA | M90: =VLOOKUP(B90,VISL!$B:$W,22,FALSE) -> 
A91: =IF(INDEX(VISL!A:A,MATCH(B91,VISL!B:B,0))="x","x","") ->  | B91: 513-37-1 | C91: Dimethylvinylchloride | E91: -- | F91: -- | G91: -- | I91: 1.3e-05 | J91: CA | M91: =VLOOKUP(B91,VISL!$B:$W,22,FALSE) -> 
A92: =IF(INDEX(VISL!A:A,MATCH(B92,VISL!B:B,0))="x","x","") ->  | B92: 123-91-1 | C92: Dioxane, 1,4- | E92: -- | F92: -- | G92: -- | I92: 5e-06 | J92: I | K92: 0.03 | L92: I | M92: =VLOOKUP(B92,VISL!$B:$W,22,FALSE) -> 
A93: =IF(INDEX(VISL!A:A,MATCH(B93,VISL!B:B,0))="x","x","") ->  | B93: 106-89-8 | C93: Epichlorohydrin | E93: -- | F93: -- | G93: -- | I93: =IF(INDEX(IUR,MATCH(B93,CASNoTox,0))=" ","",IF(M93="TCE","see note",INDEX(IUR,MATCH(B93,CASNoTox,0)))) -> 1.2e-06 | J93: =IF(INDEX(IURSource,MATCH(B93,CASNoTox,0))="","",SUBSTITUTE(INDEX(IURSource,MATCH(B93,CASNoTox,0)),"C","CA")) -> I | K93: =IF(INDEX(RFC,MATCH(B93,CASNoTox,0))=" ","",INDEX(RFC,MATCH(B93,CASNoTox,0))) -> 0.001 | L93: =IF(INDEX(RFCSource,MATCH(B93,CASNoTox,0))="","",SUBSTITUTE(INDEX(RFCSource,MATCH(B93,CASNoTox,0)),"C","CA")) -> I | M93: =VLOOKUP(B93,VISL!$B:$W,22,FALSE) -> 
A94: =IF(INDEX(VISL!A:A,MATCH(B94,VISL!B:B,0))="x","x","") ->  | B94: 106-88-7 | C94: Epoxybutane, 1,2- | E94: -- | F94: -- | G94: -- | K94: 0.02 | L94: I | M94: =VLOOKUP(B94,VISL!$B:$W,22,FALSE) -> 
A95: =IF(INDEX(VISL!A:A,MATCH(B95,VISL!B:B,0))="x","x","") ->  | B95: 111-15-9 | C95: Ethoxyethanol Acetate, 2- | E95: -- | F95: -- | G95: -- | K95: 0.06 | L95: P | M95: =VLOOKUP(B95,VISL!$B:$W,22,FALSE) -> 
A96: =IF(INDEX(VISL!A:A,MATCH(B96,VISL!B:B,0))="x","x","") ->  | B96: 110-80-5 | C96: Ethoxyethanol, 2- | E96: -- | F96: -- | G96: -- | K96: 0.2 | L96: I | M96: =VLOOKUP(B96,VISL!$B:$W,22,FALSE) -> 
A97: =IF(INDEX(VISL!A:A,MATCH(B97,VISL!B:B,0))="x","x","") ->  | B97: 141-78-6 | C97: Ethyl Acetate | E97: -- | F97: -- | G97: -- | K97: 0.07 | L97: P | M97: =VLOOKUP(B97,VISL!$B:$W,22,FALSE) -> 
A98: =IF(INDEX(VISL!A:A,MATCH(B98,VISL!B:B,0))="x","x","") ->  | B98: 140-88-5 | C98: Ethyl Acrylate | E98: -- | F98: -- | G98: -- | K98: 0.008 | L98: P | M98: =VLOOKUP(B98,VISL!$B:$W,22,FALSE) -> 
A99: =IF(INDEX(VISL!A:A,MATCH(B99,VISL!B:B,0))="x","x","") ->  | B99: 75-00-3 | C99: Ethyl Chloride (Chloroethane) | E99: -- | F99: -- | G99: -- | K99: 10 | L99: I | M99: =VLOOKUP(B99,VISL!$B:$W,22,FALSE) -> 
A100: =IF(INDEX(VISL!A:A,MATCH(B100,VISL!B:B,0))="x","x","") ->  | B100: 97-63-2 | C100: Ethyl Methacrylate | E100: -- | F100: -- | G100: -- | K100: 0.3 | L100: P | M100: =VLOOKUP(B100,VISL!$B:$W,22,FALSE) -> 
A101: =IF(INDEX(VISL!A:A,MATCH(B101,VISL!B:B,0))="x","x","") ->  | B101: 100-41-4 | C101: Ethylbenzene | E101: -- | F101: -- | G101: -- | I101: =IF(INDEX(IUR,MATCH(B101,CASNoTox,0))=" ","",IF(M101="TCE","see note",INDEX(IUR,MATCH(B101,CASNoTox,0)))) -> 2.5e-06 | J101: =IF(INDEX(IURSource,MATCH(B101,CASNoTox,0))="","",SUBSTITUTE(INDEX(IURSource,MATCH(B101,CASNoTox,0)),"C","CA")) -> CA | K101: =IF(INDEX(RFC,MATCH(B101,CASNoTox,0))=" ","",INDEX(RFC,MATCH(B101,CASNoTox,0))) -> 1 | L101: =IF(INDEX(RFCSource,MATCH(B101,CASNoTox,0))="","",SUBSTITUTE(INDEX(RFCSource,MATCH(B101,CASNoTox,0)),"C","CA")) -> I | M101: =VLOOKUP(B101,VISL!$B:$W,22,FALSE) -> 
A102: =IF(INDEX(VISL!A:A,MATCH(B102,VISL!B:B,0))="x","x","") ->  | B102: 75-21-8 | C102: Ethylene Oxide | E102: -- | F102: -- | G102: -- | I102: =IF(INDEX(IUR,MATCH(B102,CASNoTox,0))=" ","",IF(M102="TCE","see note",INDEX(IUR,MATCH(B102,CASNoTox,0)))) -> 0.003 | J102: =IF(INDEX(IURSource,MATCH(B102,CASNoTox,0))="","",SUBSTITUTE(INDEX(IURSource,MATCH(B102,CASNoTox,0)),"C","CA")) -> I | K102: =IF(INDEX(RFC,MATCH(B102,CASNoTox,0))=" ","",INDEX(RFC,MATCH(B102,CASNoTox,0))) -> 0.03 | L102: =IF(INDEX(RFCSource,MATCH(B102,CASNoTox,0))="","",SUBSTITUTE(INDEX(RFCSource,MATCH(B102,CASNoTox,0)),"C","CA")) -> CA | M102: =VLOOKUP(B102,VISL!$B:$W,22,FALSE) -> Mut
A103: =IF(INDEX(VISL!A:A,MATCH(B103,VISL!B:B,0))="x","x","") ->  | B103: 151-56-4 | C103: Ethyleneimine | E103: -- | F103: -- | G103: -- | I103: =IF(INDEX(IUR,MATCH(B103,CASNoTox,0))=" ","",IF(M103="TCE","see note",INDEX(IUR,MATCH(B103,CASNoTox,0)))) -> 0.019 | J103: =IF(INDEX(IURSource,MATCH(B103,CASNoTox,0))="","",SUBSTITUTE(INDEX(IURSource,MATCH(B103,CASNoTox,0)),"C","CA")) -> CA | K103: =IF(INDEX(RFC,MATCH(B103,CASNoTox,0))=" ","",INDEX(RFC,MATCH(B103,CASNoTox,0))) ->  | L103: =IF(INDEX(RFCSource,MATCH(B103,CASNoTox,0))="","",SUBSTITUTE(INDEX(RFCSource,MATCH(B103,CASNoTox,0)),"C","CA")) ->  | M103: =VLOOKUP(B103,VISL!$B:$W,22,FALSE) -> 
A104: =IF(INDEX(VISL!A:A,MATCH(B104,VISL!B:B,0))="x","x","") ->  | B104: 50-00-0 | C104: Formaldehyde | E104: -- | F104: -- | G104: -- | I104: =IF(INDEX(IUR,MATCH(B104,CASNoTox,0))=" ","",IF(M104="TCE","see note",INDEX(IUR,MATCH(B104,CASNoTox,0)))) -> 1.3e-05 | J104: =IF(INDEX(IURSource,MATCH(B104,CASNoTox,0))="","",SUBSTITUTE(INDEX(IURSource,MATCH(B104,CASNoTox,0)),"C","CA")) -> I | K104: =IF(INDEX(RFC,MATCH(B104,CASNoTox,0))=" ","",INDEX(RFC,MATCH(B104,CASNoTox,0))) -> 0.0098 | L104: =IF(INDEX(RFCSource,MATCH(B104,CASNoTox,0))="","",SUBSTITUTE(INDEX(RFCSource,MATCH(B104,CASNoTox,0)),"C","CA")) -> A | M104: =VLOOKUP(B104,VISL!$B:$W,22,FALSE) -> 
A105: =IF(INDEX(VISL!A:A,MATCH(B105,VISL!B:B,0))="x","x","") ->  | B105: 64-18-6 | C105: Formic Acid | E105: -- | F105: -- | G105: -- | I105: =IF(INDEX(IUR,MATCH(B105,CASNoTox,0))=" ","",IF(M105="TCE","see note",INDEX(IUR,MATCH(B105,CASNoTox,0)))) ->  | J105: =IF(INDEX(IURSource,MATCH(B105,CASNoTox,0))="","",SUBSTITUTE(INDEX(IURSource,MATCH(B105,CASNoTox,0)),"C","CA")) ->  | K105: =IF(INDEX(RFC,MATCH(B105,CASNoTox,0))=" ","",INDEX(RFC,MATCH(B105,CASNoTox,0))) -> 0.0003 | L105: =IF(INDEX(RFCSource,MATCH(B105,CASNoTox,0))="","",SUBSTITUTE(INDEX(RFCSource,MATCH(B105,CASNoTox,0)),"C","CA")) -> X | M105: =VLOOKUP(B105,VISL!$B:$W,22,FALSE) -> 
A106: =IF(INDEX(VISL!A:A,MATCH(B106,VISL!B:B,0))="x","x","") ->  | B106: 98-01-1 | C106: Furfural | E106: -- | F106: -- | G106: -- | K106: 0.05 | L106: H | M106: =VLOOKUP(B106,VISL!$B:$W,22,FALSE) -> 
A107: =IF(INDEX(VISL!A:A,MATCH(B107,VISL!B:B,0))="x","x","") ->  | B107: 765-34-4 | C107: Glycidyl | E107: -- | F107: -- | G107: -- | K107: 0.001 | L107: H | M107: =VLOOKUP(B107,VISL!$B:$W,22,FALSE) -> 
A108: =IF(INDEX(VISL!A:A,MATCH(B108,VISL!B:B,0))="x","x","") ->  | B108: 76-44-8 | C108: Heptachlor | E108: -- | F108: -- | G108: -- | I108: 0.0013 | J108: I | M108: =VLOOKUP(B108,VISL!$B:$W,22,FALSE) -> 
A109: =IF(INDEX(VISL!A:A,MATCH(B109,VISL!B:B,0))="x","x","") ->  | B109: 1024-57-3 | C109: Heptachlor Epoxide | E109: -- | F109: -- | G109: -- | I109: 0.0026 | J109: I | M109: =VLOOKUP(B109,VISL!$B:$W,22,FALSE) -> 
A110: =IF(INDEX(VISL!A:A,MATCH(B110,VISL!B:B,0))="x","x","") ->  | B110: 39635-31-9 | C110: Heptachlorobiphenyl, 2,3,3',4,4',5,5'- (PCB 189) | E110: -- | F110: -- | G110: -- | I110: 0.0011 | J110: E | K110: 0.0013 | L110: E | M110: =VLOOKUP(B110,VISL!$B:$W,22,FALSE) -> 
A111: =IF(INDEX(VISL!A:A,MATCH(B111,VISL!B:B,0))="x","x","") ->  | B111: 118-74-1 | C111: Hexachlorobenzene | E111: -- | F111: -- | G111: -- | I111: 0.00046 | J111: I | M111: =VLOOKUP(B111,VISL!$B:$W,22,FALSE) -> 
A112: =IF(INDEX(VISL!A:A,MATCH(B112,VISL!B:B,0))="x","x","") ->  | B112: 38380-08-4 | C112: Hexachlorobiphenyl, 2,3,3',4,4',5- (PCB 156) | E112: -- | F112: -- | G112: -- | I112: 0.0011 | J112: E | K112: 0.0013 | L112: E | M112: =VLOOKUP(B112,VISL!$B:$W,22,FALSE) ->  | O112: =IF(AND(I112="",K112=""),"X","") -> 
A113: =IF(INDEX(VISL!A:A,MATCH(B113,VISL!B:B,0))="x","x","") ->  | B113: 69782-90-7 | C113: Hexachlorobiphenyl, 2,3,3',4,4',5'- (PCB 157) | E113: -- | F113: -- | G113: -- | I113: 0.0011 | J113: E | K113: 0.0013 | L113: E | M113: =VLOOKUP(B113,VISL!$B:$W,22,FALSE) -> 
A114: =IF(INDEX(VISL!A:A,MATCH(B114,VISL!B:B,0))="x","x","") ->  | B114: 52663-72-6 | C114: Hexachlorobiphenyl, 2,3',4,4',5,5'- (PCB 167) | E114: -- | F114: -- | G114: -- | I114: 0.0011 | J114: E | K114: 0.0013 | L114: E | M114: =VLOOKUP(B114,VISL!$B:$W,22,FALSE) -> 
A115: =IF(INDEX(VISL!A:A,MATCH(B115,VISL!B:B,0))="x","x","") ->  | B115: 32774-16-6 | C115: Hexachlorobiphenyl, 3,3',4,4',5,5'- (PCB 169) | E115: -- | F115: -- | G115: -- | I115: =IF(INDEX(IUR,MATCH(B115,CASNoTox,0))=" ","",IF(M115="TCE","see note",INDEX(IUR,MATCH(B115,CASNoTox,0)))) -> 1.1 | J115: =IF(INDEX(IURSource,MATCH(B115,CASNoTox,0))="","",SUBSTITUTE(INDEX(IURSource,MATCH(B115,CASNoTox,0)),"C","CA")) -> E | K115: =IF(INDEX(RFC,MATCH(B115,CASNoTox,0))=" ","",INDEX(RFC,MATCH(B115,CASNoTox,0))) -> 1.3e-06 | L115: =IF(INDEX(RFCSource,MATCH(B115,CASNoTox,0))="","",SUBSTITUTE(INDEX(RFCSource,MATCH(B115,CASNoTox,0)),"C","CA")) -> E | M115: =VLOOKUP(B115,VISL!$B:$W,22,FALSE) -> 
A116: =IF(INDEX(VISL!A:A,MATCH(B116,VISL!B:B,0))="x","x","") ->  | B116: 87-68-3 | C116: Hexachlorobutadiene | E116: -- | F116: -- | G116: -- | I116: 2.2e-05 | J116: I | M116: =VLOOKUP(B116,VISL!$B:$W,22,FALSE) -> 
A117: =IF(INDEX(VISL!A:A,MATCH(B117,VISL!B:B,0))="x","x","") ->  | B117: 77-47-4 | C117: Hexachlorocyclopentadiene | E117: -- | F117: -- | G117: -- | K117: 0.0002 | L117: I | M117: =VLOOKUP(B117,VISL!$B:$W,22,FALSE) -> 
A118: =IF(INDEX(VISL!A:A,MATCH(B118,VISL!B:B,0))="x","x","") ->  | B118: 67-72-1 | C118: Hexachloroethane | E118: -- | F118: -- | G118: -- | I118: 1.1e-05 | J118: CA | K118: 0.03 | L118: I | M118: =VLOOKUP(B118,VISL!$B:$W,22,FALSE) -> 
A119: =IF(INDEX(VISL!A:A,MATCH(B119,VISL!B:B,0))="x","x","") ->  | B119: 822-06-0 | C119: Hexamethylene Diisocyanate, 1,6- | E119: -- | F119: -- | G119: -- | K119: 1e-05 | L119: I | M119: =VLOOKUP(B119,VISL!$B:$W,22,FALSE) -> 
A120: =IF(INDEX(VISL!A:A,MATCH(B120,VISL!B:B,0))="x","x","") ->  | B120: 110-54-3 | C120: Hexane, N- | E120: -- | F120: -- | G120: -- | K120: 0.7 | L120: I | M120: =VLOOKUP(B120,VISL!$B:$W,22,FALSE) -> 
A121: =IF(INDEX(VISL!A:A,MATCH(B121,VISL!B:B,0))="x","x","") ->  | B121: 591-78-6 | C121: Hexanone, 2- | E121: -- | F121: -- | G121: -- | I121: =IF(INDEX(IUR,MATCH(B121,CASNoTox,0))=" ","",IF(M121="TCE","see note",INDEX(IUR,MATCH(B121,CASNoTox,0)))) ->  | J121: =IF(INDEX(IURSource,MATCH(B121,CASNoTox,0))="","",SUBSTITUTE(INDEX(IURSource,MATCH(B121,CASNoTox,0)),"C","CA")) ->  | K121: =IF(INDEX(RFC,MATCH(B121,CASNoTox,0))=" ","",INDEX(RFC,MATCH(B121,CASNoTox,0))) -> 0.03 | L121: =IF(INDEX(RFCSource,MATCH(B121,CASNoTox,0))="","",SUBSTITUTE(INDEX(RFCSource,MATCH(B121,CASNoTox,0)),"C","CA")) -> I | M121: =VLOOKUP(B121,VISL!$B:$W,22,FALSE) -> 
A122: =IF(INDEX(VISL!A:A,MATCH(B122,VISL!B:B,0))="x","x","") ->  | B122: 302-01-2 | C122: Hydrazine | E122: -- | F122: -- | G122: -- | I122: 0.0049 | J122: I | K122: 3e-05 | L122: P | M122: =VLOOKUP(B122,VISL!$B:$W,22,FALSE) -> 
A123: =IF(INDEX(VISL!A:A,MATCH(B123,VISL!B:B,0))="x","x","") ->  | B123: 7647-01-0 | C123: Hydrogen Chloride | E123: -- | F123: -- | G123: -- | K123: 0.02 | L123: I | M123: =VLOOKUP(B123,VISL!$B:$W,22,FALSE) -> 
A124: =IF(INDEX(VISL!A:A,MATCH(B124,VISL!B:B,0))="x","x","") ->  | B124: 74-90-8 | C124: Hydrogen Cyanide | E124: -- | F124: -- | G124: -- | K124: 0.0008 | L124: I | M124: =VLOOKUP(B124,VISL!$B:$W,22,FALSE) -> 
A125: =IF(INDEX(VISL!A:A,MATCH(B125,VISL!B:B,0))="x","x","") ->  | B125: 7664-39-3 | C125: Hydrogen Fluoride | E125: -- | F125: -- | G125: -- | K125: 0.014 | L125: CA | M125: =VLOOKUP(B125,VISL!$B:$W,22,FALSE) -> 
A126: =IF(INDEX(VISL!A:A,MATCH(B126,VISL!B:B,0))="x","x","") ->  | B126: 7783-06-4 | C126: Hydrogen Sulfide | E126: -- | F126: -- | G126: -- | K126: 0.002 | L126: I | M126: =VLOOKUP(B126,VISL!$B:$W,22,FALSE) -> 
A127: =IF(INDEX(VISL!A:A,MATCH(B127,VISL!B:B,0))="x","x","") ->  | B127: 67-63-0 | C127: Isopropanol | E127: -- | F127: -- | G127: -- | K127: 0.2 | L127: P | M127: =VLOOKUP(B127,VISL!$B:$W,22,FALSE) -> 
A128: =IF(INDEX(VISL!A:A,MATCH(B128,VISL!B:B,0))="x","x","") ->  | B128: 7439-97-6 | C128: Mercury (elemental) | E128: -- | F128: -- | G128: -- | K128: 0.0003 | L128: I | M128: =VLOOKUP(B128,VISL!$B:$W,22,FALSE) -> 
A129: =IF(INDEX(VISL!A:A,MATCH(B129,VISL!B:B,0))="x","x","") ->  | B129: 126-98-7 | C129: Methacrylonitrile | E129: -- | F129: -- | G129: -- | K129: 0.03 | L129: P | M129: =VLOOKUP(B129,VISL!$B:$W,22,FALSE) -> 
A130: =IF(INDEX(VISL!A:A,MATCH(B130,VISL!B:B,0))="x","x","") ->  | B130: 67-56-1 | C130: Methanol | E130: -- | F130: -- | G130: -- | K130: 20 | L130: I | M130: =VLOOKUP(B130,VISL!$B:$W,22,FALSE) -> 
A131: =IF(INDEX(VISL!A:A,MATCH(B131,VISL!B:B,0))="x","x","") ->  | B131: 110-49-6 | C131: Methoxyethanol Acetate, 2- | E131: -- | F131: -- | G131: -- | K131: 0.001 | L131: P | M131: =VLOOKUP(B131,VISL!$B:$W,22,FALSE) -> 
A132: =IF(INDEX(VISL!A:A,MATCH(B132,VISL!B:B,0))="x","x","") ->  | B132: 109-86-4 | C132: Methoxyethanol, 2- | E132: -- | F132: -- | G132: -- | K132: 0.02 | L132: I | M132: =VLOOKUP(B132,VISL!$B:$W,22,FALSE) -> 
A133: =IF(INDEX(VISL!A:A,MATCH(B133,VISL!B:B,0))="x","x","") ->  | B133: 96-33-3 | C133: Methyl Acrylate | E133: -- | F133: -- | G133: -- | K133: 0.02 | L133: P | M133: =VLOOKUP(B133,VISL!$B:$W,22,FALSE) -> 
A134: =IF(INDEX(VISL!A:A,MATCH(B134,VISL!B:B,0))="x","x","") ->  | B134: 78-93-3 | C134: Methyl Ethyl Ketone (2-Butanone) | E134: -- | F134: -- | G134: -- | K134: 5 | L134: I | M134: =VLOOKUP(B134,VISL!$B:$W,22,FALSE) -> 
A135: =IF(INDEX(VISL!A:A,MATCH(B135,VISL!B:B,0))="x","x","") ->  | B135: 60-34-4 | C135: Methyl Hydrazine | E135: -- | F135: -- | G135: -- | I135: 0.001 | J135: X | K135: 2e-05 | L135: X | M135: =VLOOKUP(B135,VISL!$B:$W,22,FALSE) -> 
A136: =IF(INDEX(VISL!A:A,MATCH(B136,VISL!B:B,0))="x","x","") ->  | B136: 108-10-1 | C136: Methyl Isobutyl Ketone (4-methyl-2-pentanone) | E136: -- | F136: -- | G136: -- | K136: 3 | L136: I | M136: =VLOOKUP(B136,VISL!$B:$W,22,FALSE) -> 
A137: =IF(INDEX(VISL!A:A,MATCH(B137,VISL!B:B,0))="x","x","") ->  | B137: 624-83-9 | C137: Methyl Isocyanate | E137: -- | F137: -- | G137: -- | K137: 0.001 | L137: CA | M137: =VLOOKUP(B137,VISL!$B:$W,22,FALSE) -> 
A138: =IF(INDEX(VISL!A:A,MATCH(B138,VISL!B:B,0))="x","x","") ->  | B138: 80-62-6 | C138: Methyl Methacrylate | E138: -- | F138: -- | G138: -- | K138: 0.7 | L138: I | M138: =VLOOKUP(B138,VISL!$B:$W,22,FALSE) -> 
A139: =IF(INDEX(VISL!A:A,MATCH(B139,VISL!B:B,0))="x","x","") ->  | B139: 25013-15-4 | C139: Methyl Styrene (Mixed Isomers) | E139: -- | F139: -- | G139: -- | I139: =IF(INDEX(IUR,MATCH(B139,CASNoTox,0))=" ","",IF(M139="TCE","see note",INDEX(IUR,MATCH(B139,CASNoTox,0)))) ->  | J139: =IF(INDEX(IURSource,MATCH(B139,CASNoTox,0))="","",SUBSTITUTE(INDEX(IURSource,MATCH(B139,CASNoTox,0)),"C","CA")) ->  | K139: =IF(INDEX(RFC,MATCH(B139,CASNoTox,0))=" ","",INDEX(RFC,MATCH(B139,CASNoTox,0))) -> 0.04 | L139: =IF(INDEX(RFCSource,MATCH(B139,CASNoTox,0))="","",SUBSTITUTE(INDEX(RFCSource,MATCH(B139,CASNoTox,0)),"C","CA")) -> H | M139: =VLOOKUP(B139,VISL!$B:$W,22,FALSE) ->  | O139: =IF(AND(I139="",K139=""),"X","") -> 
A140: =IF(INDEX(VISL!A:A,MATCH(B140,VISL!B:B,0))="x","x","") ->  | B140: 1634-04-4 | C140: Methyl tert-Butyl Ether (MTBE) | E140: -- | F140: -- | G140: -- | I140: 2.6e-07 | J140: CA | K140: 3 | L140: I | M140: =VLOOKUP(B140,VISL!$B:$W,22,FALSE) -> 
A141: =IF(INDEX(VISL!A:A,MATCH(B141,VISL!B:B,0))="x","x","") ->  | B141: 75-09-2 | C141: Methylene Chloride | E141: -- | F141: -- | G141: -- | I141: 1e-08 | J141: I | K141: 0.6 | L141: I | M141: =VLOOKUP(B141,VISL!$B:$W,22,FALSE) -> Mut
A142: =IF(INDEX(VISL!A:A,MATCH(B142,VISL!B:B,0))="x","x","") ->  | B142: 2385-85-5 | C142: Mirex | E142: -- | F142: -- | G142: -- | I142: 0.0051 | J142: CA | M142: =VLOOKUP(B142,VISL!$B:$W,22,FALSE) -> 
A143: =IF(INDEX(VISL!A:A,MATCH(B143,VISL!B:B,0))="x","x","") ->  | B143: 64742-95-6 | C143: Naphtha, High Flash Aromatic (HFAN) | E143: -- | F143: -- | G143: -- | K143: 0.1 | L143: P | M143: =VLOOKUP(B143,VISL!$B:$W,22,FALSE) -> 
A144: =IF(INDEX(VISL!A:A,MATCH(B144,VISL!B:B,0))="x","x","") ->  | B144: 91-20-3 | C144: Naphthalene | E144: -- | F144: -- | G144: -- | I144: 3.4e-05 | J144: CA | K144: 0.003 | L144: I | M144: =VLOOKUP(B144,VISL!$B:$W,22,FALSE) -> 
A145: =IF(INDEX(VISL!A:A,MATCH(B145,VISL!B:B,0))="x","x","") ->  | B145: 13463-39-3 | C145: Nickel Carbonyl | E145: -- | F145: -- | G145: -- | I145: 0.00026 | J145: CA | K145: 1.4e-05 | L145: CA | M145: =VLOOKUP(B145,VISL!$B:$W,22,FALSE) -> 
A146: =IF(INDEX(VISL!A:A,MATCH(B146,VISL!B:B,0))="x","x","") ->  | B146: 98-95-3 | C146: Nitrobenzene | E146: -- | F146: -- | G146: -- | I146: 4e-05 | J146: I | K146: 0.009 | L146: I | M146: =VLOOKUP(B146,VISL!$B:$W,22,FALSE) -> 
A147: =IF(INDEX(VISL!A:A,MATCH(B147,VISL!B:B,0))="x","x","") ->  | B147: 75-52-5 | C147: Nitromethane | E147: -- | F147: -- | G147: -- | I147: 8.8e-06 | J147: P | K147: 0.005 | L147: P | M147: =VLOOKUP(B147,VISL!$B:$W,22,FALSE) -> 
A148: =IF(INDEX(VISL!A:A,MATCH(B148,VISL!B:B,0))="x","x","") ->  | B148: 79-46-9 | C148: Nitropropane, 2- | E148: -- | F148: -- | G148: -- | I148: 0.0027 | J148: H | K148: 0.02 | L148: I | M148: =VLOOKUP(B148,VISL!$B:$W,22,FALSE) -> 
A149: =IF(INDEX(VISL!A:A,MATCH(B149,VISL!B:B,0))="x","x","") ->  | B149: 62-75-9 | C149: Nitrosodimethylamine, N- | E149: -- | F149: -- | G149: -- | I149: 0.014 | J149: I | K149: 4e-05 | L149: X | M149: =VLOOKUP(B149,VISL!$B:$W,22,FALSE) -> Mut
A150: =IF(INDEX(VISL!A:A,MATCH(B150,VISL!B:B,0))="x","x","") ->  | B150: 924-16-3 | C150: Nitroso-di-N-butylamine, N- | E150: -- | F150: -- | G150: -- | I150: 0.0016 | J150: I | M150: =VLOOKUP(B150,VISL!$B:$W,22,FALSE) -> 
A151: =IF(INDEX(VISL!A:A,MATCH(B151,VISL!B:B,0))="x","x","") ->  | B151: 10595-95-6 | C151: Nitrosomethylethylamine, N- | E151: =IF(OR(D151="",ISTEXT(D151)),"--",D151*AFss_SG) -> -- | F151: =IF(ISTEXT(E151),"--",IF(I151="","No IUR",IF(M151<>"TCE",E151*(IF(AND(M151="VC",Scenario_SG="Residential"),I151,0)+I151*IF(M151="Mut",MMOAAF_SG,ED_SG)*EF_SG*ET_SG/(ATc_SG*365*24)),E151*mIURTCE_SG*MMOAAF_SG*EF_SG*ET_SG/(ATc_SG*365*24)+E151*IURTCE_SG*ED_SG*EF_SG*ET_SG/(ATc_SG*365*24)))) -> -- | G151: =IF(ISTEXT(E151),"--",IF(K151="","No RfC",E151*EF_SG*ED_SG*ET_SG/(K151*ATnc_SG*365*24*1000))) -> -- | I151: 0.0063 | J151: CA | M151: =VLOOKUP(B151,VISL!$B:$W,22,FALSE) -> 
A152: =IF(INDEX(VISL!A:A,MATCH(B152,VISL!B:B,0))="x","x","") ->  | B152: 111-84-2 | C152: Nonane, n- | E152: -- | F152: -- | G152: -- | K152: 0.02 | L152: P | M152: =VLOOKUP(B152,VISL!$B:$W,22,FALSE) -> 
A153: =IF(INDEX(VISL!A:A,MATCH(B153,VISL!B:B,0))="x","x","") ->  | B153: 32598-14-4 | C153: Pentachlorobiphenyl, 2,3,3',4,4'- (PCB 105) | E153: -- | F153: -- | G153: -- | I153: 0.0011 | J153: E | K153: 0.0013 | L153: E | M153: =VLOOKUP(B153,VISL!$B:$W,22,FALSE) -> 
A154: =IF(INDEX(VISL!A:A,MATCH(B154,VISL!B:B,0))="x","x","") ->  | B154: 74472-37-0 | C154: Pentachlorobiphenyl, 2,3,4,4',5- (PCB 114) | E154: -- | F154: -- | G154: -- | I154: 0.0011 | J154: E | K154: 0.0013 | L154: E | M154: =VLOOKUP(B154,VISL!$B:$W,22,FALSE) -> 
A155: =IF(INDEX(VISL!A:A,MATCH(B155,VISL!B:B,0))="x","x","") ->  | B155: 31508-00-6 | C155: Pentachlorobiphenyl, 2,3',4,4',5- (PCB 118) | E155: -- | F155: -- | G155: -- | I155: 0.0011 | J155: E | K155: 0.0013 | L155: E | M155: =VLOOKUP(B155,VISL!$B:$W,22,FALSE) -> 
A156: =IF(INDEX(VISL!A:A,MATCH(B156,VISL!B:B,0))="x","x","") ->  | B156: 65510-44-3 | C156: Pentachlorobiphenyl, 2',3,4,4',5- (PCB 123) | E156: -- | F156: -- | G156: -- | I156: 0.0011 | J156: E | K156: 0.0013 | L156: E | M156: =VLOOKUP(B156,VISL!$B:$W,22,FALSE) -> 
A157: =IF(INDEX(VISL!A:A,MATCH(B157,VISL!B:B,0))="x","x","") ->  | B157: 57465-28-8 | C157: Pentachlorobiphenyl, 3,3',4,4',5- (PCB 126) | E157: -- | F157: -- | G157: -- | I157: 3.8 | J157: E | K157: 4e-07 | L157: E | M157: =VLOOKUP(B157,VISL!$B:$W,22,FALSE) -> 
A158: =IF(INDEX(VISL!A:A,MATCH(B158,VISL!B:B,0))="x","x","") ->  | B158: 109-66-0 | C158: Pentane, n- | E158: -- | F158: -- | G158: -- | K158: 1 | L158: P | M158: =VLOOKUP(B158,VISL!$B:$W,22,FALSE) -> 
A159: =IF(INDEX(VISL!A:A,MATCH(B159,VISL!B:B,0))="x","x","") ->  | B159: 75-44-5 | C159: Phosgene | E159: -- | F159: -- | G159: -- | K159: 0.0003 | L159: I | M159: =VLOOKUP(B159,VISL!$B:$W,22,FALSE) -> 
A160: =IF(INDEX(VISL!A:A,MATCH(B160,VISL!B:B,0))="x","x","") ->  | B160: 7803-51-2 | C160: Phosphine | E160: -- | F160: -- | G160: -- | K160: 0.0003 | L160: I | M160: =VLOOKUP(B160,VISL!$B:$W,22,FALSE) -> 
A161: =IF(INDEX(VISL!A:A,MATCH(B161,VISL!B:B,0))="x","x","") ->  | B161: 123-38-6 | C161: Propionaldehyde | E161: -- | F161: -- | G161: -- | K161: 0.008 | L161: I | M161: =VLOOKUP(B161,VISL!$B:$W,22,FALSE) -> 
A162: =IF(INDEX(VISL!A:A,MATCH(B162,VISL!B:B,0))="x","x","") ->  | B162: 103-65-1 | C162: Propyl benzene | E162: -- | F162: -- | G162: -- | K162: 1 | L162: X | M162: =VLOOKUP(B162,VISL!$B:$W,22,FALSE) -> 
A163: =IF(INDEX(VISL!A:A,MATCH(B163,VISL!B:B,0))="x","x","") ->  | B163: 115-07-1 | C163: Propylene | E163: -- | F163: -- | G163: -- | K163: 3 | L163: CA | M163: =VLOOKUP(B163,VISL!$B:$W,22,FALSE) -> 
A164: =IF(INDEX(VISL!A:A,MATCH(B164,VISL!B:B,0))="x","x","") ->  | B164: 107-98-2 | C164: Propylene Glycol Monomethyl Ether | E164: -- | F164: -- | G164: -- | K164: 2 | L164: I | M164: =VLOOKUP(B164,VISL!$B:$W,22,FALSE) -> 
A165: =IF(INDEX(VISL!A:A,MATCH(B165,VISL!B:B,0))="x","x","") ->  | B165: 75-56-9 | C165: Propylene Oxide | E165: -- | F165: -- | G165: -- | I165: 3.7e-06 | J165: I | K165: 0.03 | L165: I | M165: =VLOOKUP(B165,VISL!$B:$W,22,FALSE) -> 
A166: =IF(INDEX(VISL!A:A,MATCH(B166,VISL!B:B,0))="x","x","") ->  | B166: 100-42-5 | C166: Styrene | E166: -- | F166: -- | G166: -- | K166: 1 | L166: I | M166: =VLOOKUP(B166,VISL!$B:$W,22,FALSE) -> 
A167: =IF(INDEX(VISL!A:A,MATCH(B167,VISL!B:B,0))="x","x","") ->  | B167: 7446-11-9 | C167: Sulfur Trioxide | E167: -- | F167: -- | G167: -- | K167: 0.001 | L167: CA | M167: =VLOOKUP(B167,VISL!$B:$W,22,FALSE) -> 
A168: =IF(INDEX(VISL!A:A,MATCH(B168,VISL!B:B,0))="x","x","") ->  | B168: 1746-01-6 | C168: TCDD, 2,3,7,8- | E168: -- | F168: -- | G168: -- | I168: 38 | J168: CA | K168: 4e-08 | L168: CA | M168: =VLOOKUP(B168,VISL!$B:$W,22,FALSE) -> 
A169: =IF(INDEX(VISL!A:A,MATCH(B169,VISL!B:B,0))="x","x","") ->  | B169: 70362-50-4 | C169: Tetrachlorobiphenyl, 3,4,4',5- (PCB 81) | E169: -- | F169: -- | G169: -- | I169: 0.011 | J169: E | K169: 0.00013 | L169: E | M169: =VLOOKUP(B169,VISL!$B:$W,22,FALSE) -> 
A170: =IF(INDEX(VISL!A:A,MATCH(B170,VISL!B:B,0))="x","x","") ->  | B170: 630-20-6 | C170: Tetrachloroethane, 1,1,1,2- | E170: -- | F170: -- | G170: -- | I170: 7.4e-06 | J170: I | M170: =VLOOKUP(B170,VISL!$B:$W,22,FALSE) -> 
A171: =IF(INDEX(VISL!A:A,MATCH(B171,VISL!B:B,0))="x","x","") ->  | B171: 79-34-5 | C171: Tetrachloroethane, 1,1,2,2- | E171: -- | F171: -- | G171: -- | I171: 5.8e-05 | J171: CA | M171: =VLOOKUP(B171,VISL!$B:$W,22,FALSE) -> 
A172: =IF(INDEX(VISL!A:A,MATCH(B172,VISL!B:B,0))="x","x","") ->  | B172: 127-18-4 | C172: Tetrachloroethylene | E172: -- | F172: -- | G172: -- | I172: 2.6e-07 | J172: I | K172: 0.04 | L172: I | M172: =VLOOKUP(B172,VISL!$B:$W,22,FALSE) -> 
A173: =IF(INDEX(VISL!A:A,MATCH(B173,VISL!B:B,0))="x","x","") ->  | B173: 811-97-2 | C173: Tetrafluoroethane, 1,1,1,2- | E173: -- | F173: -- | G173: -- | K173: 80 | L173: I | M173: =VLOOKUP(B173,VISL!$B:$W,22,FALSE) -> 
A174: =IF(INDEX(VISL!A:A,MATCH(B174,VISL!B:B,0))="x","x","") ->  | B174: 109-99-9 | C174: Tetrahydrofuran | E174: -- | F174: -- | G174: -- | K174: 2 | L174: I | M174: =VLOOKUP(B174,VISL!$B:$W,22,FALSE) -> 
A175: =IF(INDEX(VISL!A:A,MATCH(B175,VISL!B:B,0))="x","x","") ->  | B175: 7550-45-0 | C175: Titanium Tetrachloride | E175: -- | F175: -- | G175: -- | K175: 0.0001 | L175: A | M175: =VLOOKUP(B175,VISL!$B:$W,22,FALSE) -> 
A176: =IF(INDEX(VISL!A:A,MATCH(B176,VISL!B:B,0))="x","x","") ->  | B176: 108-88-3 | C176: Toluene | E176: -- | F176: -- | G176: -- | K176: 5 | L176: I | M176: =VLOOKUP(B176,VISL!$B:$W,22,FALSE) -> 
A177: =IF(INDEX(VISL!A:A,MATCH(B177,VISL!B:B,0))="x","x","") ->  | B177: 76-13-1 | C177: Trichloro-1,2,2-trifluoroethane, 1,1,2- | E177: -- | F177: -- | G177: -- | K177: 5 | L177: P | M177: =VLOOKUP(B177,VISL!$B:$W,22,FALSE) -> 
A178: =IF(INDEX(VISL!A:A,MATCH(B178,VISL!B:B,0))="x","x","") ->  | B178: 120-82-1 | C178: Trichlorobenzene, 1,2,4- | E178: -- | F178: -- | G178: -- | K178: 0.002 | L178: P | M178: =VLOOKUP(B178,VISL!$B:$W,22,FALSE) -> 
A179: =IF(INDEX(VISL!A:A,MATCH(B179,VISL!B:B,0))="x","x","") ->  | B179: 71-55-6 | C179: Trichloroethane, 1,1,1- | E179: -- | F179: -- | G179: -- | K179: 5 | L179: I | M179: =VLOOKUP(B179,VISL!$B:$W,22,FALSE) -> 
A180: =IF(INDEX(VISL!A:A,MATCH(B180,VISL!B:B,0))="x","x","") ->  | B180: 79-00-5 | C180: Trichloroethane, 1,1,2- | E180: -- | F180: -- | G180: -- | I180: 1.6e-05 | J180: I | K180: 0.0002 | L180: X | M180: =VLOOKUP(B180,VISL!$B:$W,22,FALSE) -> 
A181: =IF(INDEX(VISL!A:A,MATCH(B181,VISL!B:B,0))="x","x","") ->  | B181: 79-01-6 | C181: Trichloroethylene | E181: -- | F181: -- | G181: -- | I181: =IF(INDEX(IUR,MATCH(B181,CASNoTox,0))=" ","",IF(M181="TCE","see note",INDEX(IUR,MATCH(B181,CASNoTox,0)))) -> see note | J181: =IF(INDEX(IURSource,MATCH(B181,CASNoTox,0))="","",SUBSTITUTE(INDEX(IURSource,MATCH(B181,CASNoTox,0)),"C","CA")) -> I | K181: =IF(INDEX(RFC,MATCH(B181,CASNoTox,0))=" ","",INDEX(RFC,MATCH(B181,CASNoTox,0))) -> 0.002 | L181: =IF(INDEX(RFCSource,MATCH(B181,CASNoTox,0))="","",SUBSTITUTE(INDEX(RFCSource,MATCH(B181,CASNoTox,0)),"C","CA")) -> I | M181: =VLOOKUP(B181,VISL!$B:$W,22,FALSE) -> TCE
A182: =IF(INDEX(VISL!A:A,MATCH(B182,VISL!B:B,0))="x","x","") ->  | B182: 96-18-4 | C182: Trichloropropane, 1,2,3- | E182: -- | F182: -- | G182: -- | I182: =IF(INDEX(IUR,MATCH(B182,CASNoTox,0))=" ","",IF(M182="TCE","see note",INDEX(IUR,MATCH(B182,CASNoTox,0)))) ->  | J182: =IF(INDEX(IURSource,MATCH(B182,CASNoTox,0))="","",SUBSTITUTE(INDEX(IURSource,MATCH(B182,CASNoTox,0)),"C","CA")) ->  | K182: =IF(INDEX(RFC,MATCH(B182,CASNoTox,0))=" ","",INDEX(RFC,MATCH(B182,CASNoTox,0))) -> 0.0003 | L182: =IF(INDEX(RFCSource,MATCH(B182,CASNoTox,0))="","",SUBSTITUTE(INDEX(RFCSource,MATCH(B182,CASNoTox,0)),"C","CA")) -> I | M182: =VLOOKUP(B182,VISL!$B:$W,22,FALSE) -> Mut
A183: =IF(INDEX(VISL!A:A,MATCH(B183,VISL!B:B,0))="x","x","") ->  | B183: 96-19-5 | C183: Trichloropropene, 1,2,3- | E183: -- | F183: -- | G183: -- | K183: 0.0003 | L183: P | M183: =VLOOKUP(B183,VISL!$B:$W,22,FALSE) -> 
A184: =IF(INDEX(VISL!A:A,MATCH(B184,VISL!B:B,0))="x","x","") ->  | B184: 121-44-8 | C184: Triethylamine | E184: -- | F184: -- | G184: -- | K184: 0.007 | L184: I | M184: =VLOOKUP(B184,VISL!$B:$W,22,FALSE) -> 
A185: =IF(INDEX(VISL!A:A,MATCH(B185,VISL!B:B,0))="x","x","") ->  | B185: 420-46-2 | C185: Trifluoroethane, 1,1,1- | E185: -- | F185: -- | G185: -- | I185: =IF(INDEX(IUR,MATCH(B185,CASNoTox,0))=" ","",IF(M185="TCE","see note",INDEX(IUR,MATCH(B185,CASNoTox,0)))) ->  | J185: =IF(INDEX(IURSource,MATCH(B185,CASNoTox,0))="","",SUBSTITUTE(INDEX(IURSource,MATCH(B185,CASNoTox,0)),"C","CA")) ->  | K185: =IF(INDEX(RFC,MATCH(B185,CASNoTox,0))=" ","",INDEX(RFC,MATCH(B185,CASNoTox,0))) -> 20 | L185: =IF(INDEX(RFCSource,MATCH(B185,CASNoTox,0))="","",SUBSTITUTE(INDEX(RFCSource,MATCH(B185,CASNoTox,0)),"C","CA")) -> P | M185: =VLOOKUP(B185,VISL!$B:$W,22,FALSE) -> 
A186: =IF(INDEX(VISL!A:A,MATCH(B186,VISL!B:B,0))="x","x","") ->  | B186: 526-73-8 | C186: Trimethylbenzene, 1,2,3- | E186: -- | F186: -- | G186: -- | K186: 0.06 | L186: I | M186: =VLOOKUP(B186,VISL!$B:$W,22,FALSE) -> 
A187: =IF(INDEX(VISL!A:A,MATCH(B187,VISL!B:B,0))="x","x","") ->  | B187: 95-63-6 | C187: Trimethylbenzene, 1,2,4- | E187: -- | F187: -- | G187: -- | K187: 0.06 | L187: I | M187: =VLOOKUP(B187,VISL!$B:$W,22,FALSE) -> 
A188: =IF(INDEX(VISL!A:A,MATCH(B188,VISL!B:B,0))="x","x","") ->  | B188: 108-67-8 | C188: Trimethylbenzene, 1,3,5- | E188: -- | F188: -- | G188: -- | K188: 0.06 | L188: I | M188: =VLOOKUP(B188,VISL!$B:$W,22,FALSE) -> 
A189: =IF(INDEX(VISL!A:A,MATCH(B189,VISL!B:B,0))="x","x","") ->  | B189: 126-72-7 | C189: Tris(2,3-dibromopropyl)phosphate | E189: -- | F189: -- | G189: -- | I189: 0.00066 | J189: CA | M189: =VLOOKUP(B189,VISL!$B:$W,22,FALSE) -> 
A190: =IF(INDEX(VISL!A:A,MATCH(B190,VISL!B:B,0))="x","x","") ->  | B190: 108-05-4 | C190: Vinyl Acetate | E190: -- | F190: -- | G190: -- | K190: 0.2 | L190: I | M190: =VLOOKUP(B190,VISL!$B:$W,22,FALSE) -> 
A191: =IF(INDEX(VISL!A:A,MATCH(B191,VISL!B:B,0))="x","x","") ->  | B191: 593-60-2 | C191: Vinyl Bromide | E191: -- | F191: -- | G191: -- | I191: 3.2e-05 | J191: H | K191: 0.003 | L191: I | M191: =VLOOKUP(B191,VISL!$B:$W,22,FALSE) -> 
A192: =IF(INDEX(VISL!A:A,MATCH(B192,VISL!B:B,0))="x","x","") ->  | B192: 75-01-4 | C192: Vinyl Chloride | E192: -- | F192: -- | G192: -- | I192: 4.4e-06 | J192: I | K192: 0.1 | L192: I | M192: =VLOOKUP(B192,VISL!$B:$W,22,FALSE) -> VC
A193: =IF(INDEX(VISL!A:A,MATCH(B193,VISL!B:B,0))="x","x","") ->  | B193: 108-38-3 | C193: Xylene, m- | E193: -- | F193: -- | G193: -- | K193: 0.1 | L193: S | M193: =VLOOKUP(B193,VISL!$B:$W,22,FALSE) -> 
A194: =IF(INDEX(VISL!A:A,MATCH(B194,VISL!B:B,0))="x","x","") ->  | B194: 95-47-6 | C194: Xylene, o- | E194: -- | F194: -- | G194: -- | K194: 0.1 | L194: S | M194: =VLOOKUP(B194,VISL!$B:$W,22,FALSE) -> 
A195: =IF(INDEX(VISL!A:A,MATCH(B195,VISL!B:B,0))="x","x","") ->  | B195: 106-42-3 | C195: Xylene, P- | E195: -- | F195: -- | G195: -- | K195: 0.1 | L195: S | M195: =VLOOKUP(B195,VISL!$B:$W,22,FALSE) -> 
A196: =IF(INDEX(VISL!A:A,MATCH(B196,VISL!B:B,0))="x","x","") ->  | B196: 1330-20-7 | C196: Xylenes | E196: -- | F196: -- | G196: -- | K196: 0.1 | L196: I | M196: =VLOOKUP(B196,VISL!$B:$W,22,FALSE) -> 
A197: =IF(INDEX(VISL!A:A,MATCH(B197,VISL!B:B,0))="x","x","") ->  | B197: 142-82-5 | C197: Heptane, N- | E197: -- | F197: -- | G197: -- | K197: 0.4 | L197: P | M197: =VLOOKUP(B197,VISL!$B:$W,22,FALSE) -> 
A198: =IF(INDEX(VISL!A:A,MATCH(B198,VISL!B:B,0))="x","x","") ->  | B198: 584-84-9 | C198: Toluene-2,4-diisocyanate | E198: -- | F198: -- | G198: -- | I198: 1.1e-05 | J198: CA | K198: 8e-06 | L198: CA | M198: =VLOOKUP(B198,VISL!$B:$W,22,FALSE) -> 
A199: =IF(INDEX(VISL!A:A,MATCH(B199,VISL!B:B,0))="x","x","") ->  | B199: 91-08-7 | C199: Toluene-2,6-diisocyanate | E199: -- | F199: -- | G199: -- | I199: 1.1e-05 | J199: CA | K199: 8e-06 | L199: CA | M199: =VLOOKUP(B199,VISL!$B:$W,22,FALSE) -> 
B201: Notes:
B203: (1) | C203: Inhalation Pathway Exposure Parameters (RME): | E203: Units | G203: Residential | I203: Commercial | M203: ="Selected (based on scenario)" -> Selected (based on scenario)
... 40 more rows

Sheet GW_IA_calc
A1: x | B1: OSWER VAPOR INTRUSION ASSESSMENT
A2: x | B2: Groundwater Concentration to Indoor Air Concentration (GWC-IAC) Calculator Version 3.5, June 2017 RSLs
A3: x
A4: x | B4: Parameter | D4: Symbol | E4: Value | F4: Instructions
A5: x | B5: Exposure Scenario | D5: Scenario | E5: Residential | F5: Select residential or commercial scenario from pull down list
A6: x | B6: Target Risk for Carcinogens | D6: TCR | E6: 1e-06 | F6: Enter target risk for carcinogens (for comparison to the calculated VI carcinogenic risk in column F)
A7: x | B7: Target Hazard Quotient for Non-Carcinogens | D7: THQ | E7: 1 | F7: Enter target hazard quotient for non-carcinogens (for comparison to the calculated VI hazard in column G)
B8: Average Groundwater Temperature (oC) | D8: Tgw | E8: 25 | F8: Enter average of the stabilized groundwater temperature to correct Henry's Law Constant for groundwater target concentrations
A9: x
A10: x | D10: Site Groundwater Concentration | E10: Calculated Indoor Air Concentration | F10: VI Carcinogenic Risk | G10: VI Hazard | I10: Inhalation Unit Risk | J10: IUR Source* | K10: Reference Concentration | L10: RFC Source* | M10: Mutagenic Indicator
A11: x | D11: Cgw | E11: Cia | F11: CR | G11: HQ | I11: IUR | K11: RfC
A12: x | B12: CAS | C12: Chemical Name | D12: (ug/L) | E12: (ug/m3) | I12: (ug/m3)-1 | K12: (mg/m3) | M12: i
A13: =IF(INDEX(VISL!A:A,MATCH(B13,VISL!B:B,0))="x","x","") ->  | B13: 75-07-0 | C13: Acetaldehyde | E13: =IF(INDEX(HLC_GW,MATCH(C13,ChemNameChem,0))="","No HLC",IF(OR(D13="",ISTEXT(D13)),"--",D13*AFgw_GW*1000*INDEX(HLC_GW, MATCH(C13, ChemNameChem,0)))) -> -- | F13: =IF(ISTEXT(E13),"--",IF(I13="","No IUR",IF(LEFT(E13,1)="N",E13,IF(M13<>"TCE",E13*(IF(AND(M13="VC",Scenario_GW="Residential"),I13,0)+I13*IF(M13="Mut",MMOAAF_GW,ED_GW)*EF_GW*ET_GW/(ATc_GW*365*24)),E13*mIURTCE_GW*MMOAAF_GW*EF_GW*ET_GW/(ATc_GW*365*24)+E13*IURTCE_GW*ED_GW*EF_GW*ET_GW/(ATc_GW*365*24))))) -> -- | G13: =IF(ISTEXT(E13),"--",IF(K13="","No RfC",IF(E13="No HLC","No HLC",E13*EF_GW*ED_GW*ET_GW/(K13*Atnc_GW*365*24*1000)))) -> -- | I13: =IF(INDEX(IUR,MATCH(B13,CASNoTox,0))=" ","",IF(M13="TCE","see note",INDEX(IUR,MATCH(B13,CASNoTox,0)))) -> 2.2e-06 | J13: =IF(INDEX(IURSource,MATCH(B13,CASNoTox,0))="","",SUBSTITUTE(INDEX(IURSource,MATCH(B13,CASNoTox,0)),"C","CA")) -> I | K13: =IF(INDEX(RFC,MATCH(B13,CASNoTox,0))=" ","",INDEX(RFC,MATCH(B13,CASNoTox,0))) -> 0.009 | L13: =IF(INDEX(RFCSource,MATCH(B13,CASNoTox,0))="","",SUBSTITUTE(INDEX(RFCSource,MATCH(B13,CASNoTox,0)),"C","CA")) -> I | M13: =VLOOKUP(B13,VISL!$B:$W,22,FALSE) ->  | O13: =IF(AND(I13="",K13=""),"X","") -> 
A14: =IF(INDEX(VISL!A:A,MATCH(B14,VISL!B:B,0))="x","x","") ->  | B14: 67-64-1 | C14: Acetone | E14: -- | F14: -- | G14: -- | K14: 31 | L14: A | M14: =VLOOKUP(B14,VISL!$B:$W,22,FALSE) -> 
A15: =IF(INDEX(VISL!A:A,MATCH(B15,VISL!B:B,0))="x","x","") ->  | B15: 75-05-8 | C15: Acetonitrile | E15: -- | F15: -- | G15: -- | K15: 0.06 | L15: I | M15: =VLOOKUP(B15,VISL!$B:$W,22,FALSE) -> 
B16: 107-02-8 | C16: Acrolein
B17: 79-10-7 | C17: Acrylic Acid
B18: 107-13-1 | C18: Acrylonitrile
B19: 309-00-2 | C19: Aldrin
B20: 107-18-6 | C20: Allyl Alcohol
B21: 107-05-1 | C21: Allyl Chloride
A22: =IF(INDEX(VISL!A:A,MATCH(B22,VISL!B:B,0))="x","x","") ->  | B22: 7664-41-7 | C22: Ammonia | E22: -- | F22: -- | G22: -- | K22: 0.5 | L22: I | M22: =VLOOKUP(B22,VISL!$B:$W,22,FALSE) -> 
A23: =IF(INDEX(VISL!A:A,MATCH(B23,VISL!B:B,0))="x","x","") ->  | B23: 75-85-4 | C23: Amyl Alcohol, tert- | E23: -- | F23: -- | G23: -- | K23: 0.003 | L23: X | M23: =VLOOKUP(B23,VISL!$B:$W,22,FALSE) -> 
A24: =IF(INDEX(VISL!A:A,MATCH(B24,VISL!B:B,0))="x","x","") ->  | B24: 12674-11-2 | C24: Aroclor 1016 | E24: -- | F24: -- | G24: -- | I24: 2e-05 | J24: S | M24: =VLOOKUP(B24,VISL!$B:$W,22,FALSE) -> 
A25: =IF(INDEX(VISL!A:A,MATCH(B25,VISL!B:B,0))="x","x","") ->  | B25: 11104-28-2 | C25: Aroclor 1221 | E25: -- | F25: -- | G25: -- | I25: 0.00057 | J25: S | M25: =VLOOKUP(B25,VISL!$B:$W,22,FALSE) -> 
A26: =IF(INDEX(VISL!A:A,MATCH(B26,VISL!B:B,0))="x","x","") ->  | B26: 11141-16-5 | C26: Aroclor 1232 | E26: =IF(INDEX(HLC_GW,MATCH(C26,ChemNameChem,0))="","No HLC",IF(OR(D26="",ISTEXT(D26)),"--",D26*AFgw_GW*1000*INDEX(HLC_GW, MATCH(C26, ChemNameChem,0)))) -> -- | F26: =IF(ISTEXT(E26),"--",IF(I26="","No IUR",IF(LEFT(E26,1)="N",E26,IF(M26<>"TCE",E26*(IF(AND(M26="VC",Scenario_GW="Residential"),I26,0)+I26*IF(M26="Mut",MMOAAF_GW,ED_GW)*EF_GW*ET_GW/(ATc_GW*365*24)),E26*mIURTCE_GW*MMOAAF_GW*EF_GW*ET_GW/(ATc_GW*365*24)+E26*IURTCE_GW*ED_GW*EF_GW*ET_GW/(ATc_GW*365*24))))) -> -- | G26: =IF(ISTEXT(E26),"--",IF(K26="","No RfC",IF(E26="No HLC","No HLC",E26*EF_GW*ED_GW*ET_GW/(K26*Atnc_GW*365*24*1000)))) -> -- | I26: =IF(INDEX(IUR,MATCH(B26,CASNoTox,0))=" ","",IF(M26="TCE","see note",INDEX(IUR,MATCH(B26,CASNoTox,0)))) -> 0.00057 | J26: =IF(INDEX(IURSource,MATCH(B26,CASNoTox,0))="","",SUBSTITUTE(INDEX(IURSource,MATCH(B26,CASNoTox,0)),"C","CA")) -> S | K26: =IF(INDEX(RFC,MATCH(B26,CASNoTox,0))=" ","",INDEX(RFC,MATCH(B26,CASNoTox,0))) ->  | L26: =IF(INDEX(RFCSource,MATCH(B26,CASNoTox,0))="","",SUBSTITUTE(INDEX(RFCSource,MATCH(B26,CASNoTox,0)),"C","CA")) ->  | M26: =VLOOKUP(B26,VISL!$B:$W,22,FALSE) -> 
A27: =IF(INDEX(VISL!A:A,MATCH(B27,VISL!B:B,0))="x","x","") ->  | B27: 53469-21-9 | C27: Aroclor 1242 | E27: -- | F27: -- | G27: -- | I27: 0.00057 | J27: S | M27: =VLOOKUP(B27,VISL!$B:$W,22,FALSE) -> 
A28: =IF(INDEX(VISL!A:A,MATCH(B28,VISL!B:B,0))="x","x","") ->  | B28: 12672-29-6 | C28: Aroclor 1248 | E28: -- | F28: -- | G28: -- | I28: 0.00057 | J28: S | M28: =VLOOKUP(B28,VISL!$B:$W,22,FALSE) -> 
A29: =IF(INDEX(VISL!A:A,MATCH(B29,VISL!B:B,0))="x","x","") ->  | B29: 11097-69-1 | C29: Aroclor 1254 | E29: -- | F29: -- | G29: -- | I29: 0.00057 | J29: S | M29: =VLOOKUP(B29,VISL!$B:$W,22,FALSE) -> 
A30: =IF(INDEX(VISL!A:A,MATCH(B30,VISL!B:B,0))="x","x","") ->  | B30: 11096-82-5 | C30: Aroclor 1260 | E30: -- | F30: -- | G30: -- | I30: 0.00057 | J30: S | M30: =VLOOKUP(B30,VISL!$B:$W,22,FALSE) -> 
A31: =IF(INDEX(VISL!A:A,MATCH(B31,VISL!B:B,0))="x","x","") ->  | B31: 103-33-3 | C31: Azobenzene | E31: -- | F31: -- | G31: -- | I31: 3.1e-05 | J31: I | M31: =VLOOKUP(B31,VISL!$B:$W,22,FALSE) -> 
A32: =IF(INDEX(VISL!A:A,MATCH(B32,VISL!B:B,0))="x","x","") ->  | B32: 56-55-3 | C32: Benz[a]anthracene | E32: -- | F32: -- | G32: -- | I32: 6e-05 | J32: E | M32: =VLOOKUP(B32,VISL!$B:$W,22,FALSE) -> Mut
A33: =IF(INDEX(VISL!A:A,MATCH(B33,VISL!B:B,0))="x","x","") ->  | B33: 71-43-2 | C33: Benzene | E33: -- | F33: -- | G33: -- | I33: 7.8e-06 | J33: I | K33: 0.03 | L33: I | M33: =VLOOKUP(B33,VISL!$B:$W,22,FALSE) -> 
A34: =IF(INDEX(VISL!A:A,MATCH(B34,VISL!B:B,0))="x","x","") ->  | B34: 100-44-7 | C34: Benzyl Chloride | E34: -- | F34: -- | G34: -- | I34: 4.9e-05 | J34: CA | K34: 0.001 | L34: P | M34: =VLOOKUP(B34,VISL!$B:$W,22,FALSE) -> 
A35: =IF(INDEX(VISL!A:A,MATCH(B35,VISL!B:B,0))="x","x","") ->  | B35: 92-52-4 | C35: Biphenyl, 1,1'- | E35: -- | F35: -- | G35: -- | K35: 0.0004 | L35: X | M35: =VLOOKUP(B35,VISL!$B:$W,22,FALSE) -> 
A36: =IF(INDEX(VISL!A:A,MATCH(B36,VISL!B:B,0))="x","x","") ->  | B36: 111-44-4 | C36: Bis(2-chloroethyl)ether | E36: -- | F36: -- | G36: -- | I36: 0.00033 | J36: I | M36: =VLOOKUP(B36,VISL!$B:$W,22,FALSE) -> 
A37: =IF(INDEX(VISL!A:A,MATCH(B37,VISL!B:B,0))="x","x","") ->  | B37: 542-88-1 | C37: Bis(chloromethyl)ether | E37: -- | F37: -- | G37: -- | I37: 0.062 | J37: I | M37: =VLOOKUP(B37,VISL!$B:$W,22,FALSE) -> 
A38: =IF(INDEX(VISL!A:A,MATCH(B38,VISL!B:B,0))="x","x","") ->  | B38: 10294-34-5 | C38: Boron Trichloride | E38: -- | F38: -- | G38: -- | K38: 0.02 | L38: P | M38: =VLOOKUP(B38,VISL!$B:$W,22,FALSE) -> 
A39: =IF(INDEX(VISL!A:A,MATCH(B39,VISL!B:B,0))="x","x","") ->  | B39: 7637-07-2 | C39: Boron Trifluoride | E39: -- | F39: -- | G39: -- | K39: 0.013 | L39: CA | M39: =VLOOKUP(B39,VISL!$B:$W,22,FALSE) -> 
A40: =IF(INDEX(VISL!A:A,MATCH(B40,VISL!B:B,0))="x","x","") ->  | B40: 107-04-0 | C40: Bromo-2-chloroethane, 1- | E40: -- | F40: -- | G40: -- | I40: 0.0006 | J40: X | M40: =VLOOKUP(B40,VISL!$B:$W,22,FALSE) -> 
A41: =IF(INDEX(VISL!A:A,MATCH(B41,VISL!B:B,0))="x","x","") ->  | B41: 108-86-1 | C41: Bromobenzene | E41: -- | F41: -- | G41: -- | K41: 0.06 | L41: I | M41: =VLOOKUP(B41,VISL!$B:$W,22,FALSE) -> 
A42: =IF(INDEX(VISL!A:A,MATCH(B42,VISL!B:B,0))="x","x","") ->  | B42: 74-97-5 | C42: Bromochloromethane | E42: -- | F42: -- | G42: -- | K42: 0.04 | L42: X | M42: =VLOOKUP(B42,VISL!$B:$W,22,FALSE) -> 
A43: =IF(INDEX(VISL!A:A,MATCH(B43,VISL!B:B,0))="x","x","") ->  | B43: 75-27-4 | C43: Bromodichloromethane | E43: -- | F43: -- | G43: -- | I43: 3.7e-05 | J43: CA | M43: =VLOOKUP(B43,VISL!$B:$W,22,FALSE) -> 
A44: =IF(INDEX(VISL!A:A,MATCH(B44,VISL!B:B,0))="x","x","") ->  | B44: 75-25-2 | C44: Bromoform | E44: -- | F44: -- | G44: -- | I44: 1.1e-06 | J44: I | M44: =VLOOKUP(B44,VISL!$B:$W,22,FALSE) -> 
A45: =IF(INDEX(VISL!A:A,MATCH(B45,VISL!B:B,0))="x","x","") ->  | B45: 74-83-9 | C45: Bromomethane | E45: =IF(INDEX(HLC_GW,MATCH(C45,ChemNameChem,0))="","No HLC",IF(OR(D45="",ISTEXT(D45)),"--",D45*AFgw_GW*1000*INDEX(HLC_GW, MATCH(C45, ChemNameChem,0)))) -> -- | F45: =IF(ISTEXT(E45),"--",IF(I45="","No IUR",IF(LEFT(E45,1)="N",E45,IF(M45<>"TCE",E45*(IF(AND(M45="VC",Scenario_GW="Residential"),I45,0)+I45*IF(M45="Mut",MMOAAF_GW,ED_GW)*EF_GW*ET_GW/(ATc_GW*365*24)),E45*mIURTCE_GW*MMOAAF_GW*EF_GW*ET_GW/(ATc_GW*365*24)+E45*IURTCE_GW*ED_GW*EF_GW*ET_GW/(ATc_GW*365*24))))) -> -- | G45: =IF(ISTEXT(E45),"--",IF(K45="","No RfC",IF(E45="No HLC","No HLC",E45*EF_GW*ED_GW*ET_GW/(K45*Atnc_GW*365*24*1000)))) -> -- | I45: =IF(INDEX(IUR,MATCH(B45,CASNoTox,0))=" ","",IF(M45="TCE","see note",INDEX(IUR,MATCH(B45,CASNoTox,0)))) ->  | J45: =IF(INDEX(IURSource,MATCH(B45,CASNoTox,0))="","",SUBSTITUTE(INDEX(IURSource,MATCH(B45,CASNoTox,0)),"C","CA")) ->  | K45: =IF(INDEX(RFC,MATCH(B45,CASNoTox,0))=" ","",INDEX(RFC,MATCH(B45,CASNoTox,0))) -> 0.005 | L45: =IF(INDEX(RFCSource,MATCH(B45,CASNoTox,0))="","",SUBSTITUTE(INDEX(RFCSource,MATCH(B45,CASNoTox,0)),"C","CA")) -> I | M45: =VLOOKUP(B45,VISL!$B:$W,22,FALSE) -> 
A46: =IF(INDEX(VISL!A:A,MATCH(B46,VISL!B:B,0))="x","x","") ->  | B46: 106-99-0 | C46: Butadiene, 1,3- | E46: -- | F46: -- | G46: -- | I46: 3e-05 | J46: I | K46: 0.002 | L46: I | M46: =VLOOKUP(B46,VISL!$B:$W,22,FALSE) -> 
A47: =IF(INDEX(VISL!A:A,MATCH(B47,VISL!B:B,0))="x","x","") ->  | B47: 78-92-2 | C47: Butyl alcohol, sec- | E47: -- | F47: -- | G47: -- | K47: 30 | L47: P | M47: =VLOOKUP(B47,VISL!$B:$W,22,FALSE) -> 
A48: =IF(INDEX(VISL!A:A,MATCH(B48,VISL!B:B,0))="x","x","") ->  | B48: 75-15-0 | C48: Carbon Disulfide | E48: -- | F48: -- | G48: -- | K48: 0.7 | L48: I | M48: =VLOOKUP(B48,VISL!$B:$W,22,FALSE) -> 
A49: =IF(INDEX(VISL!A:A,MATCH(B49,VISL!B:B,0))="x","x","") ->  | B49: 56-23-5 | C49: Carbon Tetrachloride | E49: -- | F49: -- | G49: -- | I49: 6e-06 | J49: I | K49: 0.1 | L49: I | M49: =VLOOKUP(B49,VISL!$B:$W,22,FALSE) -> 
A50: =IF(INDEX(VISL!A:A,MATCH(B50,VISL!B:B,0))="x","x","") ->  | B50: 463-58-1 | C50: Carbonyl Sulfide | E50: -- | F50: -- | G50: -- | K50: 0.1 | L50: P | M50: =VLOOKUP(B50,VISL!$B:$W,22,FALSE) -> 
A51: =IF(INDEX(VISL!A:A,MATCH(B51,VISL!B:B,0))="x","x","") ->  | B51: 12789-03-6 | C51: Chlordane | E51: -- | F51: -- | G51: -- | I51: 0.0001 | J51: I | K51: 0.0007 | L51: I | M51: =VLOOKUP(B51,VISL!$B:$W,22,FALSE) -> 
A52: =IF(INDEX(VISL!A:A,MATCH(B52,VISL!B:B,0))="x","x","") ->  | B52: 7782-50-5 | C52: Chlorine | E52: -- | F52: -- | G52: -- | K52: 0.00015 | L52: A | M52: =VLOOKUP(B52,VISL!$B:$W,22,FALSE) -> 
A53: =IF(INDEX(VISL!A:A,MATCH(B53,VISL!B:B,0))="x","x","") ->  | B53: 10049-04-4 | C53: Chlorine Dioxide | E53: -- | F53: -- | G53: -- | K53: 0.0002 | L53: I | M53: =VLOOKUP(B53,VISL!$B:$W,22,FALSE) -> 
A54: =IF(INDEX(VISL!A:A,MATCH(B54,VISL!B:B,0))="x","x","") ->  | B54: 75-68-3 | C54: Chloro-1,1-difluoroethane, 1- | E54: -- | F54: -- | G54: -- | K54: 50 | L54: I | M54: =VLOOKUP(B54,VISL!$B:$W,22,FALSE) -> 
A55: =IF(INDEX(VISL!A:A,MATCH(B55,VISL!B:B,0))="x","x","") ->  | B55: 126-99-8 | C55: Chloro-1,3-butadiene, 2- | E55: -- | F55: -- | G55: -- | I55: 0.0003 | J55: I | K55: 0.02 | L55: I | M55: =VLOOKUP(B55,VISL!$B:$W,22,FALSE) -> 
A56: =IF(INDEX(VISL!A:A,MATCH(B56,VISL!B:B,0))="x","x","") ->  | B56: 108-90-7 | C56: Chlorobenzene | E56: =IF(INDEX(HLC_GW,MATCH(C56,ChemNameChem,0))="","No HLC",IF(OR(D56="",ISTEXT(D56)),"--",D56*AFgw_GW*1000*INDEX(HLC_GW, MATCH(C56, ChemNameChem,0)))) -> -- | F56: =IF(ISTEXT(E56),"--",IF(I56="","No IUR",IF(LEFT(E56,1)="N",E56,IF(M56<>"TCE",E56*(IF(AND(M56="VC",Scenario_GW="Residential"),I56,0)+I56*IF(M56="Mut",MMOAAF_GW,ED_GW)*EF_GW*ET_GW/(ATc_GW*365*24)),E56*mIURTCE_GW*MMOAAF_GW*EF_GW*ET_GW/(ATc_GW*365*24)+E56*IURTCE_GW*ED_GW*EF_GW*ET_GW/(ATc_GW*365*24))))) -> -- | G56: =IF(ISTEXT(E56),"--",IF(K56="","No RfC",IF(E56="No HLC","No HLC",E56*EF_GW*ED_GW*ET_GW/(K56*Atnc_GW*365*24*1000)))) -> -- | I56: =IF(INDEX(IUR,MATCH(B56,CASNoTox,0))=" ","",IF(M56="TCE","see note",INDEX(IUR,MATCH(B56,CASNoTox,0)))) ->  | J56: =IF(INDEX(IURSource,MATCH(B56,CASNoTox,0))="","",SUBSTITUTE(INDEX(IURSource,MATCH(B56,CASNoTox,0)),"C","CA")) ->  | K56: =IF(INDEX(RFC,MATCH(B56,CASNoTox,0))=" ","",INDEX(RFC,MATCH(B56,CASNoTox,0))) -> 0.05 | L56: =IF(INDEX(RFCSource,MATCH(B56,CASNoTox,0))="","",SUBSTITUTE(INDEX(RFCSource,MATCH(B56,CASNoTox,0)),"C","CA")) -> P | M56: =VLOOKUP(B56,VISL!$B:$W,22,FALSE) -> 
A57: =IF(INDEX(VISL!A:A,MATCH(B57,VISL!B:B,0))="x","x","") ->  | B57: 98-56-6 | C57: Chlorobenzotrifluoride, 4- | E57: -- | F57: -- | G57: -- | K57: 0.3 | L57: P | M57: =VLOOKUP(B57,VISL!$B:$W,22,FALSE) -> 
A58: =IF(INDEX(VISL!A:A,MATCH(B58,VISL!B:B,0))="x","x","") ->  | B58: 75-45-6 | C58: Chlorodifluoromethane | E58: -- | F58: -- | G58: -- | K58: 50 | L58: I | M58: =VLOOKUP(B58,VISL!$B:$W,22,FALSE) -> 
A59: =IF(INDEX(VISL!A:A,MATCH(B59,VISL!B:B,0))="x","x","") ->  | B59: 67-66-3 | C59: Chloroform | E59: -- | F59: -- | G59: -- | I59: 2.3e-05 | J59: I | K59: 0.098 | L59: A | M59: =VLOOKUP(B59,VISL!$B:$W,22,FALSE) -> 
A60: =IF(INDEX(VISL!A:A,MATCH(B60,VISL!B:B,0))="x","x","") ->  | B60: 74-87-3 | C60: Chloromethane | E60: -- | F60: -- | G60: -- | K60: 0.09 | L60: I | M60: =VLOOKUP(B60,VISL!$B:$W,22,FALSE) -> 
A61: =IF(INDEX(VISL!A:A,MATCH(B61,VISL!B:B,0))="x","x","") ->  | B61: 107-30-2 | C61: Chloromethyl Methyl Ether | E61: -- | F61: -- | G61: -- | I61: 0.00069 | J61: CA | M61: =VLOOKUP(B61,VISL!$B:$W,22,FALSE) -> 
A62: =IF(INDEX(VISL!A:A,MATCH(B62,VISL!B:B,0))="x","x","") ->  | B62: 76-06-2 | C62: Chloropicrin | E62: -- | F62: -- | G62: -- | K62: 0.0004 | L62: CA | M62: =VLOOKUP(B62,VISL!$B:$W,22,FALSE) ->  | O62: =IF(AND(I62="",K62=""),"X","") -> 
A63: =IF(INDEX(VISL!A:A,MATCH(B63,VISL!B:B,0))="x","x","") ->  | B63: 8007-45-2 | C63: Coke Oven Emissions | E63: -- | F63: -- | G63: -- | I63: 0.00062 | J63: I | M63: =VLOOKUP(B63,VISL!$B:$W,22,FALSE) -> Mut
A64: =IF(INDEX(VISL!A:A,MATCH(B64,VISL!B:B,0))="x","x","") ->  | B64: 98-82-8 | C64: Cumene | E64: -- | F64: -- | G64: -- | K64: 0.4 | L64: I | M64: =VLOOKUP(B64,VISL!$B:$W,22,FALSE) -> 
A65: =IF(INDEX(VISL!A:A,MATCH(B65,VISL!B:B,0))="x","x","") ->  | B65: 57-12-5 | C65: Cyanide (CN-) | E65: -- | F65: -- | G65: -- | K65: 0.0008 | L65: S | M65: =VLOOKUP(B65,VISL!$B:$W,22,FALSE) -> 
A66: =IF(INDEX(VISL!A:A,MATCH(B66,VISL!B:B,0))="x","x","") ->  | B66: 110-82-7 | C66: Cyclohexane | E66: -- | F66: -- | G66: -- | K66: 6 | L66: I | M66: =VLOOKUP(B66,VISL!$B:$W,22,FALSE) -> 
A67: =IF(INDEX(VISL!A:A,MATCH(B67,VISL!B:B,0))="x","x","") ->  | B67: 108-94-1 | C67: Cyclohexanone | E67: =IF(INDEX(HLC_GW,MATCH(C67,ChemNameChem,0))="","No HLC",IF(OR(D67="",ISTEXT(D67)),"--",D67*AFgw_GW*1000*INDEX(HLC_GW, MATCH(C67, ChemNameChem,0)))) -> -- | F67: =IF(ISTEXT(E67),"--",IF(I67="","No IUR",IF(LEFT(E67,1)="N",E67,IF(M67<>"TCE",E67*(IF(AND(M67="VC",Scenario_GW="Residential"),I67,0)+I67*IF(M67="Mut",MMOAAF_GW,ED_GW)*EF_GW*ET_GW/(ATc_GW*365*24)),E67*mIURTCE_GW*MMOAAF_GW*EF_GW*ET_GW/(ATc_GW*365*24)+E67*IURTCE_GW*ED_GW*EF_GW*ET_GW/(ATc_GW*365*24))))) -> -- | G67: =IF(ISTEXT(E67),"--",IF(K67="","No RfC",IF(E67="No HLC","No HLC",E67*EF_GW*ED_GW*ET_GW/(K67*Atnc_GW*365*24*1000)))) -> -- | I67: =IF(INDEX(IUR,MATCH(B67,CASNoTox,0))=" ","",IF(M67="TCE","see note",INDEX(IUR,MATCH(B67,CASNoTox,0)))) ->  | J67: =IF(INDEX(IURSource,MATCH(B67,CASNoTox,0))="","",SUBSTITUTE(INDEX(IURSource,MATCH(B67,CASNoTox,0)),"C","CA")) ->  | K67: =IF(INDEX(RFC,MATCH(B67,CASNoTox,0))=" ","",INDEX(RFC,MATCH(B67,CASNoTox,0))) -> 0.7 | L67: =IF(INDEX(RFCSource,MATCH(B67,CASNoTox,0))="","",SUBSTITUTE(INDEX(RFCSource,MATCH(B67,CASNoTox,0)),"C","CA")) -> P | M67: =VLOOKUP(B67,VISL!$B:$W,22,FALSE) -> 
A68: =IF(INDEX(VISL!A:A,MATCH(B68,VISL!B:B,0))="x","x","") ->  | B68: 110-83-8 | C68: Cyclohexene | E68: =IF(INDEX(HLC_GW,MATCH(C68,ChemNameChem,0))="","No HLC",IF(OR(D68="",ISTEXT(D68)),"--",D68*AFgw_GW*1000*INDEX(HLC_GW, MATCH(C68, ChemNameChem,0)))) -> -- | F68: =IF(ISTEXT(E68),"--",IF(I68="","No IUR",IF(LEFT(E68,1)="N",E68,IF(M68<>"TCE",E68*(IF(AND(M68="VC",Scenario_GW="Residential"),I68,0)+I68*IF(M68="Mut",MMOAAF_GW,ED_GW)*EF_GW*ET_GW/(ATc_GW*365*24)),E68*mIURTCE_GW*MMOAAF_GW*EF_GW*ET_GW/(ATc_GW*365*24)+E68*IURTCE_GW*ED_GW*EF_GW*ET_GW/(ATc_GW*365*24))))) -> -- | G68: =IF(ISTEXT(E68),"--",IF(K68="","No RfC",IF(E68="No HLC","No HLC",E68*EF_GW*ED_GW*ET_GW/(K68*Atnc_GW*365*24*1000)))) -> -- | I68: =IF(INDEX(IUR,MATCH(B68,CASNoTox,0))=" ","",IF(M68="TCE","see note",INDEX(IUR,MATCH(B68,CASNoTox,0)))) ->  | J68: =IF(INDEX(IURSource,MATCH(B68,CASNoTox,0))="","",SUBSTITUTE(INDEX(IURSource,MATCH(B68,CASNoTox,0)),"C","CA")) ->  | K68: =IF(INDEX(RFC,MATCH(B68,CASNoTox,0))=" ","",INDEX(RFC,MATCH(B68,CASNoTox,0))) -> 1 | L68: =IF(INDEX(RFCSource,MATCH(B68,CASNoTox,0))="","",SUBSTITUTE(INDEX(RFCSource,MATCH(B68,CASNoTox,0)),"C","CA")) -> X | M68: =VLOOKUP(B68,VISL!$B:$W,22,FALSE) ->  | O68: =IF(AND(I68="",K68=""),"X","") -> 
A69: =IF(INDEX(VISL!A:A,MATCH(B69,VISL!B:B,0))="x","x","") ->  | B69: 72-55-9 | C69: DDE, p,p'- | E69: -- | F69: -- | G69: -- | I69: 9.7e-05 | J69: CA | M69: =VLOOKUP(B69,VISL!$B:$W,22,FALSE) -> 
A70: =IF(INDEX(VISL!A:A,MATCH(B70,VISL!B:B,0))="x","x","") ->  | B70: 96-12-8 | C70: Dibromo-3-chloropropane, 1,2- | E70: -- | F70: -- | G70: -- | I70: 0.006 | J70: P | K70: 0.0002 | L70: I | M70: =VLOOKUP(B70,VISL!$B:$W,22,FALSE) -> Mut
A71: =IF(INDEX(VISL!A:A,MATCH(B71,VISL!B:B,0))="x","x","") ->  | B71: 106-93-4 | C71: Dibromoethane, 1,2- | E71: -- | F71: -- | G71: -- | I71: 0.0006 | J71: I | K71: 0.009 | L71: I | M71: =VLOOKUP(B71,VISL!$B:$W,22,FALSE) -> 
A72: =IF(INDEX(VISL!A:A,MATCH(B72,VISL!B:B,0))="x","x","") ->  | B72: 74-95-3 | C72: Dibromomethane (Methylene Bromide) | E72: -- | F72: -- | G72: -- | K72: 0.004 | L72: X | M72: =VLOOKUP(B72,VISL!$B:$W,22,FALSE) -> 
A73: =IF(INDEX(VISL!A:A,MATCH(B73,VISL!B:B,0))="x","x","") ->  | B73: 764-41-0 | C73: Dichloro-2-butene, 1,4- | E73: -- | F73: -- | G73: -- | I73: 0.0042 | J73: P | M73: =VLOOKUP(B73,VISL!$B:$W,22,FALSE) -> 
A74: =IF(INDEX(VISL!A:A,MATCH(B74,VISL!B:B,0))="x","x","") ->  | B74: 1476-11-5 | C74: Dichloro-2-butene, cis-1,4- | E74: -- | F74: -- | G74: -- | I74: 0.0042 | J74: P | M74: =VLOOKUP(B74,VISL!$B:$W,22,FALSE) -> 
A75: =IF(INDEX(VISL!A:A,MATCH(B75,VISL!B:B,0))="x","x","") ->  | B75: 110-57-6 | C75: Dichloro-2-butene, trans-1,4- | E75: -- | F75: -- | G75: -- | I75: 0.0042 | J75: P | M75: =VLOOKUP(B75,VISL!$B:$W,22,FALSE) -> 
A76: =IF(INDEX(VISL!A:A,MATCH(B76,VISL!B:B,0))="x","x","") ->  | B76: 95-50-1 | C76: Dichlorobenzene, 1,2- | E76: -- | F76: -- | G76: -- | K76: 0.2 | L76: H | M76: =VLOOKUP(B76,VISL!$B:$W,22,FALSE) -> 
A77: =IF(INDEX(VISL!A:A,MATCH(B77,VISL!B:B,0))="x","x","") ->  | B77: 106-46-7 | C77: Dichlorobenzene, 1,4- | E77: -- | F77: -- | G77: -- | I77: 1.1e-05 | J77: CA | K77: 0.8 | L77: I | M77: =VLOOKUP(B77,VISL!$B:$W,22,FALSE) -> 
A78: =IF(INDEX(VISL!A:A,MATCH(B78,VISL!B:B,0))="x","x","") ->  | B78: 75-71-8 | C78: Dichlorodifluoromethane | E78: -- | F78: -- | G78: -- | K78: 0.1 | L78: X | M78: =VLOOKUP(B78,VISL!$B:$W,22,FALSE) -> 
A79: =IF(INDEX(VISL!A:A,MATCH(B79,VISL!B:B,0))="x","x","") ->  | B79: 75-34-3 | C79: Dichloroethane, 1,1- | E79: -- | F79: -- | G79: -- | I79: 1.6e-06 | J79: CA | M79: =VLOOKUP(B79,VISL!$B:$W,22,FALSE) -> 
A80: =IF(INDEX(VISL!A:A,MATCH(B80,VISL!B:B,0))="x","x","") ->  | B80: 107-06-2 | C80: Dichloroethane, 1,2- | E80: -- | F80: -- | G80: -- | I80: 2.6e-05 | J80: I | K80: 0.007 | L80: P | M80: =VLOOKUP(B80,VISL!$B:$W,22,FALSE) -> 
A81: =IF(INDEX(VISL!A:A,MATCH(B81,VISL!B:B,0))="x","x","") ->  | B81: 75-35-4 | C81: Dichloroethylene, 1,1- | E81: -- | F81: -- | G81: -- | K81: 0.2 | L81: I | M81: =VLOOKUP(B81,VISL!$B:$W,22,FALSE) -> 
A82: =IF(INDEX(VISL!A:A,MATCH(B82,VISL!B:B,0))="x","x","") ->  | B82: 78-87-5 | C82: Dichloropropane, 1,2- | E82: -- | F82: -- | G82: -- | I82: 3.7e-06 | J82: P | K82: 0.004 | L82: I | M82: =VLOOKUP(B82,VISL!$B:$W,22,FALSE) -> 
A83: =IF(INDEX(VISL!A:A,MATCH(B83,VISL!B:B,0))="x","x","") ->  | B83: 542-75-6 | C83: Dichloropropene, 1,3- | E83: -- | F83: -- | G83: -- | I83: 4e-06 | J83: I | K83: 0.02 | L83: I | M83: =VLOOKUP(B83,VISL!$B:$W,22,FALSE) -> 
A84: =IF(INDEX(VISL!A:A,MATCH(B84,VISL!B:B,0))="x","x","") ->  | B84: 77-73-6 | C84: Dicyclopentadiene | E84: -- | F84: -- | G84: -- | K84: 0.0003 | L84: X | M84: =VLOOKUP(B84,VISL!$B:$W,22,FALSE) -> 
A85: =IF(INDEX(VISL!A:A,MATCH(B85,VISL!B:B,0))="x","x","") ->  | B85: 75-37-6 | C85: Difluoroethane, 1,1- | E85: -- | F85: -- | G85: -- | K85: 40 | L85: I | M85: =VLOOKUP(B85,VISL!$B:$W,22,FALSE) -> 
A86: =IF(INDEX(VISL!A:A,MATCH(B86,VISL!B:B,0))="x","x","") ->  | B86: 94-58-6 | C86: Dihydrosafrole | E86: -- | F86: -- | G86: -- | I86: 1.3e-05 | J86: CA | M86: =VLOOKUP(B86,VISL!$B:$W,22,FALSE) -> 
A87: =IF(INDEX(VISL!A:A,MATCH(B87,VISL!B:B,0))="x","x","") ->  | B87: 108-20-3 | C87: Diisopropyl Ether | E87: =IF(INDEX(HLC_GW,MATCH(C87,ChemNameChem,0))="","No HLC",IF(OR(D87="",ISTEXT(D87)),"--",D87*AFgw_GW*1000*INDEX(HLC_GW, MATCH(C87, ChemNameChem,0)))) -> -- | F87: =IF(ISTEXT(E87),"--",IF(I87="","No IUR",IF(LEFT(E87,1)="N",E87,IF(M87<>"TCE",E87*(IF(AND(M87="VC",Scenario_GW="Residential"),I87,0)+I87*IF(M87="Mut",MMOAAF_GW,ED_GW)*EF_GW*ET_GW/(ATc_GW*365*24)),E87*mIURTCE_GW*MMOAAF_GW*EF_GW*ET_GW/(ATc_GW*365*24)+E87*IURTCE_GW*ED_GW*EF_GW*ET_GW/(ATc_GW*365*24))))) -> -- | G87: =IF(ISTEXT(E87),"--",IF(K87="","No RfC",IF(E87="No HLC","No HLC",E87*EF_GW*ED_GW*ET_GW/(K87*Atnc_GW*365*24*1000)))) -> -- | I87: =IF(INDEX(IUR,MATCH(B87,CASNoTox,0))=" ","",IF(M87="TCE","see note",INDEX(IUR,MATCH(B87,CASNoTox,0)))) ->  | J87: =IF(INDEX(IURSource,MATCH(B87,CASNoTox,0))="","",SUBSTITUTE(INDEX(IURSource,MATCH(B87,CASNoTox,0)),"C","CA")) ->  | K87: =IF(INDEX(RFC,MATCH(B87,CASNoTox,0))=" ","",INDEX(RFC,MATCH(B87,CASNoTox,0))) -> 0.7 | L87: =IF(INDEX(RFCSource,MATCH(B87,CASNoTox,0))="","",SUBSTITUTE(INDEX(RFCSource,MATCH(B87,CASNoTox,0)),"C","CA")) -> P | M87: =VLOOKUP(B87,VISL!$B:$W,22,FALSE) -> 
A88: =IF(INDEX(VISL!A:A,MATCH(B88,VISL!B:B,0))="x","x","") ->  | B88: 68-12-2 | C88: Dimethylformamide | E88: -- | F88: -- | G88: -- | K88: 0.03 | L88: I | M88: =VLOOKUP(B88,VISL!$B:$W,22,FALSE) -> 
A89: =IF(INDEX(VISL!A:A,MATCH(B89,VISL!B:B,0))="x","x","") ->  | B89: 57-14-7 | C89: Dimethylhydrazine, 1,1- | E89: -- | F89: -- | G89: -- | K89: 2e-06 | L89: X | M89: =VLOOKUP(B89,VISL!$B:$W,22,FALSE) -> 
A90: =IF(INDEX(VISL!A:A,MATCH(B90,VISL!B:B,0))="x","x","") ->  | B90: 540-73-8 | C90: Dimethylhydrazine, 1,2- | E90: -- | F90: -- | G90: -- | I90: 0.16 | J90: CA | M90: =VLOOKUP(B90,VISL!$B:$W,22,FALSE) -> 
A91: =IF(INDEX(VISL!A:A,MATCH(B91,VISL!B:B,0))="x","x","") ->  | B91: 513-37-1 | C91: Dimethylvinylchloride | E91: -- | F91: -- | G91: -- | I91: 1.3e-05 | J91: CA | M91: =VLOOKUP(B91,VISL!$B:$W,22,FALSE) -> 
A92: =IF(INDEX(VISL!A:A,MATCH(B92,VISL!B:B,0))="x","x","") ->  | B92: 123-91-1 | C92: Dioxane, 1,4- | E92: -- | F92: -- | G92: -- | I92: 5e-06 | J92: I | K92: 0.03 | L92: I | M92: =VLOOKUP(B92,VISL!$B:$W,22,FALSE) -> 
A93: =IF(INDEX(VISL!A:A,MATCH(B93,VISL!B:B,0))="x","x","") ->  | B93: 106-89-8 | C93: Epichlorohydrin | E93: -- | F93: -- | G93: -- | I93: 1.2e-06 | J93: I | K93: 0.001 | L93: I | M93: =VLOOKUP(B93,VISL!$B:$W,22,FALSE) -> 
A94: =IF(INDEX(VISL!A:A,MATCH(B94,VISL!B:B,0))="x","x","") ->  | B94: 106-88-7 | C94: Epoxybutane, 1,2- | E94: -- | F94: -- | G94: -- | K94: 0.02 | L94: I | M94: =VLOOKUP(B94,VISL!$B:$W,22,FALSE) -> 
A95: =IF(INDEX(VISL!A:A,MATCH(B95,VISL!B:B,0))="x","x","") ->  | B95: 111-15-9 | C95: Ethoxyethanol Acetate, 2- | E95: -- | F95: -- | G95: -- | K95: 0.06 | L95: P | M95: =VLOOKUP(B95,VISL!$B:$W,22,FALSE) -> 
A96: =IF(INDEX(VISL!A:A,MATCH(B96,VISL!B:B,0))="x","x","") ->  | B96: 110-80-5 | C96: Ethoxyethanol, 2- | E96: -- | F96: -- | G96: -- | K96: 0.2 | L96: I | M96: =VLOOKUP(B96,VISL!$B:$W,22,FALSE) -> 
A97: =IF(INDEX(VISL!A:A,MATCH(B97,VISL!B:B,0))="x","x","") ->  | B97: 141-78-6 | C97: Ethyl Acetate | E97: -- | F97: -- | G97: -- | K97: 0.07 | L97: P | M97: =VLOOKUP(B97,VISL!$B:$W,22,FALSE) -> 
A98: =IF(INDEX(VISL!A:A,MATCH(B98,VISL!B:B,0))="x","x","") ->  | B98: 140-88-5 | C98: Ethyl Acrylate | E98: -- | F98: -- | G98: -- | K98: 0.008 | L98: P | M98: =VLOOKUP(B98,VISL!$B:$W,22,FALSE) -> 
A99: =IF(INDEX(VISL!A:A,MATCH(B99,VISL!B:B,0))="x","x","") ->  | B99: 75-00-3 | C99: Ethyl Chloride (Chloroethane) | E99: -- | F99: -- | G99: -- | K99: 10 | L99: I | M99: =VLOOKUP(B99,VISL!$B:$W,22,FALSE) -> 
A100: =IF(INDEX(VISL!A:A,MATCH(B100,VISL!B:B,0))="x","x","") ->  | B100: 97-63-2 | C100: Ethyl Methacrylate | E100: -- | F100: -- | G100: -- | K100: 0.3 | L100: P | M100: =VLOOKUP(B100,VISL!$B:$W,22,FALSE) -> 
A101: =IF(INDEX(VISL!A:A,MATCH(B101,VISL!B:B,0))="x","x","") ->  | B101: 100-41-4 | C101: Ethylbenzene | E101: -- | F101: -- | G101: -- | I101: 2.5e-06 | J101: CA | K101: 1 | L101: I | M101: =VLOOKUP(B101,VISL!$B:$W,22,FALSE) -> 
A102: =IF(INDEX(VISL!A:A,MATCH(B102,VISL!B:B,0))="x","x","") ->  | B102: 75-21-8 | C102: Ethylene Oxide | E102: -- | F102: -- | G102: -- | I102: 0.003 | J102: I | K102: 0.03 | L102: CA | M102: =VLOOKUP(B102,VISL!$B:$W,22,FALSE) -> Mut
A103: =IF(INDEX(VISL!A:A,MATCH(B103,VISL!B:B,0))="x","x","") ->  | B103: 151-56-4 | C103: Ethyleneimine | E103: -- | F103: -- | G103: -- | I103: 0.019 | J103: CA | M103: =VLOOKUP(B103,VISL!$B:$W,22,FALSE) -> 
A104: =IF(INDEX(VISL!A:A,MATCH(B104,VISL!B:B,0))="x","x","") ->  | B104: 50-00-0 | C104: Formaldehyde | E104: -- | F104: -- | G104: -- | I104: 1.3e-05 | J104: I | K104: 0.0098 | L104: A | M104: =VLOOKUP(B104,VISL!$B:$W,22,FALSE) -> 
A105: =IF(INDEX(VISL!A:A,MATCH(B105,VISL!B:B,0))="x","x","") ->  | B105: 64-18-6 | C105: Formic Acid | E105: -- | F105: -- | G105: -- | K105: 0.0003 | L105: X | M105: =VLOOKUP(B105,VISL!$B:$W,22,FALSE) ->  | O105: =IF(AND(I105="",K105=""),"X","") -> 
A106: =IF(INDEX(VISL!A:A,MATCH(B106,VISL!B:B,0))="x","x","") ->  | B106: 98-01-1 | C106: Furfural | E106: -- | F106: -- | G106: -- | K106: 0.05 | L106: H | M106: =VLOOKUP(B106,VISL!$B:$W,22,FALSE) -> 
A107: =IF(INDEX(VISL!A:A,MATCH(B107,VISL!B:B,0))="x","x","") ->  | B107: 765-34-4 | C107: Glycidyl | E107: -- | F107: -- | G107: -- | K107: 0.001 | L107: H | M107: =VLOOKUP(B107,VISL!$B:$W,22,FALSE) -> 
A108: =IF(INDEX(VISL!A:A,MATCH(B108,VISL!B:B,0))="x","x","") ->  | B108: 76-44-8 | C108: Heptachlor | E108: -- | F108: -- | G108: -- | I108: 0.0013 | J108: I | M108: =VLOOKUP(B108,VISL!$B:$W,22,FALSE) -> 
A109: =IF(INDEX(VISL!A:A,MATCH(B109,VISL!B:B,0))="x","x","") ->  | B109: 1024-57-3 | C109: Heptachlor Epoxide | E109: -- | F109: -- | G109: -- | I109: 0.0026 | J109: I | M109: =VLOOKUP(B109,VISL!$B:$W,22,FALSE) -> 
A110: =IF(INDEX(VISL!A:A,MATCH(B110,VISL!B:B,0))="x","x","") ->  | B110: 39635-31-9 | C110: Heptachlorobiphenyl, 2,3,3',4,4',5,5'- (PCB 189) | E110: =IF(INDEX(HLC_GW,MATCH(C110,ChemNameChem,0))="","No HLC",IF(OR(D110="",ISTEXT(D110)),"--",D110*AFgw_GW*1000*INDEX(HLC_GW, MATCH(C110, ChemNameChem,0)))) -> -- | F110: =IF(ISTEXT(E110),"--",IF(I110="","No IUR",IF(LEFT(E110,1)="N",E110,IF(M110<>"TCE",E110*(IF(AND(M110="VC",Scenario_GW="Residential"),I110,0)+I110*IF(M110="Mut",MMOAAF_GW,ED_GW)*EF_GW*ET_GW/(ATc_GW*365*24)),E110*mIURTCE_GW*MMOAAF_GW*EF_GW*ET_GW/(ATc_GW*365*24)+E110*IURTCE_GW*ED_GW*EF_GW*ET_GW/(ATc_GW*365*24))))) -> -- | G110: =IF(ISTEXT(E110),"--",IF(K110="","No RfC",IF(E110="No HLC","No HLC",E110*EF_GW*ED_GW*ET_GW/(K110*Atnc_GW*365*24*1000)))) -> -- | I110: =IF(INDEX(IUR,MATCH(B110,CASNoTox,0))=" ","",IF(M110="TCE","see note",INDEX(IUR,MATCH(B110,CASNoTox,0)))) -> 0.0011 | J110: =IF(INDEX(IURSource,MATCH(B110,CASNoTox,0))="","",SUBSTITUTE(INDEX(IURSource,MATCH(B110,CASNoTox,0)),"C","CA")) -> E | K110: =IF(INDEX(RFC,MATCH(B110,CASNoTox,0))=" ","",INDEX(RFC,MATCH(B110,CASNoTox,0))) -> 0.0013 | L110: =IF(INDEX(RFCSource,MATCH(B110,CASNoTox,0))="","",SUBSTITUTE(INDEX(RFCSource,MATCH(B110,CASNoTox,0)),"C","CA")) -> E | M110: =VLOOKUP(B110,VISL!$B:$W,22,FALSE) -> 
A111: =IF(INDEX(VISL!A:A,MATCH(B111,VISL!B:B,0))="x","x","") ->  | B111: 118-74-1 | C111: Hexachlorobenzene | E111: -- | F111: -- | G111: -- | I111: 0.00046 | J111: I | M111: =VLOOKUP(B111,VISL!$B:$W,22,FALSE) -> 
A112: =IF(INDEX(VISL!A:A,MATCH(B112,VISL!B:B,0))="x","x","") ->  | B112: 38380-08-4 | C112: Hexachlorobiphenyl, 2,3,3',4,4',5- (PCB 156) | E112: -- | F112: -- | G112: -- | I112: 0.0011 | J112: E | K112: 0.0013 | L112: E | M112: =VLOOKUP(B112,VISL!$B:$W,22,FALSE) -> 
A113: =IF(INDEX(VISL!A:A,MATCH(B113,VISL!B:B,0))="x","x","") ->  | B113: 69782-90-7 | C113: Hexachlorobiphenyl, 2,3,3',4,4',5'- (PCB 157) | E113: -- | F113: -- | G113: -- | I113: 0.0011 | J113: E | K113: 0.0013 | L113: E | M113: =VLOOKUP(B113,VISL!$B:$W,22,FALSE) -> 
A114: =IF(INDEX(VISL!A:A,MATCH(B114,VISL!B:B,0))="x","x","") ->  | B114: 52663-72-6 | C114: Hexachlorobiphenyl, 2,3',4,4',5,5'- (PCB 167) | E114: -- | F114: -- | G114: -- | I114: 0.0011 | J114: E | K114: 0.0013 | L114: E | M114: =VLOOKUP(B114,VISL!$B:$W,22,FALSE) -> 
A115: =IF(INDEX(VISL!A:A,MATCH(B115,VISL!B:B,0))="x","x","") ->  | B115: 32774-16-6 | C115: Hexachlorobiphenyl, 3,3',4,4',5,5'- (PCB 169) | E115: -- | F115: -- | G115: -- | I115: 1.1 | J115: E | K115: 1.3e-06 | L115: E | M115: =VLOOKUP(B115,VISL!$B:$W,22,FALSE) -> 
A116: =IF(INDEX(VISL!A:A,MATCH(B116,VISL!B:B,0))="x","x","") ->  | B116: 87-68-3 | C116: Hexachlorobutadiene | E116: -- | F116: -- | G116: -- | I116: 2.2e-05 | J116: I | M116: =VLOOKUP(B116,VISL!$B:$W,22,FALSE) -> 
A117: =IF(INDEX(VISL!A:A,MATCH(B117,VISL!B:B,0))="x","x","") ->  | B117: 77-47-4 | C117: Hexachlorocyclopentadiene | E117: -- | F117: -- | G117: -- | K117: 0.0002 | L117: I | M117: =VLOOKUP(B117,VISL!$B:$W,22,FALSE) -> 
A118: =IF(INDEX(VISL!A:A,MATCH(B118,VISL!B:B,0))="x","x","") ->  | B118: 67-72-1 | C118: Hexachloroethane | E118: -- | F118: -- | G118: -- | I118: 1.1e-05 | J118: CA | K118: 0.03 | L118: I | M118: =VLOOKUP(B118,VISL!$B:$W,22,FALSE) -> 
A119: =IF(INDEX(VISL!A:A,MATCH(B119,VISL!B:B,0))="x","x","") ->  | B119: 822-06-0 | C119: Hexamethylene Diisocyanate, 1,6- | E119: -- | F119: -- | G119: -- | K119: 1e-05 | L119: I | M119: =VLOOKUP(B119,VISL!$B:$W,22,FALSE) -> 
A120: =IF(INDEX(VISL!A:A,MATCH(B120,VISL!B:B,0))="x","x","") ->  | B120: 110-54-3 | C120: Hexane, N- | E120: -- | F120: -- | G120: -- | K120: 0.7 | L120: I | M120: =VLOOKUP(B120,VISL!$B:$W,22,FALSE) -> 
A121: =IF(INDEX(VISL!A:A,MATCH(B121,VISL!B:B,0))="x","x","") ->  | B121: 591-78-6 | C121: Hexanone, 2- | E121: -- | F121: -- | G121: -- | K121: 0.03 | L121: I | M121: =VLOOKUP(B121,VISL!$B:$W,22,FALSE) -> 
A122: =IF(INDEX(VISL!A:A,MATCH(B122,VISL!B:B,0))="x","x","") ->  | B122: 302-01-2 | C122: Hydrazine | E122: -- | F122: -- | G122: -- | I122: 0.0049 | J122: I | K122: 3e-05 | L122: P | M122: =VLOOKUP(B122,VISL!$B:$W,22,FALSE) -> 
A123: =IF(INDEX(VISL!A:A,MATCH(B123,VISL!B:B,0))="x","x","") ->  | B123: 7647-01-0 | C123: Hydrogen Chloride | E123: -- | F123: -- | G123: -- | K123: 0.02 | L123: I | M123: =VLOOKUP(B123,VISL!$B:$W,22,FALSE) -> 
A124: =IF(INDEX(VISL!A:A,MATCH(B124,VISL!B:B,0))="x","x","") ->  | B124: 74-90-8 | C124: Hydrogen Cyanide | E124: -- | F124: -- | G124: -- | K124: 0.0008 | L124: I | M124: =VLOOKUP(B124,VISL!$B:$W,22,FALSE) -> 
A125: =IF(INDEX(VISL!A:A,MATCH(B125,VISL!B:B,0))="x","x","") ->  | B125: 7664-39-3 | C125: Hydrogen Fluoride | E125: -- | F125: -- | G125: -- | K125: 0.014 | L125: CA | M125: =VLOOKUP(B125,VISL!$B:$W,22,FALSE) -> 
A126: =IF(INDEX(VISL!A:A,MATCH(B126,VISL!B:B,0))="x","x","") ->  | B126: 7783-06-4 | C126: Hydrogen Sulfide | E126: -- | F126: -- | G126: -- | K126: 0.002 | L126: I | M126: =VLOOKUP(B126,VISL!$B:$W,22,FALSE) -> 
A127: =IF(INDEX(VISL!A:A,MATCH(B127,VISL!B:B,0))="x","x","") ->  | B127: 67-63-0 | C127: Isopropanol | E127: -- | F127: -- | G127: -- | K127: 0.2 | L127: P | M127: =VLOOKUP(B127,VISL!$B:$W,22,FALSE) -> 
A128: =IF(INDEX(VISL!A:A,MATCH(B128,VISL!B:B,0))="x","x","") ->  | B128: 7439-97-6 | C128: Mercury (elemental) | E128: -- | F128: -- | G128: -- | K128: 0.0003 | L128: I | M128: =VLOOKUP(B128,VISL!$B:$W,22,FALSE) -> 
A129: =IF(INDEX(VISL!A:A,MATCH(B129,VISL!B:B,0))="x","x","") ->  | B129: 126-98-7 | C129: Methacrylonitrile | E129: -- | F129: -- | G129: -- | K129: 0.03 | L129: P | M129: =VLOOKUP(B129,VISL!$B:$W,22,FALSE) -> 
A130: =IF(INDEX(VISL!A:A,MATCH(B130,VISL!B:B,0))="x","x","") ->  | B130: 67-56-1 | C130: Methanol | E130: -- | F130: -- | G130: -- | K130: 20 | L130: I | M130: =VLOOKUP(B130,VISL!$B:$W,22,FALSE) -> 
A131: =IF(INDEX(VISL!A:A,MATCH(B131,VISL!B:B,0))="x","x","") ->  | B131: 110-49-6 | C131: Methoxyethanol Acetate, 2- | E131: -- | F131: -- | G131: -- | K131: 0.001 | L131: P | M131: =VLOOKUP(B131,VISL!$B:$W,22,FALSE) -> 
A132: =IF(INDEX(VISL!A:A,MATCH(B132,VISL!B:B,0))="x","x","") ->  | B132: 109-86-4 | C132: Methoxyethanol, 2- | E132: -- | F132: -- | G132: -- | K132: 0.02 | L132: I | M132: =VLOOKUP(B132,VISL!$B:$W,22,FALSE) -> 
A133: =IF(INDEX(VISL!A:A,MATCH(B133,VISL!B:B,0))="x","x","") ->  | B133: 96-33-3 | C133: Methyl Acrylate | E133: -- | F133: -- | G133: -- | K133: 0.02 | L133: P | M133: =VLOOKUP(B133,VISL!$B:$W,22,FALSE) -> 
A134: =IF(INDEX(VISL!A:A,MATCH(B134,VISL!B:B,0))="x","x","") ->  | B134: 78-93-3 | C134: Methyl Ethyl Ketone (2-Butanone) | E134: -- | F134: -- | G134: -- | K134: 5 | L134: I | M134: =VLOOKUP(B134,VISL!$B:$W,22,FALSE) -> 
A135: =IF(INDEX(VISL!A:A,MATCH(B135,VISL!B:B,0))="x","x","") ->  | B135: 60-34-4 | C135: Methyl Hydrazine | E135: =IF(INDEX(HLC_GW,MATCH(C135,ChemNameChem,0))="","No HLC",IF(OR(D135="",ISTEXT(D135)),"--",D135*AFgw_GW*1000*INDEX(HLC_GW, MATCH(C135, ChemNameChem,0)))) -> -- | F135: =IF(ISTEXT(E135),"--",IF(I135="","No IUR",IF(LEFT(E135,1)="N",E135,IF(M135<>"TCE",E135*(IF(AND(M135="VC",Scenario_GW="Residential"),I135,0)+I135*IF(M135="Mut",MMOAAF_GW,ED_GW)*EF_GW*ET_GW/(ATc_GW*365*24)),E135*mIURTCE_GW*MMOAAF_GW*EF_GW*ET_GW/(ATc_GW*365*24)+E135*IURTCE_GW*ED_GW*EF_GW*ET_GW/(ATc_GW*365*24))))) -> -- | G135: =IF(ISTEXT(E135),"--",IF(K135="","No RfC",IF(E135="No HLC","No HLC",E135*EF_GW*ED_GW*ET_GW/(K135*Atnc_GW*365*24*1000)))) -> -- | I135: =IF(INDEX(IUR,MATCH(B135,CASNoTox,0))=" ","",IF(M135="TCE","see note",INDEX(IUR,MATCH(B135,CASNoTox,0)))) -> 0.001 | J135: =IF(INDEX(IURSource,MATCH(B135,CASNoTox,0))="","",SUBSTITUTE(INDEX(IURSource,MATCH(B135,CASNoTox,0)),"C","CA")) -> X | K135: =IF(INDEX(RFC,MATCH(B135,CASNoTox,0))=" ","",INDEX(RFC,MATCH(B135,CASNoTox,0))) -> 2e-05 | L135: =IF(INDEX(RFCSource,MATCH(B135,CASNoTox,0))="","",SUBSTITUTE(INDEX(RFCSource,MATCH(B135,CASNoTox,0)),"C","CA")) -> X | M135: =VLOOKUP(B135,VISL!$B:$W,22,FALSE) ->  | O135: =IF(AND(I135="",K135=""),"X","") -> 
A136: =IF(INDEX(VISL!A:A,MATCH(B136,VISL!B:B,0))="x","x","") ->  | B136: 108-10-1 | C136: Methyl Isobutyl Ketone (4-methyl-2-pentanone) | E136: -- | F136: -- | G136: -- | K136: 3 | L136: I | M136: =VLOOKUP(B136,VISL!$B:$W,22,FALSE) -> 
A137: =IF(INDEX(VISL!A:A,MATCH(B137,VISL!B:B,0))="x","x","") ->  | B137: 624-83-9 | C137: Methyl Isocyanate | E137: -- | F137: -- | G137: -- | K137: 0.001 | L137: CA | M137: =VLOOKUP(B137,VISL!$B:$W,22,FALSE) -> 
A138: =IF(INDEX(VISL!A:A,MATCH(B138,VISL!B:B,0))="x","x","") ->  | B138: 80-62-6 | C138: Methyl Methacrylate | E138: -- | F138: -- | G138: -- | K138: 0.7 | L138: I | M138: =VLOOKUP(B138,VISL!$B:$W,22,FALSE) -> 
A139: =IF(INDEX(VISL!A:A,MATCH(B139,VISL!B:B,0))="x","x","") ->  | B139: 25013-15-4 | C139: Methyl Styrene (Mixed Isomers) | E139: -- | F139: -- | G139: -- | K139: 0.04 | L139: H | M139: =VLOOKUP(B139,VISL!$B:$W,22,FALSE) -> 
A140: =IF(INDEX(VISL!A:A,MATCH(B140,VISL!B:B,0))="x","x","") ->  | B140: 1634-04-4 | C140: Methyl tert-Butyl Ether (MTBE) | E140: -- | F140: -- | G140: -- | I140: 2.6e-07 | J140: CA | K140: 3 | L140: I | M140: =VLOOKUP(B140,VISL!$B:$W,22,FALSE) -> 
A141: =IF(INDEX(VISL!A:A,MATCH(B141,VISL!B:B,0))="x","x","") ->  | B141: 75-09-2 | C141: Methylene Chloride | E141: -- | F141: -- | G141: -- | I141: 1e-08 | J141: I | K141: 0.6 | L141: I | M141: =VLOOKUP(B141,VISL!$B:$W,22,FALSE) -> Mut
A142: =IF(INDEX(VISL!A:A,MATCH(B142,VISL!B:B,0))="x","x","") ->  | B142: 2385-85-5 | C142: Mirex | E142: -- | F142: -- | G142: -- | I142: 0.0051 | J142: CA | M142: =VLOOKUP(B142,VISL!$B:$W,22,FALSE) -> 
A143: =IF(INDEX(VISL!A:A,MATCH(B143,VISL!B:B,0))="x","x","") ->  | B143: 64742-95-6 | C143: Naphtha, High Flash Aromatic (HFAN) | E143: -- | F143: -- | G143: -- | K143: 0.1 | L143: P | M143: =VLOOKUP(B143,VISL!$B:$W,22,FALSE) -> 
A144: =IF(INDEX(VISL!A:A,MATCH(B144,VISL!B:B,0))="x","x","") ->  | B144: 91-20-3 | C144: Naphthalene | E144: -- | F144: -- | G144: -- | I144: 3.4e-05 | J144: CA | K144: 0.003 | L144: I | M144: =VLOOKUP(B144,VISL!$B:$W,22,FALSE) -> 
A145: =IF(INDEX(VISL!A:A,MATCH(B145,VISL!B:B,0))="x","x","") ->  | B145: 13463-39-3 | C145: Nickel Carbonyl | E145: -- | F145: -- | G145: -- | I145: 0.00026 | J145: CA | K145: 1.4e-05 | L145: CA | M145: =VLOOKUP(B145,VISL!$B:$W,22,FALSE) -> 
A146: =IF(INDEX(VISL!A:A,MATCH(B146,VISL!B:B,0))="x","x","") ->  | B146: 98-95-3 | C146: Nitrobenzene | E146: -- | F146: -- | G146: -- | I146: 4e-05 | J146: I | K146: 0.009 | L146: I | M146: =VLOOKUP(B146,VISL!$B:$W,22,FALSE) -> 
A147: =IF(INDEX(VISL!A:A,MATCH(B147,VISL!B:B,0))="x","x","") ->  | B147: 75-52-5 | C147: Nitromethane | E147: -- | F147: -- | G147: -- | I147: 8.8e-06 | J147: P | K147: 0.005 | L147: P | M147: =VLOOKUP(B147,VISL!$B:$W,22,FALSE) -> 
A148: =IF(INDEX(VISL!A:A,MATCH(B148,VISL!B:B,0))="x","x","") ->  | B148: 79-46-9 | C148: Nitropropane, 2- | E148: -- | F148: -- | G148: -- | I148: 0.0027 | J148: H | K148: 0.02 | L148: I | M148: =VLOOKUP(B148,VISL!$B:$W,22,FALSE) -> 
A149: =IF(INDEX(VISL!A:A,MATCH(B149,VISL!B:B,0))="x","x","") ->  | B149: 62-75-9 | C149: Nitrosodimethylamine, N- | E149: -- | F149: -- | G149: -- | I149: 0.014 | J149: I | K149: 4e-05 | L149: X | M149: =VLOOKUP(B149,VISL!$B:$W,22,FALSE) -> Mut
A150: =IF(INDEX(VISL!A:A,MATCH(B150,VISL!B:B,0))="x","x","") ->  | B150: 924-16-3 | C150: Nitroso-di-N-butylamine, N- | E150: -- | F150: -- | G150: -- | I150: 0.0016 | J150: I | M150: =VLOOKUP(B150,VISL!$B:$W,22,FALSE) -> 
A151: =IF(INDEX(VISL!A:A,MATCH(B151,VISL!B:B,0))="x","x","") ->  | B151: 10595-95-6 | C151: Nitrosomethylethylamine, N- | E151: -- | F151: -- | G151: -- | I151: 0.0063 | J151: CA | M151: =VLOOKUP(B151,VISL!$B:$W,22,FALSE) -> 
A152: =IF(INDEX(VISL!A:A,MATCH(B152,VISL!B:B,0))="x","x","") ->  | B152: 111-84-2 | C152: Nonane, n- | E152: -- | F152: -- | G152: -- | K152: 0.02 | L152: P | M152: =VLOOKUP(B152,VISL!$B:$W,22,FALSE) -> 
A153: =IF(INDEX(VISL!A:A,MATCH(B153,VISL!B:B,0))="x","x","") ->  | B153: 32598-14-4 | C153: Pentachlorobiphenyl, 2,3,3',4,4'- (PCB 105) | E153: -- | F153: -- | G153: -- | I153: 0.0011 | J153: E | K153: 0.0013 | L153: E | M153: =VLOOKUP(B153,VISL!$B:$W,22,FALSE) -> 
A154: =IF(INDEX(VISL!A:A,MATCH(B154,VISL!B:B,0))="x","x","") ->  | B154: 74472-37-0 | C154: Pentachlorobiphenyl, 2,3,4,4',5- (PCB 114) | E154: -- | F154: -- | G154: -- | I154: 0.0011 | J154: E | K154: 0.0013 | L154: E | M154: =VLOOKUP(B154,VISL!$B:$W,22,FALSE) -> 
A155: =IF(INDEX(VISL!A:A,MATCH(B155,VISL!B:B,0))="x","x","") ->  | B155: 31508-00-6 | C155: Pentachlorobiphenyl, 2,3',4,4',5- (PCB 118) | E155: -- | F155: -- | G155: -- | I155: 0.0011 | J155: E | K155: 0.0013 | L155: E | M155: =VLOOKUP(B155,VISL!$B:$W,22,FALSE) -> 
A156: =IF(INDEX(VISL!A:A,MATCH(B156,VISL!B:B,0))="x","x","") ->  | B156: 65510-44-3 | C156: Pentachlorobiphenyl, 2',3,4,4',5- (PCB 123) | E156: -- | F156: -- | G156: -- | I156: 0.0011 | J156: E | K156: 0.0013 | L156: E | M156: =VLOOKUP(B156,VISL!$B:$W,22,FALSE) -> 
A157: =IF(INDEX(VISL!A:A,MATCH(B157,VISL!B:B,0))="x","x","") ->  | B157: 57465-28-8 | C157: Pentachlorobiphenyl, 3,3',4,4',5- (PCB 126) | E157: -- | F157: -- | G157: -- | I157: 3.8 | J157: E | K157: 4e-07 | L157: E | M157: =VLOOKUP(B157,VISL!$B:$W,22,FALSE) -> 
A158: =IF(INDEX(VISL!A:A,MATCH(B158,VISL!B:B,0))="x","x","") ->  | B158: 109-66-0 | C158: Pentane, n- | E158: -- | F158: -- | G158: -- | K158: 1 | L158: P | M158: =VLOOKUP(B158,VISL!$B:$W,22,FALSE) -> 
A159: =IF(INDEX(VISL!A:A,MATCH(B159,VISL!B:B,0))="x","x","") ->  | B159: 75-44-5 | C159: Phosgene | E159: -- | F159: -- | G159: -- | K159: 0.0003 | L159: I | M159: =VLOOKUP(B159,VISL!$B:$W,22,FALSE) -> 
A160: =IF(INDEX(VISL!A:A,MATCH(B160,VISL!B:B,0))="x","x","") ->  | B160: 7803-51-2 | C160: Phosphine | E160: -- | F160: -- | G160: -- | K160: 0.0003 | L160: I | M160: =VLOOKUP(B160,VISL!$B:$W,22,FALSE) -> 
A161: =IF(INDEX(VISL!A:A,MATCH(B161,VISL!B:B,0))="x","x","") ->  | B161: 123-38-6 | C161: Propionaldehyde | E161: -- | F161: -- | G161: -- | K161: 0.008 | L161: I | M161: =VLOOKUP(B161,VISL!$B:$W,22,FALSE) -> 
A162: =IF(INDEX(VISL!A:A,MATCH(B162,VISL!B:B,0))="x","x","") ->  | B162: 103-65-1 | C162: Propyl benzene | E162: -- | F162: -- | G162: -- | K162: 1 | L162: X | M162: =VLOOKUP(B162,VISL!$B:$W,22,FALSE) -> 
A163: =IF(INDEX(VISL!A:A,MATCH(B163,VISL!B:B,0))="x","x","") ->  | B163: 115-07-1 | C163: Propylene | E163: -- | F163: -- | G163: -- | K163: 3 | L163: CA | M163: =VLOOKUP(B163,VISL!$B:$W,22,FALSE) -> 
A164: =IF(INDEX(VISL!A:A,MATCH(B164,VISL!B:B,0))="x","x","") ->  | B164: 107-98-2 | C164: Propylene Glycol Monomethyl Ether | E164: -- | F164: -- | G164: -- | K164: 2 | L164: I | M164: =VLOOKUP(B164,VISL!$B:$W,22,FALSE) -> 
A165: =IF(INDEX(VISL!A:A,MATCH(B165,VISL!B:B,0))="x","x","") ->  | B165: 75-56-9 | C165: Propylene Oxide | E165: -- | F165: -- | G165: -- | I165: 3.7e-06 | J165: I | K165: 0.03 | L165: I | M165: =VLOOKUP(B165,VISL!$B:$W,22,FALSE) -> 
A166: =IF(INDEX(VISL!A:A,MATCH(B166,VISL!B:B,0))="x","x","") ->  | B166: 100-42-5 | C166: Styrene | E166: -- | F166: -- | G166: -- | K166: 1 | L166: I | M166: =VLOOKUP(B166,VISL!$B:$W,22,FALSE) -> 
A167: =IF(INDEX(VISL!A:A,MATCH(B167,VISL!B:B,0))="x","x","") ->  | B167: 7446-11-9 | C167: Sulfur Trioxide | E167: -- | F167: -- | G167: -- | K167: 0.001 | L167: CA | M167: =VLOOKUP(B167,VISL!$B:$W,22,FALSE) -> 
A168: =IF(INDEX(VISL!A:A,MATCH(B168,VISL!B:B,0))="x","x","") ->  | B168: 1746-01-6 | C168: TCDD, 2,3,7,8- | E168: -- | F168: -- | G168: -- | I168: 38 | J168: CA | K168: 4e-08 | L168: CA | M168: =VLOOKUP(B168,VISL!$B:$W,22,FALSE) -> 
A169: =IF(INDEX(VISL!A:A,MATCH(B169,VISL!B:B,0))="x","x","") ->  | B169: 70362-50-4 | C169: Tetrachlorobiphenyl, 3,4,4',5- (PCB 81) | E169: -- | F169: -- | G169: -- | I169: 0.011 | J169: E | K169: 0.00013 | L169: E | M169: =VLOOKUP(B169,VISL!$B:$W,22,FALSE) -> 
A170: =IF(INDEX(VISL!A:A,MATCH(B170,VISL!B:B,0))="x","x","") ->  | B170: 630-20-6 | C170: Tetrachloroethane, 1,1,1,2- | E170: -- | F170: -- | G170: -- | I170: 7.4e-06 | J170: I | M170: =VLOOKUP(B170,VISL!$B:$W,22,FALSE) -> 
A171: =IF(INDEX(VISL!A:A,MATCH(B171,VISL!B:B,0))="x","x","") ->  | B171: 79-34-5 | C171: Tetrachloroethane, 1,1,2,2- | E171: -- | F171: -- | G171: -- | I171: 5.8e-05 | J171: CA | M171: =VLOOKUP(B171,VISL!$B:$W,22,FALSE) -> 
A172: =IF(INDEX(VISL!A:A,MATCH(B172,VISL!B:B,0))="x","x","") ->  | B172: 127-18-4 | C172: Tetrachloroethylene | E172: -- | F172: -- | G172: -- | I172: 2.6e-07 | J172: I | K172: 0.04 | L172: I | M172: =VLOOKUP(B172,VISL!$B:$W,22,FALSE) -> 
A173: =IF(INDEX(VISL!A:A,MATCH(B173,VISL!B:B,0))="x","x","") ->  | B173: 811-97-2 | C173: Tetrafluoroethane, 1,1,1,2- | E173: -- | F173: -- | G173: -- | K173: 80 | L173: I | M173: =VLOOKUP(B173,VISL!$B:$W,22,FALSE) -> 
A174: =IF(INDEX(VISL!A:A,MATCH(B174,VISL!B:B,0))="x","x","") ->  | B174: 109-99-9 | C174: Tetrahydrofuran | E174: -- | F174: -- | G174: -- | K174: 2 | L174: I | M174: =VLOOKUP(B174,VISL!$B:$W,22,FALSE) -> 
A175: =IF(INDEX(VISL!A:A,MATCH(B175,VISL!B:B,0))="x","x","") ->  | B175: 7550-45-0 | C175: Titanium Tetrachloride | E175: -- | F175: -- | G175: -- | K175: 0.0001 | L175: A | M175: =VLOOKUP(B175,VISL!$B:$W,22,FALSE) -> 
A176: =IF(INDEX(VISL!A:A,MATCH(B176,VISL!B:B,0))="x","x","") ->  | B176: 108-88-3 | C176: Toluene | E176: -- | F176: -- | G176: -- | K176: 5 | L176: I | M176: =VLOOKUP(B176,VISL!$B:$W,22,FALSE) -> 
A177: =IF(INDEX(VISL!A:A,MATCH(B177,VISL!B:B,0))="x","x","") ->  | B177: 76-13-1 | C177: Trichloro-1,2,2-trifluoroethane, 1,1,2- | E177: =IF(INDEX(HLC_GW,MATCH(C177,ChemNameChem,0))="","No HLC",IF(OR(D177="",ISTEXT(D177)),"--",D177*AFgw_GW*1000*INDEX(HLC_GW, MATCH(C177, ChemNameChem,0)))) -> -- | F177: =IF(ISTEXT(E177),"--",IF(I177="","No IUR",IF(LEFT(E177,1)="N",E177,IF(M177<>"TCE",E177*(IF(AND(M177="VC",Scenario_GW="Residential"),I177,0)+I177*IF(M177="Mut",MMOAAF_GW,ED_GW)*EF_GW*ET_GW/(ATc_GW*365*24)),E177*mIURTCE_GW*MMOAAF_GW*EF_GW*ET_GW/(ATc_GW*365*24)+E177*IURTCE_GW*ED_GW*EF_GW*ET_GW/(ATc_GW*365*24))))) -> -- | G177: =IF(ISTEXT(E177),"--",IF(K177="","No RfC",IF(E177="No HLC","No HLC",E177*EF_GW*ED_GW*ET_GW/(K177*Atnc_GW*365*24*1000)))) -> -- | I177: =IF(INDEX(IUR,MATCH(B177,CASNoTox,0))=" ","",IF(M177="TCE","see note",INDEX(IUR,MATCH(B177,CASNoTox,0)))) ->  | J177: =IF(INDEX(IURSource,MATCH(B177,CASNoTox,0))="","",SUBSTITUTE(INDEX(IURSource,MATCH(B177,CASNoTox,0)),"C","CA")) ->  | K177: =IF(INDEX(RFC,MATCH(B177,CASNoTox,0))=" ","",INDEX(RFC,MATCH(B177,CASNoTox,0))) -> 5 | L177: =IF(INDEX(RFCSource,MATCH(B177,CASNoTox,0))="","",SUBSTITUTE(INDEX(RFCSource,MATCH(B177,CASNoTox,0)),"C","CA")) -> P | M177: =VLOOKUP(B177,VISL!$B:$W,22,FALSE) -> 
A178: =IF(INDEX(VISL!A:A,MATCH(B178,VISL!B:B,0))="x","x","") ->  | B178: 120-82-1 | C178: Trichlorobenzene, 1,2,4- | E178: =IF(INDEX(HLC_GW,MATCH(C178,ChemNameChem,0))="","No HLC",IF(OR(D178="",ISTEXT(D178)),"--",D178*AFgw_GW*1000*INDEX(HLC_GW, MATCH(C178, ChemNameChem,0)))) -> -- | F178: =IF(ISTEXT(E178),"--",IF(I178="","No IUR",IF(LEFT(E178,1)="N",E178,IF(M178<>"TCE",E178*(IF(AND(M178="VC",Scenario_GW="Residential"),I178,0)+I178*IF(M178="Mut",MMOAAF_GW,ED_GW)*EF_GW*ET_GW/(ATc_GW*365*24)),E178*mIURTCE_GW*MMOAAF_GW*EF_GW*ET_GW/(ATc_GW*365*24)+E178*IURTCE_GW*ED_GW*EF_GW*ET_GW/(ATc_GW*365*24))))) -> -- | G178: =IF(ISTEXT(E178),"--",IF(K178="","No RfC",IF(E178="No HLC","No HLC",E178*EF_GW*ED_GW*ET_GW/(K178*Atnc_GW*365*24*1000)))) -> -- | I178: =IF(INDEX(IUR,MATCH(B178,CASNoTox,0))=" ","",IF(M178="TCE","see note",INDEX(IUR,MATCH(B178,CASNoTox,0)))) ->  | J178: =IF(INDEX(IURSource,MATCH(B178,CASNoTox,0))="","",SUBSTITUTE(INDEX(IURSource,MATCH(B178,CASNoTox,0)),"C","CA")) ->  | K178: =IF(INDEX(RFC,MATCH(B178,CASNoTox,0))=" ","",INDEX(RFC,MATCH(B178,CASNoTox,0))) -> 0.002 | L178: =IF(INDEX(RFCSource,MATCH(B178,CASNoTox,0))="","",SUBSTITUTE(INDEX(RFCSource,MATCH(B178,CASNoTox,0)),"C","CA")) -> P | M178: =VLOOKUP(B178,VISL!$B:$W,22,FALSE) -> 
A179: =IF(INDEX(VISL!A:A,MATCH(B179,VISL!B:B,0))="x","x","") ->  | B179: 71-55-6 | C179: Trichloroethane, 1,1,1- | E179: -- | F179: -- | G179: -- | K179: 5 | L179: I | M179: =VLOOKUP(B179,VISL!$B:$W,22,FALSE) -> 
A180: =IF(INDEX(VISL!A:A,MATCH(B180,VISL!B:B,0))="x","x","") ->  | B180: 79-00-5 | C180: Trichloroethane, 1,1,2- | E180: -- | F180: -- | G180: -- | I180: 1.6e-05 | J180: I | K180: 0.0002 | L180: X | M180: =VLOOKUP(B180,VISL!$B:$W,22,FALSE) -> 
A181: =IF(INDEX(VISL!A:A,MATCH(B181,VISL!B:B,0))="x","x","") ->  | B181: 79-01-6 | C181: Trichloroethylene | E181: =IF(INDEX(HLC_GW,MATCH(C181,ChemNameChem,0))="","No HLC",IF(OR(D181="",ISTEXT(D181)),"--",D181*AFgw_GW*1000*INDEX(HLC_GW, MATCH(C181, ChemNameChem,0)))) -> -- | F181: =IF(ISTEXT(E181),"--",IF(I181="","No IUR",IF(LEFT(E181,1)="N",E181,IF(M181<>"TCE",E181*(IF(AND(M181="VC",Scenario_GW="Residential"),I181,0)+I181*IF(M181="Mut",MMOAAF_GW,ED_GW)*EF_GW*ET_GW/(ATc_GW*365*24)),E181*mIURTCE_GW*MMOAAF_GW*EF_GW*ET_GW/(ATc_GW*365*24)+E181*IURTCE_GW*ED_GW*EF_GW*ET_GW/(ATc_GW*365*24))))) -> -- | G181: =IF(ISTEXT(E181),"--",IF(K181="","No RfC",IF(E181="No HLC","No HLC",E181*EF_GW*ED_GW*ET_GW/(K181*Atnc_GW*365*24*1000)))) -> -- | I181: =IF(INDEX(IUR,MATCH(B181,CASNoTox,0))=" ","",IF(M181="TCE","see note",INDEX(IUR,MATCH(B181,CASNoTox,0)))) -> see note | J181: =IF(INDEX(IURSource,MATCH(B181,CASNoTox,0))="","",SUBSTITUTE(INDEX(IURSource,MATCH(B181,CASNoTox,0)),"C","CA")) -> I | K181: =IF(INDEX(RFC,MATCH(B181,CASNoTox,0))=" ","",INDEX(RFC,MATCH(B181,CASNoTox,0))) -> 0.002 | L181: =IF(INDEX(RFCSource,MATCH(B181,CASNoTox,0))="","",SUBSTITUTE(INDEX(RFCSource,MATCH(B181,CASNoTox,0)),"C","CA")) -> I | M181: =VLOOKUP(B181,VISL!$B:$W,22,FALSE) -> TCE
A182: =IF(INDEX(VISL!A:A,MATCH(B182,VISL!B:B,0))="x","x","") ->  | B182: 96-18-4 | C182: Trichloropropane, 1,2,3- | E182: -- | F182: -- | G182: -- | K182: 0.0003 | L182: I | M182: =VLOOKUP(B182,VISL!$B:$W,22,FALSE) -> Mut
A183: =IF(INDEX(VISL!A:A,MATCH(B183,VISL!B:B,0))="x","x","") ->  | B183: 96-19-5 | C183: Trichloropropene, 1,2,3- | E183: -- | F183: -- | G183: -- | K183: 0.0003 | L183: P | M183: =VLOOKUP(B183,VISL!$B:$W,22,FALSE) -> 
A184: =IF(INDEX(VISL!A:A,MATCH(B184,VISL!B:B,0))="x","x","") ->  | B184: 121-44-8 | C184: Triethylamine | E184: -- | F184: -- | G184: -- | K184: 0.007 | L184: I | M184: =VLOOKUP(B184,VISL!$B:$W,22,FALSE) -> 
A185: =IF(INDEX(VISL!A:A,MATCH(B185,VISL!B:B,0))="x","x","") ->  | B185: 420-46-2 | C185: Trifluoroethane, 1,1,1- | E185: -- | F185: -- | G185: -- | K185: 20 | L185: P | M185: =VLOOKUP(B185,VISL!$B:$W,22,FALSE) -> 
A186: =IF(INDEX(VISL!A:A,MATCH(B186,VISL!B:B,0))="x","x","") ->  | B186: 526-73-8 | C186: Trimethylbenzene, 1,2,3- | E186: -- | F186: -- | G186: -- | K186: 0.06 | L186: I | M186: =VLOOKUP(B186,VISL!$B:$W,22,FALSE) -> 
A187: =IF(INDEX(VISL!A:A,MATCH(B187,VISL!B:B,0))="x","x","") ->  | B187: 95-63-6 | C187: Trimethylbenzene, 1,2,4- | E187: -- | F187: -- | G187: -- | K187: 0.06 | L187: I | M187: =VLOOKUP(B187,VISL!$B:$W,22,FALSE) -> 
A188: =IF(INDEX(VISL!A:A,MATCH(B188,VISL!B:B,0))="x","x","") ->  | B188: 108-67-8 | C188: Trimethylbenzene, 1,3,5- | E188: -- | F188: -- | G188: -- | K188: 0.06 | L188: I | M188: =VLOOKUP(B188,VISL!$B:$W,22,FALSE) -> 
A189: =IF(INDEX(VISL!A:A,MATCH(B189,VISL!B:B,0))="x","x","") ->  | B189: 126-72-7 | C189: Tris(2,3-dibromopropyl)phosphate | E189: -- | F189: -- | G189: -- | I189: 0.00066 | J189: CA | M189: =VLOOKUP(B189,VISL!$B:$W,22,FALSE) -> 
A190: =IF(INDEX(VISL!A:A,MATCH(B190,VISL!B:B,0))="x","x","") ->  | B190: 108-05-4 | C190: Vinyl Acetate | E190: -- | F190: -- | G190: -- | K190: 0.2 | L190: I | M190: =VLOOKUP(B190,VISL!$B:$W,22,FALSE) -> 
A191: =IF(INDEX(VISL!A:A,MATCH(B191,VISL!B:B,0))="x","x","") ->  | B191: 593-60-2 | C191: Vinyl Bromide | E191: -- | F191: -- | G191: -- | I191: 3.2e-05 | J191: H | K191: 0.003 | L191: I | M191: =VLOOKUP(B191,VISL!$B:$W,22,FALSE) -> 
A192: =IF(INDEX(VISL!A:A,MATCH(B192,VISL!B:B,0))="x","x","") ->  | B192: 75-01-4 | C192: Vinyl Chloride | E192: -- | F192: -- | G192: -- | I192: 4.4e-06 | J192: I | K192: 0.1 | L192: I | M192: =VLOOKUP(B192,VISL!$B:$W,22,FALSE) -> VC
A193: =IF(INDEX(VISL!A:A,MATCH(B193,VISL!B:B,0))="x","x","") ->  | B193: 108-38-3 | C193: Xylene, m- | E193: -- | F193: -- | G193: -- | K193: 0.1 | L193: S | M193: =VLOOKUP(B193,VISL!$B:$W,22,FALSE) -> 
A194: =IF(INDEX(VISL!A:A,MATCH(B194,VISL!B:B,0))="x","x","") ->  | B194: 95-47-6 | C194: Xylene, o- | E194: -- | F194: -- | G194: -- | K194: 0.1 | L194: S | M194: =VLOOKUP(B194,VISL!$B:$W,22,FALSE) -> 
A195: =IF(INDEX(VISL!A:A,MATCH(B195,VISL!B:B,0))="x","x","") ->  | B195: 106-42-3 | C195: Xylene, P- | E195: -- | F195: -- | G195: -- | K195: 0.1 | L195: S | M195: =VLOOKUP(B195,VISL!$B:$W,22,FALSE) -> 
A196: =IF(INDEX(VISL!A:A,MATCH(B196,VISL!B:B,0))="x","x","") ->  | B196: 1330-20-7 | C196: Xylenes | E196: -- | F196: -- | G196: -- | K196: 0.1 | L196: I | M196: =VLOOKUP(B196,VISL!$B:$W,22,FALSE) -> 
A197: =IF(INDEX(VISL!A:A,MATCH(B197,VISL!B:B,0))="x","x","") ->  | B197: 142-82-5 | C197: Heptane, N- | E197: =IF(INDEX(HLC_GW,MATCH(C197,ChemNameChem,0))="","No HLC",IF(OR(D197="",ISTEXT(D197)),"--",D197*AFgw_GW*1000*INDEX(HLC_GW, MATCH(C197, ChemNameChem,0)))) -> -- | F197: =IF(ISTEXT(E197),"--",IF(I197="","No IUR",IF(LEFT(E197,1)="N",E197,IF(M197<>"TCE",E197*(IF(AND(M197="VC",Scenario_GW="Residential"),I197,0)+I197*IF(M197="Mut",MMOAAF_GW,ED_GW)*EF_GW*ET_GW/(ATc_GW*365*24)),E197*mIURTCE_GW*MMOAAF_GW*EF_GW*ET_GW/(ATc_GW*365*24)+E197*IURTCE_GW*ED_GW*EF_GW*ET_GW/(ATc_GW*365*24))))) -> -- | G197: =IF(ISTEXT(E197),"--",IF(K197="","No RfC",IF(E197="No HLC","No HLC",E197*EF_GW*ED_GW*ET_GW/(K197*Atnc_GW*365*24*1000)))) -> -- | I197: =IF(INDEX(IUR,MATCH(B197,CASNoTox,0))=" ","",IF(M197="TCE","see note",INDEX(IUR,MATCH(B197,CASNoTox,0)))) ->  | J197: =IF(INDEX(IURSource,MATCH(B197,CASNoTox,0))="","",SUBSTITUTE(INDEX(IURSource,MATCH(B197,CASNoTox,0)),"C","CA")) ->  | K197: =IF(INDEX(RFC,MATCH(B197,CASNoTox,0))=" ","",INDEX(RFC,MATCH(B197,CASNoTox,0))) -> 0.4 | L197: =IF(INDEX(RFCSource,MATCH(B197,CASNoTox,0))="","",SUBSTITUTE(INDEX(RFCSource,MATCH(B197,CASNoTox,0)),"C","CA")) -> P | M197: =VLOOKUP(B197,VISL!$B:$W,22,FALSE) ->  | O197: =IF(AND(I197="",K197=""),"X","") -> 
A198: =IF(INDEX(VISL!A:A,MATCH(B198,VISL!B:B,0))="x","x","") ->  | B198: 584-84-9 | C198: Toluene-2,4-diisocyanate | E198: =IF(INDEX(HLC_GW,MATCH(C198,ChemNameChem,0))="","No HLC",IF(OR(D198="",ISTEXT(D198)),"--",D198*AFgw_GW*1000*INDEX(HLC_GW, MATCH(C198, ChemNameChem,0)))) -> -- | F198: =IF(ISTEXT(E198),"--",IF(I198="","No IUR",IF(LEFT(E198,1)="N",E198,IF(M198<>"TCE",E198*(IF(AND(M198="VC",Scenario_GW="Residential"),I198,0)+I198*IF(M198="Mut",MMOAAF_GW,ED_GW)*EF_GW*ET_GW/(ATc_GW*365*24)),E198*mIURTCE_GW*MMOAAF_GW*EF_GW*ET_GW/(ATc_GW*365*24)+E198*IURTCE_GW*ED_GW*EF_GW*ET_GW/(ATc_GW*365*24))))) -> -- | G198: =IF(ISTEXT(E198),"--",IF(K198="","No RfC",IF(E198="No HLC","No HLC",E198*EF_GW*ED_GW*ET_GW/(K198*Atnc_GW*365*24*1000)))) -> -- | I198: =IF(INDEX(IUR,MATCH(B198,CASNoTox,0))=" ","",IF(M198="TCE","see note",INDEX(IUR,MATCH(B198,CASNoTox,0)))) -> 1.1e-05 | J198: =IF(INDEX(IURSource,MATCH(B198,CASNoTox,0))="","",SUBSTITUTE(INDEX(IURSource,MATCH(B198,CASNoTox,0)),"C","CA")) -> CA | K198: =IF(INDEX(RFC,MATCH(B198,CASNoTox,0))=" ","",INDEX(RFC,MATCH(B198,CASNoTox,0))) -> 8e-06 | L198: =IF(INDEX(RFCSource,MATCH(B198,CASNoTox,0))="","",SUBSTITUTE(INDEX(RFCSource,MATCH(B198,CASNoTox,0)),"C","CA")) -> CA | M198: =VLOOKUP(B198,VISL!$B:$W,22,FALSE) ->  | O198: =IF(AND(I198="",K198=""),"X","") -> 
A199: =IF(INDEX(VISL!A:A,MATCH(B199,VISL!B:B,0))="x","x","") ->  | B199: 91-08-7 | C199: Toluene-2,6-diisocyanate | E199: =IF(INDEX(HLC_GW,MATCH(C199,ChemNameChem,0))="","No HLC",IF(OR(D199="",ISTEXT(D199)),"--",D199*AFgw_GW*1000*INDEX(HLC_GW, MATCH(C199, ChemNameChem,0)))) -> -- | F199: =IF(ISTEXT(E199),"--",IF(I199="","No IUR",IF(LEFT(E199,1)="N",E199,IF(M199<>"TCE",E199*(IF(AND(M199="VC",Scenario_GW="Residential"),I199,0)+I199*IF(M199="Mut",MMOAAF_GW,ED_GW)*EF_GW*ET_GW/(ATc_GW*365*24)),E199*mIURTCE_GW*MMOAAF_GW*EF_GW*ET_GW/(ATc_GW*365*24)+E199*IURTCE_GW*ED_GW*EF_GW*ET_GW/(ATc_GW*365*24))))) -> -- | G199: =IF(ISTEXT(E199),"--",IF(K199="","No RfC",IF(E199="No HLC","No HLC",E199*EF_GW*ED_GW*ET_GW/(K199*Atnc_GW*365*24*1000)))) -> -- | I199: =IF(INDEX(IUR,MATCH(B199,CASNoTox,0))=" ","",IF(M199="TCE","see note",INDEX(IUR,MATCH(B199,CASNoTox,0)))) -> 1.1e-05 | J199: =IF(INDEX(IURSource,MATCH(B199,CASNoTox,0))="","",SUBSTITUTE(INDEX(IURSource,MATCH(B199,CASNoTox,0)),"C","CA")) -> CA | K199: =IF(INDEX(RFC,MATCH(B199,CASNoTox,0))=" ","",INDEX(RFC,MATCH(B199,CASNoTox,0))) -> 8e-06 | L199: =IF(INDEX(RFCSource,MATCH(B199,CASNoTox,0))="","",SUBSTITUTE(INDEX(RFCSource,MATCH(B199,CASNoTox,0)),"C","CA")) -> CA | M199: =VLOOKUP(B199,VISL!$B:$W,22,FALSE) ->  | O199: =IF(AND(I199="",K199=""),"X","") -> 
B201: Notes:
... 41 more rows

Sheet IA_risk_calc
A1: x | B1: OSWER VAPOR INTRUSION ASSESSMENT
A2: x | B2: Indoor Air Concentration to Risk (IAC-Risk) Calculator Version 3.5, June 2017 RSLs
A3: x
A4: x | B4: Parameter | D4: Symbol | E4: Value | F4: Instructions
A5: x | B5: Exposure Scenario | D5: Scenario | E5: Residential | F5: Select residential or commercial scenario from pull down list
A6: x | B6: Target Risk for Carcinogens | D6: TCR | E6: 1e-06 | F6: Enter target risk for carcinogens (for comparison to the calculated VI carcinogenic risk in column E)
A7: x | B7: Target Hazard Quotient for Non-Carcinogens | D7: THQ | E7: 1 | F7: Enter target hazard quotient for non-carcinogens (for comparison to the calculated VI hazard in column F)
A9: x
A10: x | D10: Site Indoor Air Concentration | E10: VI Carcinogenic Risk | F10: VI Hazard | H10: Inhalation Unit Risk | I10: IUR Source* | J10: Reference Concentration | K10: RFC Source* | L10: Mutagenic Indicator
A11: x | D11: Cia | E11: CR | F11: HQ | H11: IUR | J11: RfC
A12: x | B12: CAS | C12: Chemical Name | D12: (ug/m3) | H12: (ug/m3)-1 | J12: (mg/m3) | L12: i
A13: =IF(INDEX(VISL!A:A,MATCH(B13,VISL!B:B,0))="x","x","") ->  | B13: 75-07-0 | C13: Acetaldehyde | E13: =IF(OR(D13="",ISTEXT(D13)),"--",IF(H13="","No IUR",IF(L13<>"TCE",D13*(IF(AND(L13="VC",Scenario_IA="Residential"),H13,0)+H13*IF(L13="Mut",MMOAAF_IA,ED_IA)*EF_IA*ET_IA/(ATc_IA*365*24)),D13*mIURTCE_IA*MMOAAF_IA*EF_IA*ET_IA/(ATc_IA*365*24)+D13*IURTCE_IA*ED_IA*EF_IA*ET_IA/(ATc_IA*365*24)))) -> -- | F13: =IF(OR(D13="",ISTEXT(D13)),"--",IF(J13="","No RfC",D13*EF_IA*ED_IA*ET_IA/(J13*ATnc_IA*365*24*1000))) -> -- | H13: =IF(INDEX(IUR,MATCH(B13,CASNoTox,0))=" ","",IF(L13="TCE","see note",INDEX(IUR,MATCH(B13,CASNoTox,0)))) -> 2.2e-06 | I13: =IF(INDEX(IURSource,MATCH(B13,CASNoTox,0))="","",SUBSTITUTE(INDEX(IURSource,MATCH(B13,CASNoTox,0)),"C","CA")) -> I | J13: =IF(INDEX(RFC,MATCH(B13,CASNoTox,0))=" ","",INDEX(RFC,MATCH(B13,CASNoTox,0))) -> 0.009 | K13: =IF(INDEX(RFCSource,MATCH(B13,CASNoTox,0))="","",SUBSTITUTE(INDEX(RFCSource,MATCH(B13,CASNoTox,0)),"C","CA")) -> I | L13: =VLOOKUP(B13,VISL!$B:$W,22,FALSE) ->  | N13: =IF(AND(H13="",J13=""),"X","") -> 
A14: =IF(INDEX(VISL!A:A,MATCH(B14,VISL!B:B,0))="x","x","") ->  | B14: 67-64-1 | C14: Acetone | E14: -- | F14: -- | J14: 31 | K14: A | L14: =VLOOKUP(B14,VISL!$B:$W,22,FALSE) -> 
B15: 75-05-8 | C15: Acetonitrile
B16: 107-02-8 | C16: Acrolein
B17: 79-10-7 | C17: Acrylic Acid
B18: 107-13-1 | C18: Acrylonitrile
B19: 309-00-2 | C19: Aldrin
B20: 107-18-6 | C20: Allyl Alcohol
B21: 107-05-1 | C21: Allyl Chloride
B22: 7664-41-7 | C22: Ammonia
A23: =IF(INDEX(VISL!A:A,MATCH(B23,VISL!B:B,0))="x","x","") ->  | B23: 75-85-4 | C23: Amyl Alcohol, tert- | E23: -- | F23: -- | J23: 0.003 | K23: X | L23: =VLOOKUP(B23,VISL!$B:$W,22,FALSE) -> 
A24: =IF(INDEX(VISL!A:A,MATCH(B24,VISL!B:B,0))="x","x","") ->  | B24: 12674-11-2 | C24: Aroclor 1016 | E24: -- | F24: -- | H24: 2e-05 | I24: S | L24: =VLOOKUP(B24,VISL!$B:$W,22,FALSE) -> 
A25: =IF(INDEX(VISL!A:A,MATCH(B25,VISL!B:B,0))="x","x","") ->  | B25: 11104-28-2 | C25: Aroclor 1221 | E25: -- | F25: -- | H25: 0.00057 | I25: S | L25: =VLOOKUP(B25,VISL!$B:$W,22,FALSE) -> 
A26: =IF(INDEX(VISL!A:A,MATCH(B26,VISL!B:B,0))="x","x","") ->  | B26: 11141-16-5 | C26: Aroclor 1232 | E26: -- | F26: -- | H26: 0.00057 | I26: S | L26: =VLOOKUP(B26,VISL!$B:$W,22,FALSE) -> 
A27: =IF(INDEX(VISL!A:A,MATCH(B27,VISL!B:B,0))="x","x","") ->  | B27: 53469-21-9 | C27: Aroclor 1242 | E27: -- | F27: -- | H27: 0.00057 | I27: S | L27: =VLOOKUP(B27,VISL!$B:$W,22,FALSE) -> 
A28: =IF(INDEX(VISL!A:A,MATCH(B28,VISL!B:B,0))="x","x","") ->  | B28: 12672-29-6 | C28: Aroclor 1248 | E28: =IF(OR(D28="",ISTEXT(D28)),"--",IF(H28="","No IUR",IF(L28<>"TCE",D28*(IF(AND(L28="VC",Scenario_IA="Residential"),H28,0)+H28*IF(L28="Mut",MMOAAF_IA,ED_IA)*EF_IA*ET_IA/(ATc_IA*365*24)),D28*mIURTCE_IA*MMOAAF_IA*EF_IA*ET_IA/(ATc_IA*365*24)+D28*IURTCE_IA*ED_IA*EF_IA*ET_IA/(ATc_IA*365*24)))) -> -- | F28: =IF(OR(D28="",ISTEXT(D28)),"--",IF(J28="","No RfC",D28*EF_IA*ED_IA*ET_IA/(J28*ATnc_IA*365*24*1000))) -> -- | H28: =IF(INDEX(IUR,MATCH(B28,CASNoTox,0))=" ","",IF(L28="TCE","see note",INDEX(IUR,MATCH(B28,CASNoTox,0)))) -> 0.00057 | I28: =IF(INDEX(IURSource,MATCH(B28,CASNoTox,0))="","",SUBSTITUTE(INDEX(IURSource,MATCH(B28,CASNoTox,0)),"C","CA")) -> S | J28: =IF(INDEX(RFC,MATCH(B28,CASNoTox,0))=" ","",INDEX(RFC,MATCH(B28,CASNoTox,0))) ->  | K28: =IF(INDEX(RFCSource,MATCH(B28,CASNoTox,0))="","",SUBSTITUTE(INDEX(RFCSource,MATCH(B28,CASNoTox,0)),"C","CA")) ->  | L28: =VLOOKUP(B28,VISL!$B:$W,22,FALSE) -> 
A29: =IF(INDEX(VISL!A:A,MATCH(B29,VISL!B:B,0))="x","x","") ->  | B29: 11097-69-1 | C29: Aroclor 1254 | E29: -- | F29: -- | H29: 0.00057 | I29: S | L29: =VLOOKUP(B29,VISL!$B:$W,22,FALSE) -> 
A30: =IF(INDEX(VISL!A:A,MATCH(B30,VISL!B:B,0))="x","x","") ->  | B30: 11096-82-5 | C30: Aroclor 1260 | E30: -- | F30: -- | H30: 0.00057 | I30: S | L30: =VLOOKUP(B30,VISL!$B:$W,22,FALSE) -> 
A31: =IF(INDEX(VISL!A:A,MATCH(B31,VISL!B:B,0))="x","x","") ->  | B31: 103-33-3 | C31: Azobenzene | E31: -- | F31: -- | H31: 3.1e-05 | I31: I | L31: =VLOOKUP(B31,VISL!$B:$W,22,FALSE) -> 
A32: =IF(INDEX(VISL!A:A,MATCH(B32,VISL!B:B,0))="x","x","") ->  | B32: 56-55-3 | C32: Benz[a]anthracene | E32: -- | F32: -- | H32: 6e-05 | I32: E | L32: =VLOOKUP(B32,VISL!$B:$W,22,FALSE) -> Mut
A33: =IF(INDEX(VISL!A:A,MATCH(B33,VISL!B:B,0))="x","x","") ->  | B33: 71-43-2 | C33: Benzene | E33: -- | F33: -- | H33: 7.8e-06 | I33: I | J33: 0.03 | K33: I | L33: =VLOOKUP(B33,VISL!$B:$W,22,FALSE) -> 
A34: =IF(INDEX(VISL!A:A,MATCH(B34,VISL!B:B,0))="x","x","") ->  | B34: 100-44-7 | C34: Benzyl Chloride | E34: -- | F34: -- | H34: 4.9e-05 | I34: CA | J34: 0.001 | K34: P | L34: =VLOOKUP(B34,VISL!$B:$W,22,FALSE) -> 
A35: =IF(INDEX(VISL!A:A,MATCH(B35,VISL!B:B,0))="x","x","") ->  | B35: 92-52-4 | C35: Biphenyl, 1,1'- | E35: -- | F35: -- | J35: 0.0004 | K35: X | L35: =VLOOKUP(B35,VISL!$B:$W,22,FALSE) -> 
A36: =IF(INDEX(VISL!A:A,MATCH(B36,VISL!B:B,0))="x","x","") ->  | B36: 111-44-4 | C36: Bis(2-chloroethyl)ether | E36: -- | F36: -- | H36: 0.00033 | I36: I | L36: =VLOOKUP(B36,VISL!$B:$W,22,FALSE) -> 
A37: =IF(INDEX(VISL!A:A,MATCH(B37,VISL!B:B,0))="x","x","") ->  | B37: 542-88-1 | C37: Bis(chloromethyl)ether | E37: -- | F37: -- | H37: 0.062 | I37: I | L37: =VLOOKUP(B37,VISL!$B:$W,22,FALSE) -> 
A38: =IF(INDEX(VISL!A:A,MATCH(B38,VISL!B:B,0))="x","x","") ->  | B38: 10294-34-5 | C38: Boron Trichloride | E38: -- | F38: -- | J38: 0.02 | K38: P | L38: =VLOOKUP(B38,VISL!$B:$W,22,FALSE) -> 
A39: =IF(INDEX(VISL!A:A,MATCH(B39,VISL!B:B,0))="x","x","") ->  | B39: 7637-07-2 | C39: Boron Trifluoride | E39: -- | F39: -- | J39: 0.013 | K39: CA | L39: =VLOOKUP(B39,VISL!$B:$W,22,FALSE) -> 
A40: =IF(INDEX(VISL!A:A,MATCH(B40,VISL!B:B,0))="x","x","") ->  | B40: 107-04-0 | C40: Bromo-2-chloroethane, 1- | E40: -- | F40: -- | H40: 0.0006 | I40: X | L40: =VLOOKUP(B40,VISL!$B:$W,22,FALSE) -> 
A41: =IF(INDEX(VISL!A:A,MATCH(B41,VISL!B:B,0))="x","x","") ->  | B41: 108-86-1 | C41: Bromobenzene | E41: -- | F41: -- | J41: 0.06 | K41: I | L41: =VLOOKUP(B41,VISL!$B:$W,22,FALSE) -> 
A42: =IF(INDEX(VISL!A:A,MATCH(B42,VISL!B:B,0))="x","x","") ->  | B42: 74-97-5 | C42: Bromochloromethane | E42: -- | F42: -- | J42: 0.04 | K42: X | L42: =VLOOKUP(B42,VISL!$B:$W,22,FALSE) -> 
A43: =IF(INDEX(VISL!A:A,MATCH(B43,VISL!B:B,0))="x","x","") ->  | B43: 75-27-4 | C43: Bromodichloromethane | E43: -- | F43: -- | H43: 3.7e-05 | I43: CA | L43: =VLOOKUP(B43,VISL!$B:$W,22,FALSE) -> 
A44: =IF(INDEX(VISL!A:A,MATCH(B44,VISL!B:B,0))="x","x","") ->  | B44: 75-25-2 | C44: Bromoform | E44: -- | F44: -- | H44: 1.1e-06 | I44: I | L44: =VLOOKUP(B44,VISL!$B:$W,22,FALSE) -> 
A45: =IF(INDEX(VISL!A:A,MATCH(B45,VISL!B:B,0))="x","x","") ->  | B45: 74-83-9 | C45: Bromomethane | E45: -- | F45: -- | J45: 0.005 | K45: I | L45: =VLOOKUP(B45,VISL!$B:$W,22,FALSE) -> 
A46: =IF(INDEX(VISL!A:A,MATCH(B46,VISL!B:B,0))="x","x","") ->  | B46: 106-99-0 | C46: Butadiene, 1,3- | E46: -- | F46: -- | H46: 3e-05 | I46: I | J46: 0.002 | K46: I | L46: =VLOOKUP(B46,VISL!$B:$W,22,FALSE) -> 
A47: =IF(INDEX(VISL!A:A,MATCH(B47,VISL!B:B,0))="x","x","") ->  | B47: 78-92-2 | C47: Butyl alcohol, sec- | E47: =IF(OR(D47="",ISTEXT(D47)),"--",IF(H47="","No IUR",IF(L47<>"TCE",D47*(IF(AND(L47="VC",Scenario_IA="Residential"),H47,0)+H47*IF(L47="Mut",MMOAAF_IA,ED_IA)*EF_IA*ET_IA/(ATc_IA*365*24)),D47*mIURTCE_IA*MMOAAF_IA*EF_IA*ET_IA/(ATc_IA*365*24)+D47*IURTCE_IA*ED_IA*EF_IA*ET_IA/(ATc_IA*365*24)))) -> -- | F47: =IF(OR(D47="",ISTEXT(D47)),"--",IF(J47="","No RfC",D47*EF_IA*ED_IA*ET_IA/(J47*ATnc_IA*365*24*1000))) -> -- | H47: =IF(INDEX(IUR,MATCH(B47,CASNoTox,0))=" ","",IF(L47="TCE","see note",INDEX(IUR,MATCH(B47,CASNoTox,0)))) ->  | I47: =IF(INDEX(IURSource,MATCH(B47,CASNoTox,0))="","",SUBSTITUTE(INDEX(IURSource,MATCH(B47,CASNoTox,0)),"C","CA")) ->  | J47: =IF(INDEX(RFC,MATCH(B47,CASNoTox,0))=" ","",INDEX(RFC,MATCH(B47,CASNoTox,0))) -> 30 | K47: =IF(INDEX(RFCSource,MATCH(B47,CASNoTox,0))="","",SUBSTITUTE(INDEX(RFCSource,MATCH(B47,CASNoTox,0)),"C","CA")) -> P | L47: =VLOOKUP(B47,VISL!$B:$W,22,FALSE) -> 
A48: =IF(INDEX(VISL!A:A,MATCH(B48,VISL!B:B,0))="x","x","") ->  | B48: 75-15-0 | C48: Carbon Disulfide | E48: -- | F48: -- | J48: 0.7 | K48: I | L48: =VLOOKUP(B48,VISL!$B:$W,22,FALSE) -> 
A49: =IF(INDEX(VISL!A:A,MATCH(B49,VISL!B:B,0))="x","x","") ->  | B49: 56-23-5 | C49: Carbon Tetrachloride | E49: -- | F49: -- | H49: 6e-06 | I49: I | J49: 0.1 | K49: I | L49: =VLOOKUP(B49,VISL!$B:$W,22,FALSE) -> 
A50: =IF(INDEX(VISL!A:A,MATCH(B50,VISL!B:B,0))="x","x","") ->  | B50: 463-58-1 | C50: Carbonyl Sulfide | E50: -- | F50: -- | J50: 0.1 | K50: P | L50: =VLOOKUP(B50,VISL!$B:$W,22,FALSE) -> 
A51: =IF(INDEX(VISL!A:A,MATCH(B51,VISL!B:B,0))="x","x","") ->  | B51: 12789-03-6 | C51: Chlordane | E51: -- | F51: -- | H51: 0.0001 | I51: I | J51: 0.0007 | K51: I | L51: =VLOOKUP(B51,VISL!$B:$W,22,FALSE) -> 
A52: =IF(INDEX(VISL!A:A,MATCH(B52,VISL!B:B,0))="x","x","") ->  | B52: 7782-50-5 | C52: Chlorine | E52: -- | F52: -- | J52: 0.00015 | K52: A | L52: =VLOOKUP(B52,VISL!$B:$W,22,FALSE) -> 
A53: =IF(INDEX(VISL!A:A,MATCH(B53,VISL!B:B,0))="x","x","") ->  | B53: 10049-04-4 | C53: Chlorine Dioxide | E53: -- | F53: -- | J53: 0.0002 | K53: I | L53: =VLOOKUP(B53,VISL!$B:$W,22,FALSE) -> 
A54: =IF(INDEX(VISL!A:A,MATCH(B54,VISL!B:B,0))="x","x","") ->  | B54: 75-68-3 | C54: Chloro-1,1-difluoroethane, 1- | E54: -- | F54: -- | J54: 50 | K54: I | L54: =VLOOKUP(B54,VISL!$B:$W,22,FALSE) -> 
A55: =IF(INDEX(VISL!A:A,MATCH(B55,VISL!B:B,0))="x","x","") ->  | B55: 126-99-8 | C55: Chloro-1,3-butadiene, 2- | E55: -- | F55: -- | H55: 0.0003 | I55: I | J55: 0.02 | K55: I | L55: =VLOOKUP(B55,VISL!$B:$W,22,FALSE) -> 
A56: =IF(INDEX(VISL!A:A,MATCH(B56,VISL!B:B,0))="x","x","") ->  | B56: 108-90-7 | C56: Chlorobenzene | E56: -- | F56: -- | J56: 0.05 | K56: P | L56: =VLOOKUP(B56,VISL!$B:$W,22,FALSE) -> 
A57: =IF(INDEX(VISL!A:A,MATCH(B57,VISL!B:B,0))="x","x","") ->  | B57: 98-56-6 | C57: Chlorobenzotrifluoride, 4- | E57: -- | F57: -- | J57: 0.3 | K57: P | L57: =VLOOKUP(B57,VISL!$B:$W,22,FALSE) -> 
A58: =IF(INDEX(VISL!A:A,MATCH(B58,VISL!B:B,0))="x","x","") ->  | B58: 75-45-6 | C58: Chlorodifluoromethane | E58: =IF(OR(D58="",ISTEXT(D58)),"--",IF(H58="","No IUR",IF(L58<>"TCE",D58*(IF(AND(L58="VC",Scenario_IA="Residential"),H58,0)+H58*IF(L58="Mut",MMOAAF_IA,ED_IA)*EF_IA*ET_IA/(ATc_IA*365*24)),D58*mIURTCE_IA*MMOAAF_IA*EF_IA*ET_IA/(ATc_IA*365*24)+D58*IURTCE_IA*ED_IA*EF_IA*ET_IA/(ATc_IA*365*24)))) -> -- | F58: =IF(OR(D58="",ISTEXT(D58)),"--",IF(J58="","No RfC",D58*EF_IA*ED_IA*ET_IA/(J58*ATnc_IA*365*24*1000))) -> -- | H58: =IF(INDEX(IUR,MATCH(B58,CASNoTox,0))=" ","",IF(L58="TCE","see note",INDEX(IUR,MATCH(B58,CASNoTox,0)))) ->  | I58: =IF(INDEX(IURSource,MATCH(B58,CASNoTox,0))="","",SUBSTITUTE(INDEX(IURSource,MATCH(B58,CASNoTox,0)),"C","CA")) ->  | J58: =IF(INDEX(RFC,MATCH(B58,CASNoTox,0))=" ","",INDEX(RFC,MATCH(B58,CASNoTox,0))) -> 50 | K58: =IF(INDEX(RFCSource,MATCH(B58,CASNoTox,0))="","",SUBSTITUTE(INDEX(RFCSource,MATCH(B58,CASNoTox,0)),"C","CA")) -> I | L58: =VLOOKUP(B58,VISL!$B:$W,22,FALSE) -> 
A59: =IF(INDEX(VISL!A:A,MATCH(B59,VISL!B:B,0))="x","x","") ->  | B59: 67-66-3 | C59: Chloroform | E59: -- | F59: -- | H59: 2.3e-05 | I59: I | J59: 0.098 | K59: A | L59: =VLOOKUP(B59,VISL!$B:$W,22,FALSE) -> 
A60: =IF(INDEX(VISL!A:A,MATCH(B60,VISL!B:B,0))="x","x","") ->  | B60: 74-87-3 | C60: Chloromethane | E60: -- | F60: -- | J60: 0.09 | K60: I | L60: =VLOOKUP(B60,VISL!$B:$W,22,FALSE) -> 
A61: =IF(INDEX(VISL!A:A,MATCH(B61,VISL!B:B,0))="x","x","") ->  | B61: 107-30-2 | C61: Chloromethyl Methyl Ether | E61: -- | F61: -- | H61: 0.00069 | I61: CA | L61: =VLOOKUP(B61,VISL!$B:$W,22,FALSE) -> 
A62: =IF(INDEX(VISL!A:A,MATCH(B62,VISL!B:B,0))="x","x","") ->  | B62: 76-06-2 | C62: Chloropicrin | E62: -- | F62: -- | J62: 0.0004 | K62: CA | L62: =VLOOKUP(B62,VISL!$B:$W,22,FALSE) -> 
A63: =IF(INDEX(VISL!A:A,MATCH(B63,VISL!B:B,0))="x","x","") ->  | B63: 8007-45-2 | C63: Coke Oven Emissions | E63: -- | F63: -- | H63: 0.00062 | I63: I | L63: =VLOOKUP(B63,VISL!$B:$W,22,FALSE) -> Mut
A64: =IF(INDEX(VISL!A:A,MATCH(B64,VISL!B:B,0))="x","x","") ->  | B64: 98-82-8 | C64: Cumene | E64: -- | F64: -- | J64: 0.4 | K64: I | L64: =VLOOKUP(B64,VISL!$B:$W,22,FALSE) ->  | N64: =IF(AND(H64="",J64=""),"X","") -> 
A65: =IF(INDEX(VISL!A:A,MATCH(B65,VISL!B:B,0))="x","x","") ->  | B65: 57-12-5 | C65: Cyanide (CN-) | E65: -- | F65: -- | J65: 0.0008 | K65: S | L65: =VLOOKUP(B65,VISL!$B:$W,22,FALSE) -> 
A66: =IF(INDEX(VISL!A:A,MATCH(B66,VISL!B:B,0))="x","x","") ->  | B66: 110-82-7 | C66: Cyclohexane | E66: -- | F66: -- | J66: 6 | K66: I | L66: =VLOOKUP(B66,VISL!$B:$W,22,FALSE) -> 
A67: =IF(INDEX(VISL!A:A,MATCH(B67,VISL!B:B,0))="x","x","") ->  | B67: 108-94-1 | C67: Cyclohexanone | E67: -- | F67: -- | J67: 0.7 | K67: P | L67: =VLOOKUP(B67,VISL!$B:$W,22,FALSE) -> 
A68: =IF(INDEX(VISL!A:A,MATCH(B68,VISL!B:B,0))="x","x","") ->  | B68: 110-83-8 | C68: Cyclohexene | E68: -- | F68: -- | J68: 1 | K68: X | L68: =VLOOKUP(B68,VISL!$B:$W,22,FALSE) -> 
A69: =IF(INDEX(VISL!A:A,MATCH(B69,VISL!B:B,0))="x","x","") ->  | B69: 72-55-9 | C69: DDE, p,p'- | E69: =IF(OR(D69="",ISTEXT(D69)),"--",IF(H69="","No IUR",IF(L69<>"TCE",D69*(IF(AND(L69="VC",Scenario_IA="Residential"),H69,0)+H69*IF(L69="Mut",MMOAAF_IA,ED_IA)*EF_IA*ET_IA/(ATc_IA*365*24)),D69*mIURTCE_IA*MMOAAF_IA*EF_IA*ET_IA/(ATc_IA*365*24)+D69*IURTCE_IA*ED_IA*EF_IA*ET_IA/(ATc_IA*365*24)))) -> -- | F69: =IF(OR(D69="",ISTEXT(D69)),"--",IF(J69="","No RfC",D69*EF_IA*ED_IA*ET_IA/(J69*ATnc_IA*365*24*1000))) -> -- | H69: =IF(INDEX(IUR,MATCH(B69,CASNoTox,0))=" ","",IF(L69="TCE","see note",INDEX(IUR,MATCH(B69,CASNoTox,0)))) -> 9.7e-05 | I69: =IF(INDEX(IURSource,MATCH(B69,CASNoTox,0))="","",SUBSTITUTE(INDEX(IURSource,MATCH(B69,CASNoTox,0)),"C","CA")) -> CA | J69: =IF(INDEX(RFC,MATCH(B69,CASNoTox,0))=" ","",INDEX(RFC,MATCH(B69,CASNoTox,0))) ->  | K69: =IF(INDEX(RFCSource,MATCH(B69,CASNoTox,0))="","",SUBSTITUTE(INDEX(RFCSource,MATCH(B69,CASNoTox,0)),"C","CA")) ->  | L69: =VLOOKUP(B69,VISL!$B:$W,22,FALSE) -> 
A70: =IF(INDEX(VISL!A:A,MATCH(B70,VISL!B:B,0))="x","x","") ->  | B70: 96-12-8 | C70: Dibromo-3-chloropropane, 1,2- | E70: =IF(OR(D70="",ISTEXT(D70)),"--",IF(H70="","No IUR",IF(L70<>"TCE",D70*(IF(AND(L70="VC",Scenario_IA="Residential"),H70,0)+H70*IF(L70="Mut",MMOAAF_IA,ED_IA)*EF_IA*ET_IA/(ATc_IA*365*24)),D70*mIURTCE_IA*MMOAAF_IA*EF_IA*ET_IA/(ATc_IA*365*24)+D70*IURTCE_IA*ED_IA*EF_IA*ET_IA/(ATc_IA*365*24)))) -> -- | F70: =IF(OR(D70="",ISTEXT(D70)),"--",IF(J70="","No RfC",D70*EF_IA*ED_IA*ET_IA/(J70*ATnc_IA*365*24*1000))) -> -- | H70: =IF(INDEX(IUR,MATCH(B70,CASNoTox,0))=" ","",IF(L70="TCE","see note",INDEX(IUR,MATCH(B70,CASNoTox,0)))) -> 0.006 | I70: =IF(INDEX(IURSource,MATCH(B70,CASNoTox,0))="","",SUBSTITUTE(INDEX(IURSource,MATCH(B70,CASNoTox,0)),"C","CA")) -> P | J70: =IF(INDEX(RFC,MATCH(B70,CASNoTox,0))=" ","",INDEX(RFC,MATCH(B70,CASNoTox,0))) -> 0.0002 | K70: =IF(INDEX(RFCSource,MATCH(B70,CASNoTox,0))="","",SUBSTITUTE(INDEX(RFCSource,MATCH(B70,CASNoTox,0)),"C","CA")) -> I | L70: =VLOOKUP(B70,VISL!$B:$W,22,FALSE) -> Mut | N70: =IF(AND(H70="",J70=""),"X","") -> 
A71: =IF(INDEX(VISL!A:A,MATCH(B71,VISL!B:B,0))="x","x","") ->  | B71: 106-93-4 | C71: Dibromoethane, 1,2- | E71: -- | F71: -- | H71: 0.0006 | I71: I | J71: 0.009 | K71: I | L71: =VLOOKUP(B71,VISL!$B:$W,22,FALSE) -> 
A72: =IF(INDEX(VISL!A:A,MATCH(B72,VISL!B:B,0))="x","x","") ->  | B72: 74-95-3 | C72: Dibromomethane (Methylene Bromide) | E72: -- | F72: -- | J72: 0.004 | K72: X | L72: =VLOOKUP(B72,VISL!$B:$W,22,FALSE) -> 
A73: =IF(INDEX(VISL!A:A,MATCH(B73,VISL!B:B,0))="x","x","") ->  | B73: 764-41-0 | C73: Dichloro-2-butene, 1,4- | E73: -- | F73: -- | H73: 0.0042 | I73: P | L73: =VLOOKUP(B73,VISL!$B:$W,22,FALSE) -> 
A74: =IF(INDEX(VISL!A:A,MATCH(B74,VISL!B:B,0))="x","x","") ->  | B74: 1476-11-5 | C74: Dichloro-2-butene, cis-1,4- | E74: -- | F74: -- | H74: 0.0042 | I74: P | L74: =VLOOKUP(B74,VISL!$B:$W,22,FALSE) -> 
A75: =IF(INDEX(VISL!A:A,MATCH(B75,VISL!B:B,0))="x","x","") ->  | B75: 110-57-6 | C75: Dichloro-2-butene, trans-1,4- | E75: -- | F75: -- | H75: 0.0042 | I75: P | L75: =VLOOKUP(B75,VISL!$B:$W,22,FALSE) -> 
A76: =IF(INDEX(VISL!A:A,MATCH(B76,VISL!B:B,0))="x","x","") ->  | B76: 95-50-1 | C76: Dichlorobenzene, 1,2- | E76: -- | F76: -- | J76: 0.2 | K76: H | L76: =VLOOKUP(B76,VISL!$B:$W,22,FALSE) -> 
A77: =IF(INDEX(VISL!A:A,MATCH(B77,VISL!B:B,0))="x","x","") ->  | B77: 106-46-7 | C77: Dichlorobenzene, 1,4- | E77: -- | F77: -- | H77: 1.1e-05 | I77: CA | J77: 0.8 | K77: I | L77: =VLOOKUP(B77,VISL!$B:$W,22,FALSE) -> 
A78: =IF(INDEX(VISL!A:A,MATCH(B78,VISL!B:B,0))="x","x","") ->  | B78: 75-71-8 | C78: Dichlorodifluoromethane | E78: -- | F78: -- | J78: 0.1 | K78: X | L78: =VLOOKUP(B78,VISL!$B:$W,22,FALSE) -> 
A79: =IF(INDEX(VISL!A:A,MATCH(B79,VISL!B:B,0))="x","x","") ->  | B79: 75-34-3 | C79: Dichloroethane, 1,1- | E79: -- | F79: -- | H79: 1.6e-06 | I79: CA | L79: =VLOOKUP(B79,VISL!$B:$W,22,FALSE) -> 
A80: =IF(INDEX(VISL!A:A,MATCH(B80,VISL!B:B,0))="x","x","") ->  | B80: 107-06-2 | C80: Dichloroethane, 1,2- | E80: -- | F80: -- | H80: 2.6e-05 | I80: I | J80: 0.007 | K80: P | L80: =VLOOKUP(B80,VISL!$B:$W,22,FALSE) -> 
A81: =IF(INDEX(VISL!A:A,MATCH(B81,VISL!B:B,0))="x","x","") ->  | B81: 75-35-4 | C81: Dichloroethylene, 1,1- | E81: -- | F81: -- | J81: 0.2 | K81: I | L81: =VLOOKUP(B81,VISL!$B:$W,22,FALSE) -> 
A82: =IF(INDEX(VISL!A:A,MATCH(B82,VISL!B:B,0))="x","x","") ->  | B82: 78-87-5 | C82: Dichloropropane, 1,2- | E82: -- | F82: -- | H82: 3.7e-06 | I82: P | J82: 0.004 | K82: I | L82: =VLOOKUP(B82,VISL!$B:$W,22,FALSE) -> 
A83: =IF(INDEX(VISL!A:A,MATCH(B83,VISL!B:B,0))="x","x","") ->  | B83: 542-75-6 | C83: Dichloropropene, 1,3- | E83: -- | F83: -- | H83: 4e-06 | I83: I | J83: 0.02 | K83: I | L83: =VLOOKUP(B83,VISL!$B:$W,22,FALSE) -> 
A84: =IF(INDEX(VISL!A:A,MATCH(B84,VISL!B:B,0))="x","x","") ->  | B84: 77-73-6 | C84: Dicyclopentadiene | E84: -- | F84: -- | J84: 0.0003 | K84: X | L84: =VLOOKUP(B84,VISL!$B:$W,22,FALSE) -> 
A85: =IF(INDEX(VISL!A:A,MATCH(B85,VISL!B:B,0))="x","x","") ->  | B85: 75-37-6 | C85: Difluoroethane, 1,1- | E85: -- | F85: -- | J85: 40 | K85: I | L85: =VLOOKUP(B85,VISL!$B:$W,22,FALSE) -> 
A86: =IF(INDEX(VISL!A:A,MATCH(B86,VISL!B:B,0))="x","x","") ->  | B86: 94-58-6 | C86: Dihydrosafrole | E86: -- | F86: -- | H86: 1.3e-05 | I86: CA | L86: =VLOOKUP(B86,VISL!$B:$W,22,FALSE) -> 
A87: =IF(INDEX(VISL!A:A,MATCH(B87,VISL!B:B,0))="x","x","") ->  | B87: 108-20-3 | C87: Diisopropyl Ether | E87: -- | F87: -- | J87: 0.7 | K87: P | L87: =VLOOKUP(B87,VISL!$B:$W,22,FALSE) -> 
A88: =IF(INDEX(VISL!A:A,MATCH(B88,VISL!B:B,0))="x","x","") ->  | B88: 68-12-2 | C88: Dimethylformamide | E88: -- | F88: -- | J88: 0.03 | K88: I | L88: =VLOOKUP(B88,VISL!$B:$W,22,FALSE) -> 
A89: =IF(INDEX(VISL!A:A,MATCH(B89,VISL!B:B,0))="x","x","") ->  | B89: 57-14-7 | C89: Dimethylhydrazine, 1,1- | E89: =IF(OR(D89="",ISTEXT(D89)),"--",IF(H89="","No IUR",IF(L89<>"TCE",D89*(IF(AND(L89="VC",Scenario_IA="Residential"),H89,0)+H89*IF(L89="Mut",MMOAAF_IA,ED_IA)*EF_IA*ET_IA/(ATc_IA*365*24)),D89*mIURTCE_IA*MMOAAF_IA*EF_IA*ET_IA/(ATc_IA*365*24)+D89*IURTCE_IA*ED_IA*EF_IA*ET_IA/(ATc_IA*365*24)))) -> -- | F89: =IF(OR(D89="",ISTEXT(D89)),"--",IF(J89="","No RfC",D89*EF_IA*ED_IA*ET_IA/(J89*ATnc_IA*365*24*1000))) -> -- | H89: =IF(INDEX(IUR,MATCH(B89,CASNoTox,0))=" ","",IF(L89="TCE","see note",INDEX(IUR,MATCH(B89,CASNoTox,0)))) ->  | I89: =IF(INDEX(IURSource,MATCH(B89,CASNoTox,0))="","",SUBSTITUTE(INDEX(IURSource,MATCH(B89,CASNoTox,0)),"C","CA")) ->  | J89: =IF(INDEX(RFC,MATCH(B89,CASNoTox,0))=" ","",INDEX(RFC,MATCH(B89,CASNoTox,0))) -> 2e-06 | K89: =IF(INDEX(RFCSource,MATCH(B89,CASNoTox,0))="","",SUBSTITUTE(INDEX(RFCSource,MATCH(B89,CASNoTox,0)),"C","CA")) -> X | L89: =VLOOKUP(B89,VISL!$B:$W,22,FALSE) -> 
A90: =IF(INDEX(VISL!A:A,MATCH(B90,VISL!B:B,0))="x","x","") ->  | B90: 540-73-8 | C90: Dimethylhydrazine, 1,2- | E90: -- | F90: -- | H90: 0.16 | I90: CA | L90: =VLOOKUP(B90,VISL!$B:$W,22,FALSE) -> 
A91: =IF(INDEX(VISL!A:A,MATCH(B91,VISL!B:B,0))="x","x","") ->  | B91: 513-37-1 | C91: Dimethylvinylchloride | E91: -- | F91: -- | H91: 1.3e-05 | I91: CA | L91: =VLOOKUP(B91,VISL!$B:$W,22,FALSE) -> 
A92: =IF(INDEX(VISL!A:A,MATCH(B92,VISL!B:B,0))="x","x","") ->  | B92: 123-91-1 | C92: Dioxane, 1,4- | E92: -- | F92: -- | H92: 5e-06 | I92: I | J92: 0.03 | K92: I | L92: =VLOOKUP(B92,VISL!$B:$W,22,FALSE) -> 
A93: =IF(INDEX(VISL!A:A,MATCH(B93,VISL!B:B,0))="x","x","") ->  | B93: 106-89-8 | C93: Epichlorohydrin | E93: -- | F93: -- | H93: 1.2e-06 | I93: I | J93: 0.001 | K93: I | L93: =VLOOKUP(B93,VISL!$B:$W,22,FALSE) -> 
A94: =IF(INDEX(VISL!A:A,MATCH(B94,VISL!B:B,0))="x","x","") ->  | B94: 106-88-7 | C94: Epoxybutane, 1,2- | E94: -- | F94: -- | J94: 0.02 | K94: I | L94: =VLOOKUP(B94,VISL!$B:$W,22,FALSE) -> 
A95: =IF(INDEX(VISL!A:A,MATCH(B95,VISL!B:B,0))="x","x","") ->  | B95: 111-15-9 | C95: Ethoxyethanol Acetate, 2- | E95: -- | F95: -- | J95: 0.06 | K95: P | L95: =VLOOKUP(B95,VISL!$B:$W,22,FALSE) -> 
A96: =IF(INDEX(VISL!A:A,MATCH(B96,VISL!B:B,0))="x","x","") ->  | B96: 110-80-5 | C96: Ethoxyethanol, 2- | E96: -- | F96: -- | J96: 0.2 | K96: I | L96: =VLOOKUP(B96,VISL!$B:$W,22,FALSE) -> 
A97: =IF(INDEX(VISL!A:A,MATCH(B97,VISL!B:B,0))="x","x","") ->  | B97: 141-78-6 | C97: Ethyl Acetate | E97: -- | F97: -- | J97: 0.07 | K97: P | L97: =VLOOKUP(B97,VISL!$B:$W,22,FALSE) -> 
A98: =IF(INDEX(VISL!A:A,MATCH(B98,VISL!B:B,0))="x","x","") ->  | B98: 140-88-5 | C98: Ethyl Acrylate | E98: -- | F98: -- | J98: 0.008 | K98: P | L98: =VLOOKUP(B98,VISL!$B:$W,22,FALSE) -> 
A99: =IF(INDEX(VISL!A:A,MATCH(B99,VISL!B:B,0))="x","x","") ->  | B99: 75-00-3 | C99: Ethyl Chloride (Chloroethane) | E99: -- | F99: -- | J99: 10 | K99: I | L99: =VLOOKUP(B99,VISL!$B:$W,22,FALSE) -> 
A100: =IF(INDEX(VISL!A:A,MATCH(B100,VISL!B:B,0))="x","x","") ->  | B100: 97-63-2 | C100: Ethyl Methacrylate | E100: -- | F100: -- | J100: 0.3 | K100: P | L100: =VLOOKUP(B100,VISL!$B:$W,22,FALSE) -> 
A101: =IF(INDEX(VISL!A:A,MATCH(B101,VISL!B:B,0))="x","x","") ->  | B101: 100-41-4 | C101: Ethylbenzene | E101: -- | F101: -- | H101: 2.5e-06 | I101: CA | J101: 1 | K101: I | L101: =VLOOKUP(B101,VISL!$B:$W,22,FALSE) -> 
A102: =IF(INDEX(VISL!A:A,MATCH(B102,VISL!B:B,0))="x","x","") ->  | B102: 75-21-8 | C102: Ethylene Oxide | E102: -- | F102: -- | H102: 0.003 | I102: I | J102: 0.03 | K102: CA | L102: =VLOOKUP(B102,VISL!$B:$W,22,FALSE) -> Mut
A103: =IF(INDEX(VISL!A:A,MATCH(B103,VISL!B:B,0))="x","x","") ->  | B103: 151-56-4 | C103: Ethyleneimine | E103: -- | F103: -- | H103: 0.019 | I103: CA | L103: =VLOOKUP(B103,VISL!$B:$W,22,FALSE) -> 
A104: =IF(INDEX(VISL!A:A,MATCH(B104,VISL!B:B,0))="x","x","") ->  | B104: 50-00-0 | C104: Formaldehyde | E104: -- | F104: -- | H104: 1.3e-05 | I104: I | J104: 0.0098 | K104: A | L104: =VLOOKUP(B104,VISL!$B:$W,22,FALSE) -> 
A105: =IF(INDEX(VISL!A:A,MATCH(B105,VISL!B:B,0))="x","x","") ->  | B105: 64-18-6 | C105: Formic Acid | E105: -- | F105: -- | J105: 0.0003 | K105: X | L105: =VLOOKUP(B105,VISL!$B:$W,22,FALSE) -> 
A106: =IF(INDEX(VISL!A:A,MATCH(B106,VISL!B:B,0))="x","x","") ->  | B106: 98-01-1 | C106: Furfural | E106: -- | F106: -- | J106: 0.05 | K106: H | L106: =VLOOKUP(B106,VISL!$B:$W,22,FALSE) -> 
A107: =IF(INDEX(VISL!A:A,MATCH(B107,VISL!B:B,0))="x","x","") ->  | B107: 765-34-4 | C107: Glycidyl | E107: -- | F107: -- | J107: 0.001 | K107: H | L107: =VLOOKUP(B107,VISL!$B:$W,22,FALSE) ->  | N107: =IF(AND(H107="",J107=""),"X","") -> 
A108: =IF(INDEX(VISL!A:A,MATCH(B108,VISL!B:B,0))="x","x","") ->  | B108: 76-44-8 | C108: Heptachlor | E108: -- | F108: -- | H108: 0.0013 | I108: I | L108: =VLOOKUP(B108,VISL!$B:$W,22,FALSE) -> 
A109: =IF(INDEX(VISL!A:A,MATCH(B109,VISL!B:B,0))="x","x","") ->  | B109: 1024-57-3 | C109: Heptachlor Epoxide | E109: -- | F109: -- | H109: 0.0026 | I109: I | L109: =VLOOKUP(B109,VISL!$B:$W,22,FALSE) -> 
A110: =IF(INDEX(VISL!A:A,MATCH(B110,VISL!B:B,0))="x","x","") ->  | B110: 39635-31-9 | C110: Heptachlorobiphenyl, 2,3,3',4,4',5,5'- (PCB 189) | E110: -- | F110: -- | H110: 0.0011 | I110: E | J110: 0.0013 | K110: E | L110: =VLOOKUP(B110,VISL!$B:$W,22,FALSE) -> 
A111: =IF(INDEX(VISL!A:A,MATCH(B111,VISL!B:B,0))="x","x","") ->  | B111: 118-74-1 | C111: Hexachlorobenzene | E111: -- | F111: -- | H111: 0.00046 | I111: I | L111: =VLOOKUP(B111,VISL!$B:$W,22,FALSE) -> 
A112: =IF(INDEX(VISL!A:A,MATCH(B112,VISL!B:B,0))="x","x","") ->  | B112: 38380-08-4 | C112: Hexachlorobiphenyl, 2,3,3',4,4',5- (PCB 156) | E112: =IF(OR(D112="",ISTEXT(D112)),"--",IF(H112="","No IUR",IF(L112<>"TCE",D112*(IF(AND(L112="VC",Scenario_IA="Residential"),H112,0)+H112*IF(L112="Mut",MMOAAF_IA,ED_IA)*EF_IA*ET_IA/(ATc_IA*365*24)),D112*mIURTCE_IA*MMOAAF_IA*EF_IA*ET_IA/(ATc_IA*365*24)+D112*IURTCE_IA*ED_IA*EF_IA*ET_IA/(ATc_IA*365*24)))) -> -- | F112: =IF(OR(D112="",ISTEXT(D112)),"--",IF(J112="","No RfC",D112*EF_IA*ED_IA*ET_IA/(J112*ATnc_IA*365*24*1000))) -> -- | H112: =IF(INDEX(IUR,MATCH(B112,CASNoTox,0))=" ","",IF(L112="TCE","see note",INDEX(IUR,MATCH(B112,CASNoTox,0)))) -> 0.0011 | I112: =IF(INDEX(IURSource,MATCH(B112,CASNoTox,0))="","",SUBSTITUTE(INDEX(IURSource,MATCH(B112,CASNoTox,0)),"C","CA")) -> E | J112: =IF(INDEX(RFC,MATCH(B112,CASNoTox,0))=" ","",INDEX(RFC,MATCH(B112,CASNoTox,0))) -> 0.0013 | K112: =IF(INDEX(RFCSource,MATCH(B112,CASNoTox,0))="","",SUBSTITUTE(INDEX(RFCSource,MATCH(B112,CASNoTox,0)),"C","CA")) -> E | L112: =VLOOKUP(B112,VISL!$B:$W,22,FALSE) -> 
A113: =IF(INDEX(VISL!A:A,MATCH(B113,VISL!B:B,0))="x","x","") ->  | B113: 69782-90-7 | C113: Hexachlorobiphenyl, 2,3,3',4,4',5'- (PCB 157) | E113: -- | F113: -- | H113: 0.0011 | I113: E | J113: 0.0013 | K113: E | L113: =VLOOKUP(B113,VISL!$B:$W,22,FALSE) -> 
A114: =IF(INDEX(VISL!A:A,MATCH(B114,VISL!B:B,0))="x","x","") ->  | B114: 52663-72-6 | C114: Hexachlorobiphenyl, 2,3',4,4',5,5'- (PCB 167) | E114: -- | F114: -- | H114: 0.0011 | I114: E | J114: 0.0013 | K114: E | L114: =VLOOKUP(B114,VISL!$B:$W,22,FALSE) -> 
A115: =IF(INDEX(VISL!A:A,MATCH(B115,VISL!B:B,0))="x","x","") ->  | B115: 32774-16-6 | C115: Hexachlorobiphenyl, 3,3',4,4',5,5'- (PCB 169) | E115: -- | F115: -- | H115: 1.1 | I115: E | J115: 1.3e-06 | K115: E | L115: =VLOOKUP(B115,VISL!$B:$W,22,FALSE) -> 
A116: =IF(INDEX(VISL!A:A,MATCH(B116,VISL!B:B,0))="x","x","") ->  | B116: 87-68-3 | C116: Hexachlorobutadiene | E116: -- | F116: -- | H116: 2.2e-05 | I116: I | L116: =VLOOKUP(B116,VISL!$B:$W,22,FALSE) -> 
A117: =IF(INDEX(VISL!A:A,MATCH(B117,VISL!B:B,0))="x","x","") ->  | B117: 77-47-4 | C117: Hexachlorocyclopentadiene | E117: -- | F117: -- | J117: 0.0002 | K117: I | L117: =VLOOKUP(B117,VISL!$B:$W,22,FALSE) -> 
A118: =IF(INDEX(VISL!A:A,MATCH(B118,VISL!B:B,0))="x","x","") ->  | B118: 67-72-1 | C118: Hexachloroethane | E118: -- | F118: -- | H118: 1.1e-05 | I118: CA | J118: 0.03 | K118: I | L118: =VLOOKUP(B118,VISL!$B:$W,22,FALSE) -> 
A119: =IF(INDEX(VISL!A:A,MATCH(B119,VISL!B:B,0))="x","x","") ->  | B119: 822-06-0 | C119: Hexamethylene Diisocyanate, 1,6- | E119: -- | F119: -- | J119: 1e-05 | K119: I | L119: =VLOOKUP(B119,VISL!$B:$W,22,FALSE) -> 
A120: =IF(INDEX(VISL!A:A,MATCH(B120,VISL!B:B,0))="x","x","") ->  | B120: 110-54-3 | C120: Hexane, N- | E120: -- | F120: -- | J120: 0.7 | K120: I | L120: =VLOOKUP(B120,VISL!$B:$W,22,FALSE) -> 
A121: =IF(INDEX(VISL!A:A,MATCH(B121,VISL!B:B,0))="x","x","") ->  | B121: 591-78-6 | C121: Hexanone, 2- | E121: -- | F121: -- | J121: 0.03 | K121: I | L121: =VLOOKUP(B121,VISL!$B:$W,22,FALSE) -> 
A122: =IF(INDEX(VISL!A:A,MATCH(B122,VISL!B:B,0))="x","x","") ->  | B122: 302-01-2 | C122: Hydrazine | E122: -- | F122: -- | H122: 0.0049 | I122: I | J122: 3e-05 | K122: P | L122: =VLOOKUP(B122,VISL!$B:$W,22,FALSE) -> 
A123: =IF(INDEX(VISL!A:A,MATCH(B123,VISL!B:B,0))="x","x","") ->  | B123: 7647-01-0 | C123: Hydrogen Chloride | E123: -- | F123: -- | J123: 0.02 | K123: I | L123: =VLOOKUP(B123,VISL!$B:$W,22,FALSE) -> 
A124: =IF(INDEX(VISL!A:A,MATCH(B124,VISL!B:B,0))="x","x","") ->  | B124: 74-90-8 | C124: Hydrogen Cyanide | E124: -- | F124: -- | J124: 0.0008 | K124: I | L124: =VLOOKUP(B124,VISL!$B:$W,22,FALSE) -> 
A125: =IF(INDEX(VISL!A:A,MATCH(B125,VISL!B:B,0))="x","x","") ->  | B125: 7664-39-3 | C125: Hydrogen Fluoride | E125: -- | F125: -- | J125: 0.014 | K125: CA | L125: =VLOOKUP(B125,VISL!$B:$W,22,FALSE) -> 
A126: =IF(INDEX(VISL!A:A,MATCH(B126,VISL!B:B,0))="x","x","") ->  | B126: 7783-06-4 | C126: Hydrogen Sulfide | E126: -- | F126: -- | J126: 0.002 | K126: I | L126: =VLOOKUP(B126,VISL!$B:$W,22,FALSE) -> 
A127: =IF(INDEX(VISL!A:A,MATCH(B127,VISL!B:B,0))="x","x","") ->  | B127: 67-63-0 | C127: Isopropanol | E127: -- | F127: -- | J127: 0.2 | K127: P | L127: =VLOOKUP(B127,VISL!$B:$W,22,FALSE) -> 
A128: =IF(INDEX(VISL!A:A,MATCH(B128,VISL!B:B,0))="x","x","") ->  | B128: 7439-97-6 | C128: Mercury (elemental) | E128: -- | F128: -- | J128: 0.0003 | K128: I | L128: =VLOOKUP(B128,VISL!$B:$W,22,FALSE) -> 
A129: =IF(INDEX(VISL!A:A,MATCH(B129,VISL!B:B,0))="x","x","") ->  | B129: 126-98-7 | C129: Methacrylonitrile | E129: -- | F129: -- | J129: 0.03 | K129: P | L129: =VLOOKUP(B129,VISL!$B:$W,22,FALSE) -> 
A130: =IF(INDEX(VISL!A:A,MATCH(B130,VISL!B:B,0))="x","x","") ->  | B130: 67-56-1 | C130: Methanol | E130: -- | F130: -- | J130: 20 | K130: I | L130: =VLOOKUP(B130,VISL!$B:$W,22,FALSE) -> 
A131: =IF(INDEX(VISL!A:A,MATCH(B131,VISL!B:B,0))="x","x","") ->  | B131: 110-49-6 | C131: Methoxyethanol Acetate, 2- | E131: -- | F131: -- | J131: 0.001 | K131: P | L131: =VLOOKUP(B131,VISL!$B:$W,22,FALSE) -> 
A132: =IF(INDEX(VISL!A:A,MATCH(B132,VISL!B:B,0))="x","x","") ->  | B132: 109-86-4 | C132: Methoxyethanol, 2- | E132: -- | F132: -- | J132: 0.02 | K132: I | L132: =VLOOKUP(B132,VISL!$B:$W,22,FALSE) -> 
A133: =IF(INDEX(VISL!A:A,MATCH(B133,VISL!B:B,0))="x","x","") ->  | B133: 96-33-3 | C133: Methyl Acrylate | E133: -- | F133: -- | J133: 0.02 | K133: P | L133: =VLOOKUP(B133,VISL!$B:$W,22,FALSE) -> 
A134: =IF(INDEX(VISL!A:A,MATCH(B134,VISL!B:B,0))="x","x","") ->  | B134: 78-93-3 | C134: Methyl Ethyl Ketone (2-Butanone) | E134: -- | F134: -- | J134: 5 | K134: I | L134: =VLOOKUP(B134,VISL!$B:$W,22,FALSE) -> 
A135: =IF(INDEX(VISL!A:A,MATCH(B135,VISL!B:B,0))="x","x","") ->  | B135: 60-34-4 | C135: Methyl Hydrazine | E135: -- | F135: -- | H135: 0.001 | I135: X | J135: 2e-05 | K135: X | L135: =VLOOKUP(B135,VISL!$B:$W,22,FALSE) -> 
A136: =IF(INDEX(VISL!A:A,MATCH(B136,VISL!B:B,0))="x","x","") ->  | B136: 108-10-1 | C136: Methyl Isobutyl Ketone (4-methyl-2-pentanone) | E136: -- | F136: -- | J136: 3 | K136: I | L136: =VLOOKUP(B136,VISL!$B:$W,22,FALSE) -> 
A137: =IF(INDEX(VISL!A:A,MATCH(B137,VISL!B:B,0))="x","x","") ->  | B137: 624-83-9 | C137: Methyl Isocyanate | E137: =IF(OR(D137="",ISTEXT(D137)),"--",IF(H137="","No IUR",IF(L137<>"TCE",D137*(IF(AND(L137="VC",Scenario_IA="Residential"),H137,0)+H137*IF(L137="Mut",MMOAAF_IA,ED_IA)*EF_IA*ET_IA/(ATc_IA*365*24)),D137*mIURTCE_IA*MMOAAF_IA*EF_IA*ET_IA/(ATc_IA*365*24)+D137*IURTCE_IA*ED_IA*EF_IA*ET_IA/(ATc_IA*365*24)))) -> -- | F137: =IF(OR(D137="",ISTEXT(D137)),"--",IF(J137="","No RfC",D137*EF_IA*ED_IA*ET_IA/(J137*ATnc_IA*365*24*1000))) -> -- | H137: =IF(INDEX(IUR,MATCH(B137,CASNoTox,0))=" ","",IF(L137="TCE","see note",INDEX(IUR,MATCH(B137,CASNoTox,0)))) ->  | I137: =IF(INDEX(IURSource,MATCH(B137,CASNoTox,0))="","",SUBSTITUTE(INDEX(IURSource,MATCH(B137,CASNoTox,0)),"C","CA")) ->  | J137: =IF(INDEX(RFC,MATCH(B137,CASNoTox,0))=" ","",INDEX(RFC,MATCH(B137,CASNoTox,0))) -> 0.001 | K137: =IF(INDEX(RFCSource,MATCH(B137,CASNoTox,0))="","",SUBSTITUTE(INDEX(RFCSource,MATCH(B137,CASNoTox,0)),"C","CA")) -> CA | L137: =VLOOKUP(B137,VISL!$B:$W,22,FALSE) ->  | N137: =IF(AND(H137="",J137=""),"X","") -> 
A138: =IF(INDEX(VISL!A:A,MATCH(B138,VISL!B:B,0))="x","x","") ->  | B138: 80-62-6 | C138: Methyl Methacrylate | E138: -- | F138: -- | J138: 0.7 | K138: I | L138: =VLOOKUP(B138,VISL!$B:$W,22,FALSE) -> 
A139: =IF(INDEX(VISL!A:A,MATCH(B139,VISL!B:B,0))="x","x","") ->  | B139: 25013-15-4 | C139: Methyl Styrene (Mixed Isomers) | E139: -- | F139: -- | J139: 0.04 | K139: H | L139: =VLOOKUP(B139,VISL!$B:$W,22,FALSE) -> 
A140: =IF(INDEX(VISL!A:A,MATCH(B140,VISL!B:B,0))="x","x","") ->  | B140: 1634-04-4 | C140: Methyl tert-Butyl Ether (MTBE) | E140: -- | F140: -- | H140: 2.6e-07 | I140: CA | J140: 3 | K140: I | L140: =VLOOKUP(B140,VISL!$B:$W,22,FALSE) -> 
A141: =IF(INDEX(VISL!A:A,MATCH(B141,VISL!B:B,0))="x","x","") ->  | B141: 75-09-2 | C141: Methylene Chloride | E141: -- | F141: -- | H141: 1e-08 | I141: I | J141: 0.6 | K141: I | L141: =VLOOKUP(B141,VISL!$B:$W,22,FALSE) -> Mut
A142: =IF(INDEX(VISL!A:A,MATCH(B142,VISL!B:B,0))="x","x","") ->  | B142: 2385-85-5 | C142: Mirex | E142: -- | F142: -- | H142: 0.0051 | I142: CA | L142: =VLOOKUP(B142,VISL!$B:$W,22,FALSE) -> 
A143: =IF(INDEX(VISL!A:A,MATCH(B143,VISL!B:B,0))="x","x","") ->  | B143: 64742-95-6 | C143: Naphtha, High Flash Aromatic (HFAN) | E143: -- | F143: -- | J143: 0.1 | K143: P | L143: =VLOOKUP(B143,VISL!$B:$W,22,FALSE) -> 
A144: =IF(INDEX(VISL!A:A,MATCH(B144,VISL!B:B,0))="x","x","") ->  | B144: 91-20-3 | C144: Naphthalene | E144: -- | F144: -- | H144: 3.4e-05 | I144: CA | J144: 0.003 | K144: I | L144: =VLOOKUP(B144,VISL!$B:$W,22,FALSE) -> 
A145: =IF(INDEX(VISL!A:A,MATCH(B145,VISL!B:B,0))="x","x","") ->  | B145: 13463-39-3 | C145: Nickel Carbonyl | E145: -- | F145: -- | H145: 0.00026 | I145: CA | J145: 1.4e-05 | K145: CA | L145: =VLOOKUP(B145,VISL!$B:$W,22,FALSE) -> 
A146: =IF(INDEX(VISL!A:A,MATCH(B146,VISL!B:B,0))="x","x","") ->  | B146: 98-95-3 | C146: Nitrobenzene | E146: -- | F146: -- | H146: 4e-05 | I146: I | J146: 0.009 | K146: I | L146: =VLOOKUP(B146,VISL!$B:$W,22,FALSE) -> 
A147: =IF(INDEX(VISL!A:A,MATCH(B147,VISL!B:B,0))="x","x","") ->  | B147: 75-52-5 | C147: Nitromethane | E147: -- | F147: -- | H147: 8.8e-06 | I147: P | J147: 0.005 | K147: P | L147: =VLOOKUP(B147,VISL!$B:$W,22,FALSE) -> 
A148: =IF(INDEX(VISL!A:A,MATCH(B148,VISL!B:B,0))="x","x","") ->  | B148: 79-46-9 | C148: Nitropropane, 2- | E148: -- | F148: -- | H148: 0.0027 | I148: H | J148: 0.02 | K148: I | L148: =VLOOKUP(B148,VISL!$B:$W,22,FALSE) -> 
A149: =IF(INDEX(VISL!A:A,MATCH(B149,VISL!B:B,0))="x","x","") ->  | B149: 62-75-9 | C149: Nitrosodimethylamine, N- | E149: -- | F149: -- | H149: 0.014 | I149: I | J149: 4e-05 | K149: X | L149: =VLOOKUP(B149,VISL!$B:$W,22,FALSE) -> Mut
A150: =IF(INDEX(VISL!A:A,MATCH(B150,VISL!B:B,0))="x","x","") ->  | B150: 924-16-3 | C150: Nitroso-di-N-butylamine, N- | E150: -- | F150: -- | H150: 0.0016 | I150: I | L150: =VLOOKUP(B150,VISL!$B:$W,22,FALSE) -> 
A151: =IF(INDEX(VISL!A:A,MATCH(B151,VISL!B:B,0))="x","x","") ->  | B151: 10595-95-6 | C151: Nitrosomethylethylamine, N- | E151: -- | F151: -- | H151: 0.0063 | I151: CA | L151: =VLOOKUP(B151,VISL!$B:$W,22,FALSE) -> 
A152: =IF(INDEX(VISL!A:A,MATCH(B152,VISL!B:B,0))="x","x","") ->  | B152: 111-84-2 | C152: Nonane, n- | E152: -- | F152: -- | J152: 0.02 | K152: P | L152: =VLOOKUP(B152,VISL!$B:$W,22,FALSE) -> 
A153: =IF(INDEX(VISL!A:A,MATCH(B153,VISL!B:B,0))="x","x","") ->  | B153: 32598-14-4 | C153: Pentachlorobiphenyl, 2,3,3',4,4'- (PCB 105) | E153: -- | F153: -- | H153: 0.0011 | I153: E | J153: 0.0013 | K153: E | L153: =VLOOKUP(B153,VISL!$B:$W,22,FALSE) -> 
A154: =IF(INDEX(VISL!A:A,MATCH(B154,VISL!B:B,0))="x","x","") ->  | B154: 74472-37-0 | C154: Pentachlorobiphenyl, 2,3,4,4',5- (PCB 114) | E154: -- | F154: -- | H154: 0.0011 | I154: E | J154: 0.0013 | K154: E | L154: =VLOOKUP(B154,VISL!$B:$W,22,FALSE) -> 
A155: =IF(INDEX(VISL!A:A,MATCH(B155,VISL!B:B,0))="x","x","") ->  | B155: 31508-00-6 | C155: Pentachlorobiphenyl, 2,3',4,4',5- (PCB 118) | E155: -- | F155: -- | H155: 0.0011 | I155: E | J155: 0.0013 | K155: E | L155: =VLOOKUP(B155,VISL!$B:$W,22,FALSE) -> 
A156: =IF(INDEX(VISL!A:A,MATCH(B156,VISL!B:B,0))="x","x","") ->  | B156: 65510-44-3 | C156: Pentachlorobiphenyl, 2',3,4,4',5- (PCB 123) | E156: -- | F156: -- | H156: 0.0011 | I156: E | J156: 0.0013 | K156: E | L156: =VLOOKUP(B156,VISL!$B:$W,22,FALSE) -> 
A157: =IF(INDEX(VISL!A:A,MATCH(B157,VISL!B:B,0))="x","x","") ->  | B157: 57465-28-8 | C157: Pentachlorobiphenyl, 3,3',4,4',5- (PCB 126) | E157: -- | F157: -- | H157: 3.8 | I157: E | J157: 4e-07 | K157: E | L157: =VLOOKUP(B157,VISL!$B:$W,22,FALSE) -> 
A158: =IF(INDEX(VISL!A:A,MATCH(B158,VISL!B:B,0))="x","x","") ->  | B158: 109-66-0 | C158: Pentane, n- | E158: -- | F158: -- | J158: 1 | K158: P | L158: =VLOOKUP(B158,VISL!$B:$W,22,FALSE) -> 
A159: =IF(INDEX(VISL!A:A,MATCH(B159,VISL!B:B,0))="x","x","") ->  | B159: 75-44-5 | C159: Phosgene | E159: -- | F159: -- | J159: 0.0003 | K159: I | L159: =VLOOKUP(B159,VISL!$B:$W,22,FALSE) -> 
A160: =IF(INDEX(VISL!A:A,MATCH(B160,VISL!B:B,0))="x","x","") ->  | B160: 7803-51-2 | C160: Phosphine | E160: -- | F160: -- | J160: 0.0003 | K160: I | L160: =VLOOKUP(B160,VISL!$B:$W,22,FALSE) -> 
A161: =IF(INDEX(VISL!A:A,MATCH(B161,VISL!B:B,0))="x","x","") ->  | B161: 123-38-6 | C161: Propionaldehyde | E161: -- | F161: -- | J161: 0.008 | K161: I | L161: =VLOOKUP(B161,VISL!$B:$W,22,FALSE) -> 
A162: =IF(INDEX(VISL!A:A,MATCH(B162,VISL!B:B,0))="x","x","") ->  | B162: 103-65-1 | C162: Propyl benzene | E162: -- | F162: -- | J162: 1 | K162: X | L162: =VLOOKUP(B162,VISL!$B:$W,22,FALSE) -> 
A163: =IF(INDEX(VISL!A:A,MATCH(B163,VISL!B:B,0))="x","x","") ->  | B163: 115-07-1 | C163: Propylene | E163: -- | F163: -- | J163: 3 | K163: CA | L163: =VLOOKUP(B163,VISL!$B:$W,22,FALSE) -> 
A164: =IF(INDEX(VISL!A:A,MATCH(B164,VISL!B:B,0))="x","x","") ->  | B164: 107-98-2 | C164: Propylene Glycol Monomethyl Ether | E164: -- | F164: -- | J164: 2 | K164: I | L164: =VLOOKUP(B164,VISL!$B:$W,22,FALSE) -> 
A165: =IF(INDEX(VISL!A:A,MATCH(B165,VISL!B:B,0))="x","x","") ->  | B165: 75-56-9 | C165: Propylene Oxide | E165: -- | F165: -- | H165: 3.7e-06 | I165: I | J165: 0.03 | K165: I | L165: =VLOOKUP(B165,VISL!$B:$W,22,FALSE) -> 
A166: =IF(INDEX(VISL!A:A,MATCH(B166,VISL!B:B,0))="x","x","") ->  | B166: 100-42-5 | C166: Styrene | E166: -- | F166: -- | J166: 1 | K166: I | L166: =VLOOKUP(B166,VISL!$B:$W,22,FALSE) -> 
A167: =IF(INDEX(VISL!A:A,MATCH(B167,VISL!B:B,0))="x","x","") ->  | B167: 7446-11-9 | C167: Sulfur Trioxide | E167: -- | F167: -- | J167: 0.001 | K167: CA | L167: =VLOOKUP(B167,VISL!$B:$W,22,FALSE) -> 
A168: =IF(INDEX(VISL!A:A,MATCH(B168,VISL!B:B,0))="x","x","") ->  | B168: 1746-01-6 | C168: TCDD, 2,3,7,8- | E168: -- | F168: -- | H168: 38 | I168: CA | J168: 4e-08 | K168: CA | L168: =VLOOKUP(B168,VISL!$B:$W,22,FALSE) -> 
A169: =IF(INDEX(VISL!A:A,MATCH(B169,VISL!B:B,0))="x","x","") ->  | B169: 70362-50-4 | C169: Tetrachlorobiphenyl, 3,4,4',5- (PCB 81) | E169: -- | F169: -- | H169: 0.011 | I169: E | J169: 0.00013 | K169: E | L169: =VLOOKUP(B169,VISL!$B:$W,22,FALSE) -> 
A170: =IF(INDEX(VISL!A:A,MATCH(B170,VISL!B:B,0))="x","x","") ->  | B170: 630-20-6 | C170: Tetrachloroethane, 1,1,1,2- | E170: -- | F170: -- | H170: 7.4e-06 | I170: I | L170: =VLOOKUP(B170,VISL!$B:$W,22,FALSE) -> 
A171: =IF(INDEX(VISL!A:A,MATCH(B171,VISL!B:B,0))="x","x","") ->  | B171: 79-34-5 | C171: Tetrachloroethane, 1,1,2,2- | E171: -- | F171: -- | H171: 5.8e-05 | I171: CA | L171: =VLOOKUP(B171,VISL!$B:$W,22,FALSE) -> 
A172: =IF(INDEX(VISL!A:A,MATCH(B172,VISL!B:B,0))="x","x","") ->  | B172: 127-18-4 | C172: Tetrachloroethylene | E172: -- | F172: -- | H172: 2.6e-07 | I172: I | J172: 0.04 | K172: I | L172: =VLOOKUP(B172,VISL!$B:$W,22,FALSE) -> 
A173: =IF(INDEX(VISL!A:A,MATCH(B173,VISL!B:B,0))="x","x","") ->  | B173: 811-97-2 | C173: Tetrafluoroethane, 1,1,1,2- | E173: -- | F173: -- | J173: 80 | K173: I | L173: =VLOOKUP(B173,VISL!$B:$W,22,FALSE) -> 
A174: =IF(INDEX(VISL!A:A,MATCH(B174,VISL!B:B,0))="x","x","") ->  | B174: 109-99-9 | C174: Tetrahydrofuran | E174: -- | F174: -- | J174: 2 | K174: I | L174: =VLOOKUP(B174,VISL!$B:$W,22,FALSE) -> 
A175: =IF(INDEX(VISL!A:A,MATCH(B175,VISL!B:B,0))="x","x","") ->  | B175: 7550-45-0 | C175: Titanium Tetrachloride | E175: -- | F175: -- | J175: 0.0001 | K175: A | L175: =VLOOKUP(B175,VISL!$B:$W,22,FALSE) -> 
A176: =IF(INDEX(VISL!A:A,MATCH(B176,VISL!B:B,0))="x","x","") ->  | B176: 108-88-3 | C176: Toluene | E176: -- | F176: -- | J176: 5 | K176: I | L176: =VLOOKUP(B176,VISL!$B:$W,22,FALSE) -> 
A177: =IF(INDEX(VISL!A:A,MATCH(B177,VISL!B:B,0))="x","x","") ->  | B177: 76-13-1 | C177: Trichloro-1,2,2-trifluoroethane, 1,1,2- | E177: -- | F177: -- | J177: 5 | K177: P | L177: =VLOOKUP(B177,VISL!$B:$W,22,FALSE) -> 
A178: =IF(INDEX(VISL!A:A,MATCH(B178,VISL!B:B,0))="x","x","") ->  | B178: 120-82-1 | C178: Trichlorobenzene, 1,2,4- | E178: -- | F178: -- | J178: 0.002 | K178: P | L178: =VLOOKUP(B178,VISL!$B:$W,22,FALSE) -> 
A179: =IF(INDEX(VISL!A:A,MATCH(B179,VISL!B:B,0))="x","x","") ->  | B179: 71-55-6 | C179: Trichloroethane, 1,1,1- | E179: =IF(OR(D179="",ISTEXT(D179)),"--",IF(H179="","No IUR",IF(L179<>"TCE",D179*(IF(AND(L179="VC",Scenario_IA="Residential"),H179,0)+H179*IF(L179="Mut",MMOAAF_IA,ED_IA)*EF_IA*ET_IA/(ATc_IA*365*24)),D179*mIURTCE_IA*MMOAAF_IA*EF_IA*ET_IA/(ATc_IA*365*24)+D179*IURTCE_IA*ED_IA*EF_IA*ET_IA/(ATc_IA*365*24)))) -> -- | F179: =IF(OR(D179="",ISTEXT(D179)),"--",IF(J179="","No RfC",D179*EF_IA*ED_IA*ET_IA/(J179*ATnc_IA*365*24*1000))) -> -- | H179: =IF(INDEX(IUR,MATCH(B179,CASNoTox,0))=" ","",IF(L179="TCE","see note",INDEX(IUR,MATCH(B179,CASNoTox,0)))) ->  | I179: =IF(INDEX(IURSource,MATCH(B179,CASNoTox,0))="","",SUBSTITUTE(INDEX(IURSource,MATCH(B179,CASNoTox,0)),"C","CA")) ->  | J179: =IF(INDEX(RFC,MATCH(B179,CASNoTox,0))=" ","",INDEX(RFC,MATCH(B179,CASNoTox,0))) -> 5 | K179: =IF(INDEX(RFCSource,MATCH(B179,CASNoTox,0))="","",SUBSTITUTE(INDEX(RFCSource,MATCH(B179,CASNoTox,0)),"C","CA")) -> I | L179: =VLOOKUP(B179,VISL!$B:$W,22,FALSE) -> 
A180: =IF(INDEX(VISL!A:A,MATCH(B180,VISL!B:B,0))="x","x","") ->  | B180: 79-00-5 | C180: Trichloroethane, 1,1,2- | E180: =IF(OR(D180="",ISTEXT(D180)),"--",IF(H180="","No IUR",IF(L180<>"TCE",D180*(IF(AND(L180="VC",Scenario_IA="Residential"),H180,0)+H180*IF(L180="Mut",MMOAAF_IA,ED_IA)*EF_IA*ET_IA/(ATc_IA*365*24)),D180*mIURTCE_IA*MMOAAF_IA*EF_IA*ET_IA/(ATc_IA*365*24)+D180*IURTCE_IA*ED_IA*EF_IA*ET_IA/(ATc_IA*365*24)))) -> -- | F180: =IF(OR(D180="",ISTEXT(D180)),"--",IF(J180="","No RfC",D180*EF_IA*ED_IA*ET_IA/(J180*ATnc_IA*365*24*1000))) -> -- | H180: =IF(INDEX(IUR,MATCH(B180,CASNoTox,0))=" ","",IF(L180="TCE","see note",INDEX(IUR,MATCH(B180,CASNoTox,0)))) -> 1.6e-05 | I180: =IF(INDEX(IURSource,MATCH(B180,CASNoTox,0))="","",SUBSTITUTE(INDEX(IURSource,MATCH(B180,CASNoTox,0)),"C","CA")) -> I | J180: =IF(INDEX(RFC,MATCH(B180,CASNoTox,0))=" ","",INDEX(RFC,MATCH(B180,CASNoTox,0))) -> 0.0002 | K180: =IF(INDEX(RFCSource,MATCH(B180,CASNoTox,0))="","",SUBSTITUTE(INDEX(RFCSource,MATCH(B180,CASNoTox,0)),"C","CA")) -> X | L180: =VLOOKUP(B180,VISL!$B:$W,22,FALSE) -> 
A181: =IF(INDEX(VISL!A:A,MATCH(B181,VISL!B:B,0))="x","x","") ->  | B181: 79-01-6 | C181: Trichloroethylene | E181: -- | F181: -- | H181: see note | I181: I | J181: 0.002 | K181: I | L181: =VLOOKUP(B181,VISL!$B:$W,22,FALSE) -> TCE
A182: =IF(INDEX(VISL!A:A,MATCH(B182,VISL!B:B,0))="x","x","") ->  | B182: 96-18-4 | C182: Trichloropropane, 1,2,3- | E182: -- | F182: -- | J182: 0.0003 | K182: I | L182: =VLOOKUP(B182,VISL!$B:$W,22,FALSE) -> Mut
A183: =IF(INDEX(VISL!A:A,MATCH(B183,VISL!B:B,0))="x","x","") ->  | B183: 96-19-5 | C183: Trichloropropene, 1,2,3- | E183: =IF(OR(D183="",ISTEXT(D183)),"--",IF(H183="","No IUR",IF(L183<>"TCE",D183*(IF(AND(L183="VC",Scenario_IA="Residential"),H183,0)+H183*IF(L183="Mut",MMOAAF_IA,ED_IA)*EF_IA*ET_IA/(ATc_IA*365*24)),D183*mIURTCE_IA*MMOAAF_IA*EF_IA*ET_IA/(ATc_IA*365*24)+D183*IURTCE_IA*ED_IA*EF_IA*ET_IA/(ATc_IA*365*24)))) -> -- | F183: =IF(OR(D183="",ISTEXT(D183)),"--",IF(J183="","No RfC",D183*EF_IA*ED_IA*ET_IA/(J183*ATnc_IA*365*24*1000))) -> -- | H183: =IF(INDEX(IUR,MATCH(B183,CASNoTox,0))=" ","",IF(L183="TCE","see note",INDEX(IUR,MATCH(B183,CASNoTox,0)))) ->  | I183: =IF(INDEX(IURSource,MATCH(B183,CASNoTox,0))="","",SUBSTITUTE(INDEX(IURSource,MATCH(B183,CASNoTox,0)),"C","CA")) ->  | J183: =IF(INDEX(RFC,MATCH(B183,CASNoTox,0))=" ","",INDEX(RFC,MATCH(B183,CASNoTox,0))) -> 0.0003 | K183: =IF(INDEX(RFCSource,MATCH(B183,CASNoTox,0))="","",SUBSTITUTE(INDEX(RFCSource,MATCH(B183,CASNoTox,0)),"C","CA")) -> P | L183: =VLOOKUP(B183,VISL!$B:$W,22,FALSE) -> 
A184: =IF(INDEX(VISL!A:A,MATCH(B184,VISL!B:B,0))="x","x","") ->  | B184: 121-44-8 | C184: Triethylamine | E184: -- | F184: -- | J184: 0.007 | K184: I | L184: =VLOOKUP(B184,VISL!$B:$W,22,FALSE) -> 
A185: =IF(INDEX(VISL!A:A,MATCH(B185,VISL!B:B,0))="x","x","") ->  | B185: 420-46-2 | C185: Trifluoroethane, 1,1,1- | E185: -- | F185: -- | J185: 20 | K185: P | L185: =VLOOKUP(B185,VISL!$B:$W,22,FALSE) -> 
A186: =IF(INDEX(VISL!A:A,MATCH(B186,VISL!B:B,0))="x","x","") ->  | B186: 526-73-8 | C186: Trimethylbenzene, 1,2,3- | E186: -- | F186: -- | J186: 0.06 | K186: I | L186: =VLOOKUP(B186,VISL!$B:$W,22,FALSE) -> 
A187: =IF(INDEX(VISL!A:A,MATCH(B187,VISL!B:B,0))="x","x","") ->  | B187: 95-63-6 | C187: Trimethylbenzene, 1,2,4- | E187: -- | F187: -- | J187: 0.06 | K187: I | L187: =VLOOKUP(B187,VISL!$B:$W,22,FALSE) -> 
A188: =IF(INDEX(VISL!A:A,MATCH(B188,VISL!B:B,0))="x","x","") ->  | B188: 108-67-8 | C188: Trimethylbenzene, 1,3,5- | E188: -- | F188: -- | J188: 0.06 | K188: I | L188: =VLOOKUP(B188,VISL!$B:$W,22,FALSE) -> 
A189: =IF(INDEX(VISL!A:A,MATCH(B189,VISL!B:B,0))="x","x","") ->  | B189: 126-72-7 | C189: Tris(2,3-dibromopropyl)phosphate | E189: -- | F189: -- | H189: 0.00066 | I189: CA | L189: =VLOOKUP(B189,VISL!$B:$W,22,FALSE) -> 
A190: =IF(INDEX(VISL!A:A,MATCH(B190,VISL!B:B,0))="x","x","") ->  | B190: 108-05-4 | C190: Vinyl Acetate | E190: =IF(OR(D190="",ISTEXT(D190)),"--",IF(H190="","No IUR",IF(L190<>"TCE",D190*(IF(AND(L190="VC",Scenario_IA="Residential"),H190,0)+H190*IF(L190="Mut",MMOAAF_IA,ED_IA)*EF_IA*ET_IA/(ATc_IA*365*24)),D190*mIURTCE_IA*MMOAAF_IA*EF_IA*ET_IA/(ATc_IA*365*24)+D190*IURTCE_IA*ED_IA*EF_IA*ET_IA/(ATc_IA*365*24)))) -> -- | F190: -- | J190: 0.2 | K190: I | L190: =VLOOKUP(B190,VISL!$B:$W,22,FALSE) -> 
A191: =IF(INDEX(VISL!A:A,MATCH(B191,VISL!B:B,0))="x","x","") ->  | B191: 593-60-2 | C191: Vinyl Bromide | E191: -- | F191: -- | H191: 3.2e-05 | I191: H | J191: 0.003 | K191: I | L191: =VLOOKUP(B191,VISL!$B:$W,22,FALSE) -> 
A192: =IF(INDEX(VISL!A:A,MATCH(B192,VISL!B:B,0))="x","x","") ->  | B192: 75-01-4 | C192: Vinyl Chloride | E192: -- | F192: -- | H192: 4.4e-06 | I192: I | J192: 0.1 | K192: I | L192: =VLOOKUP(B192,VISL!$B:$W,22,FALSE) -> VC
A193: =IF(INDEX(VISL!A:A,MATCH(B193,VISL!B:B,0))="x","x","") ->  | B193: 108-38-3 | C193: Xylene, m- | E193: -- | F193: -- | J193: 0.1 | K193: S | L193: =VLOOKUP(B193,VISL!$B:$W,22,FALSE) -> 
A194: =IF(INDEX(VISL!A:A,MATCH(B194,VISL!B:B,0))="x","x","") ->  | B194: 95-47-6 | C194: Xylene, o- | E194: -- | F194: -- | J194: 0.1 | K194: S | L194: =VLOOKUP(B194,VISL!$B:$W,22,FALSE) -> 
A195: =IF(INDEX(VISL!A:A,MATCH(B195,VISL!B:B,0))="x","x","") ->  | B195: 106-42-3 | C195: Xylene, P- | E195: -- | F195: -- | J195: 0.1 | K195: S | L195: =VLOOKUP(B195,VISL!$B:$W,22,FALSE) -> 
A196: =IF(INDEX(VISL!A:A,MATCH(B196,VISL!B:B,0))="x","x","") ->  | B196: 1330-20-7 | C196: Xylenes | E196: -- | F196: -- | J196: 0.1 | K196: I | L196: =VLOOKUP(B196,VISL!$B:$W,22,FALSE) -> 
A197: =IF(INDEX(VISL!A:A,MATCH(B197,VISL!B:B,0))="x","x","") ->  | B197: 142-82-5 | C197: Heptane, N- | E197: -- | F197: -- | J197: 0.4 | K197: P | L197: =VLOOKUP(B197,VISL!$B:$W,22,FALSE) -> 
A198: =IF(INDEX(VISL!A:A,MATCH(B198,VISL!B:B,0))="x","x","") ->  | B198: 584-84-9 | C198: Toluene-2,4-diisocyanate | E198: -- | F198: -- | H198: 1.1e-05 | I198: CA | J198: 8e-06 | K198: CA | L198: =VLOOKUP(B198,VISL!$B:$W,22,FALSE) -> 
A199: =IF(INDEX(VISL!A:A,MATCH(B199,VISL!B:B,0))="x","x","") ->  | B199: 91-08-7 | C199: Toluene-2,6-diisocyanate | E199: =IF(OR(D199="",ISTEXT(D199)),"--",IF(H199="","No IUR",IF(L199<>"TCE",D199*(IF(AND(L199="VC",Scenario_IA="Residential"),H199,0)+H199*IF(L199="Mut",MMOAAF_IA,ED_IA)*EF_IA*ET_IA/(ATc_IA*365*24)),D199*mIURTCE_IA*MMOAAF_IA*EF_IA*ET_IA/(ATc_IA*365*24)+D199*IURTCE_IA*ED_IA*EF_IA*ET_IA/(ATc_IA*365*24)))) -> -- | F199: =IF(OR(D199="",ISTEXT(D199)),"--",IF(J199="","No RfC",D199*EF_IA*ED_IA*ET_IA/(J199*ATnc_IA*365*24*1000))) -> -- | H199: =IF(INDEX(IUR,MATCH(B199,CASNoTox,0))=" ","",IF(L199="TCE","see note",INDEX(IUR,MATCH(B199,CASNoTox,0)))) -> 1.1e-05 | I199: =IF(INDEX(IURSource,MATCH(B199,CASNoTox,0))="","",SUBSTITUTE(INDEX(IURSource,MATCH(B199,CASNoTox,0)),"C","CA")) -> CA | J199: =IF(INDEX(RFC,MATCH(B199,CASNoTox,0))=" ","",INDEX(RFC,MATCH(B199,CASNoTox,0))) -> 8e-06 | K199: =IF(INDEX(RFCSource,MATCH(B199,CASNoTox,0))="","",SUBSTITUTE(INDEX(RFCSource,MATCH(B199,CASNoTox,0)),"C","CA")) -> CA | L199: =VLOOKUP(B199,VISL!$B:$W,22,FALSE) ->  | N199: =IF(AND(H199="",J199=""),"X","") -> 
B202: Notes:
B204: (1) | C204: Inhalation Pathway Exposure Parameters (RME): | D204: Units | F204: Residential | H204: Commercial | L204: ="Selected (based on scenario)" -> Selected (based on scenario)
... 40 more rows

Sheet Chem Props
B1: ChemNameChem | E1: MolWt | F1: source | G1: VP25 | I1: Sol | K1: MCL | N1: H25C | O1: HTgw | P1: HLC | S1: VPTgw | V1: No DW
E2: 2 | I2: 15 | L2: 5 | T2: 9 | V2: 11 | Z2: JE | AB2: JE | AD2: 13
A3: CASRN | B3: Chemical Name | C3: Is Volatile? VP>1 or HLC>10E-5 | E3: Molecular Weight | G3: Vapor Pressure | I3: Pure Component Water Solubility | K3: MCL | L3: Henry's Law Constant @25°C | N3: Henry's Law Constant @25°Cg | O3: Henry's Law Constant @ Tgwg | P3: Henry's Law Constant Used in Calcs | Q3: Henry's Law Constant @ Tgw_GWg | R3: Henry's Law Constant Used in Calcs for GW-IA_calc | S3: Vapor Pressure @ Tgwg | T3: Diffusivity in air m | V3: Diffusivity in water m | X3: Normal Boiling Point | Z3: Critical Temperature | AB3: Enthalpy of vaporization at the normal boiling point | AD3: Organic Carbon Partition Coefficient m | AF3: Lower Explosive Limit
E4: MW | G4: VP | I4: S | K4: (ug/L) | L4: Hc25 | N4: H'25 | O4: H'Tgw | P4: HLC | Q4: H'Tgw_GW | R4: HLC_GW | S4: VPTgw | T4: Da | V4: Dw | X4: Tboil | Z4: Tcrit | AB4: DHv,b | AD4: Koc | AF4: LEL
A5: CAS | B5: Alphabetized List of Compounds | D5: has tox? | E5: (g/mole) | F5: source | G5: (mm Hg) | H5: source | I5: (mg/L) | J5: source | L5: (atm-m3/mol) | M5: source | N5: (unitless) | O5: (unitless) | P5: (unitless) | Q5: (unitless) | R5: (unitless) | S5: (ug/m3) | T5: (cm2/s) | U5: source | V5: (cm2/s) | W5: source | X5: (oK) | Y5: source | Z5: (oK) | AA5: source | AB5: (cal/mol) | AC5: source | AD5: (cm3/g) | AE5: source | AF5: (% by vol) | AG5: source | AI5: Alternative Chemical Name 1 | AJ5: Alternative Chemical Name 2
A6: 83-32-9 | B6: Acenaphthene | C6: =IF((COUNTIF(G6,">1")+COUNTIF(L6,">1E-5"))>0,"Yes","No") -> Yes | D6: =VLOOKUP(A6,'Tox Summary'!$O$3:$R$824,3,FALSE) -> No | E6: =VLOOKUP(A6,'Parameters Summary'!$B$2:$AB$826,4,FALSE) -> 154.21 | F6: =VLOOKUP(A6,'Parameters Summary'!$B$2:$AB$826,5,FALSE) -> PHYSPROP | G6: =VLOOKUP(A6,'Parameters Summary'!$B$2:$AB$826,9,FALSE) -> 0.00215 | H6: =VLOOKUP(A6,'Parameters Summary'!$B$2:$AB$826,10,FALSE) -> PHYSPROP | I6: =VLOOKUP(A6,'Parameters Summary'!$B$2:$AB$826,24,FALSE) -> 3.9 | J6: =VLOOKUP(A6,'Parameters Summary'!$B$2:$AB$826,25,FALSE) -> PHYSPROP | K6: =VLOOKUP(A6,'Tox Summary'!$O$3:$S$827,2,FALSE) ->  | L6: =VLOOKUP(A6,'Parameters Summary'!$B$2:$AB$826,7,FALSE) -> 0.000184 | M6: =VLOOKUP(A6,'Parameters Summary'!$B$2:$AB$826,8,FALSE) -> PHYSPROP | N6: =VLOOKUP(A6,'Parameters Summary'!$B$2:$AB$826,6,FALSE) -> 0.0075225 | O6: =IF(OR(L6="No Hc25",Z6="No Tcrit",AB6="No DHv,b"),"",N6*EXP((-(AB6*((1-(Tgw+273)/Z6)/(1-X6/Z6))^(IF(X6/Z6<0.57,0.3,IF(X6/Z6>0.71,0.41,0.74*(X6/Z6)-0.116))))/1.9872)*(1/(Tgw+273)-1/298))) -> 0.0075225 | P6: =IF(O6="",N6,O6) -> 0.0075225 | Q6: =IF(OR(L6="No Hc25",Z6="No Tcrit",AB6="No DHv,b"),"",N6*EXP((-(AB6*((1-(Tgw_GW+273)/Z6)/(1-X6/Z6))^(IF(X6/Z6<0.57,0.3,IF(X6/Z6>0.71,0.41,0.74*(X6/Z6)-0.116))))/1.9872)*(1/(Tgw_GW+273)-1/298))) -> 0.0075225 | R6: =IF(Q6="",P6,Q6) -> 0.0075225 | S6: =IF(OR(G6="No VP",Z6="No Tcrit",AB6="No DHv,b",L6="No Hc25"),"",G6*E6*53808.7856452378*O6/N6) -> 17840.38359 | T6: =VLOOKUP(A6,'Parameters Summary'!$B$2:$AB$826,15,FALSE) -> 0.0506143 | U6: =VLOOKUP(A6,'Parameters Summary'!$B$2:$AB$826,17,FALSE) -> WATER9 (U.S. EPA, 2001) | V6: =VLOOKUP(A6,'Parameters Summary'!$B$2:$AB$826,16,FALSE) -> 8.33e-06 | W6: =VLOOKUP(A6,'Parameters Summary'!$B$2:$AB$826,17,FALSE) -> WATER9 (U.S. EPA, 2001) | X6: 552 | Y6: EPI | Z6: 803.15 | AA6: Weast | AB6: 12155 | AC6: Weast | AD6: =VLOOKUP(A6,'Parameters Summary'!$B$2:$AB$826,20,FALSE) -> 5027 | AE6: =VLOOKUP(A6,'Parameters Summary'!$B$2:$AB$826,21,FALSE) -> EPI | AF6: 0.6 | AG6: M
A7: 30560-19-1 | B7: Acephate | C7: =IF((COUNTIF(G7,">1")+COUNTIF(L7,">1E-5"))>0,"Yes","No") -> No | D7: =VLOOKUP(A7,'Tox Summary'!$O$3:$R$824,3,FALSE) -> No | E7: =VLOOKUP(A7,'Parameters Summary'!$B$2:$AB$826,4,FALSE) -> 183.17 | F7: =VLOOKUP(A7,'Parameters Summary'!$B$2:$AB$826,5,FALSE) -> PHYSPROP | G7: =VLOOKUP(A7,'Parameters Summary'!$B$2:$AB$826,9,FALSE) -> 1.7e-06 | H7: =VLOOKUP(A7,'Parameters Summary'!$B$2:$AB$826,10,FALSE) -> PHYSPROP | I7: =VLOOKUP(A7,'Parameters Summary'!$B$2:$AB$826,24,FALSE) -> 818000 | J7: =VLOOKUP(A7,'Parameters Summary'!$B$2:$AB$826,25,FALSE) -> PHYSPROP | K7: =VLOOKUP(A7,'Tox Summary'!$O$3:$S$827,2,FALSE) ->  | L7: =VLOOKUP(A7,'Parameters Summary'!$B$2:$AB$826,7,FALSE) -> 5.01e-13 | M7: =VLOOKUP(A7,'Parameters Summary'!$B$2:$AB$826,8,FALSE) -> EPI | N7: =VLOOKUP(A7,'Parameters Summary'!$B$2:$AB$826,6,FALSE) -> 2.048e-11 | P7: =IF(O7="",N7,O7) -> 2.048e-11 | R7: =IF(Q7="",P7,Q7) -> 2.048e-11 | S7: =IF(OR(G7="No VP",Z7="No Tcrit",AB7="No DHv,b",L7="No Hc25"),"",G7*E7*53808.7856452378*O7/N7) ->  | T7: =VLOOKUP(A7,'Parameters Summary'!$B$2:$AB$826,15,FALSE) -> 0.0373483 | U7: =VLOOKUP(A7,'Parameters Summary'!$B$2:$AB$826,17,FALSE) -> WATER9 (U.S. EPA, 2001) | V7: =VLOOKUP(A7,'Parameters Summary'!$B$2:$AB$826,16,FALSE) -> 7.9755e-06 | W7: =VLOOKUP(A7,'Parameters Summary'!$B$2:$AB$826,17,FALSE) -> WATER9 (U.S. EPA, 2001) | Z7: No Tcrit | AB7: No DHv,b | AD7: =VLOOKUP(A7,'Parameters Summary'!$B$2:$AB$826,20,FALSE) -> 10 | AE7: =VLOOKUP(A7,'Parameters Summary'!$B$2:$AB$826,21,FALSE) -> EPI
A8: 75-07-0 | B8: Acetaldehyde | C8: Yes | D8: =VLOOKUP(A8,'Tox Summary'!$O$3:$R$824,3,FALSE) -> Yes | E8: =VLOOKUP(A8,'Parameters Summary'!$B$2:$AB$826,4,FALSE) -> 44.054 | F8: =VLOOKUP(A8,'Parameters Summary'!$B$2:$AB$826,5,FALSE) -> PHYSPROP | G8: =VLOOKUP(A8,'Parameters Summary'!$B$2:$AB$826,9,FALSE) -> 902 | H8: =VLOOKUP(A8,'Parameters Summary'!$B$2:$AB$826,10,FALSE) -> PHYSPROP | I8: =VLOOKUP(A8,'Parameters Summary'!$B$2:$AB$826,24,FALSE) -> 1000000 | J8: =VLOOKUP(A8,'Parameters Summary'!$B$2:$AB$826,25,FALSE) -> PHYSPROP | K8: =VLOOKUP(A8,'Tox Summary'!$O$3:$S$827,2,FALSE) ->  | L8: =VLOOKUP(A8,'Parameters Summary'!$B$2:$AB$826,7,FALSE) -> 6.67e-05 | M8: =VLOOKUP(A8,'Parameters Summary'!$B$2:$AB$826,8,FALSE) -> PHYSPROP | N8: =VLOOKUP(A8,'Parameters Summary'!$B$2:$AB$826,6,FALSE) -> 0.0027269 | O8: 0.0027269 | P8: 0.0027269 | Q8: 0.0027269 | R8: 0.0027269 | S8: 2138184003 | T8: =VLOOKUP(A8,'Parameters Summary'!$B$2:$AB$826,15,FALSE) -> 0.1277026 | U8: =VLOOKUP(A8,'Parameters Summary'!$B$2:$AB$826,17,FALSE) -> WATER9 (U.S. EPA, 2001) | V8: =VLOOKUP(A8,'Parameters Summary'!$B$2:$AB$826,16,FALSE) -> 1.35e-05 | W8: =VLOOKUP(A8,'Parameters Summary'!$B$2:$AB$826,17,FALSE) -> WATER9 (U.S. EPA, 2001) | X8: 293.1 | Y8: EPI | Z8: 466 | AA8: CRC | AB8: 6156.64 | AC8: CRC | AD8: =VLOOKUP(A8,'Parameters Summary'!$B$2:$AB$826,20,FALSE) -> 1 | AE8: =VLOOKUP(A8,'Parameters Summary'!$B$2:$AB$826,21,FALSE) -> EPI | AF8: 4 | AG8: E
A9: 34256-82-1 | B9: Acetochlor | C9: No | D9: =VLOOKUP(A9,'Tox Summary'!$O$3:$R$824,3,FALSE) -> No | E9: =VLOOKUP(A9,'Parameters Summary'!$B$2:$AB$826,4,FALSE) -> 269.77 | F9: =VLOOKUP(A9,'Parameters Summary'!$B$2:$AB$826,5,FALSE) -> PHYSPROP | G9: =VLOOKUP(A9,'Parameters Summary'!$B$2:$AB$826,9,FALSE) -> 2.8e-05 | H9: =VLOOKUP(A9,'Parameters Summary'!$B$2:$AB$826,10,FALSE) -> PHYSPROP | I9: =VLOOKUP(A9,'Parameters Summary'!$B$2:$AB$826,24,FALSE) -> 223 | J9: =VLOOKUP(A9,'Parameters Summary'!$B$2:$AB$826,25,FALSE) -> PHYSPROP | K9: =VLOOKUP(A9,'Tox Summary'!$O$3:$S$827,2,FALSE) ->  | L9: =VLOOKUP(A9,'Parameters Summary'!$B$2:$AB$826,7,FALSE) -> 2.23e-08 | M9: =VLOOKUP(A9,'Parameters Summary'!$B$2:$AB$826,8,FALSE) -> PHYSPROP | N9: =VLOOKUP(A9,'Parameters Summary'!$B$2:$AB$826,6,FALSE) -> 9.1169e-07 | P9: 9.1169e-07 | R9: 9.1169e-07 | T9: =VLOOKUP(A9,'Parameters Summary'!$B$2:$AB$826,15,FALSE) -> 0.0223908 | U9: =VLOOKUP(A9,'Parameters Summary'!$B$2:$AB$826,17,FALSE) -> WATER9 (U.S. EPA, 2001) | V9: =VLOOKUP(A9,'Parameters Summary'!$B$2:$AB$826,16,FALSE) -> 5.6126e-06 | W9: =VLOOKUP(A9,'Parameters Summary'!$B$2:$AB$826,17,FALSE) -> WATER9 (U.S. EPA, 2001) | X9: 435.15 | Y9: EPI | Z9: 652.725 | AA9: Approx. from Tcrit=1.5xTBoil | AB9: No DHv,b | AD9: =VLOOKUP(A9,'Parameters Summary'!$B$2:$AB$826,20,FALSE) -> 298.4 | AE9: =VLOOKUP(A9,'Parameters Summary'!$B$2:$AB$826,21,FALSE) -> EPI
A10: 67-64-1 | B10: Acetone | C10: Yes | D10: =VLOOKUP(A10,'Tox Summary'!$O$3:$R$824,3,FALSE) -> Yes | E10: =VLOOKUP(A10,'Parameters Summary'!$B$2:$AB$826,4,FALSE) -> 58.081 | F10: =VLOOKUP(A10,'Parameters Summary'!$B$2:$AB$826,5,FALSE) -> PHYSPROP | G10: =VLOOKUP(A10,'Parameters Summary'!$B$2:$AB$826,9,FALSE) -> 231.5 | H10: =VLOOKUP(A10,'Parameters Summary'!$B$2:$AB$826,10,FALSE) -> PHYSPROP | I10: =VLOOKUP(A10,'Parameters Summary'!$B$2:$AB$826,24,FALSE) -> 1000000 | J10: =VLOOKUP(A10,'Parameters Summary'!$B$2:$AB$826,25,FALSE) -> PHYSPROP | K10: =VLOOKUP(A10,'Tox Summary'!$O$3:$S$827,2,FALSE) ->  | L10: =VLOOKUP(A10,'Parameters Summary'!$B$2:$AB$826,7,FALSE) -> 3.5e-05 | M10: =VLOOKUP(A10,'Parameters Summary'!$B$2:$AB$826,8,FALSE) -> PHYSPROP | N10: =VLOOKUP(A10,'Parameters Summary'!$B$2:$AB$826,6,FALSE) -> 0.0014309 | O10: 0.0014309 | P10: 0.0014309 | Q10: 0.0014309 | R10: 0.0014309 | S10: 723499560.3 | T10: =VLOOKUP(A10,'Parameters Summary'!$B$2:$AB$826,15,FALSE) -> 0.1059215 | U10: =VLOOKUP(A10,'Parameters Summary'!$B$2:$AB$826,17,FALSE) -> WATER9 (U.S. EPA, 2001) | V10: =VLOOKUP(A10,'Parameters Summary'!$B$2:$AB$826,16,FALSE) -> 1.15e-05 | W10: =VLOOKUP(A10,'Parameters Summary'!$B$2:$AB$826,17,FALSE) -> WATER9 (U.S. EPA, 2001) | X10: 328.5 | Y10: EPI | Z10: 508.1 | AA10: Weast | AB10: 6955 | AC10: Weast | AD10: =VLOOKUP(A10,'Parameters Summary'!$B$2:$AB$826,20,FALSE) -> 2.364 | AE10: =VLOOKUP(A10,'Parameters Summary'!$B$2:$AB$826,21,FALSE) -> EPI | AF10: 2.6 | AG10: E
A11: 75-86-5 | B11: Acetone Cyanohydrin | C11: No | D11: =VLOOKUP(A11,'Tox Summary'!$O$3:$R$824,3,FALSE) -> Yes | E11: =VLOOKUP(A11,'Parameters Summary'!$B$2:$AB$826,4,FALSE) -> 85.106 | F11: =VLOOKUP(A11,'Parameters Summary'!$B$2:$AB$826,5,FALSE) -> PHYSPROP | G11: =VLOOKUP(A11,'Parameters Summary'!$B$2:$AB$826,9,FALSE) -> 0.341 | H11: =VLOOKUP(A11,'Parameters Summary'!$B$2:$AB$826,10,FALSE) -> PHYSPROP | I11: =VLOOKUP(A11,'Parameters Summary'!$B$2:$AB$826,24,FALSE) -> 1000000 | J11: =VLOOKUP(A11,'Parameters Summary'!$B$2:$AB$826,25,FALSE) -> PHYSPROP | K11: =VLOOKUP(A11,'Tox Summary'!$O$3:$S$827,2,FALSE) ->  | L11: =VLOOKUP(A11,'Parameters Summary'!$B$2:$AB$826,7,FALSE) -> 1.97e-09 | M11: =VLOOKUP(A11,'Parameters Summary'!$B$2:$AB$826,8,FALSE) -> PHYSPROP | N11: =VLOOKUP(A11,'Parameters Summary'!$B$2:$AB$826,6,FALSE) -> 8.054e-08 | P11: 8.054e-08 | R11: 8.054e-08 | T11: =VLOOKUP(A11,'Parameters Summary'!$B$2:$AB$826,15,FALSE) -> 0.0859491 | U11: =VLOOKUP(A11,'Parameters Summary'!$B$2:$AB$826,17,FALSE) -> WATER9 (U.S. EPA, 2001) | V11: =VLOOKUP(A11,'Parameters Summary'!$B$2:$AB$826,16,FALSE) -> 1.01e-05 | W11: =VLOOKUP(A11,'Parameters Summary'!$B$2:$AB$826,17,FALSE) -> WATER9 (U.S. EPA, 2001) | X11: 444 | Y11: EPI (converted) | Z11: 666 | AA11: Approx. from Tcrit=1.5xTBoil | AB11: No DHv,b | AD11: =VLOOKUP(A11,'Parameters Summary'!$B$2:$AB$826,20,FALSE) -> 1 | AE11: =VLOOKUP(A11,'Parameters Summary'!$B$2:$AB$826,21,FALSE) -> EPI
A12: 75-05-8 | B12: Acetonitrile | C12: Yes | D12: =VLOOKUP(A12,'Tox Summary'!$O$3:$R$824,3,FALSE) -> Yes | E12: =VLOOKUP(A12,'Parameters Summary'!$B$2:$AB$826,4,FALSE) -> 41.053 | F12: =VLOOKUP(A12,'Parameters Summary'!$B$2:$AB$826,5,FALSE) -> PHYSPROP | G12: =VLOOKUP(A12,'Parameters Summary'!$B$2:$AB$826,9,FALSE) -> 88.8 | H12: =VLOOKUP(A12,'Parameters Summary'!$B$2:$AB$826,10,FALSE) -> PHYSPROP | I12: =VLOOKUP(A12,'Parameters Summary'!$B$2:$AB$826,24,FALSE) -> 1000000 | J12: =VLOOKUP(A12,'Parameters Summary'!$B$2:$AB$826,25,FALSE) -> PHYSPROP | K12: =VLOOKUP(A12,'Tox Summary'!$O$3:$S$827,2,FALSE) ->  | L12: =VLOOKUP(A12,'Parameters Summary'!$B$2:$AB$826,7,FALSE) -> 3.45e-05 | M12: =VLOOKUP(A12,'Parameters Summary'!$B$2:$AB$826,8,FALSE) -> PHYSPROP | N12: =VLOOKUP(A12,'Parameters Summary'!$B$2:$AB$826,6,FALSE) -> 0.0014105 | O12: 0.0014105 | P12: 0.0014105 | Q12: 0.0014105 | R12: 0.0014105 | S12: 196160272.4 | T12: =VLOOKUP(A12,'Parameters Summary'!$B$2:$AB$826,15,FALSE) -> 0.1339939 | U12: =VLOOKUP(A12,'Parameters Summary'!$B$2:$AB$826,17,FALSE) -> WATER9 (U.S. EPA, 2001) | V12: =VLOOKUP(A12,'Parameters Summary'!$B$2:$AB$826,16,FALSE) -> 1.41e-05 | W12: =VLOOKUP(A12,'Parameters Summary'!$B$2:$AB$826,17,FALSE) -> WATER9 (U.S. EPA, 2001) | X12: 332.6 | Y12: EPI | Z12: 545.5 | AA12: CRC | AB12: 7110.25 | AC12: CRC | AD12: =VLOOKUP(A12,'Parameters Summary'!$B$2:$AB$826,20,FALSE) -> 4.67 | AE12: =VLOOKUP(A12,'Parameters Summary'!$B$2:$AB$826,21,FALSE) -> EPI | AF12: 3 | AG12: N
A13: 98-86-2 | B13: Acetophenone | C13: Yes | D13: =VLOOKUP(A13,'Tox Summary'!$O$3:$R$824,3,FALSE) -> No | E13: =VLOOKUP(A13,'Parameters Summary'!$B$2:$AB$826,4,FALSE) -> 120.15 | F13: =VLOOKUP(A13,'Parameters Summary'!$B$2:$AB$826,5,FALSE) -> PHYSPROP | G13: =VLOOKUP(A13,'Parameters Summary'!$B$2:$AB$826,9,FALSE) -> 0.397 | H13: =VLOOKUP(A13,'Parameters Summary'!$B$2:$AB$826,10,FALSE) -> PHYSPROP | I13: =VLOOKUP(A13,'Parameters Summary'!$B$2:$AB$826,24,FALSE) -> 6130 | J13: =VLOOKUP(A13,'Parameters Summary'!$B$2:$AB$826,25,FALSE) -> PHYSPROP | K13: =VLOOKUP(A13,'Tox Summary'!$O$3:$S$827,2,FALSE) ->  | L13: =VLOOKUP(A13,'Parameters Summary'!$B$2:$AB$826,7,FALSE) -> 1.04e-05 | M13: =VLOOKUP(A13,'Parameters Summary'!$B$2:$AB$826,8,FALSE) -> PHYSPROP | N13: =VLOOKUP(A13,'Parameters Summary'!$B$2:$AB$826,6,FALSE) -> 0.0004252 | O13: 0.0004252 | P13: 0.0004252 | Q13: 0.0004252 | R13: 0.0004252 | S13: 2566654.861 | T13: =VLOOKUP(A13,'Parameters Summary'!$B$2:$AB$826,15,FALSE) -> 0.0652221 | U13: =VLOOKUP(A13,'Parameters Summary'!$B$2:$AB$826,17,FALSE) -> WATER9 (U.S. EPA, 2001) | V13: =VLOOKUP(A13,'Parameters Summary'!$B$2:$AB$826,16,FALSE) -> 8.7229e-06 | W13: =VLOOKUP(A13,'Parameters Summary'!$B$2:$AB$826,17,FALSE) -> WATER9 (U.S. EPA, 2001) | X13: 475 | Y13: EPI | Z13: 709.5 | AA13: CRC | AB13: 11731.5 | AC13: TOXNET | AD13: =VLOOKUP(A13,'Parameters Summary'!$B$2:$AB$826,20,FALSE) -> 51.85 | AE13: =VLOOKUP(A13,'Parameters Summary'!$B$2:$AB$826,21,FALSE) -> EPI | AF13: 1.1 | AG13: M
